Workbook

Sheet Resumo
B2: QUADRO RESUMO DO ORÇAMENTO
B3: Obra: | C3: Realização das obras de revitalização do setor comercial e portuário do município de Santana, no estado do Amapá | D3: Base de Preço: | E3: SINAPI: MAR/2024-AP
E4: SICRO: JAN/2024-AP
B5: Data base: | C5: ABRIL / 2024 | E5: ORSE: FEV/2024
B7: Item | C7: DESCRIÇÃO | D7: PREÇO SEM DESONERAÇÃO
D8: RELAÇÃO (%) | E8: VALOR
B9: 1 | C9: =Orçamento!C9 -> ADMINISTRAÇÃO DE OBRAS | D9: =E9/$E$19 -> 0.07338705046 | E9: =Orçamento!L9 -> 3480661.841
B10: 2 | C10: =Orçamento!C12 -> PROJETO URBANÍSTICO | D10: 0.1042683348 | E10: =Orçamento!L12 -> 4945324.985
B11: 3 | C11: =Orçamento!C190 -> EDIFICAÇÕES NOVAS | D11: 0.2475731225 | E11: =Orçamento!L190 -> 11742103.2
B12: 4 | C12: =Orçamento!C1300 -> EDIFICAÇÕES A SEREM REFORMADAS | D12: 0.009462380842 | E12: =Orçamento!L1300 -> 448789.6395
B13: 5 | C13: =Orçamento!C1445 -> PROJETO VIÁRIO | D13: 0.117579658 | E13: =Orçamento!L1445 -> 5576665.45
B14: 6 | C14: =Orçamento!C1498 -> PROJETO DE DRENAGEM | D14: 0.04192619593 | E14: =Orçamento!L1498 -> 1988510.362
B15: 7 | C15: =Orçamento!C1535 -> PROJETO DE ILUMINAÇÃO E ELETRIFICAÇÃO PÚBLICA | D15: 0.007833400119 | E15: =Orçamento!L1535 -> 371528.992
B16: 8 | C16: =Orçamento!C1584 -> PROJETO DE ABASTECIMENTO DE ÁGUA E REDE DE ESGOTO | D16: 0.008523740086 | E16: =Orçamento!L1584 -> 404271.0079
B17: 9 | C17: =Orçamento!C1660 -> ESTRUTURAS DE CONTENÇÃO | D17: 0.3282779974 | E17: =Orçamento!L1660 -> 15569840.89
B18: 10 | C18: =Orçamento!C1705 -> ESTRUTURAS DE ACESSO E EMBARCAÇÃO | D18: 0.06116811989 | E18: =Orçamento!L1705 -> 2901132.277
B19: CUSTO TOTAL | D19: =ROUND(SUM(D9:D18),3) -> 1 | E19: =SUM(E9:E18) -> 47428828.64
B26: 88326 | C26: VIGIA NOTURNO COM ENCARGOS COMPLEMENTARES | D26: ultimo valor atualizado é de 11/2023 | F26: sinapi | H26: 401002018 | I26: AGESUL | J26: 2024-01-01
B27: 93582 | C27: EXECUÇÃO DE CENTRAL DE ARMADURA EM CANTEIRO DE OBRA, NÃO INCLUSO MOBILIÁRIO E EQUIPAMENTOS. AF_04/2016 | D27: ultimo valor atualizado é de 12/2023 | F27: sinapi | H27: 01.08.12U | I27: Compesa | J27: 2023-07-01
H28: 401002018 | I28: AGESUL | J28: 2024-01-01
B29: 98560 | C29: IMPERMEABILIZAÇÃO DE PISO COM ARGAMASSA DE CIMENTO E AREIA, COM ADITIVO IMPERMEABILIZANTE, E = 2CM. AF_06/2018 | D29: 2023-08-01 | I29: ANP | J29: 2024-03-01
B30: 91784 | D30: 2023-08-01
B31: 91785 | D31: 2023-08-01
B32: 91786 | D32: 2023-08-01
B33: 96547 | D33: 2023-12-01
B34: 91844 | D34: 2023-12-01
B35: 93210 | D35: 2023-12-01
B36: 93212 | D36: 2023-12-01
B37: 93584 | D37: 2023-12-01

Sheet Orçamento
B2: QUADRO DEMONSTRATIVO DO ORÇAMENTO
B3: Obra: | D3: Realização das obras de revitalização do setor comercial e portuário do município de Santana, no estado do Amapá | H3: Base de Preço: | I3: =Resumo!E3 -> SINAPI: MAR/2024-AP | K3: Sem Desoneração
B4: Valor Referência: | D4: =L1732 -> 47428828.64 | I4: =Resumo!E4 -> SICRO: JAN/2024-AP | K4: BDI de Serviços: | L4: =BDI!C24 -> 0.20796173
B5: Data base: | D5: ABRIL / 2024 | I5: =Resumo!E5 -> ORSE: FEV/2024 | K5: BDI de Fornecimento: | L5: =BDI!C50 -> 0.146920122
B7: ITEM | C7: CÓDIGO | E7: FONTE | F7: DESCRIÇÃO | G7: UND | H7: QUANT | I7: PREÇO SEM DESONERAÇÃO | L7: TOTAL SEM DESONERAÇÃO
I8: Custo Direto | J8: BDI | K8: Custo com BDI
B9: 1 | C9: ADMINISTRAÇÃO DE OBRAS | L9: =SUBTOTAL(109,L10:L11) -> 3480661.841
B10: 1.1 | C10: ADMINISTRAÇÃO LOCAL | H10: 1 | L10: =SUBTOTAL(109,L11) -> 3480661.841
B11: 1.1.1 | C11: COMPOSIÇÃO PRÓPRIA | D11: 1 | F11: ADMINISTRAÇÃO LOCAL | G11: UN | H11: 1 | I11: ='Adm Local'!I17 -> 2881433.869 | J11: =$L$4 -> 0.20796173 | K11: =I11*(1+J11) -> 3480661.841 | L11: =K11*H11 -> 3480661.841 | M11: =ISTEXT(H11) -> FALSE
B12: 2 | C12: PROJETO URBANÍSTICO | L12: =SUBTOTAL(109,L13:L189) -> 4945324.985
B13: 2.1 | C13: PRAÇA DA NATUREZA | L13: =SUBTOTAL(109,L14:L43) -> 640396.5636
B14: 2.1.1 | C14: SERVIÇOS PRELIMINARES | H14: 1 | L14: =SUBTOTAL(109,L15) -> 2515.127317
B15: 2.1.1.1 | C15: COMPOSIÇÃO PRÓPRIA | D15: 1.1 | F15: MOBILIZAÇÃO | G15: UN | H15: 1 | I15: ='CPU Própria (sem des)'!M28 -> 2082.125 | J15: =$L$4 -> 0.20796173 | K15: =I15*(1+J15) -> 2515.127317 | L15: =K15*H15 -> 2515.127317 | M15: =ISTEXT(H15) -> FALSE
B16: 2.1.2 | C16: PAVIMENTAÇÃO | H16: 1 | L16: =SUBTOTAL(109,L17:L19) -> 227856.7262
B17: 2.1.2.1 | C17: COMPOSIÇÃO SINAPI | D17: 100575 | E17: SINAPI | F17: REGULARIZAÇÃO DE SUPERFÍCIES COM MOTONIVELADORA. AF_11/2019 | G17: M2 | H17: 1979.58 | I17: =VLOOKUP(D17&E17,'TABELA SICRO-SINAPI-ORSE'!A:G,7,FALSE) -> 0.13 | J17: =$L$4 -> 0.20796173 | K17: =I17*(1+J17) -> 0.1570350249 | L17: =K17*H17 -> 310.8633946 | M17: =ISTEXT(H17) -> FALSE
B18: 2.1.2.2 | C18: COMPOSIÇÃO ORSE | D18: 3212 | E18: ORSE | F18: COLCHÃO DE AREIA | G18: M3 | H18: 197.95 | I18: =VLOOKUP(D18&E18,'TABELA SICRO-SINAPI-ORSE'!A:G,7,FALSE) -> 140.68 | J18: 0.20796173 | K18: =I18*(1+J18) -> 169.9360562 | L18: =K18*H18 -> 33638.84232 | M18: FALSE
B19: 2.1.2.3 | C19: COMPOSIÇÃO SINAPI | D19: 92397 | E19: SINAPI | F19: EXECUÇÃO DE PÁTIO/ESTACIONAMENTO EM PISO INTERTRAVADO, COM BLOCO RETANGULAR COR NATURAL DE 20 X 10 CM, ESPESSURA 6 CM. AF_12/2015 | G19: M2 | H19: 1979.58 | I19: =VLOOKUP(D19&E19,'TABELA SICRO-SINAPI-ORSE'!A:G,7,FALSE) -> 81.09 | J19: 0.20796173 | K19: =I19*(1+J19) -> 97.95361669 | L19: =K19*H19 -> 193907.0205 | M19: FALSE
B20: 2.1.3 | C20: ESTACIONAMENTO | H20: 1 | L20: =SUBTOTAL(109,L21:L26) -> 173318.3835
B21: 2.1.3.1 | C21: COMPOSIÇÃO SINAPI | D21: 96398 | E21: SINAPI | F21: EXECUÇÃO E COMPACTAÇÃO DE BASE E OU SUB BASE PARA PAVIMENTAÇÃO DE CONCRETO COMPACTADO COM ROLO - EXCLUSIVE CARGA E TRANSPORTE. AF_11/2019 | G21: M3 | H21: 1 | I21: =VLOOKUP(D21&E21,'TABELA SICRO-SINAPI-ORSE'!A:G,7,FALSE) -> 652.93 | J21: =$L$4 -> 0.20796173 | K21: =I21*(1+J21) -> 788.7144524 | L21: =K21*H21 -> 788.7144524 | M21: =ISTEXT(H21) -> FALSE
B22: 2.1.3.2 | C22: COMPOSIÇÃO SINAPI | D22: 95995 | E22: SINAPI | F22: EXECUÇÃO DE PAVIMENTO COM APLICAÇÃO DE CONCRETO ASFÁLTICO, CAMADA DE ROLAMENTO - EXCLUSIVE CARGA E TRANSPORTE. AF_11/2019 | G22: M3 | H22: 65.03 | I22: =VLOOKUP(D22&E22,'TABELA SICRO-SINAPI-ORSE'!A:G,7,FALSE) -> 1429.29 | J22: 0.20796173 | K22: 1726.527621 | L22: 112276.0912 | M22: FALSE
B23: 2.1.3.3 | C23: COMPOSIÇÃO SINAPI | D23: 94266 | E23: SINAPI | F23: GUIA (MEIO-FIO) CONCRETO, MOLDADA IN LOCO EM TRECHO CURVO COM EXTRUSORA, 15 CM BASE X 30 CM ALTURA. AF_06/2016 | G23: M | H23: 180.94 | I23: =VLOOKUP(D23&E23,'TABELA SICRO-SINAPI-ORSE'!A:G,7,FALSE) -> 66.82 | J23: 0.20796173 | K23: 80.7160028 | L23: 14604.75355 | M23: FALSE
B24: 2.1.3.4 | C24: COMPOSIÇÃO SINAPI | D24: 102498 | E24: SINAPI | F24: PINTURA DE MEIO-FIO COM TINTA BRANCA A BASE DE CAL (CAIAÇÃO). AF_05/2021 | G24: M | H24: 103.17 | I24: =VLOOKUP(D24&E24,'TABELA SICRO-SINAPI-ORSE'!A:G,7,FALSE) -> 1.44 | J24: 0.20796173 | K24: 1.739464891 | L24: 179.4605928 | M24: FALSE
B25: 2.1.3.5 | C25: COMPOSIÇÃO SINAPI | D25: 102500 | E25: SINAPI | F25: PINTURA DE DEMARCAÇÃO DE VAGA COM TINTA ACRÍLICA, E = 10 CM, APLICAÇÃO MANUAL. AF_05/2021 | G25: M | H25: 528.9 | I25: =VLOOKUP(D25&E25,'TABELA SICRO-SINAPI-ORSE'!A:G,7,FALSE) -> 3.91 | J25: 0.20796173 | K25: 4.723130364 | L25: 2498.06365 | M25: FALSE
B26: 2.1.3.6 | C26: COMPOSIÇÃO SINAPI | D26: 101094 | E26: SINAPI | F26: PISO PODOTÁTIL, DIRECIONAL OU ALERTA, ASSENTADO SOBRE ARGAMASSA. AF_05/2020 | G26: M | H26: 194.88 | I26: =VLOOKUP(D26&E26,'TABELA SICRO-SINAPI-ORSE'!A:G,7,FALSE) -> 182.54 | J26: 0.20796173 | K26: 220.5013342 | L26: 42971.30001 | M26: FALSE
B27: 2.1.4 | C27: ESTACIONAMENTO CENTRO COMERCIAL | H27: 1 | L27: =SUBTOTAL(109,L28:L29) -> 158623.1997
B28: 2.1.4.1 | C28: COMPOSIÇÃO SINAPI | D28: 92398 | E28: SINAPI | F28: EXECUÇÃO DE PÁTIO/ESTACIONAMENTO EM PISO INTERTRAVADO, COM BLOCO RETANGULAR COR NATURAL DE 20 X 10 CM, ESPESSURA 8 CM. AF_12/2015 | G28: M2 | H28: 1254.57 | I28: =VLOOKUP(D28&E28,'TABELA SICRO-SINAPI-ORSE'!A:G,7,FALSE) -> 99.89 | J28: =$L$4 -> 0.20796173 | K28: =I28*(1+J28) -> 120.6632972 | L28: =K28*H28 -> 151380.5528 | M28: =ISTEXT(H28) -> FALSE
B29: 2.1.4.2 | C29: COMPOSIÇÃO SINAPI | D29: 94266 | E29: SINAPI | F29: GUIA (MEIO-FIO) CONCRETO, MOLDADA IN LOCO EM TRECHO CURVO COM EXTRUSORA, 15 CM BASE X 30 CM ALTURA. AF_06/2016 | G29: M | H29: 89.73 | I29: =VLOOKUP(D29&E29,'TABELA SICRO-SINAPI-ORSE'!A:G,7,FALSE) -> 66.82 | J29: 0.20796173 | K29: =I29*(1+J29) -> 80.7160028 | L29: =K29*H29 -> 7242.646931 | M29: FALSE
B30: 2.1.5 | C30: MOBILIÁRIO URBANO | H30: 1 | L30: =SUBTOTAL(109,L31:L36) -> 46473.53669
B31: 2.1.5.1 | C31: COMPOSIÇÃO ORSE | D31: 3740 | E31: ORSE | F31: MESA DE CONCRETO COM 02 BANCOS INTEGRADOS | G31: UN | H31: 8 | I31: =VLOOKUP(D31&E31,'TABELA SICRO-SINAPI-ORSE'!A:G,7,FALSE) -> 812.76 | J31: =$L$4 -> 0.20796173 | K31: =I31*(1+J31) -> 981.7829757 | L31: =K31*H31 -> 7854.263806 | M31: =ISTEXT(H31) -> FALSE
B32: 2.1.5.2 | C32: COMPOSIÇÃO SINAPI | D32: 103310 | E32: SINAPI | F32: INSTALAÇÃO DE LIXEIRA METÁLICA DUPLA, CAPACIDADE DE 60 L, EM TUBO DE AÇO CARBONO E CESTOS EM CHAPA DE AÇO COM PINTURA ELETROSTÁTICA, SOBRE SOLO. AF_11/2021 | G32: UN | H32: 4 | I32: =VLOOKUP(D32&E32,'TABELA SICRO-SINAPI-ORSE'!A:G,7,FALSE) -> 1292.26 | J32: 0.20796173 | K32: 1561.000625 | L32: 6244.002501 | M32: FALSE
B33: 2.1.5.3 | C33: COMPOSIÇÃO SINAPI | D33: 92435 | E33: SINAPI | F33: MONTAGEM E DESMONTAGEM DE FÔRMA DE PILARES RETANGULARES E ESTRUTURAS SIMILARES, PÉ-DIREITO SIMPLES, EM CHAPA DE MADEIRA COMPENSADA PLASTIFICADA, 12 UTILIZAÇÕES. AF_09/2020 | G33: M2 | H33: 53.76 | I33: =VLOOKUP(D33&E33,'TABELA SICRO-SINAPI-ORSE'!A:G,7,FALSE) -> 58.98 | J33: 0.20796173 | K33: 71.24558284 | L33: 3830.162533 | M33: FALSE
B34: 2.1.5.4 | C34: COMPOSIÇÃO SINAPI | D34: 92761 | E34: SINAPI | F34: ARMAÇÃO DE PILAR OU VIGA DE ESTRUTURA CONVENCIONAL DE CONCRETO ARMADO UTILIZANDO AÇO CA-50 DE 8,0 MM - MONTAGEM. AF_06/2022 | G34: KG | H34: 320 | I34: =VLOOKUP(D34&E34,'TABELA SICRO-SINAPI-ORSE'!A:G,7,FALSE) -> 14.23 | J34: 0.20796173 | K34: 17.18929542 | L34: 5500.574534 | M34: FALSE
B35: 2.1.5.5 | C35: COMPOSIÇÃO SINAPI | D35: 103685 | E35: SINAPI | F35: CONCRETAGEM DE MURETAS, FCK=25 MPA, COM USO DE BOMBA - LANÇAMENTO, ADENSAMENTO E ACABAMENTO. AF_02/2022 | G35: M3 | H35: 10.13 | I35: =VLOOKUP(D35&E35,'TABELA SICRO-SINAPI-ORSE'!A:G,7,FALSE) -> 1048.2 | J35: 0.20796173 | K35: 1266.185485 | L35: 12826.45897 | M35: FALSE
B36: 2.1.5.6 | C36: COMPOSIÇÃO SINAPI | D36: 103314 | E36: SINAPI | F36: INSTALAÇÃO DE PERGOLADO DE MADEIRA, EM MAÇARANDUBA, ANGELIM OU EQUIVALENTE DA REGIÃO, FIXADO COM CONCRETO SOBRE PISO DE CONCRETO EXISTENTE. AF_11/2021 | G36: M2 | H36: 44.98 | I36: =VLOOKUP(D36&E36,'TABELA SICRO-SINAPI-ORSE'!A:G,7,FALSE) -> 188.06 | J36: 0.20796173 | K36: 227.169283 | L36: 10218.07435 | M36: FALSE
B37: 2.1.6 | C37: PAISAGISMO | H37: 1 | L37: =SUBTOTAL(109,L38:L40) -> 26692.58475
B38: 2.1.6.1 | C38: COMPOSIÇÃO SINAPI | D38: 103946 | E38: SINAPI | F38: PLANTIO DE GRAMA ESMERALDA OU SÃO CARLOS OU CURITIBANA, EM PLACAS. AF_05/2022 | G38: M2 | H38: 734.63 | I38: =VLOOKUP(D38&E38,'TABELA SICRO-SINAPI-ORSE'!A:G,7,FALSE) -> 20.62 | J38: =$L$4 -> 0.20796173 | K38: =I38*(1+J38) -> 24.90817087 | L38: =K38*H38 -> 18298.28957 | M38: =ISTEXT(H38) -> FALSE
B39: 2.1.6.2 | C39: COMPOSIÇÃO SINAPI | D39: 98511 | E39: SINAPI | F39: PLANTIO DE ÁRVORE ORNAMENTAL COM ALTURA DE MUDA MAIOR QUE 2,00 M E MENOR OU IGUAL A 4,00 M. AF_05/2018 | G39: UN | H39: 42 | I39: =VLOOKUP(D39&E39,'TABELA SICRO-SINAPI-ORSE'!A:G,7,FALSE) -> 125.92 | J39: 0.20796173 | K39: =I39*(1+J39) -> 152.106541 | L39: =K39*H39 -> 6388.474724 | M39: FALSE
B40: 2.1.6.3 | C40: COMPOSIÇÃO SINAPI | D40: 98510 | E40: SINAPI | F40: PLANTIO DE ÁRVORE ORNAMENTAL COM ALTURA DE MUDA MENOR OU IGUAL A 2,00 M. AF_05/2018 | G40: UN | H40: 25 | I40: =VLOOKUP(D40&E40,'TABELA SICRO-SINAPI-ORSE'!A:G,7,FALSE) -> 66.42 | J40: 0.20796173 | K40: =I40*(1+J40) -> 80.23281811 | L40: =K40*H40 -> 2005.820453 | M40: FALSE
B41: 2.1.7 | C41: SERVIÇOS COMPLEMENTARES | H41: 1 | L41: =SUBTOTAL(109,L42:L43) -> 4917.005444
B42: 2.1.7.1 | C42: COMPOSIÇÃO ORSE | D42: 6191 | E42: ORSE | F42: LIMPEZA DE RUAS (VARRIÇÃO E REMOÇÃO DE ENTULHOS) | G42: M2 | H42: 3898.77 | I42: =VLOOKUP(D42&E42,'TABELA SICRO-SINAPI-ORSE'!A:G,7,FALSE) -> 0.51 | J42: =$L$4 -> 0.20796173 | K42: =I42*(1+J42) -> 0.6160604823 | L42: =K42*H42 -> 2401.878127 | M42: =ISTEXT(H42) -> FALSE
B43: 2.1.7.2 | C43: COMPOSIÇÃO PRÓPRIA | D43: 1.1 | F43: DESMOBILIZAÇÃO | G43: UN | H43: 1 | I43: ='CPU Própria (sem des)'!M28 -> 2082.125 | J43: 0.20796173 | K43: =I43*(1+J43) -> 2515.127317 | L43: =K43*H43 -> 2515.127317 | M43: FALSE
B44: 2.2 | C44: PRAÇA DAS ÁGUAS | L44: =SUBTOTAL(109,L45:L82) -> 933435.6565
B45: 2.2.1 | C45: SERVIÇOS PRELIMINARES | H45: 1 | L45: =SUBTOTAL(109,L46) -> 2515.127317
B46: 2.2.1.1 | C46: COMPOSIÇÃO PRÓPRIA | D46: 1.1 | F46: MOBILIZAÇÃO | G46: UN | H46: 1 | I46: ='CPU Própria (sem des)'!M28 -> 2082.125 | J46: =$L$4 -> 0.20796173 | K46: =I46*(1+J46) -> 2515.127317 | L46: =K46*H46 -> 2515.127317 | M46: =ISTEXT(H46) -> FALSE
B47: 2.2.2 | C47: PAVIMENTAÇÃO | H47: 1 | L47: =SUBTOTAL(109,L48:L57) -> 740913.5299
B48: 2.2.2.1 | C48: COMPOSIÇÃO ORSE | D48: 3212 | E48: ORSE | F48: COLCHÃO DE AREIA | G48: M3 | H48: 507.37 | I48: =VLOOKUP(D48&E48,'TABELA SICRO-SINAPI-ORSE'!A:G,7,FALSE) -> 140.68 | J48: =$L$4 -> 0.20796173 | K48: =I48*(1+J48) -> 169.9360562 | L48: =K48*H48 -> 86220.45683 | M48: =ISTEXT(H48) -> FALSE
B49: 2.2.2.2 | C49: COMPOSIÇÃO SINAPI | D49: 100575 | E49: SINAPI | F49: REGULARIZAÇÃO DE SUPERFÍCIES COM MOTONIVELADORA. AF_11/2019 | G49: M2 | H49: 5073.69 | I49: =VLOOKUP(D49&E49,'TABELA SICRO-SINAPI-ORSE'!A:G,7,FALSE) -> 0.13 | J49: 0.20796173 | K49: 0.1570350249 | L49: 796.7470355 | M49: FALSE
B50: 2.2.2.3 | C50: COMPOSIÇÃO SINAPI | D50: 92397 | E50: SINAPI | F50: EXECUÇÃO DE PÁTIO/ESTACIONAMENTO EM PISO INTERTRAVADO, COM BLOCO RETANGULAR COR NATURAL DE 20 X 10 CM, ESPESSURA 6 CM. AF_12/2015 | G50: M2 | H50: 5073.69 | I50: =VLOOKUP(D50&E50,'TABELA SICRO-SINAPI-ORSE'!A:G,7,FALSE) -> 81.09 | J50: 0.20796173 | K50: 97.95361669 | L50: 496986.2855 | M50: FALSE
B51: 2.2.2.4 | C51: COMPOSIÇÃO SINAPI | D51: 101167 | E51: SINAPI | F51: EXECUÇÃO DE PAVIMENTO EM PARALELEPÍPEDOS, REJUNTAMENTO COM PÓ DE PEDRA. AF_05/2020 | G51: M2 | H51: 180.39 | I51: =VLOOKUP(D51&E51,'TABELA SICRO-SINAPI-ORSE'!A:G,7,FALSE) -> 326.13 | J51: 0.20796173 | K51: 393.952559 | L51: 71065.10212 | M51: FALSE
B52: 2.2.2.5 | C52: INSUMO SINAPI | D52: 6076 | E52: SINAPI | F52: SAIBRO PARA ARGAMASSA (COLETADO NO COMERCIO) | G52: M3 | H52: 29.72 | I52: =VLOOKUP(D52&E52,'TABELA SICRO-SINAPI-ORSE'!A:G,7,FALSE) -> 65 | J52: =$L$5 -> 0.146920122 | K52: 74.54980793 | L52: 2215.620292 | M52: FALSE
B53: 2.2.2.6 | C53: COMPOSIÇÃO SINAPI | D53: 101094 | E53: SINAPI | F53: PISO PODOTÁTIL, DIRECIONAL OU ALERTA, ASSENTADO SOBRE ARGAMASSA. AF_05/2020 | G53: M | H53: 243.79 | I53: =VLOOKUP(D53&E53,'TABELA SICRO-SINAPI-ORSE'!A:G,7,FALSE) -> 182.54 | J53: =$L$4 -> 0.20796173 | K53: 220.5013342 | L53: 53756.02027 | M53: FALSE
B54: 2.2.2.7 | C54: COMPOSIÇÃO ORSE | D54: 11613 | E54: ORSE | F54: REVESTIMENTO DE PISO COM PEDRA ITAPÉ 20X40CM ASSENTADA COM ARGAMASSA INDUSTRIALIZADA AC-III | G54: M2 | H54: 133.11 | I54: =VLOOKUP(D54&E54,'TABELA SICRO-SINAPI-ORSE'!A:G,7,FALSE) -> 80.25 | J54: 0.20796173 | K54: 96.93892884 | L54: 12903.54082 | M54: FALSE
B55: 2.2.2.8 | C55: COMPOSIÇÃO SINAPI | D55: 97090 | E55: SINAPI | F55: ARMAÇÃO PARA EXECUÇÃO DE RADIER, PISO DE CONCRETO OU LAJE SOBRE SOLO, COM USO DE TELA Q-138. AF_09/2021 | G55: KG | H55: 180 | I55: =VLOOKUP(D55&E55,'TABELA SICRO-SINAPI-ORSE'!A:G,7,FALSE) -> 13.36 | J55: 0.20796173 | K55: 16.13836871 | L55: 2904.906368 | M55: FALSE
B56: 2.2.2.9 | C56: COMPOSIÇÃO SINAPI | D56: 97096 | E56: SINAPI | F56: CONCRETAGEM DE RADIER, PISO DE CONCRETO OU LAJE SOBRE SOLO, FCK 30 MPA - LANÇAMENTO, ADENSAMENTO E ACABAMENTO. AF_09/2021 | G56: M3 | H56: 8.56 | I56: =VLOOKUP(D56&E56,'TABELA SICRO-SINAPI-ORSE'!A:G,7,FALSE) -> 1015.62 | J56: 0.20796173 | K56: 1226.830092 | L56: 10501.66559 | M56: FALSE
B57: 2.2.2.10 | C57: COMPOSIÇÃO SINAPI | D57: 94263 | E57: SINAPI | F57: GUIA (MEIO-FIO) CONCRETO, MOLDADA IN LOCO EM TRECHO RETO COM EXTRUSORA, 13 CM BASE X 22 CM ALTURA. AF_06/2016 | G57: M | H57: 69 | I57: =VLOOKUP(D57&E57,'TABELA SICRO-SINAPI-ORSE'!A:G,7,FALSE) -> 42.75 | J57: 0.20796173 | K57: 51.64036396 | L57: 3563.185113 | M57: FALSE
B58: 2.2.3 | C58: MOBILIÁRIO URBANO | H58: 1 | L58: =SUBTOTAL(109,L59:L69) -> 70613.90728
B59: 2.2.3.1 | C59: COMPOSIÇÃO ORSE | D59: 3740 | E59: ORSE | F59: MESA DE CONCRETO COM 02 BANCOS INTEGRADOS | G59: UN | H59: 10 | I59: =VLOOKUP(D59&E59,'TABELA SICRO-SINAPI-ORSE'!A:G,7,FALSE) -> 812.76 | J59: =$L$4 -> 0.20796173 | K59: =I59*(1+J59) -> 981.7829757 | L59: =K59*H59 -> 9817.829757 | M59: =ISTEXT(H59) -> FALSE
B60: 2.2.3.2 | C60: COMPOSIÇÃO SINAPI | D60: 103310 | E60: SINAPI | F60: INSTALAÇÃO DE LIXEIRA METÁLICA DUPLA, CAPACIDADE DE 60 L, EM TUBO DE AÇO CARBONO E CESTOS EM CHAPA DE AÇO COM PINTURA ELETROSTÁTICA, SOBRE SOLO. AF_11/2021 | G60: UN | H60: 6 | I60: =VLOOKUP(D60&E60,'TABELA SICRO-SINAPI-ORSE'!A:G,7,FALSE) -> 1292.26 | J60: 0.20796173 | K60: 1561.000625 | L60: 9366.003752 | M60: FALSE
B61: 2.2.3.3 | C61: COMPOSIÇÃO SINAPI | D61: 92435 | E61: SINAPI | F61: MONTAGEM E DESMONTAGEM DE FÔRMA DE PILARES RETANGULARES E ESTRUTURAS SIMILARES, PÉ-DIREITO SIMPLES, EM CHAPA DE MADEIRA COMPENSADA PLASTIFICADA, 12 UTILIZAÇÕES. AF_09/2020 | G61: M2 | H61: 1 | I61: =VLOOKUP(D61&E61,'TABELA SICRO-SINAPI-ORSE'!A:G,7,FALSE) -> 58.98 | J61: 0.20796173 | K61: 71.24558284 | L61: 71.24558284 | M61: FALSE
B62: 2.2.3.4 | C62: COMPOSIÇÃO SINAPI | D62: 92761 | E62: SINAPI | F62: ARMAÇÃO DE PILAR OU VIGA DE ESTRUTURA CONVENCIONAL DE CONCRETO ARMADO UTILIZANDO AÇO CA-50 DE 8,0 MM - MONTAGEM. AF_06/2022 | G62: KG | H62: 1 | I62: =VLOOKUP(D62&E62,'TABELA SICRO-SINAPI-ORSE'!A:G,7,FALSE) -> 14.23 | J62: 0.20796173 | K62: 17.18929542 | L62: 17.18929542 | M62: FALSE
B63: 2.2.3.5 | C63: COMPOSIÇÃO SINAPI | D63: 103685 | E63: SINAPI | F63: CONCRETAGEM DE MURETAS, FCK=25 MPA, COM USO DE BOMBA - LANÇAMENTO, ADENSAMENTO E ACABAMENTO. AF_02/2022 | G63: M3 | H63: 1 | I63: =VLOOKUP(D63&E63,'TABELA SICRO-SINAPI-ORSE'!A:G,7,FALSE) -> 1048.2 | J63: 0.20796173 | K63: 1266.185485 | L63: 1266.185485 | M63: FALSE
B64: 2.2.3.6 | C64: COMPOSIÇÃO SINAPI | D64: 92435 | E64: SINAPI | F64: MONTAGEM E DESMONTAGEM DE FÔRMA DE PILARES RETANGULARES E ESTRUTURAS SIMILARES, PÉ-DIREITO SIMPLES, EM CHAPA DE MADEIRA COMPENSADA PLASTIFICADA, 12 UTILIZAÇÕES. AF_09/2020 | G64: M2 | H64: 26.88 | I64: =VLOOKUP(D64&E64,'TABELA SICRO-SINAPI-ORSE'!A:G,7,FALSE) -> 58.98 | J64: 0.20796173 | K64: 71.24558284 | L64: 1915.081267 | M64: FALSE
B65: 2.2.3.7 | C65: COMPOSIÇÃO SINAPI | D65: 92761 | E65: SINAPI | F65: ARMAÇÃO DE PILAR OU VIGA DE ESTRUTURA CONVENCIONAL DE CONCRETO ARMADO UTILIZANDO AÇO CA-50 DE 8,0 MM - MONTAGEM. AF_06/2022 | G65: KG | H65: 160 | I65: =VLOOKUP(D65&E65,'TABELA SICRO-SINAPI-ORSE'!A:G,7,FALSE) -> 14.23 | J65: 0.20796173 | K65: 17.18929542 | L65: 2750.287267 | M65: FALSE
B66: 2.2.3.8 | C66: COMPOSIÇÃO SINAPI | D66: 103685 | E66: SINAPI | F66: CONCRETAGEM DE MURETAS, FCK=25 MPA, COM USO DE BOMBA - LANÇAMENTO, ADENSAMENTO E ACABAMENTO. AF_02/2022 | G66: M3 | H66: 5.06 | I66: =VLOOKUP(D66&E66,'TABELA SICRO-SINAPI-ORSE'!A:G,7,FALSE) -> 1048.2 | J66: 0.20796173 | K66: 1266.185485 | L66: 6406.898556 | M66: FALSE
B67: 2.2.3.9 | C67: COMPOSIÇÃO SINAPI | D67: 103314 | E67: SINAPI | F67: INSTALAÇÃO DE PERGOLADO DE MADEIRA, EM MAÇARANDUBA, ANGELIM OU EQUIVALENTE DA REGIÃO, FIXADO COM CONCRETO SOBRE PISO DE CONCRETO EXISTENTE. AF_11/2021 | G67: M2 | H67: 60.48 | I67: =VLOOKUP(D67&E67,'TABELA SICRO-SINAPI-ORSE'!A:G,7,FALSE) -> 188.06 | J67: 0.20796173 | K67: 227.169283 | L67: 13739.19823 | M67: FALSE
B68: 2.2.3.10 | C68: COMPOSIÇÃO ORSE | D68: 8464 | E68: ORSE | F68: BANCO DE CONCRETO SEM ENCOSTO, DIMENSÃO: 2,00X0,60M | G68: UN | H68: 12 | I68: =VLOOKUP(D68&E68,'TABELA SICRO-SINAPI-ORSE'!A:G,7,FALSE) -> 629.08 | J68: 0.20796173 | K68: 759.9045651 | L68: 9118.854782 | M68: FALSE
B69: 2.2.3.11 | C69: COMPOSIÇÃO SINAPI | D69: 103307 | E69: SINAPI | F69: INSTALAÇÃO DE LIXEIRA METÁLICA DUPLA, CAPACIDADE DE 60 L, EM TUBO DE AÇO CARBONO E CESTOS EM CHAPA DE AÇO COM PINTURA ELETROSTÁTICA, SOBRE PISO DE CONCRETO EXISTENTE. AF_11/2021 | G69: UN | H69: 10 | I69: =VLOOKUP(D69&E69,'TABELA SICRO-SINAPI-ORSE'!A:G,7,FALSE) -> 1336.56 | J69: 0.20796173 | K69: 1614.51333 | L69: 16145.1333 | M69: FALSE
B70: 2.2.4 | C70: ESPELHO D'AGUA E FONTE | H70: 1 | L70: =SUBTOTAL(109,L71:L75) -> 62216.91279
B71: 2.2.4.1 | C71: COMPOSIÇÃO SINAPI | D71: 103685 | E71: SINAPI | F71: CONCRETAGEM DE MURETAS, FCK=25 MPA, COM USO DE BOMBA - LANÇAMENTO, ADENSAMENTO E ACABAMENTO. AF_02/2022 | G71: M3 | H71: 31.16 | I71: =VLOOKUP(D71&E71,'TABELA SICRO-SINAPI-ORSE'!A:G,7,FALSE) -> 1048.2 | J71: =$L$4 -> 0.20796173 | K71: =I71*(1+J71) -> 1266.185485 | L71: =K71*H71 -> 39454.33973 | M71: =ISTEXT(H71) -> FALSE
B72: 2.2.4.2 | C72: COMPOSIÇÃO SINAPI | D72: 92435 | E72: SINAPI | F72: MONTAGEM E DESMONTAGEM DE FÔRMA DE PILARES RETANGULARES E ESTRUTURAS SIMILARES, PÉ-DIREITO SIMPLES, EM CHAPA DE MADEIRA COMPENSADA PLASTIFICADA, 12 UTILIZAÇÕES. AF_09/2020 | G72: M2 | H72: 43.55 | I72: =VLOOKUP(D72&E72,'TABELA SICRO-SINAPI-ORSE'!A:G,7,FALSE) -> 58.98 | J72: 0.20796173 | K72: =I72*(1+J72) -> 71.24558284 | L72: =K72*H72 -> 3102.745133 | M72: FALSE
B73: 2.2.4.3 | C73: COMPOSIÇÃO SINAPI | D73: 92761 | E73: SINAPI | F73: ARMAÇÃO DE PILAR OU VIGA DE ESTRUTURA CONVENCIONAL DE CONCRETO ARMADO UTILIZANDO AÇO CA-50 DE 8,0 MM - MONTAGEM. AF_06/2022 | G73: KG | H73: 820.12 | I73: =VLOOKUP(D73&E73,'TABELA SICRO-SINAPI-ORSE'!A:G,7,FALSE) -> 14.23 | J73: 0.20796173 | K73: =I73*(1+J73) -> 17.18929542 | L73: =K73*H73 -> 14097.28496 | M73: FALSE
B74: 2.2.4.4 | C74: COMPOSIÇÃO ORSE | D74: 6314 | E74: ORSE | F74: BOMBEAMENTO COM BOMBA SUBMERSA | G74: H | H74: 1 | I74: =VLOOKUP(D74&E74,'TABELA SICRO-SINAPI-ORSE'!A:G,7,FALSE) -> 577.28 | J74: 0.20796173 | K74: =I74*(1+J74) -> 697.3321475 | L74: =K74*H74 -> 697.3321475 | M74: FALSE
B75: 2.2.4.5 | C75: COMPOSIÇÃO SINAPI | D75: 89357 | E75: SINAPI | F75: TUBO, PVC, SOLDÁVEL, DN 32MM, INSTALADO EM RAMAL OU SUB-RAMAL DE ÁGUA - FORNECIMENTO E INSTALAÇÃO. AF_06/2022 | G75: M | H75: 141.32 | I75: =VLOOKUP(D75&E75,'TABELA SICRO-SINAPI-ORSE'!A:G,7,FALSE) -> 28.5 | J75: 0.20796173 | K75: =I75*(1+J75) -> 34.42690931 | L75: =K75*H75 -> 4865.210823 | M75: FALSE
B76: 2.2.5 | C76: ACADEMIA E PLAYGROUND | H76: 1 | L76: =SUBTOTAL(109,L77) -> 41411.46254
B77: 2.2.5.1 | C77: COMPOSIÇÃO PRÓPRIA | D77: 10000 | F77: PLAYGROUND E ACADEMIA | G77: UN | H77: 1 | I77: ='Cotação Playground'!J15 -> 36106.66667 | J77: =$L$5 -> 0.146920122 | K77: =I77*(1+J77) -> 41411.46254 | L77: =K77*H77 -> 41411.46254 | M77: =ISTEXT(H77) -> FALSE
B78: 2.2.6 | C78: PAISAGISMO | H78: 1 | L78: =SUBTOTAL(109,L79:L80) -> 13249.58936
B79: 2.2.6.1 | C79: COMPOSIÇÃO SINAPI | D79: 103946 | E79: SINAPI | F79: PLANTIO DE GRAMA ESMERALDA OU SÃO CARLOS OU CURITIBANA, EM PLACAS. AF_05/2022 | G79: M2 | H79: 342.63 | I79: =VLOOKUP(D79&E79,'TABELA SICRO-SINAPI-ORSE'!A:G,7,FALSE) -> 20.62 | J79: =$L$4 -> 0.20796173 | K79: =I79*(1+J79) -> 24.90817087 | L79: =K79*H79 -> 8534.286586 | M79: =ISTEXT(H79) -> FALSE
B80: 2.2.6.2 | C80: COMPOSIÇÃO SINAPI | D80: 98511 | E80: SINAPI | F80: PLANTIO DE ÁRVORE ORNAMENTAL COM ALTURA DE MUDA MAIOR QUE 2,00 M E MENOR OU IGUAL A 4,00 M. AF_05/2018 | G80: UN | H80: 31 | I80: =VLOOKUP(D80&E80,'TABELA SICRO-SINAPI-ORSE'!A:G,7,FALSE) -> 125.92 | J80: 0.20796173 | K80: =I80*(1+J80) -> 152.106541 | L80: =K80*H80 -> 4715.302772 | M80: FALSE
B81: 2.2.7 | C81: SERVIÇOS COMPLEMENTARES | H81: 1 | L81: =SUBTOTAL(109,L82) -> 2515.127317
B82: 2.2.7.1 | C82: COMPOSIÇÃO PRÓPRIA | D82: 1.1 | F82: DESMOBILIZAÇÃO | G82: UN | H82: 1 | I82: ='CPU Própria (sem des)'!M28 -> 2082.125 | J82: =$L$4 -> 0.20796173 | K82: =I82*(1+J82) -> 2515.127317 | L82: =K82*H82 -> 2515.127317 | M82: =ISTEXT(H82) -> FALSE
B83: 2.3 | C83: PRAÇA DE SERVIÇOS | L83: =SUBTOTAL(109,L84:L104) -> 659129.7375
B84: 2.3.1 | C84: SERVIÇOS PRELIMINARES | H84: 1 | L84: =SUBTOTAL(109,L85) -> 2515.127317
B85: 2.3.1.1 | C85: COMPOSIÇÃO PRÓPRIA | D85: 1.1 | F85: MOBILIZAÇÃO | G85: UN | H85: 1 | I85: ='CPU Própria (sem des)'!M28 -> 2082.125 | J85: =$L$4 -> 0.20796173 | K85: =I85*(1+J85) -> 2515.127317 | L85: =K85*H85 -> 2515.127317 | M85: =ISTEXT(H85) -> FALSE
B86: 2.3.2 | C86: PAVIMENTAÇÃO | H86: 1 | L86: =SUBTOTAL(109,L87:L92) -> 557284.242
B87: 2.3.2.1 | C87: COMPOSIÇÃO SINAPI | D87: 100575 | E87: SINAPI | F87: REGULARIZAÇÃO DE SUPERFÍCIES COM MOTONIVELADORA. AF_11/2019 | G87: M2 | H87: 3483.09 | I87: =VLOOKUP(D87&E87,'TABELA SICRO-SINAPI-ORSE'!A:G,7,FALSE) -> 0.13 | J87: =$L$4 -> 0.20796173 | K87: =I87*(1+J87) -> 0.1570350249 | L87: =K87*H87 -> 546.9671249 | M87: =ISTEXT(H87) -> FALSE
B88: 2.3.2.2 | C88: COMPOSIÇÃO ORSE | D88: 3212 | E88: ORSE | F88: COLCHÃO DE AREIA | G88: M3 | H88: 348.31 | I88: =VLOOKUP(D88&E88,'TABELA SICRO-SINAPI-ORSE'!A:G,7,FALSE) -> 140.68 | J88: 0.20796173 | K88: 169.9360562 | L88: 59190.42773 | M88: FALSE
B89: 2.3.2.3 | C89: COMPOSIÇÃO SINAPI | D89: 92397 | E89: SINAPI | F89: EXECUÇÃO DE PÁTIO/ESTACIONAMENTO EM PISO INTERTRAVADO, COM BLOCO RETANGULAR COR NATURAL DE 20 X 10 CM, ESPESSURA 6 CM. AF_12/2015 | G89: M2 | H89: 3483.09 | I89: =VLOOKUP(D89&E89,'TABELA SICRO-SINAPI-ORSE'!A:G,7,FALSE) -> 81.09 | J89: 0.20796173 | K89: 97.95361669 | L89: 341181.2628 | M89: FALSE
B90: 2.3.2.4 | C90: COMPOSIÇÃO SINAPI | D90: 94991 | E90: SINAPI | F90: EXECUÇÃO DE PASSEIO (CALÇADA) OU PISO DE CONCRETO COM CONCRETO MOLDADO IN LOCO, USINADO, ACABAMENTO CONVENCIONAL, NÃO ARMADO. AF_07/2016 | G90: M3 | H90: 19.52 | I90: =VLOOKUP(D90&E90,'TABELA SICRO-SINAPI-ORSE'!A:G,7,FALSE) -> 1116.34 | J90: 0.20796173 | K90: 1348.495998 | L90: 26322.64188 | M90: FALSE
B91: 2.3.2.5 | C91: COMPOSIÇÃO SINAPI | D91: 101094 | E91: SINAPI | F91: PISO PODOTÁTIL, DIRECIONAL OU ALERTA, ASSENTADO SOBRE ARGAMASSA. AF_05/2020 | G91: M | H91: 586.95 | I91: =VLOOKUP(D91&E91,'TABELA SICRO-SINAPI-ORSE'!A:G,7,FALSE) -> 182.54 | J91: 0.20796173 | K91: 220.5013342 | L91: 129423.2581 | M91: FALSE
B92: 2.3.2.6 | C92: COMPOSIÇÃO SINAPI | D92: 94263 | E92: SINAPI | F92: GUIA (MEIO-FIO) CONCRETO, MOLDADA IN LOCO EM TRECHO RETO COM EXTRUSORA, 13 CM BASE X 22 CM ALTURA. AF_06/2016 | G92: M | H92: 12 | I92: =VLOOKUP(D92&E92,'TABELA SICRO-SINAPI-ORSE'!A:G,7,FALSE) -> 42.75 | J92: 0.20796173 | K92: 51.64036396 | L92: 619.6843675 | M92: FALSE
B93: 2.3.3 | C93: MOBILIÁRIO URBANO | H93: 1 | L93: =SUBTOTAL(109,L94:L99) -> 93074.66361
B94: 2.3.3.1 | C94: COMPOSIÇÃO ORSE | D94: 3740 | E94: ORSE | F94: MESA DE CONCRETO COM 02 BANCOS INTEGRADOS | G94: UN | H94: 17 | I94: =VLOOKUP(D94&E94,'TABELA SICRO-SINAPI-ORSE'!A:G,7,FALSE) -> 812.76 | J94: =$L$4 -> 0.20796173 | K94: =I94*(1+J94) -> 981.7829757 | L94: =K94*H94 -> 16690.31059 | M94: =ISTEXT(H94) -> FALSE
B95: 2.3.3.2 | C95: COMPOSIÇÃO SINAPI | D95: 103310 | E95: SINAPI | F95: INSTALAÇÃO DE LIXEIRA METÁLICA DUPLA, CAPACIDADE DE 60 L, EM TUBO DE AÇO CARBONO E CESTOS EM CHAPA DE AÇO COM PINTURA ELETROSTÁTICA, SOBRE SOLO. AF_11/2021 | G95: UN | H95: 8 | I95: =VLOOKUP(D95&E95,'TABELA SICRO-SINAPI-ORSE'!A:G,7,FALSE) -> 1292.26 | J95: 0.20796173 | K95: 1561.000625 | L95: 12488.005 | M95: FALSE
B96: 2.3.3.3 | C96: COMPOSIÇÃO SINAPI | D96: 92435 | E96: SINAPI | F96: MONTAGEM E DESMONTAGEM DE FÔRMA DE PILARES RETANGULARES E ESTRUTURAS SIMILARES, PÉ-DIREITO SIMPLES, EM CHAPA DE MADEIRA COMPENSADA PLASTIFICADA, 12 UTILIZAÇÕES. AF_09/2020 | G96: M2 | H96: 80.64 | I96: =VLOOKUP(D96&E96,'TABELA SICRO-SINAPI-ORSE'!A:G,7,FALSE) -> 58.98 | J96: 0.20796173 | K96: 71.24558284 | L96: 5745.2438 | M96: FALSE
B97: 2.3.3.4 | C97: COMPOSIÇÃO SINAPI | D97: 92761 | E97: SINAPI | F97: ARMAÇÃO DE PILAR OU VIGA DE ESTRUTURA CONVENCIONAL DE CONCRETO ARMADO UTILIZANDO AÇO CA-50 DE 8,0 MM - MONTAGEM. AF_06/2022 | G97: KG | H97: 480 | I97: =VLOOKUP(D97&E97,'TABELA SICRO-SINAPI-ORSE'!A:G,7,FALSE) -> 14.23 | J97: 0.20796173 | K97: 17.18929542 | L97: 8250.861801 | M97: FALSE
B98: 2.3.3.5 | C98: COMPOSIÇÃO SINAPI | D98: 103685 | E98: SINAPI | F98: CONCRETAGEM DE MURETAS, FCK=25 MPA, COM USO DE BOMBA - LANÇAMENTO, ADENSAMENTO E ACABAMENTO. AF_02/2022 | G98: M3 | H98: 15.2 | I98: =VLOOKUP(D98&E98,'TABELA SICRO-SINAPI-ORSE'!A:G,7,FALSE) -> 1048.2 | J98: 0.20796173 | K98: 1266.185485 | L98: 19246.01938 | M98: FALSE
B99: 2.3.3.6 | C99: COMPOSIÇÃO SINAPI | D99: 103314 | E99: SINAPI | F99: INSTALAÇÃO DE PERGOLADO DE MADEIRA, EM MAÇARANDUBA, ANGELIM OU EQUIVALENTE DA REGIÃO, FIXADO COM CONCRETO SOBRE PISO DE CONCRETO EXISTENTE. AF_11/2021 | G99: M2 | H99: 134.94 | I99: =VLOOKUP(D99&E99,'TABELA SICRO-SINAPI-ORSE'!A:G,7,FALSE) -> 188.06 | J99: 0.20796173 | K99: 227.169283 | L99: 30654.22304 | M99: FALSE
B100: 2.3.4 | C100: PAISAGISMO | H100: 1 | L100: =SUBTOTAL(109,L101) -> 1521.06541
B101: 2.3.4.1 | C101: COMPOSIÇÃO SINAPI | D101: 98511 | E101: SINAPI | F101: PLANTIO DE ÁRVORE ORNAMENTAL COM ALTURA DE MUDA MAIOR QUE 2,00 M E MENOR OU IGUAL A 4,00 M. AF_05/2018 | G101: UN | H101: 10 | I101: =VLOOKUP(D101&E101,'TABELA SICRO-SINAPI-ORSE'!A:G,7,FALSE) -> 125.92 | J101: =$L$4 -> 0.20796173 | K101: =I101*(1+J101) -> 152.106541 | L101: =K101*H101 -> 1521.06541 | M101: =ISTEXT(H101) -> FALSE
B102: 2.3.5 | C102: SERVIÇOS COMPLEMENTARES | H102: 1 | L102: =SUBTOTAL(109,L103:L104) -> 4734.63922
B103: 2.3.5.1 | C103: COMPOSIÇÃO PRÓPRIA | D103: 1.1 | F103: DESMOBILIZAÇÃO | G103: UN | H103: 1 | I103: ='CPU Própria (sem des)'!M28 -> 2082.125 | J103: =$L$4 -> 0.20796173 | K103: =I103*(1+J103) -> 2515.127317 | L103: =K103*H103 -> 2515.127317 | M103: =ISTEXT(H103) -> FALSE
B104: 2.3.5.2 | C104: COMPOSIÇÃO ORSE | D104: 6191 | E104: ORSE | F104: LIMPEZA DE RUAS (VARRIÇÃO E REMOÇÃO DE ENTULHOS) | G104: M2 | H104: 3602.75 | I104: =VLOOKUP(D104&E104,'TABELA SICRO-SINAPI-ORSE'!A:G,7,FALSE) -> 0.51 | J104: 0.20796173 | K104: =I104*(1+J104) -> 0.6160604823 | L104: =K104*H104 -> 2219.511903 | M104: FALSE
B105: 2.4 | C105: PRAÇA INSTITUCIONAL | L105: =SUBTOTAL(109,L106:L127) -> 281443.7904
B106: 2.4.1 | C106: SERVIÇOS PRELIMINARES | H106: 1 | L106: =SUBTOTAL(109,L107) -> 2515.127317
B107: 2.4.1.1 | C107: COMPOSIÇÃO PRÓPRIA | D107: 1.1 | F107: MOBILIZAÇÃO | G107: UN | H107: 1 | I107: ='CPU Própria (sem des)'!M28 -> 2082.125 | J107: =$L$4 -> 0.20796173 | K107: =I107*(1+J107) -> 2515.127317 | L107: =K107*H107 -> 2515.127317 | M107: =ISTEXT(H107) -> FALSE
B108: 2.4.2 | C108: PAVIMENTAÇÃO | H108: 1 | L108: =SUBTOTAL(109,L109:L114) -> 232206.3949
B109: 2.4.2.1 | C109: COMPOSIÇÃO SINAPI | D109: 100575 | E109: SINAPI | F109: REGULARIZAÇÃO DE SUPERFÍCIES COM MOTONIVELADORA. AF_11/2019 | G109: M2 | H109: 1201.28 | I109: =VLOOKUP(D109&E109,'TABELA SICRO-SINAPI-ORSE'!A:G,7,FALSE) -> 0.13 | J109: =$L$4 -> 0.20796173 | K109: =I109*(1+J109) -> 0.1570350249 | L109: =K109*H109 -> 188.6430347 | M109: =ISTEXT(H109) -> FALSE
B110: 2.4.2.2 | C110: COMPOSIÇÃO ORSE | D110: 3212 | E110: ORSE | F110: COLCHÃO DE AREIA | G110: M3 | H110: 120.12 | I110: =VLOOKUP(D110&E110,'TABELA SICRO-SINAPI-ORSE'!A:G,7,FALSE) -> 140.68 | J110: 0.20796173 | K110: 169.9360562 | L110: 20412.71907 | M110: FALSE
B111: 2.4.2.3 | C111: COMPOSIÇÃO SINAPI | D111: 92397 | E111: SINAPI | F111: EXECUÇÃO DE PÁTIO/ESTACIONAMENTO EM PISO INTERTRAVADO, COM BLOCO RETANGULAR COR NATURAL DE 20 X 10 CM, ESPESSURA 6 CM. AF_12/2015 | G111: M2 | H111: 1201.28 | I111: =VLOOKUP(D111&E111,'TABELA SICRO-SINAPI-ORSE'!A:G,7,FALSE) -> 81.09 | J111: 0.20796173 | K111: 97.95361669 | L111: 117669.7207 | M111: FALSE
B112: 2.4.2.4 | C112: COMPOSIÇÃO SINAPI | D112: 94991 | E112: SINAPI | F112: EXECUÇÃO DE PASSEIO (CALÇADA) OU PISO DE CONCRETO COM CONCRETO MOLDADO IN LOCO, USINADO, ACABAMENTO CONVENCIONAL, NÃO ARMADO. AF_07/2016 | G112: M3 | H112: 32.06 | I112: =VLOOKUP(D112&E112,'TABELA SICRO-SINAPI-ORSE'!A:G,7,FALSE) -> 1116.34 | J112: 0.20796173 | K112: 1348.495998 | L112: 43232.78169 | M112: FALSE
B113: 2.4.2.5 | C113: COMPOSIÇÃO SINAPI | D113: 101094 | E113: SINAPI | F113: PISO PODOTÁTIL, DIRECIONAL OU ALERTA, ASSENTADO SOBRE ARGAMASSA. AF_05/2020 | G113: M | H113: 213.08 | I113: =VLOOKUP(D113&E113,'TABELA SICRO-SINAPI-ORSE'!A:G,7,FALSE) -> 182.54 | J113: 0.20796173 | K113: 220.5013342 | L113: 46984.42429 | M113: FALSE
B114: 2.4.2.6 | C114: COMPOSIÇÃO SINAPI | D114: 94263 | E114: SINAPI | F114: GUIA (MEIO-FIO) CONCRETO, MOLDADA IN LOCO EM TRECHO RETO COM EXTRUSORA, 13 CM BASE X 22 CM ALTURA. AF_06/2016 | G114: M | H114: 72 | I114: =VLOOKUP(D114&E114,'TABELA SICRO-SINAPI-ORSE'!A:G,7,FALSE) -> 42.75 | J114: 0.20796173 | K114: 51.64036396 | L114: 3718.106205 | M114: FALSE
B115: 2.4.3 | C115: MOBILIÁRIO URBANO | H115: 1 | L115: =SUBTOTAL(109,L116:L120) -> 37816.46297
B116: 2.4.3.1 | C116: COMPOSIÇÃO ORSE | D116: 3740 | E116: ORSE | F116: MESA DE CONCRETO COM 02 BANCOS INTEGRADOS | G116: UN | H116: 8 | I116: =VLOOKUP(D116&E116,'TABELA SICRO-SINAPI-ORSE'!A:G,7,FALSE) -> 812.76 | J116: =$L$4 -> 0.20796173 | K116: =I116*(1+J116) -> 981.7829757 | L116: =K116*H116 -> 7854.263806 | M116: =ISTEXT(H116) -> FALSE
B117: 2.4.3.2 | C117: COMPOSIÇÃO SINAPI | D117: 103310 | E117: SINAPI | F117: INSTALAÇÃO DE LIXEIRA DE MADEIRA DUPLA, CAPACIDADE DE 60 L, CESTOS EM MADEIRA, SOBRE SOLO. AF_11/2021 | G117: UN | H117: 5 | I117: =VLOOKUP(D117&E117,'TABELA SICRO-SINAPI-ORSE'!A:G,7,FALSE) -> 1292.26 | J117: 0.20796173 | K117: =I117*(1+J117) -> 1561.000625 | L117: =K117*H117 -> 7805.003126 | M117: FALSE
B118: 2.4.3.3 | C118: COMPOSIÇÃO SINAPI | D118: 92435 | E118: SINAPI | F118: MONTAGEM E DESMONTAGEM DE FÔRMA DE PILARES RETANGULARES E ESTRUTURAS SIMILARES, PÉ-DIREITO SIMPLES, EM CHAPA DE MADEIRA COMPENSADA PLASTIFICADA, 12 UTILIZAÇÕES. AF_09/2020 | G118: M2 | H118: 53.76 | I118: =VLOOKUP(D118&E118,'TABELA SICRO-SINAPI-ORSE'!A:G,7,FALSE) -> 58.98 | J118: 0.20796173 | K118: =I118*(1+J118) -> 71.24558284 | L118: =K118*H118 -> 3830.162533 | M118: FALSE
B119: 2.4.3.4 | C119: COMPOSIÇÃO SINAPI | D119: 92761 | E119: SINAPI | F119: ARMAÇÃO DE PILAR OU VIGA DE UMA ESTRUTURA CONVENCIONAL DE CONCRETO ARMADO EM UM EDIFÍCIO DE MÚLTIPLOS PAVIMENTOS UTILIZANDO AÇO CA-50 DE 8,0 MM - MONTAGEM. AF_12/2015 | G119: KG | H119: 320 | I119: =VLOOKUP(D119&E119,'TABELA SICRO-SINAPI-ORSE'!A:G,7,FALSE) -> 14.23 | J119: 0.20796173 | K119: =I119*(1+J119) -> 17.18929542 | L119: =K119*H119 -> 5500.574534 | M119: FALSE
B120: 2.4.3.5 | C120: COMPOSIÇÃO SINAPI | D120: 103685 | E120: SINAPI | F120: CONCRETAGEM DE MURETAS, FCK=25 MPA, COM USO DE BOMBA - LANÇAMENTO, ADENSAMENTO E ACABAMENTO. AF_02/2022 | G120: M3 | H120: 10.13 | I120: =VLOOKUP(D120&E120,'TABELA SICRO-SINAPI-ORSE'!A:G,7,FALSE) -> 1048.2 | J120: 0.20796173 | K120: =I120*(1+J120) -> 1266.185485 | L120: =K120*H120 -> 12826.45897 | M120: FALSE
B121: 2.4.4 | C121: PAISAGISMO | H121: 1 | L121: =SUBTOTAL(109,L122:L124) -> 5404.981033
B122: 2.4.4.1 | C122: COMPOSIÇÃO SINAPI | D122: 103946 | E122: SINAPI | F122: PLANTIO DE GRAMA ESMERALDA OU SÃO CARLOS OU CURITIBANA, EM PLACAS. AF_05/2022 | G122: M2 | H122: 119.49 | I122: =VLOOKUP(D122&E122,'TABELA SICRO-SINAPI-ORSE'!A:G,7,FALSE) -> 20.62 | J122: =$L$4 -> 0.20796173 | K122: =I122*(1+J122) -> 24.90817087 | L122: =K122*H122 -> 2976.277338 | M122: =ISTEXT(H122) -> FALSE
B123: 2.4.4.2 | C123: COMPOSIÇÃO SINAPI | D123: 98511 | E123: SINAPI | F123: PLANTIO DE ÁRVORE ORNAMENTAL COM ALTURA DE MUDA MAIOR QUE 2,00 M E MENOR OU IGUAL A 4,00 M. AF_05/2018 | G123: UN | H123: 7 | I123: =VLOOKUP(D123&E123,'TABELA SICRO-SINAPI-ORSE'!A:G,7,FALSE) -> 125.92 | J123: 0.20796173 | K123: =I123*(1+J123) -> 152.106541 | L123: =K123*H123 -> 1064.745787 | M123: FALSE
B124: 2.4.4.3 | C124: COMPOSIÇÃO SINAPI | D124: 98510 | E124: SINAPI | F124: PLANTIO DE ÁRVORE ORNAMENTAL COM ALTURA DE MUDA MENOR OU IGUAL A 2,00 M. AF_05/2018 | G124: UN | H124: 17 | I124: =VLOOKUP(D124&E124,'TABELA SICRO-SINAPI-ORSE'!A:G,7,FALSE) -> 66.42 | J124: 0.20796173 | K124: =I124*(1+J124) -> 80.23281811 | L124: =K124*H124 -> 1363.957908 | M124: FALSE
B125: 2.4.5 | C125: SERVIÇOS COMPLEMENTARES | H125: 1 | L125: =SUBTOTAL(109,L126:L127) -> 3500.824089
B126: 2.4.5.1 | C126: COMPOSIÇÃO ORSE | D126: 6191 | E126: ORSE | F126: LIMPEZA DE RUAS (VARRIÇÃO E REMOÇÃO DE ENTULHOS) | G126: M2 | H126: 1600 | I126: =VLOOKUP(D126&E126,'TABELA SICRO-SINAPI-ORSE'!A:G,7,FALSE) -> 0.51 | J126: =$L$4 -> 0.20796173 | K126: =I126*(1+J126) -> 0.6160604823 | L126: =K126*H126 -> 985.6967717 | M126: =ISTEXT(H126) -> FALSE
B127: 2.4.5.2 | C127: COMPOSIÇÃO PRÓPRIA | D127: 1.1 | F127: DESMOBILIZAÇÃO | G127: UN | H127: 1 | I127: ='CPU Própria (sem des)'!M28 -> 2082.125 | J127: 0.20796173 | K127: =I127*(1+J127) -> 2515.127317 | L127: =K127*H127 -> 2515.127317 | M127: FALSE
B128: 2.5 | C128: ENTORNO | L128: =SUBTOTAL(109,L129:L140) -> 266223.9957
B129: 2.5.1 | C129: COMPOSIÇÃO ORSE | D129: 3212 | E129: ORSE | F129: COLCHÃO DE AREIA | G129: M3 | H129: 135.53 | I129: =VLOOKUP(D129&E129,'TABELA SICRO-SINAPI-ORSE'!A:G,7,FALSE) -> 140.68 | J129: =$L$4 -> 0.20796173 | K129: =I129*(1+J129) -> 169.9360562 | L129: =K129*H129 -> 23031.43369 | M129: =ISTEXT(H129) -> FALSE
B130: 2.5.2 | C130: COMPOSIÇÃO SINAPI | D130: 100575 | E130: SINAPI | F130: REGULARIZAÇÃO DE SUPERFÍCIES COM MOTONIVELADORA. AF_11/2019 | G130: M2 | H130: 903.56 | I130: =VLOOKUP(D130&E130,'TABELA SICRO-SINAPI-ORSE'!A:G,7,FALSE) -> 0.13 | J130: 0.20796173 | K130: 0.1570350249 | L130: 141.8905671 | M130: FALSE
B131: 2.5.3 | C131: COMPOSIÇÃO SINAPI | D131: 92397 | E131: SINAPI | F131: EXECUÇÃO DE PÁTIO/ESTACIONAMENTO EM PISO INTERTRAVADO, COM BLOCO RETANGULAR COR NATURAL DE 20 X 10 CM, ESPESSURA 6 CM. AF_12/2015 | G131: M2 | H131: 903.56 | I131: =VLOOKUP(D131&E131,'TABELA SICRO-SINAPI-ORSE'!A:G,7,FALSE) -> 81.09 | J131: 0.20796173 | K131: 97.95361669 | L131: 88506.9699 | M131: FALSE
B132: 2.5.4 | C132: COMPOSIÇÃO SINAPI | D132: 96398 | E132: SINAPI | F132: EXECUÇÃO E COMPACTAÇÃO DE BASE E OU SUB BASE PARA PAVIMENTAÇÃO DE CONCRETO COMPACTADO COM ROLO - EXCLUSIVE CARGA E TRANSPORTE. AF_11/2019 | G132: M3 | H132: 75.93 | I132: =VLOOKUP(D132&E132,'TABELA SICRO-SINAPI-ORSE'!A:G,7,FALSE) -> 652.93 | J132: 0.20796173 | K132: 788.7144524 | L132: 59887.08837 | M132: FALSE
B133: 2.5.5 | C133: COMPOSIÇÃO SINAPI | D133: 95995 | E133: SINAPI | F133: EXECUÇÃO DE PAVIMENTO COM APLICAÇÃO DE CONCRETO ASFÁLTICO, CAMADA DE ROLAMENTO - EXCLUSIVE CARGA E TRANSPORTE. AF_11/2019 | G133: M3 | H133: 18.98 | I133: =VLOOKUP(D133&E133,'TABELA SICRO-SINAPI-ORSE'!A:G,7,FALSE) -> 1429.29 | J133: 0.20796173 | K133: 1726.527621 | L133: 32769.49425 | M133: FALSE
B134: 2.5.6 | C134: COMPOSIÇÃO SINAPI | D134: 94266 | E134: SINAPI | F134: GUIA (MEIO-FIO) CONCRETO, MOLDADA IN LOCO EM TRECHO CURVO COM EXTRUSORA, 15 CM BASE X 30 CM ALTURA. AF_06/2016 | G134: M | H134: 77.9 | I134: =VLOOKUP(D134&E134,'TABELA SICRO-SINAPI-ORSE'!A:G,7,FALSE) -> 66.82 | J134: 0.20796173 | K134: 80.7160028 | L134: 6287.776618 | M134: FALSE
B135: 2.5.7 | C135: COMPOSIÇÃO SINAPI | D135: 101094 | E135: SINAPI | F135: PISO PODOTÁTIL, DIRECIONAL OU ALERTA, ASSENTADO SOBRE ARGAMASSA. AF_05/2020 | G135: M | H135: 209.97 | I135: =VLOOKUP(D135&E135,'TABELA SICRO-SINAPI-ORSE'!A:G,7,FALSE) -> 182.54 | J135: 0.20796173 | K135: 220.5013342 | L135: 46298.66514 | M135: FALSE
B136: 2.5.8 | C136: MOBILIÁRIO URBANO | H136: 1 | L136: =SUBTOTAL(109,L137:L138) -> 8692.251017
B137: 2.5.8.1 | C137: COMPOSIÇÃO SINAPI | D137: 103307 | E137: SINAPI | F137: INSTALAÇÃO DE LIXEIRA METÁLICA DUPLA, CAPACIDADE DE 60 L, EM TUBO DE AÇO CARBONO E CESTOS EM CHAPA DE AÇO COM PINTURA ELETROSTÁTICA, SOBRE PISO DE CONCRETO EXISTENTE. AF_11/2021 | G137: UN | H137: 5 | I137: =VLOOKUP(D137&E137,'TABELA SICRO-SINAPI-ORSE'!A:G,7,FALSE) -> 1336.56 | J137: =$L$4 -> 0.20796173 | K137: =I137*(1+J137) -> 1614.51333 | L137: =K137*H137 -> 8072.56665 | M137: =ISTEXT(H137) -> FALSE
B138: 2.5.8.2 | C138: COMPOSIÇÃO SINAPI | D138: 94263 | E138: SINAPI | F138: GUIA (MEIO-FIO) CONCRETO, MOLDADA IN LOCO EM TRECHO RETO COM EXTRUSORA, 13 CM BASE X 22 CM ALTURA. AF_06/2016 | G138: M | H138: 12 | I138: =VLOOKUP(D138&E138,'TABELA SICRO-SINAPI-ORSE'!A:G,7,FALSE) -> 42.75 | J138: 0.20796173 | K138: =I138*(1+J138) -> 51.64036396 | L138: =K138*H138 -> 619.6843675 | M138: FALSE
B139: 2.5.9 | C139: PAISAGISMO | H139: 1 | L139: =SUBTOTAL(109,L140) -> 608.4261642
B140: 2.5.9.1 | C140: COMPOSIÇÃO SINAPI | D140: 98511 | E140: SINAPI | F140: PLANTIO DE ÁRVORE ORNAMENTAL COM ALTURA DE MUDA MAIOR QUE 2,00 M E MENOR OU IGUAL A 4,00 M. AF_05/2018 | G140: UN | H140: 4 | I140: =VLOOKUP(D140&E140,'TABELA SICRO-SINAPI-ORSE'!A:G,7,FALSE) -> 125.92 | J140: =$L$4 -> 0.20796173 | K140: =I140*(1+J140) -> 152.106541 | L140: =K140*H140 -> 608.4261642 | M140: =ISTEXT(H140) -> FALSE
B141: 2.6 | C141: DEMOLIÇÃO | L141: =SUBTOTAL(109,L142:L189) -> 2164695.241
B142: 2.6.1 | C142: QUADRA 1 | H142: 1 | L142: =SUBTOTAL(109,L143:L147) -> 243761.979
B143: 2.6.1.1 | C143: COMPOSIÇÃO SINAPI | D143: 97625 | E143: SINAPI | F143: DEMOLIÇÃO DE ALVENARIA PARA QUALQUER TIPO DE BLOCO, DE FORMA MECANIZADA, SEM REAPROVEITAMENTO. AF_12/2017 | G143: M3 | H143: 889.22 | I143: =VLOOKUP(D143&E143,'TABELA SICRO-SINAPI-ORSE'!A:G,7,FALSE) -> 51.99 | J143: =$L$4 -> 0.20796173 | K143: =I143*(1+J143) -> 62.80193035 | L143: =K143*H143 -> 55844.7325 | M143: =ISTEXT(H143) -> FALSE
B144: 2.6.1.2 | C144: COMPOSIÇÃO SINAPI | D144: 97627 | E144: SINAPI | F144: DEMOLIÇÃO DE PILARES E VIGAS EM CONCRETO ARMADO, DE FORMA MECANIZADA COM MARTELETE, SEM REAPROVEITAMENTO. AF_12/2017 | G144: M3 | H144: 266.76 | I144: =VLOOKUP(D144&E144,'TABELA SICRO-SINAPI-ORSE'!A:G,7,FALSE) -> 148.21 | J144: 0.20796173 | K144: =I144*(1+J144) -> 179.032008 | L144: =K144*H144 -> 47758.57846 | M144: FALSE
B145: 2.6.1.3 | C145: COMPOSIÇÃO SINAPI | D145: 95876 | E145: SINAPI | F145: TRANSPORTE COM CAMINHÃO BASCULANTE DE 14 M³, EM VIA URBANA PAVIMENTADA, DMT ATÉ 30 KM (UNIDADE: M3XKM). AF_07/2020 | G145: M3XKM | H145: 34679.4 | I145: =VLOOKUP(D145&E145,'TABELA SICRO-SINAPI-ORSE'!A:G,7,FALSE) -> 2.2 | J145: 0.20796173 | K145: =I145*(1+J145) -> 2.657515806 | L145: =K145*H145 -> 92161.05365 | M145: FALSE
B146: 2.6.1.4 | C146: COMPOSIÇÃO PRÓPRIA | D146: 2.1 | F146: DEMOLIÇÃO DE CONCRETO ARMADO COM RETROESCAVADEIRA HIDRÁULICA | G146: M3 | H146: 307.254168 | I146: ='CPU Própria (sem des)'!M34 -> 86.365016 | J146: 0.20796173 | K146: =I146*(1+J146) -> 104.3256341 | L146: =K146*H146 -> 32054.48592 | M146: FALSE
B147: 2.6.1.5 | C147: COMPOSIÇÃO SINAPI | D147: 100983 | E147: SINAPI | F147: CARGA, MANOBRA E DESCARGA DE ENTULHO EM CAMINHÃO BASCULANTE 14 M³ - CARGA COM ESCAVADEIRA HIDRÁULICA (CAÇAMBA DE 0,80 M³ /111 HP) E DESCARGA LIVRE (UNIDADE: M3). AF_07/2020 | G147: M3 | H147: =H143+H144+H146 -> 1463.234168 | I147: =VLOOKUP(D147&E147,'TABELA SICRO-SINAPI-ORSE'!A:G,7,FALSE) -> 9.02 | J147: 0.20796173 | K147: =I147*(1+J147) -> 10.89581481 | L147: =K147*H147 -> 15943.12851 | M147: FALSE
B148: 2.6.2 | C148: QUADRA 2 | H148: 1 | L148: =SUBTOTAL(109,L149:L153) -> 83158.61829
B149: 2.6.2.1 | C149: COMPOSIÇÃO SINAPI | D149: 97625 | E149: SINAPI | F149: DEMOLIÇÃO DE ALVENARIA PARA QUALQUER TIPO DE BLOCO, DE FORMA MECANIZADA, SEM REAPROVEITAMENTO. AF_12/2017 | G149: M3 | H149: 383.65 | I149: =VLOOKUP(D149&E149,'TABELA SICRO-SINAPI-ORSE'!A:G,7,FALSE) -> 51.99 | J149: =$L$4 -> 0.20796173 | K149: =I149*(1+J149) -> 62.80193035 | L149: =K149*H149 -> 24093.96058 | M149: =ISTEXT(H149) -> FALSE
B150: 2.6.2.2 | C150: COMPOSIÇÃO SINAPI | D150: 97627 | E150: SINAPI | F150: DEMOLIÇÃO DE PILARES E VIGAS EM CONCRETO ARMADO, DE FORMA MECANIZADA COM MARTELETE, SEM REAPROVEITAMENTO. AF_12/2017 | G150: M3 | H150: 93.12 | I150: =VLOOKUP(D150&E150,'TABELA SICRO-SINAPI-ORSE'!A:G,7,FALSE) -> 148.21 | J150: 0.20796173 | K150: =I150*(1+J150) -> 179.032008 | L150: =K150*H150 -> 16671.46059 | M150: FALSE
B151: 2.6.2.3 | C151: COMPOSIÇÃO SINAPI | D151: 95876 | E151: SINAPI | F151: TRANSPORTE COM CAMINHÃO BASCULANTE DE 14 M³, EM VIA URBANA PAVIMENTADA, DMT ATÉ 30 KM (UNIDADE: M3XKM). AF_07/2020 | G151: M3XKM | H151: 9347.17 | I151: =VLOOKUP(D151&E151,'TABELA SICRO-SINAPI-ORSE'!A:G,7,FALSE) -> 2.2 | J151: 0.20796173 | K151: =I151*(1+J151) -> 2.657515806 | L151: =K151*H151 -> 24840.25202 | M151: FALSE
B152: 2.6.2.4 | C152: COMPOSIÇÃO PRÓPRIA | D152: 2.1 | F152: DEMOLIÇÃO DE CONCRETO ARMADO COM RETROESCAVADEIRA HIDRÁULICA | G152: M3 | H152: 107.255616 | I152: ='CPU Própria (sem des)'!M34 -> 86.365016 | J152: 0.20796173 | K152: =I152*(1+J152) -> 104.3256341 | L152: =K152*H152 -> 11189.51015 | M152: FALSE
B153: 2.6.2.5 | C153: COMPOSIÇÃO SINAPI | D153: 100983 | E153: SINAPI | F153: CARGA, MANOBRA E DESCARGA DE ENTULHO EM CAMINHÃO BASCULANTE 14 M³ - CARGA COM ESCAVADEIRA HIDRÁULICA (CAÇAMBA DE 0,80 M³ /111 HP) E DESCARGA LIVRE (UNIDADE: M3). AF_07/2020 | G153: M3 | H153: =H149+H150+H152 -> 584.025616 | I153: =VLOOKUP(D153&E153,'TABELA SICRO-SINAPI-ORSE'!A:G,7,FALSE) -> 9.02 | J153: 0.20796173 | K153: =I153*(1+J153) -> 10.89581481 | L153: =K153*H153 -> 6363.434953 | M153: FALSE
B154: 2.6.3 | C154: QUADRA 3 | H154: 1 | L154: =SUBTOTAL(109,L155:L159) -> 509545.6633
B155: 2.6.3.1 | C155: COMPOSIÇÃO SINAPI | D155: 97625 | E155: SINAPI | F155: DEMOLIÇÃO DE ALVENARIA PARA QUALQUER TIPO DE BLOCO, DE FORMA MECANIZADA, SEM REAPROVEITAMENTO. AF_12/2017 | G155: M3 | H155: 1504.47 | I155: =VLOOKUP(D155&E155,'TABELA SICRO-SINAPI-ORSE'!A:G,7,FALSE) -> 51.99 | J155: =$L$4 -> 0.20796173 | K155: =I155*(1+J155) -> 62.80193035 | L155: =K155*H155 -> 94483.62015 | M155: =ISTEXT(H155) -> FALSE
B156: 2.6.3.2 | C156: COMPOSIÇÃO SINAPI | D156: 97627 | E156: SINAPI | F156: DEMOLIÇÃO DE PILARES E VIGAS EM CONCRETO ARMADO, DE FORMA MECANIZADA COM MARTELETE, SEM REAPROVEITAMENTO. AF_12/2017 | G156: M3 | H156: 752.23 | I156: =VLOOKUP(D156&E156,'TABELA SICRO-SINAPI-ORSE'!A:G,7,FALSE) -> 148.21 | J156: 0.20796173 | K156: =I156*(1+J156) -> 179.032008 | L156: =K156*H156 -> 134673.2474 | M156: FALSE
B157: 2.6.3.3 | C157: COMPOSIÇÃO SINAPI | D157: 95876 | E157: SINAPI | F157: TRANSPORTE COM CAMINHÃO BASCULANTE DE 14 M³, EM VIA URBANA PAVIMENTADA, DMT ATÉ 30 KM (UNIDADE: M3XKM). AF_07/2020 | G157: M3XKM | H157: 58690.23 | I157: =VLOOKUP(D157&E157,'TABELA SICRO-SINAPI-ORSE'!A:G,7,FALSE) -> 2.2 | J157: 0.20796173 | K157: =I157*(1+J157) -> 2.657515806 | L157: =K157*H157 -> 155970.2139 | M157: FALSE
B158: 2.6.3.4 | C158: COMPOSIÇÃO PRÓPRIA | D158: 2.1 | F158: DEMOLIÇÃO DE CONCRETO ARMADO COM RETROESCAVADEIRA HIDRÁULICA | G158: M3 | H158: 866.418514 | I158: ='CPU Própria (sem des)'!M34 -> 86.365016 | J158: 0.20796173 | K158: =I158*(1+J158) -> 104.3256341 | L158: =K158*H158 -> 90389.66091 | M158: FALSE
B159: 2.6.3.5 | C159: COMPOSIÇÃO SINAPI | D159: 100983 | E159: SINAPI | F159: CARGA, MANOBRA E DESCARGA DE ENTULHO EM CAMINHÃO BASCULANTE 14 M³ - CARGA COM ESCAVADEIRA HIDRÁULICA (CAÇAMBA DE 0,80 M³ /111 HP) E DESCARGA LIVRE (UNIDADE: M3). AF_07/2020 | G159: M3 | H159: =H155+H156+H158 -> 3123.118514 | I159: =VLOOKUP(D159&E159,'TABELA SICRO-SINAPI-ORSE'!A:G,7,FALSE) -> 9.02 | J159: 0.20796173 | K159: =I159*(1+J159) -> 10.89581481 | L159: =K159*H159 -> 34028.92094 | M159: FALSE
B160: 2.6.4 | C160: QUADRA 4 | H160: 1 | L160: =SUBTOTAL(109,L161:L165) -> 323471.5618
B161: 2.6.4.1 | C161: COMPOSIÇÃO SINAPI | D161: 97625 | E161: SINAPI | F161: DEMOLIÇÃO DE ALVENARIA PARA QUALQUER TIPO DE BLOCO, DE FORMA MECANIZADA, SEM REAPROVEITAMENTO. AF_12/2017 | G161: M3 | H161: 912 | I161: =VLOOKUP(D161&E161,'TABELA SICRO-SINAPI-ORSE'!A:G,7,FALSE) -> 51.99 | J161: =$L$4 -> 0.20796173 | K161: =I161*(1+J161) -> 62.80193035 | L161: =K161*H161 -> 57275.36047 | M161: =ISTEXT(H161) -> FALSE
B162: 2.6.4.2 | C162: COMPOSIÇÃO SINAPI | D162: 97627 | E162: SINAPI | F162: DEMOLIÇÃO DE PILARES E VIGAS EM CONCRETO ARMADO, DE FORMA MECANIZADA COM MARTELETE, SEM REAPROVEITAMENTO. AF_12/2017 | G162: M3 | H162: 456.22 | I162: =VLOOKUP(D162&E162,'TABELA SICRO-SINAPI-ORSE'!A:G,7,FALSE) -> 148.21 | J162: 0.20796173 | K162: =I162*(1+J162) -> 179.032008 | L162: =K162*H162 -> 81677.98269 | M162: FALSE
B163: 2.6.4.3 | C163: COMPOSIÇÃO SINAPI | D163: 95876 | E163: SINAPI | F163: TRANSPORTE COM CAMINHÃO BASCULANTE DE 14 M³, EM VIA URBANA PAVIMENTADA, DMT ATÉ 30 KM (UNIDADE: M3XKM). AF_07/2020 | G163: M3XKM | H163: 41040 | I163: =VLOOKUP(D163&E163,'TABELA SICRO-SINAPI-ORSE'!A:G,7,FALSE) -> 2.2 | J163: 0.20796173 | K163: =I163*(1+J163) -> 2.657515806 | L163: =K163*H163 -> 109064.4487 | M163: FALSE
B164: 2.6.4.4 | C164: COMPOSIÇÃO PRÓPRIA | D164: 2.1 | F164: DEMOLIÇÃO DE CONCRETO ARMADO COM RETROESCAVADEIRA HIDRÁULICA | G164: M3 | H164: 525.474196 | I164: ='CPU Própria (sem des)'!M34 -> 86.365016 | J164: 0.20796173 | K164: =I164*(1+J164) -> 104.3256341 | L164: =K164*H164 -> 54820.42872 | M164: FALSE
B165: 2.6.4.5 | C165: COMPOSIÇÃO SINAPI | D165: 100983 | E165: SINAPI | F165: CARGA, MANOBRA E DESCARGA DE ENTULHO EM CAMINHÃO BASCULANTE 14 M³ - CARGA COM ESCAVADEIRA HIDRÁULICA (CAÇAMBA DE 0,80 M³ /111 HP) E DESCARGA LIVRE (UNIDADE: M3). AF_07/2020 | G165: M3 | H165: =H161+H162+H164 -> 1893.694196 | I165: =VLOOKUP(D165&E165,'TABELA SICRO-SINAPI-ORSE'!A:G,7,FALSE) -> 9.02 | J165: 0.20796173 | K165: =I165*(1+J165) -> 10.89581481 | L165: =K165*H165 -> 20633.34126 | M165: FALSE
B166: 2.6.5 | C166: QUADRA 5 | H166: 1 | L166: =SUBTOTAL(109,L167:L171) -> 612746.0018
B167: 2.6.5.1 | C167: COMPOSIÇÃO SINAPI | D167: 97625 | E167: SINAPI | F167: DEMOLIÇÃO DE ALVENARIA PARA QUALQUER TIPO DE BLOCO, DE FORMA MECANIZADA, SEM REAPROVEITAMENTO. AF_12/2017 | G167: M3 | H167: 1962.71 | I167: =VLOOKUP(D167&E167,'TABELA SICRO-SINAPI-ORSE'!A:G,7,FALSE) -> 51.99 | J167: =$L$4 -> 0.20796173 | K167: =I167*(1+J167) -> 62.80193035 | L167: =K167*H167 -> 123261.9767 | M167: =ISTEXT(H167) -> FALSE
B168: 2.6.5.2 | C168: COMPOSIÇÃO SINAPI | D168: 97627 | E168: SINAPI | F168: DEMOLIÇÃO DE PILARES E VIGAS EM CONCRETO ARMADO, DE FORMA MECANIZADA COM MARTELETE, SEM REAPROVEITAMENTO. AF_12/2017 | G168: M3 | H168: 723.35 | I168: =VLOOKUP(D168&E168,'TABELA SICRO-SINAPI-ORSE'!A:G,7,FALSE) -> 148.21 | J168: 0.20796173 | K168: =I168*(1+J168) -> 179.032008 | L168: =K168*H168 -> 129502.803 | M168: FALSE
B169: 2.6.5.3 | C169: COMPOSIÇÃO SINAPI | D169: 95876 | E169: SINAPI | F169: TRANSPORTE COM CAMINHÃO BASCULANTE DE 14 M³, EM VIA URBANA PAVIMENTADA, DMT ATÉ 30 KM (UNIDADE: M3XKM). AF_07/2020 | G169: M3XKM | H169: 88322.01 | I169: =VLOOKUP(D169&E169,'TABELA SICRO-SINAPI-ORSE'!A:G,7,FALSE) -> 2.2 | J169: 0.20796173 | K169: =I169*(1+J169) -> 2.657515806 | L169: =K169*H169 -> 234717.1376 | M169: FALSE
B170: 2.6.5.4 | C170: COMPOSIÇÃO PRÓPRIA | D170: 2.1 | F170: DEMOLIÇÃO DE CONCRETO ARMADO COM RETROESCAVADEIRA HIDRÁULICA | G170: M3 | H170: 833.15453 | I170: ='CPU Própria (sem des)'!M34 -> 86.365016 | J170: 0.20796173 | K170: =I170*(1+J170) -> 104.3256341 | L170: =K170*H170 -> 86919.37468 | M170: FALSE
B171: 2.6.5.5 | C171: COMPOSIÇÃO SINAPI | D171: 100983 | E171: SINAPI | F171: CARGA, MANOBRA E DESCARGA DE ENTULHO EM CAMINHÃO BASCULANTE 14 M³ - CARGA COM ESCAVADEIRA HIDRÁULICA (CAÇAMBA DE 0,80 M³ /111 HP) E DESCARGA LIVRE (UNIDADE: M3). AF_07/2020 | G171: M3 | H171: =H167+H168+H170 -> 3519.21453 | I171: =VLOOKUP(D171&E171,'TABELA SICRO-SINAPI-ORSE'!A:G,7,FALSE) -> 9.02 | J171: 0.20796173 | K171: =I171*(1+J171) -> 10.89581481 | L171: =K171*H171 -> 38344.70978 | M171: FALSE
B172: 2.6.6 | C172: QUADRA 6 | H172: 1 | L172: =SUBTOTAL(109,L173:L177) -> 166913.1494
B173: 2.6.6.1 | C173: COMPOSIÇÃO SINAPI | D173: 97625 | E173: SINAPI | F173: DEMOLIÇÃO DE ALVENARIA PARA QUALQUER TIPO DE BLOCO, DE FORMA MECANIZADA, SEM REAPROVEITAMENTO. AF_12/2017 | G173: M3 | H173: 925.65 | I173: =VLOOKUP(D173&E173,'TABELA SICRO-SINAPI-ORSE'!A:G,7,FALSE) -> 51.99 | J173: =$L$4 -> 0.20796173 | K173: =I173*(1+J173) -> 62.80193035 | L173: =K173*H173 -> 58132.60682 | M173: =ISTEXT(H173) -> FALSE
B174: 2.6.6.2 | C174: COMPOSIÇÃO SINAPI | D174: 97627 | E174: SINAPI | F174: DEMOLIÇÃO DE PILARES E VIGAS EM CONCRETO ARMADO, DE FORMA MECANIZADA COM MARTELETE, SEM REAPROVEITAMENTO. AF_12/2017 | G174: M3 | H174: 204.4 | I174: =VLOOKUP(D174&E174,'TABELA SICRO-SINAPI-ORSE'!A:G,7,FALSE) -> 148.21 | J174: 0.20796173 | K174: =I174*(1+J174) -> 179.032008 | L174: =K174*H174 -> 36594.14244 | M174: FALSE
B175: 2.6.6.3 | C175: COMPOSIÇÃO SINAPI | D175: 95876 | E175: SINAPI | F175: TRANSPORTE COM CAMINHÃO BASCULANTE DE 14 M³, EM VIA URBANA PAVIMENTADA, DMT ATÉ 30 KM (UNIDADE: M3XKM). AF_07/2020 | G175: M3XKM | H175: 12322.5 | I175: =VLOOKUP(D175&E175,'TABELA SICRO-SINAPI-ORSE'!A:G,7,FALSE) -> 2.2 | J175: 0.20796173 | K175: =I175*(1+J175) -> 2.657515806 | L175: =K175*H175 -> 32747.23852 | M175: FALSE
B176: 2.6.6.4 | C176: COMPOSIÇÃO PRÓPRIA | D176: 2.1 | F176: DEMOLIÇÃO DE CONCRETO ARMADO COM RETROESCAVADEIRA HIDRÁULICA | G176: M3 | H176: 235.42792 | I176: ='CPU Própria (sem des)'!M34 -> 86.365016 | J176: 0.20796173 | K176: =I176*(1+J176) -> 104.3256341 | L176: =K176*H176 -> 24561.16705 | M176: FALSE
B177: 2.6.6.5 | C177: COMPOSIÇÃO SINAPI | D177: 100983 | E177: SINAPI | F177: CARGA, MANOBRA E DESCARGA DE ENTULHO EM CAMINHÃO BASCULANTE 14 M³ - CARGA COM ESCAVADEIRA HIDRÁULICA (CAÇAMBA DE 0,80 M³ /111 HP) E DESCARGA LIVRE (UNIDADE: M3). AF_07/2020 | G177: M3 | H177: =H173+H174+H176 -> 1365.47792 | I177: =VLOOKUP(D177&E177,'TABELA SICRO-SINAPI-ORSE'!A:G,7,FALSE) -> 9.02 | J177: 0.20796173 | K177: =I177*(1+J177) -> 10.89581481 | L177: =K177*H177 -> 14877.99454 | M177: FALSE
B178: 2.6.7 | C178: QUADRA 7 | H178: 1 | L178: =SUBTOTAL(109,L179:L183) -> 156595.4998
B179: 2.6.7.1 | C179: COMPOSIÇÃO SINAPI | D179: 97625 | E179: SINAPI | F179: DEMOLIÇÃO DE ALVENARIA PARA QUALQUER TIPO DE BLOCO, DE FORMA MECANIZADA, SEM REAPROVEITAMENTO. AF_12/2017 | G179: M3 | H179: 441.61 | I179: =VLOOKUP(D179&E179,'TABELA SICRO-SINAPI-ORSE'!A:G,7,FALSE) -> 51.99 | J179: =$L$4 -> 0.20796173 | K179: =I179*(1+J179) -> 62.80193035 | L179: =K179*H179 -> 27733.96046 | M179: =ISTEXT(H179) -> FALSE
B180: 2.6.7.2 | C180: COMPOSIÇÃO SINAPI | D180: 97627 | E180: SINAPI | F180: DEMOLIÇÃO DE PILARES E VIGAS EM CONCRETO ARMADO, DE FORMA MECANIZADA COM MARTELETE, SEM REAPROVEITAMENTO. AF_12/2017 | G180: M3 | H180: 220.8 | I180: =VLOOKUP(D180&E180,'TABELA SICRO-SINAPI-ORSE'!A:G,7,FALSE) -> 148.21 | J180: 0.20796173 | K180: =I180*(1+J180) -> 179.032008 | L180: =K180*H180 -> 39530.26737 | M180: FALSE
B181: 2.6.7.3 | C181: COMPOSIÇÃO SINAPI | D181: 95876 | E181: SINAPI | F181: TRANSPORTE COM CAMINHÃO BASCULANTE DE 14 M³, EM VIA URBANA PAVIMENTADA, DMT ATÉ 30 KM (UNIDADE: M3XKM). AF_07/2020 | G181: M3XKM | H181: 19872.3 | I181: =VLOOKUP(D181&E181,'TABELA SICRO-SINAPI-ORSE'!A:G,7,FALSE) -> 2.2 | J181: 0.20796173 | K181: =I181*(1+J181) -> 2.657515806 | L181: =K181*H181 -> 52810.95135 | M181: FALSE
B182: 2.6.7.4 | C182: COMPOSIÇÃO PRÓPRIA | D182: 2.1 | F182: DEMOLIÇÃO DE CONCRETO ARMADO COM RETROESCAVADEIRA HIDRÁULICA | G182: M3 | H182: 254.31744 | I182: ='CPU Própria (sem des)'!M34 -> 86.365016 | J182: 0.20796173 | K182: =I182*(1+J182) -> 104.3256341 | L182: =K182*H182 -> 26531.8282 | M182: FALSE
B183: 2.6.7.5 | C183: COMPOSIÇÃO SINAPI | D183: 100983 | E183: SINAPI | F183: CARGA, MANOBRA E DESCARGA DE ENTULHO EM CAMINHÃO BASCULANTE 14 M³ - CARGA COM ESCAVADEIRA HIDRÁULICA (CAÇAMBA DE 0,80 M³ /111 HP) E DESCARGA LIVRE (UNIDADE: M3). AF_07/2020 | G183: M3 | H183: =H179+H180+H182 -> 916.72744 | I183: =VLOOKUP(D183&E183,'TABELA SICRO-SINAPI-ORSE'!A:G,7,FALSE) -> 9.02 | J183: 0.20796173 | K183: =I183*(1+J183) -> 10.89581481 | L183: =K183*H183 -> 9988.492413 | M183: FALSE
B184: 2.6.8 | C184: QUADRA 8 | H184: 1 | L184: =SUBTOTAL(109,L185:L189) -> 68502.76782
B185: 2.6.8.1 | C185: COMPOSIÇÃO SINAPI | D185: 97625 | E185: SINAPI | F185: DEMOLIÇÃO DE ALVENARIA PARA QUALQUER TIPO DE BLOCO, DE FORMA MECANIZADA, SEM REAPROVEITAMENTO. AF_12/2017 | G185: M3 | H185: 193.18 | I185: =VLOOKUP(D185&E185,'TABELA SICRO-SINAPI-ORSE'!A:G,7,FALSE) -> 51.99 | J185: =$L$4 -> 0.20796173 | K185: =I185*(1+J185) -> 62.80193035 | L185: =K185*H185 -> 12132.0769 | M185: =ISTEXT(H185) -> FALSE
B186: 2.6.8.2 | C186: COMPOSIÇÃO SINAPI | D186: 97627 | E186: SINAPI | F186: DEMOLIÇÃO DE PILARES E VIGAS EM CONCRETO ARMADO, DE FORMA MECANIZADA COM MARTELETE, SEM REAPROVEITAMENTO. AF_12/2017 | G186: M3 | H186: 96.59 | I186: =VLOOKUP(D186&E186,'TABELA SICRO-SINAPI-ORSE'!A:G,7,FALSE) -> 148.21 | J186: 0.20796173 | K186: =I186*(1+J186) -> 179.032008 | L186: =K186*H186 -> 17292.70165 | M186: FALSE
B187: 2.6.8.3 | C187: COMPOSIÇÃO SINAPI | D187: 95876 | E187: SINAPI | F187: TRANSPORTE COM CAMINHÃO BASCULANTE DE 14 M³, EM VIA URBANA PAVIMENTADA, DMT ATÉ 30 KM (UNIDADE: M3XKM). AF_07/2020 | G187: M3XKM | H187: 8693.1 | I187: =VLOOKUP(D187&E187,'TABELA SICRO-SINAPI-ORSE'!A:G,7,FALSE) -> 2.2 | J187: 0.20796173 | K187: =I187*(1+J187) -> 2.657515806 | L187: =K187*H187 -> 23102.05065 | M187: FALSE
B188: 2.6.8.4 | C188: COMPOSIÇÃO PRÓPRIA | D188: 2.1 | F188: DEMOLIÇÃO DE CONCRETO ARMADO COM RETROESCAVADEIRA HIDRÁULICA | G188: M3 | H188: 111.252362 | I188: ='CPU Própria (sem des)'!M34 -> 86.365016 | J188: 0.20796173 | K188: =I188*(1+J188) -> 104.3256341 | L188: =K188*H188 -> 11606.47322 | M188: FALSE
B189: 2.6.8.5 | C189: COMPOSIÇÃO SINAPI | D189: 100983 | E189: SINAPI | F189: CARGA, MANOBRA E DESCARGA DE ENTULHO EM CAMINHÃO BASCULANTE 14 M³ - CARGA COM ESCAVADEIRA HIDRÁULICA (CAÇAMBA DE 0,80 M³ /111 HP) E DESCARGA LIVRE (UNIDADE: M3). AF_07/2020 | G189: M3 | H189: =H185+H186+H188 -> 401.022362 | I189: =VLOOKUP(D189&E189,'TABELA SICRO-SINAPI-ORSE'!A:G,7,FALSE) -> 9.02 | J189: 0.20796173 | K189: =I189*(1+J189) -> 10.89581481 | L189: =K189*H189 -> 4369.465389 | M189: FALSE
B190: 3 | C190: EDIFICAÇÕES NOVAS | L190: =SUBTOTAL(109,L191:L1299) -> 11742103.2
B191: 3.1 | C191: ADMINISTRAÇÃO DE OBRA | L191: =SUBTOTAL(109,L192:L193) -> 5030.254634
B192: 3.1.1 | C192: COMPOSIÇÃO PRÓPRIA | D192: 1.1 | F192: MOBILIZAÇÃO | G192: UN | H192: 1 | I192: ='CPU Própria (sem des)'!M28 -> 2082.125 | J192: =$L$4 -> 0.20796173 | K192: =I192*(1+J192) -> 2515.127317 | L192: =K192*H192 -> 2515.127317 | M192: =ISTEXT(H192) -> FALSE
B193: 3.1.2 | C193: COMPOSIÇÃO PRÓPRIA | D193: 1.1 | F193: DESMOBILIZAÇÃO | G193: UN | H193: 1 | I193: ='CPU Própria (sem des)'!M28 -> 2082.125 | J193: 0.20796173 | K193: =I193*(1+J193) -> 2515.127317 | L193: =K193*H193 -> 2515.127317 | M193: FALSE
B194: 3.1.3 | C194: CANTEIRO DE OBRAS | H194: 1 | L194: =SUBTOTAL(109,L195:L209) -> 118222.776
B195: 3.1.3.1 | C195: COMPOSIÇÃO COMPESA | D195: 01.08.12U | E195: COMPESA | F195: EXECUÇÃO DE ESCRITÓRIO (COM INSTALAÇÕES ELÉTRICAS E HIDROSSANITÁRIAS) EM CANTEIRO DE OBRA EM CHAPA DE MADEIRA COMPENSADA, NÃO INCLUSO MOBILIÁRIO E EQUIPAMENTOS. | G195: M2 | H195: 13.8 | I195: 1266.13 | J195: =$L$4 -> 0.20796173 | K195: =I195*(1+J195) -> 1529.436585 | L195: =K195*H195 -> 21106.22488 | M195: =ISTEXT(H195) -> FALSE
B196: 3.1.3.2 | C196: COMPOSIÇÃO SINAPI | D196: 93584 | E196: SINAPI | F196: EXECUÇÃO DE DEPÓSITO EM CANTEIRO DE OBRA EM CHAPA DE MADEIRA COMPENSADA, NÃO INCLUSO MOBILIÁRIO. AF_04/2016 | G196: M2 | H196: 13.8 | I196: 762.2 | J196: 0.20796173 | K196: 920.7084306 | L196: 12705.77634 | M196: FALSE
B197: 3.1.3.3 | C197: COMPOSIÇÃO SINAPI | D197: 93582 | E197: SINAPI | F197: EXECUÇÃO DE CENTRAL DE ARMADURA EM CANTEIRO DE OBRA, NÃO INCLUSO MOBILIÁRIO E EQUIPAMENTOS. AF_04/2016 | G197: M2 | H197: 13.8 | I197: 262.69 | J197: 0.20796173 | K197: 317.3194669 | L197: 4379.008643 | M197: FALSE
B198: 3.1.3.4 | C198: COMPOSIÇÃO SINAPI | D198: 93210 | E198: SINAPI | F198: EXECUÇÃO DE REFEITÓRIO EM CANTEIRO DE OBRA EM CHAPA DE MADEIRA COMPENSADA, NÃO INCLUSO MOBILIÁRIO E EQUIPAMENTOS. AF_02/2016 | G198: M2 | H198: 13.8 | I198: 550.5 | J198: 0.20796173 | K198: 664.9829324 | L198: 9176.764467 | M198: FALSE
B199: 3.1.3.5 | C199: COMPOSIÇÃO SINAPI | D199: 93212 | E199: SINAPI | F199: EXECUÇÃO DE SANITÁRIO E VESTIÁRIO EM CANTEIRO EM CHAPA DE MADEIRA COMPENSADA, NÃO INCLUSO MOBILIÁRIO. AF_02/2016 | G199: M2 | H199: 27.6 | I199: 910.26 | J199: 0.20796173 | K199: 1099.559244 | L199: 30347.83515 | M199: FALSE
B200: 3.1.3.6 | C200: COMPOSIÇÃO SINAPI | D200: 86931 | E200: SINAPI | F200: VASO SANITÁRIO SIFONADO COM CAIXA ACOPLADA LOUÇA BRANCA, INCLUSO ENGATE FLEXÍVEL EM PLÁSTICO BRANCO, 1/2 X 40CM - FORNECIMENTO E INSTALAÇÃO. AF_01/2020 | G200: UN | H200: 8 | I200: =VLOOKUP(D200&E200,'TABELA SICRO-SINAPI-ORSE'!A:G,7,FALSE) -> 469.07 | J200: 0.20796173 | K200: 566.6186087 | L200: 4532.94887 | M200: FALSE
B201: 3.1.3.7 | C201: COMPOSIÇÃO SINAPI | D201: 86902 | E201: SINAPI | F201: LAVATÓRIO LOUÇA BRANCA COM COLUNA, *44 X 35,5* CM, PADRÃO POPULAR - FORNECIMENTO E INSTALAÇÃO. AF_01/2020 | G201: UN | H201: 4 | I201: =VLOOKUP(D201&E201,'TABELA SICRO-SINAPI-ORSE'!A:G,7,FALSE) -> 290.26 | J201: 0.20796173 | K201: 350.6229718 | L201: 1402.491887 | M201: FALSE
B202: 3.1.3.8 | C202: COMPOSIÇÃO ORSE | D202: 51 | E202: ORSE | F202: PLACA DE OBRA EM CHAPA AÇO GALVANIZADO, INSTALADA - REV 02_01/2022 | G202: M2 | H202: 4.5 | I202: =VLOOKUP(D202&E202,'TABELA SICRO-SINAPI-ORSE'!A:G,7,FALSE) -> 376.75 | J202: 0.20796173 | K202: 455.0995818 | L202: 2047.948118 | M202: FALSE
... 1529 more rows

Sheet ABC
B2: QUADRO DEMONSTRATIVO DO ORÇAMENTO
B3: Obra: | D3: Realização das obras de revitalização do setor comercial e portuário do município de Santana, no estado do Amapá | H3: Base de Preço: | L3: =Orçamento!I3 -> SINAPI: MAR/2024-AP | M3: Sem Desoneração
B4: Valor Referência: | D4: =L717 -> 47428828.64 | L4: =Orçamento!I4 -> SICRO: JAN/2024-AP | M4: BDI de Serviços: | N4: =Orçamento!L4 -> 0.20796173
B5: Data base: | D5: =Orçamento!D5 -> ABRIL / 2024 | L5: =Orçamento!I5 -> ORSE: FEV/2024 | M5: BDI de Fornecimento: | N5: =Orçamento!L5 -> 0.146920122
B7: ITEM | C7: CÓDIGO | E7: FONTE | F7: DESCRIÇÃO | G7: UND | H7: QUANT | I7: PREÇO SEM DESONERAÇÃO | L7: TOTAL SEM DESONERAÇÃO | M7: PERCENTUAL
I8: Custo Direto | J8: BDI | K8: Custo com BDI | M8: SIMPLES | N8: ACUMULADO
B9: 1 | C9: COMPOSIÇÃO SICRO | D9: 2306015 | E9: SICRO | F9: ESTACA PRANCHA METÁLICA - FORNECIMENTO E CRAVAÇÃO ATÉ 12 METROS | G9: KG | H9: =SUMIF(Orçamento!$F$9:$F$1730,F9,Orçamento!$H$9:$H$1730) -> 512869.21 | I9: 15.48 | J9: 0.20796173 | K9: =I9*(1+J9) -> 18.69924758 | L9: =K9*H9 -> 9590268.335 | M9: =L9/$L$717 -> 0.2022033562 | N9: =SUM($M$9:M9) -> 0.2022033562 | O9: =_xlfn.XLOOKUP($F9,F10:F$717,K10:$K$717,,0)=K9 -> 
B10: 2 | C10: COMPOSIÇÃO PRÓPRIA | D10: 1 | F10: ADMINISTRAÇÃO LOCAL | G10: UN | H10: =SUMIF(Orçamento!$F$9:$F$1730,F10,Orçamento!$H$9:$H$1730) -> 1 | I10: 2881433.869 | J10: 0.20796173 | K10: 3480661.841 | L10: 3480661.841 | M10: 0.07338705046 | N10: =SUM($M$9:M10) -> 0.2755904067 | O10: =_xlfn.XLOOKUP($F10,F11:F$717,K11:$K$717,,0)=K10 -> 
B11: 3 | C11: COMPOSIÇÃO SICRO | D11: 2408149 | E11: SICRO | F11: ESTRUTURA EM CHAPA DE AÇO ASTM A36 CORTE, SOLDA E MONTAGEM - FORNECIMENTO E INSTALAÇÃO | G11: KG | H11: =SUMIF(Orçamento!$F$9:$F$1730,F11,Orçamento!$H$9:$H$1730) -> 125000 | I11: 16.57 | J11: 0.20796173 | K11: 20.01592587 | L11: 2501990.733 | M11: 0.05275253058 | N11: =SUM($M$9:M11) -> 0.3283429373 | O11: =_xlfn.XLOOKUP($F11,F12:F$717,K12:$K$717,,0)=K11 -> 
B12: 4 | C12: COMPOSIÇÃO SICRO | D12: 5605936 | E12: SICRO | F12: TIRANTE DE BARRA DE AÇO ANCORADO NA ROCHA COM RESINA DE POLIÉSTER, D = 32 MM, TENSÃO DE ESCOAMENTO = 686 MPA, TENSÃO DE RUPTURA = 789 MPA - FORNECIMENTO, PERFURAÇÃO E INSTALAÇÃO | G12: M | H12: =SUMIF(Orçamento!$F$9:$F$1730,F12,Orçamento!$H$9:$H$1730) -> 6788 | I12: 247.87 | J12: 0.20796173 | K12: 299.417474 | L12: 2032445.814 | M12: 0.04285254078 | N12: =SUM($M$9:M12) -> 0.3711954781 | O12: =_xlfn.XLOOKUP($F12,F13:F$717,K13:$K$717,,0)=K12 -> 
B13: 5 | C13: COMPOSIÇÃO SINAPI | D13: 100763 | E13: SINAPI | F13: VIGA METÁLICA EM PERFIL LAMINADO OU SOLDADO EM AÇO ESTRUTURAL, COM CONEXÕES PARAFUSADAS, INCLUSOS MÃO DE OBRA, TRANSPORTE E IÇAMENTO UTILIZANDO GUINDASTE - FORNECIMENTO E INSTALAÇÃO. AF_01/2020_P | G13: KG | H13: =SUMIF(Orçamento!$F$9:$F$1730,F13,Orçamento!$H$9:$H$1730) -> 103249.94 | I13: 15.52 | J13: 0.20796173 | K13: 18.74756605 | L13: 1935685.07 | M13: 0.04081241568 | N13: =SUM($M$9:M13) -> 0.4120078937 | O13: =_xlfn.XLOOKUP($F13,F14:F$717,K14:$K$717,,0)=K13 -> 
B14: 6 | C14: COMPOSIÇÃO SINAPI | D14: 93590 | E14: SINAPI | F14: TRANSPORTE COM CAMINHÃO BASCULANTE DE 10 M³, EM VIA URBANA PAVIMENTADA, ADICIONAL PARA DMT EXCEDENTE A 30 KM (UNIDADE: M3XKM). AF_07/2020 | G14: M3XKM | H14: =SUMIF(Orçamento!$F$9:$F$1730,F14,Orçamento!$H$9:$H$1730) -> 1298263.48 | I14: 0.99 | J14: 0.20796173 | K14: 1.195882113 | L14: 1552570.073 | M14: 0.03273473366 | N14: =SUM($M$9:M14) -> 0.4447426274 | O14: =_xlfn.XLOOKUP($F14,F15:F$717,K15:$K$717,,0)=K14 -> 
B15: 7 | C15: COMPOSIÇÃO SINAPI | D15: 92396 | E15: SINAPI | F15: EXECUÇÃO DE PASSEIO EM PISO INTERTRAVADO, COM BLOCO RETANGULAR COR NATURAL DE 20 X 10 CM, ESPESSURA 6 CM. AF_10/2022 | G15: M2 | H15: =SUMIF(Orçamento!$F$9:$F$1730,F15,Orçamento!$H$9:$H$1730) -> 13474 | I15: 90.21 | J15: 0.20796173 | K15: 108.9702277 | L15: 1468264.848 | M15: 0.03095722348 | N15: =SUM($M$9:M15) -> 0.4756998509 | O15: =_xlfn.XLOOKUP($F15,F16:F$717,K16:$K$717,,0)=K15 -> 
B16: 8 | C16: COMPOSIÇÃO SINAPI | D16: 96557 | E16: SINAPI | F16: CONCRETAGEM DE BLOCOS DE COROAMENTO E VIGAS BALDRAMES, FCK 30 MPA, COM USO DE BOMBA - LANÇAMENTO, ADENSAMENTO E ACABAMENTO. AF_06/2017 | G16: M3 | H16: =SUMIF(Orçamento!$F$9:$F$1730,F16,Orçamento!$H$9:$H$1730) -> 931.65 | I16: 1175.51 | J16: 0.20796173 | K16: 1419.971093 | L16: 1322916.069 | M16: 0.02789265742 | N16: =SUM($M$9:M16) -> 0.5035925083 | O16: =_xlfn.XLOOKUP($F16,F17:F$717,K17:$K$717,,0)=K16 -> 
B17: 9 | C17: COMPOSIÇÃO SINAPI | D17: 92397 | E17: SINAPI | F17: EXECUÇÃO DE PÁTIO/ESTACIONAMENTO EM PISO INTERTRAVADO, COM BLOCO RETANGULAR COR NATURAL DE 20 X 10 CM, ESPESSURA 6 CM. AF_12/2015 | G17: M2 | H17: =SUMIF(Orçamento!$F$9:$F$1730,F17,Orçamento!$H$9:$H$1730) -> 12641.2 | I17: 81.09 | J17: 0.20796173 | K17: 97.95361669 | L17: 1238251.259 | M17: 0.02610756569 | N17: =SUM($M$9:M17) -> 0.529700074 | O17: =_xlfn.XLOOKUP($F17,F18:F$717,K18:$K$717,,0)=K17 -> 
B18: 10 | C18: INSUMO ORSE | D18: 13491 | E18: ORSE | F18: TELHA EM AÇO GALVALUME, DUPLA, TRAPEZOIDAL, COM PREENCHIMENTO PIR 50MM, PRÉ-PINTADA, TP40 - 2 X 0,43MM, KINGSPAN- ISOESTE OU SIMILAR | G18: M2 | H18: =SUMIF(Orçamento!$F$9:$F$1730,F18,Orçamento!$H$9:$H$1730) -> 1628.28 | I18: 401.19 | J18: 0.146920122 | K18: 460.1328837 | L18: 749225.1719 | M18: 0.01579683061 | N18: =SUM($M$9:M18) -> 0.5454969046 | O18: =_xlfn.XLOOKUP($F18,F19:F$717,K19:$K$717,,0)=K18 -> 
B19: 11 | C19: COMPOSIÇÃO SINAPI | D19: 95876 | E19: SINAPI | F19: TRANSPORTE COM CAMINHÃO BASCULANTE DE 14 M³, EM VIA URBANA PAVIMENTADA, DMT ATÉ 30 KM (UNIDADE: M3XKM). AF_07/2020 | G19: M3XKM | H19: =SUMIF(Orçamento!$F$9:$F$1730,F19,Orçamento!$H$9:$H$1730) -> 272966.71 | I19: 2.2 | J19: 0.20796173 | K19: 2.657515806 | L19: 725413.3464 | M19: 0.01529477677 | N19: =SUM($M$9:M19) -> 0.5607916814 | O19: =_xlfn.XLOOKUP($F19,F20:F$717,K20:$K$717,,0)=K19 -> 
B20: 12 | C20: COMPOSIÇÃO ORSE | D20: 12734 | E20: ORSE | F20: TELHAMENTO COM TELHA EM AÇO GALVALUME, DUPLA, TRAPEZOIDAL, COM PREENCHIMENTO PIR 50MM, PRÉ-PINTADA, TP40 - 2 X 0,43MM, KINGSPAN- ISOESTE OU SIMILAR | G20: M2 | H20: =SUMIF(Orçamento!$F$9:$F$1730,F20,Orçamento!$H$9:$H$1730) -> 1628.28 | I20: 352.63 | J20: 0.20796173 | K20: 425.9635449 | L20: 693587.9208 | M20: 0.0146237624 | N20: =SUM($M$9:M20) -> 0.5754154438 | O20: =_xlfn.XLOOKUP($F20,F21:F$717,K21:$K$717,,0)=K20 -> 
B21: 13 | C21: COMPOSIÇÃO SINAPI | D21: 92398 | E21: SINAPI | F21: EXECUÇÃO DE PAVIMENTO EM PISO INTERTRAVADO, COM BLOCO RETANGULAR COR NATURAL DE 20 X 10 CM, ESPESSURA 8 CM. AF_10/2022 | G21: M2 | H21: =SUMIF(Orçamento!$F$9:$F$1730,F21,Orçamento!$H$9:$H$1730) -> 4889 | I21: 99.89 | J21: 0.20796173 | K21: 120.6632972 | L21: 589922.8601 | M21: 0.01243806514 | N21: =SUM($M$9:M21) -> 0.5878535089 | O21: =_xlfn.XLOOKUP($F21,F22:F$717,K22:$K$717,,0)=K21 -> 
B22: 14 | C22: COMPOSIÇÃO SINAPI | D22: 100573 | E22: SINAPI | F22: EXECUÇÃO E COMPACTAÇÃO DE BASE E OU SUB-BASE PARA PAVIMENTAÇÃO DE SOLO (PREDOMINANTEMENTE ARGILOSO) BRITA - 50/50 - EXCLUSIVE SOLO, ESCAVAÇÃO, CARGA E TRANSPORTE. AF_11/2019 | G22: M3 | H22: =SUMIF(Orçamento!$F$9:$F$1730,F22,Orçamento!$H$9:$H$1730) -> 2185 | I22: 219.95 | J22: 0.20796173 | K22: 265.6911825 | L22: 580535.2338 | M22: 0.01224013433 | N22: =SUM($M$9:M22) -> 0.6000936432 | O22: =_xlfn.XLOOKUP($F22,F23:F$717,K23:$K$717,,0)=K22 -> 
B23: 15 | C23: COMPOSIÇÃO SINAPI | D23: 97627 | E23: SINAPI | F23: DEMOLIÇÃO DE PILARES E VIGAS EM CONCRETO ARMADO, DE FORMA MECANIZADA COM MARTELETE, SEM REAPROVEITAMENTO. AF_12/2017 | G23: M3 | H23: =SUMIF(Orçamento!$F$9:$F$1730,F23,Orçamento!$H$9:$H$1730) -> 2813.47 | I23: 148.21 | J23: 0.20796173 | K23: 179.032008 | L23: 503701.1836 | M23: 0.01062014808 | N23: =SUM($M$9:M23) -> 0.6107137913 | O23: =_xlfn.XLOOKUP($F23,F24:F$717,K24:$K$717,,0)=K23 -> 
B24: 16 | C24: COMPOSIÇÃO SINAPI | D24: 97625 | E24: SINAPI | F24: DEMOLIÇÃO DE ALVENARIA PARA QUALQUER TIPO DE BLOCO, DE FORMA MECANIZADA, SEM REAPROVEITAMENTO. AF_12/2017 | G24: M3 | H24: =SUMIF(Orçamento!$F$9:$F$1730,F24,Orçamento!$H$9:$H$1730) -> 7212.49 | I24: 51.99 | J24: 0.20796173 | K24: 62.80193035 | L24: 452958.2946 | M24: 0.009550273695 | N24: =SUM($M$9:M24) -> 0.620264065 | O24: =_xlfn.XLOOKUP($F24,F25:F$717,K25:$K$717,,0)=K24 -> 
B25: 17 | C25: COMPOSIÇÃO ORSE | D25: 8570 | E25: ORSE | F25: FORNECIMENTO DE TUBO DE CONCRETO ARMADO CA2 D=0,60 M | G25: M | H25: =SUMIF(Orçamento!$F$9:$F$1730,F25,Orçamento!$H$9:$H$1730) -> 587 | I25: 620.4 | J25: 0.20796173 | K25: 749.4194573 | L25: 439909.2214 | M25: 0.009275144127 | N25: =SUM($M$9:M25) -> 0.6295392091 | O25: =_xlfn.XLOOKUP($F25,F26:F$717,K26:$K$717,,0)=K25 -> 
B26: 18 | C26: COMPOSIÇÃO ORSE | D26: 12734 | E26: ORSE | F26: FECHAMENTO LATERAL COM TELHA EM AÇO GALVALUME, DUPLA, TRAPEZOIDAL, COM PREENCHIMENTO PIR 50MM, PRÉ-PINTADA, TP40 - 2 X 0,43MM, KINGSPAN- ISOESTE OU SIMILAR | G26: M2 | H26: =SUMIF(Orçamento!$F$9:$F$1730,F26,Orçamento!$H$9:$H$1730) -> 936.51 | I26: 352.63 | J26: 0.20796173 | K26: 425.9635449 | L26: 398919.1194 | M26: 0.008410899675 | N26: =SUM($M$9:M26) -> 0.6379501088 | O26: =_xlfn.XLOOKUP($F26,F27:F$717,K27:$K$717,,0)=K26 -> 
B27: 19 | C27: COMPOSIÇÃO SINAPI | D27: 92855 | E27: SINAPI | F27: TUBO DE CONCRETO PARA REDES COLETORAS DE ESGOTO SANITÁRIO, DIÂMETRO DE 600 MM, JUNTA ELÁSTICA, INSTALADO EM LOCAL COM ALTO NÍVEL DE INTERFERÊNCIAS - FORNECIMENTO E ASSENTAMENTO. AF_12/2015 | G27: M | H27: =SUMIF(Orçamento!$F$9:$F$1730,F27,Orçamento!$H$9:$H$1730) -> 587 | I27: 525.37 | J27: 0.20796173 | K27: 634.6268541 | L27: 372525.9634 | M27: 0.007854420487 | N27: =SUM($M$9:M27) -> 0.6458045293 | O27: =_xlfn.XLOOKUP($F27,F28:F$717,K28:$K$717,,0)=K27 -> 
B28: 20 | C28: COMPOSIÇÃO SINAPI | D28: 87623 | E28: SINAPI | F28: CONTRAPISO EM ARGAMASSA PRONTA, PREPARO MECÂNICO COM MISTURADOR 300 KG, APLICADO EM ÁREAS SECAS SOBRE LAJE, ADERIDO, ACABAMENTO NÃO REFORÇADO, ESPESSURA 2CM. AF_07/2021 | G28: M2 | H28: =SUMIF(Orçamento!$F$9:$F$1730,F28,Orçamento!$H$9:$H$1730) -> 3450.72 | I28: 87.46 | J28: 0.20796173 | K28: 105.6483329 | L28: 364562.8153 | M28: 0.007686523698 | N28: =SUM($M$9:M28) -> 0.653491053 | O28: =_xlfn.XLOOKUP($F28,F29:F$717,K29:$K$717,,0)=K28 -> 
B29: 21 | C29: COMPOSIÇÃO SINAPI | D29: 89272 | E29: SINAPI | F29: GUINDASTE HIDRÁULICO AUTOPROPELIDO, COM LANÇA TELESCÓPICA 28,80 M, CAPACIDADE MÁXIMA 30 T, POTÊNCIA 97 KW, TRAÇÃO 4 X 4 - CHP DIURNO. AF_11/2014 | G29: CHP | H29: =SUMIF(Orçamento!$F$9:$F$1730,F29,Orçamento!$H$9:$H$1730) -> 1335 | I29: 212.75 | J29: 0.20796173 | K29: 256.9938581 | L29: 343086.8005 | M29: 0.007233718612 | N29: =SUM($M$9:M29) -> 0.6607247716 | O29: =_xlfn.XLOOKUP($F29,F30:F$717,K30:$K$717,,0)=K29 -> 
B30: 22 | C30: COMPOSIÇÃO PRÓPRIA | D30: 2.1 | F30: DEMOLIÇÃO DE CONCRETO ARMADO COM RETROESCAVADEIRA HIDRÁULICA | G30: M3 | H30: =SUMIF(Orçamento!$F$9:$F$1730,F30,Orçamento!$H$9:$H$1730) -> 3240.554746 | I30: 86.365016 | J30: 0.20796173 | K30: 104.3256341 | L30: 338072.9289 | M30: 0.007128005024 | N30: =SUM($M$9:M30) -> 0.6678527766 | O30: =_xlfn.XLOOKUP($F30,F31:F$717,K31:$K$717,,0)=K30 -> 
B31: 23 | C31: COMPOSIÇÃO ORSE | D31: 12093 | E31: ORSE | F31: GRADIL EM ALUMÍNIO ANODIZADO BRANCO, COM BARRAS DE APOIO EM ALUMÍNIO ANODIZADO BRANCO DE 1"X2" HORIZONTAIS A CADA 5CM COM 1,85M E BARRAS EXTERNAS VERTICAIS EM ALUMÍNIO ANODIZADO BRANCO DE 1.1/2" X 1.1/2" COM 3,05M - FIXADO COM REBITE | G31: M2 | H31: =SUMIF(Orçamento!$F$9:$F$1730,F31,Orçamento!$H$9:$H$1730) -> 556.77 | I31: 487.29 | J31: 0.20796173 | K31: 588.6276714 | L31: 327730.2286 | M31: 0.006909937226 | N31: =SUM($M$9:M31) -> 0.6747627139 | O31: =_xlfn.XLOOKUP($F31,F32:F$717,K32:$K$717,,0)=K31 -> 
B32: 24 | C32: COMPOSIÇÃO SINAPI | D32: 101094 | E32: SINAPI | F32: PISO PODOTÁTIL, DIRECIONAL OU ALERTA, ASSENTADO SOBRE ARGAMASSA. AF_05/2020 | G32: M | H32: =SUMIF(Orçamento!$F$9:$F$1730,F32,Orçamento!$H$9:$H$1730) -> 1448.67 | I32: 182.54 | J32: 0.20796173 | K32: 220.5013342 | L32: 319433.6678 | M32: 0.006735010688 | N32: =SUM($M$9:M32) -> 0.6814977245 | O32: =_xlfn.XLOOKUP($F32,F33:F$717,K33:$K$717,,0)=K32 -> 
B33: 25 | C33: COMPOSIÇÃO SINAPI | D33: 101590 | E33: SINAPI | F33: ESCORAMENTO DE VALA, TIPO CONTÍNUO COM PERFIL METÁLICO "U", COM PROFUNDIDADE DE 1,5 A 3,0 M, LARGURA MENOR QUE 1,5 M. AF_08/2020 | G33: M2 | H33: =SUMIF(Orçamento!$F$9:$F$1730,F33,Orçamento!$H$9:$H$1730) -> 4009.25 | I33: 63.94 | J33: 0.20796173 | K33: 77.23707302 | L33: 309662.735 | M33: 0.006528998161 | N33: =SUM($M$9:M33) -> 0.6880267227 | O33: =_xlfn.XLOOKUP($F33,F34:F$717,K34:$K$717,,0)=K33 -> 
B34: 26 | C34: COMPOSIÇÃO SINAPI | D34: 103324 | E34: SINAPI | F34: ALVENARIA DE VEDAÇÃO DE BLOCOS CERÂMICOS FURADOS NA VERTICAL DE 14X19X39 CM (ESPESSURA 14 CM) E ARGAMASSA DE ASSENTAMENTO COM PREPARO EM BETONEIRA. AF_12/2021 | G34: M2 | H34: =SUMIF(Orçamento!$F$9:$F$1730,F34,Orçamento!$H$9:$H$1730) -> 3101.33 | I34: 80.05 | J34: 0.20796173 | K34: 96.69733649 | L34: 299890.3506 | M34: 0.006322955029 | N34: =SUM($M$9:M34) -> 0.6943496777 | O34: =_xlfn.XLOOKUP($F34,F35:F$717,K35:$K$717,,0)=K34 -> 
B35: 27 | C35: COMPOSIÇÃO SINAPI | D35: 87543 | E35: SINAPI | F35: MASSA ÚNICA, PARA RECEBIMENTO DE PINTURA OU CERÂMICA, ARGAMASSA INDUSTRIALIZADA, PREPARO MECÂNICO, APLICADO COM EQUIPAMENTO DE MISTURA E PROJEÇÃO DE 1,5 M3/H EM FACES INTERNAS DE PAREDES, ESPESSURA DE 5MM, SEM EXECUÇÃO DE TALISCAS. AF_06/2014 | G35: M2 | H35: =SUMIF(Orçamento!$F$9:$F$1730,F35,Orçamento!$H$9:$H$1730) -> 8821.85 | I35: 27.81 | J35: 0.20796173 | K35: 33.59341571 | L35: 296356.0744 | M35: 0.006248437562 | N35: =SUM($M$9:M35) -> 0.7005981153 | O35: =_xlfn.XLOOKUP($F35,F36:F$717,K36:$K$717,,0)=K35 -> 
B36: 28 | C36: COMPOSIÇÃO SINAPI | D36: 100754 | E36: SINAPI | F36: PINTURA COM TINTA ACRÍLICA DE ACABAMENTO APLICADA A ROLO OU PINCEL (EXCETO PERFIL) EXECUTADO EM OBRA (02 DEMÃOS). AF_01/2020 | G36: M2 | H36: =SUMIF(Orçamento!$F$9:$F$1730,F36,Orçamento!$H$9:$H$1730) -> 9170.9256 | I36: 25.98 | J36: 0.20796173 | K36: 31.38284575 | L36: 287809.7435 | M36: 0.006068244814 | N36: =SUM($M$9:M36) -> 0.7066663601 | O36: =_xlfn.XLOOKUP($F36,F37:F$717,K37:$K$717,,0)=K36 -> 
B37: 29 | C37: COMPOSIÇÃO SINAPI | D37: 7042 | E37: SINAPI | F37: MOTOBOMBA TRASH (PARA ÁGUA SUJA) AUTO ESCORVANTE, MOTOR GASOLINA DE 6,41 HP, DIÂMETROS DE SUCÇÃO X RECALQUE: 3" X 3", HM/Q = 10 MCA / 60 M3/H A 23 MCA / 0 M3/H - CHP DIURNO. AF_10/2014 | G37: CHP | H37: =SUMIF(Orçamento!$F$9:$F$1730,F37,Orçamento!$H$9:$H$1730) -> 9978.144309 | I37: 23.31 | J37: 0.20796173 | K37: 28.15758793 | L37: 280960.4757 | M37: 0.005923833326 | N37: =SUM($M$9:M37) -> 0.7125901934 | O37: =_xlfn.XLOOKUP($F37,F38:F$717,K38:$K$717,,0)=K37 -> 
B38: 30 | C38: COMPOSIÇÃO SINAPI | D38: 101827 | E38: SINAPI | F38: RECOMPOSIÇÃO DE BASE E OU SUB-BASE PARA REMENDO PROFUNDO DE SOLO BRITA (40/60) - INCLUSO RETIRADA E COLOCAÇÃO DO MATERIAL. AF_12/2020 | G38: M3 | H38: =SUMIF(Orçamento!$F$9:$F$1730,F38,Orçamento!$H$9:$H$1730) -> 673 | I38: 344.53 | J38: 0.20796173 | K38: 416.1790549 | L38: 280088.5039 | M38: 0.005905448478 | N38: =SUM($M$9:M38) -> 0.7184956419 | O38: =_xlfn.XLOOKUP($F38,F39:F$717,K39:$K$717,,0)=K38 -> 
B39: 32 | C39: COMPOSIÇÃO SINAPI | D39: 87529 | E39: SINAPI | F39: MASSA ÚNICA, PARA RECEBIMENTO DE PINTURA, EM ARGAMASSA TRAÇO 1:2:8, PREPARO MECÂNICO COM BETONEIRA 400L, APLICADA MANUALMENTE EM FACES INTERNAS DE PAREDES, ESPESSURA DE 20MM, COM EXECUÇÃO DE TALISCAS. AF_06/2014 | G39: M2 | H39: =SUMIF(Orçamento!$F$9:$F$1730,F39,Orçamento!$H$9:$H$1730) -> 6289.35 | I39: 36.11 | J39: 0.20796173 | K39: 43.61949807 | L39: 274338.2902 | M39: 0.005784209689 | N39: =SUM($M$9:M39) -> 0.7242798516 | O39: =_xlfn.XLOOKUP($F39,F40:F$717,K40:$K$717,,0)=K39 -> 
B40: 42 | C40: COMPOSIÇÃO SINAPI | D40: 98458 | E40: SINAPI | F40: TAPUME COM COMPENSADO DE MADEIRA. AF_05/2018 | G40: M2 | H40: =SUMIF(Orçamento!$F$9:$F$1730,F40,Orçamento!$H$9:$H$1730) -> 2142.67 | I40: 104.25 | J40: 0.20796173 | K40: 125.9300104 | L40: 269826.4553 | M40: 0.005689081156 | N40: =SUM($M$9:M40) -> 0.7299689328 | O40: =_xlfn.XLOOKUP($F40,F41:F$717,K41:$K$717,,0)=K40 -> 
B41: 31 | C41: COMPOSIÇÃO SINAPI | D41: 100965 | E41: SINAPI | F41: TRANSPORTE COM CAMINHÃO TANQUE DE TRANSPORTE DE MATERIAL ASFÁLTICO DE 30000 L, EM VIA URBANA EM LEITO NATURAL (UNIDADE: TXKM). AF_07/2020 | G41: TXKM | H41: =SUMIF(Orçamento!$F$9:$F$1730,F41,Orçamento!$H$9:$H$1730) -> 117000 | I41: 1.85 | J41: 0.20796173 | K41: 2.234729201 | L41: 261463.3165 | M41: 0.005512750872 | N41: =SUM($M$9:M41) -> 0.7354816836 | O41: =_xlfn.XLOOKUP($F41,F42:F$717,K42:$K$717,,0)=K41 -> 
B42: 33 | C42: COMPOSIÇÃO SINAPI | D42: 93391 | E42: SINAPI | F42: REVESTIMENTO CERÂMICO PARA PISO COM PLACAS TIPO ESMALTADA PADRÃO POPULAR DE DIMENSÕES 35X35 CM APLICADA EM AMBIENTES DE ÁREA MAIOR QUE 10 M2. AF_06/2014 | G42: M2 | H42: =SUMIF(Orçamento!$F$9:$F$1730,F42,Orçamento!$H$9:$H$1730) -> 3522.66 | I42: 58.87 | J42: 0.20796173 | K42: 71.11270705 | L42: 250505.8886 | M42: 0.00528172202 | N42: =SUM($M$9:M42) -> 0.7407634056 | O42: =_xlfn.XLOOKUP($F42,F43:F$717,K43:$K$717,,0)=K42 -> 
B43: 39 | C43: COMPOSIÇÃO SINAPI | D43: 95875 | E43: SINAPI | F43: TRANSPORTE COM CAMINHÃO BASCULANTE DE 10 M³, EM VIA URBANA PAVIMENTADA, DMT ATÉ 30 KM (UNIDADE: M3XKM). AF_07/2020 | G43: M3XKM | H43: =SUMIF(Orçamento!$F$9:$F$1730,F43,Orçamento!$H$9:$H$1730) -> 82175.08 | I43: 2.52 | J43: 0.20796173 | K43: 3.04406356 | L43: 250146.1665 | M43: 0.005274137559 | N43: =SUM($M$9:M43) -> 0.7460375432 | O43: =_xlfn.XLOOKUP($F43,F44:F$717,K44:$K$717,,0)=K43 -> 
B44: 34 | C44: COMPOSIÇÃO PRÓPRIA | F44: ESTACA TRILHO TR 68, FORNECIMENTO E CRAVAÇÃO - CRAVADA COM AUXÍLIO DE BALSA, INCLUSIVE MOBILIZAÇÃO E DESMOBILIZAÇÃO E EQUIPE DE APOIO | G44: UN | H44: =SUMIF(Orçamento!$F$9:$F$1730,F44,Orçamento!$H$9:$H$1730) -> 1 | I44: 206803.58 | J44: 0.20796173 | K44: 249810.8103 | L44: 249810.8103 | M44: 0.005267066833 | N44: =SUM($M$9:M44) -> 0.75130461 | O44: =_xlfn.XLOOKUP($F44,F45:F$717,K45:$K$717,,0)=K44 -> 
B45: 35 | C45: COMPOSIÇÃO SINAPI | D45: 96562 | E45: SINAPI | F45: SUPORTE PARA ELETROCALHA LISA OU PERFURADA EM AÇO GALVANIZADO, LARGURA 200 OU 400 MM E ALTURA 50 MM, ESPAÇADO A CADA 1,5 M, EM PERFILADO DE SEÇÃO 38X76 MM, POR METRO DE ELETRECOLHA FIXADA. AF_07/2017 | G45: M | H45: =SUMIF(Orçamento!$F$9:$F$1730,F45,Orçamento!$H$9:$H$1730) -> 3773.3 | I45: 54.46 | J45: 0.20796173 | K45: 65.78559582 | L45: 248228.7887 | M45: 0.005233711137 | N45: =SUM($M$9:M45) -> 0.7565383212 | O45: =_xlfn.XLOOKUP($F45,F46:F$717,K46:$K$717,,0)=K45 -> 
B46: 36 | C46: COMPOSIÇÃO SINAPI | D46: 100651 | E46: SINAPI | F46: ESTACA HÉLICE CONTÍNUA, DIÂMETRO DE 30 CM, INCLUSO CONCRETO FCK=30MPA E ARMADURA MÍNIMA (EXCLUSIVE MOBILIZAÇÃO, DESMOBILIZAÇÃO E BOMBEAMENTO). AF_12/2019 | G46: M | H46: =SUMIF(Orçamento!$F$9:$F$1730,F46,Orçamento!$H$9:$H$1730) -> 1090 | I46: 185.82 | J46: 0.20796173 | K46: 224.4634487 | L46: 244665.1591 | M46: 0.005158574775 | N46: =SUM($M$9:M46) -> 0.761696896 | O46: =_xlfn.XLOOKUP($F46,F47:F$717,K47:$K$717,,0)=K46 -> 
B47: 37 | C47: COMPOSIÇÃO ORSE | D47: 1857 | E47: ORSE | F47: PORTA EM AÇO, EM CHAPA GALVANIZADA Nº24, RAIADA, DE ENROLAR | G47: M2 | H47: =SUMIF(Orçamento!$F$9:$F$1730,F47,Orçamento!$H$9:$H$1730) -> 958.42 | I47: 210.15 | J47: 0.20796173 | K47: 253.8531576 | L47: 243297.9433 | M47: 0.005129748093 | N47: =SUM($M$9:M47) -> 0.766826644 | O47: =_xlfn.XLOOKUP($F47,F48:F$717,K48:$K$717,,0)=K47 -> 
B48: 38 | C48: COMPOSIÇÃO SINAPI | D48: 92480 | E48: SINAPI | F48: MONTAGEM E DESMONTAGEM DE FÔRMA DE VIGA, ESCORAMENTO METÁLICO, PÉ-DIREITO SIMPLES, EM CHAPA DE MADEIRA PLASTIFICADA, 18 UTILIZAÇÕES. AF_09/2020 | G48: M2 | H48: =SUMIF(Orçamento!$F$9:$F$1730,F48,Orçamento!$H$9:$H$1730) -> 2106.8 | I48: 93.7 | J48: 0.20796173 | K48: 113.1860141 | L48: 238460.2945 | M48: 0.005027750028 | N48: =SUM($M$9:M48) -> 0.7718543941 | O48: =_xlfn.XLOOKUP($F48,F49:F$717,K49:$K$717,,0)=K48 -> 
B49: 43 | C49: COMPOSIÇÃO SINAPI | D49: 92762 | E49: SINAPI | F49: ARMAÇÃO DE PILAR OU VIGA DE UMA ESTRUTURA CONVENCIONAL DE CONCRETO ARMADO EM UM EDIFÍCIO DE MÚLTIPLOS PAVIMENTOS UTILIZANDO AÇO CA-50 DE 10,0 MM - MONTAGEM. AF_12/2015 | G49: KG | H49: =SUMIF(Orçamento!$F$9:$F$1730,F49,Orçamento!$H$9:$H$1730) -> 14552 | I49: 12.85 | J49: 0.20796173 | K49: 15.52230823 | L49: 225880.6294 | M49: 0.004762517562 | N49: =SUM($M$9:M49) -> 0.7766169116 | O49: =_xlfn.XLOOKUP($F49,F50:F$717,K50:$K$717,,0)=K49 -> 
B50: 40 | C50: COMPOSIÇÃO ORSE | D50: 3212 | E50: ORSE | F50: COLCHÃO DE AREIA | G50: M3 | H50: =SUMIF(Orçamento!$F$9:$F$1730,F50,Orçamento!$H$9:$H$1730) -> 1309.28 | I50: 140.68 | J50: 0.20796173 | K50: 169.9360562 | L50: 222493.8796 | M50: 0.004691110576 | N50: =SUM($M$9:M50) -> 0.7813080222 | O50: =_xlfn.XLOOKUP($F50,F51:F$717,K51:$K$717,,0)=K50 -> 
B51: 41 | C51: ANP | E51: ANP | F51: CIMENTO ASFÁLTICO DE PETRÓLEO - CAP 50/70 | G51: T | H51: =SUMIF(Orçamento!$F$9:$F$1730,F51,Orçamento!$H$9:$H$1730) -> 49.3194 | I51: 3871.91 | J51: 0.146920122 | K51: 4440.771489 | L51: 219016.1854 | M51: 0.004617786095 | N51: =SUM($M$9:M51) -> 0.7859258083 | O51: =_xlfn.XLOOKUP($F51,F52:F$717,K52:$K$717,,0)=K51 -> 
B52: 44 | C52: COMPOSIÇÃO SINAPI | D52: 99059 | E52: SINAPI | F52: LOCACAO CONVENCIONAL DE OBRA, UTILIZANDO GABARITO DE TÁBUAS CORRIDAS PONTALETADAS A CADA 2,00M - 2 UTILIZAÇÕES. AF_10/2018 | G52: M | H52: =SUMIF(Orçamento!$F$9:$F$1730,F52,Orçamento!$H$9:$H$1730) -> 3220.5 | I52: 55 | J52: 0.20796173 | K52: 66.43789515 | L52: 213963.2413 | M52: 0.004511248695 | N52: =SUM($M$9:M52) -> 0.790437057 | O52: =_xlfn.XLOOKUP($F52,F53:F$717,K53:$K$717,,0)=K52 -> 
B53: 65 | C53: COMPOSIÇÃO SINAPI | D53: 96385 | E53: SINAPI | F53: EXECUÇÃO E COMPACTAÇÃO DE ATERRO COM SOLO PREDOMINANTEMENTE ARGILOSO - EXCLUSIVE SOLO, ESCAVAÇÃO, CARGA E TRANSPORTE. AF_11/2019 | G53: M3 | H53: =SUMIF(Orçamento!$F$9:$F$1730,F53,Orçamento!$H$9:$H$1730) -> 15034.82 | I53: 11.69 | J53: 0.20796173 | K53: 14.12107262 | L53: 212307.7851 | M53: 0.004476344687 | N53: =SUM($M$9:M53) -> 0.7949134017 | O53: =_xlfn.XLOOKUP($F53,F54:F$717,K54:$K$717,,0)=K53 -> 
B54: 45 | C54: COMPOSIÇÃO SINAPI | D54: 96620 | E54: SINAPI | F54: LASTRO DE CONCRETO MAGRO, APLICADO EM PISOS, LAJES SOBRE SOLO OU RADIERS. AF_08/2017 | G54: M3 | H54: =SUMIF(Orçamento!$F$9:$F$1730,F54,Orçamento!$H$9:$H$1730) -> 168.11 | I54: 965.45 | J54: 0.20796173 | K54: 1166.226652 | L54: 196054.3625 | M54: 0.0041336539 | N54: =SUM($M$9:M54) -> 0.7990470556 | O54: =_xlfn.XLOOKUP($F54,F55:F$717,K55:$K$717,,0)=K54 -> 
B55: 46 | C55: COMPOSIÇÃO SINAPI | D55: 100974 | E55: SINAPI | F55: CARGA, MANOBRA E DESCARGA DE SOLOS E MATERIAIS GRANULARES EM CAMINHÃO BASCULANTE 10 M³ - CARGA COM PÁ CARREGADEIRA (CAÇAMBA DE 1,7 A 2,8 M³ / 128 HP) E DESCARGA LIVRE (UNIDADE: M3). AF_07/2020 | G55: M3 | H55: =SUMIF(Orçamento!$F$9:$F$1730,F55,Orçamento!$H$9:$H$1730) -> 17777.5 | I55: 8.53 | J55: 0.20796173 | K55: 10.30391356 | L55: 183177.8233 | M55: 0.003862162075 | N55: =SUM($M$9:M55) -> 0.8029092177 | O55: =_xlfn.XLOOKUP($F55,F56:F$717,K56:$K$717,,0)=K55 -> 
B56: 47 | C56: COMPOSIÇÃO SINAPI | D56: 92482 | E56: SINAPI | F56: MONTAGEM E DESMONTAGEM DE FÔRMA DE LAJE MACIÇA, PÉ-DIREITO SIMPLES, EM MADEIRA SERRADA, 1 UTILIZAÇÃO. AF_09/2020 | G56: M2 | H56: =SUMIF(Orçamento!$F$9:$F$1730,F56,Orçamento!$H$9:$H$1730) -> 604.7 | I56: 249.14 | J56: 0.20796173 | K56: 300.9515854 | L56: 181985.4237 | M56: 0.003837021257 | N56: =SUM($M$9:M56) -> 0.8067462389 | O56: =_xlfn.XLOOKUP($F56,F57:F$717,K57:$K$717,,0)=K56 -> 
B57: 48 | C57: COMPOSIÇÃO ORSE | D57: 11347 | E57: ORSE | F57: FORNECIMENTO E INSTALAÇÃO DE FACHADA EM PELE DE VIDRO, EM VIDRO LAMINADO 3+3 REFLETIVO | G57: M2 | H57: =SUMIF(Orçamento!$F$9:$F$1730,F57,Orçamento!$H$9:$H$1730) -> 82.05 | I57: 1749.08 | J57: 0.20796173 | K57: 2112.821703 | L57: 173357.0207 | M57: 0.003655098084 | N57: =SUM($M$9:M57) -> 0.810401337 | O57: =_xlfn.XLOOKUP($F57,F58:F$717,K58:$K$717,,0)=K57 -> 
B58: 49 | C58: COMPOSIÇÃO SINAPI | D58: 88497 | E58: SINAPI | F58: APLICAÇÃO E LIXAMENTO DE MASSA LÁTEX EM PAREDES, DUAS DEMÃOS. AF_06/2014 | G58: M2 | H58: =SUMIF(Orçamento!$F$9:$F$1730,F58,Orçamento!$H$9:$H$1730) -> 9170.9256 | I58: 15.29 | J58: 0.20796173 | K58: 18.46973485 | L58: 169384.5642 | M58: 0.003571341925 | N58: =SUM($M$9:M58) -> 0.8139726789 | O58: =_xlfn.XLOOKUP($F58,F59:F$717,K59:$K$717,,0)=K58 -> 
B59: 50 | C59: COMPOSIÇÃO SINAPI | D59: 98546 | E59: SINAPI | F59: IMPERMEABILIZAÇÃO DE SUPERFÍCIE COM MANTA ASFÁLTICA, UMA CAMADA, INCLUSIVE APLICAÇÃO DE PRIMER ASFÁLTICO, E=3MM. AF_06/2018 | G59: M2 | H59: =SUMIF(Orçamento!$F$9:$F$1730,F59,Orçamento!$H$9:$H$1730) -> 802.16 | I59: 174.77 | J59: 0.20796173 | K59: 211.1154716 | L59: 169348.3867 | M59: 0.00357057915 | N59: =SUM($M$9:M59) -> 0.8175432581 | O59: =_xlfn.XLOOKUP($F59,F60:F$717,K60:$K$717,,0)=K59 -> 
B60: 51 | C60: COTAÇÃO | D60: - | F60: PLATAFORMA DE ACESSIBILIDADE (ELEVADOR) - FORNECIMENTO E MONTAGEM (INCLUSIVE FRETE E PORTÕES) - 2 PARADAS - CAPACIDADE MÍN 250 KG | G60: UN | H60: =SUMIF(Orçamento!$F$9:$F$1730,F60,Orçamento!$H$9:$H$1730) -> 3 | I60: 48040 | J60: 0.146920122 | K60: 55098.04266 | L60: 165294.128 | M60: 0.003485098256 | N60: =SUM($M$9:M60) -> 0.8210283563 | O60: =_xlfn.XLOOKUP($F60,F61:F$717,K61:$K$717,,0)=K60 -> 
B61: 52 | C61: COMPOSIÇÃO SINAPI | D61: 94273 | E61: SINAPI | F61: ASSENTAMENTO DE GUIA (MEIO-FIO) EM TRECHO RETO, CONFECCIONADA EM CONCRETO PRÉ-FABRICADO, DIMENSÕES 100X15X13X30 CM (COMPRIMENTO X BASE INFERIOR X BASE SUPERIOR X ALTURA), PARA VIAS URBANAS (USO VIÁRIO). AF_06/2016 | G61: M | H61: =SUMIF(Orçamento!$F$9:$F$1730,F61,Orçamento!$H$9:$H$1730) -> 2365 | I61: 57.24 | J61: 0.20796173 | K61: 69.14372943 | L61: 163524.9201 | M61: 0.003447795882 | N61: =SUM($M$9:M61) -> 0.8244761522 | O61: =_xlfn.XLOOKUP($F61,F62:F$717,K62:$K$717,,0)=K61 -> 
B62: 53 | C62: COMPOSIÇÃO SICRO | D62: 4011462 | E62: SICRO | F62: CONCRETO ASFÁLTICO - FAIXA C - AREIA EXTRAÍDA E BRITA PRODUZIDA | G62: T | H62: =SUMIF(Orçamento!$F$9:$F$1730,F62,Orçamento!$H$9:$H$1730) -> 780 | I62: 161.26 | J62: 0.20796173 | K62: 194.7959086 | L62: 151940.8087 | M62: 0.003203553894 | N62: =SUM($M$9:M62) -> 0.8276797061 | O62: =_xlfn.XLOOKUP($F62,F63:F$717,K63:$K$717,,0)=K62 -> 
B63: 54 | C63: COMPOSIÇÃO SINAPI | D63: 92398 | E63: SINAPI | F63: EXECUÇÃO DE PÁTIO/ESTACIONAMENTO EM PISO INTERTRAVADO, COM BLOCO RETANGULAR COR NATURAL DE 20 X 10 CM, ESPESSURA 8 CM. AF_12/2015 | G63: M2 | H63: =SUMIF(Orçamento!$F$9:$F$1730,F63,Orçamento!$H$9:$H$1730) -> 1254.57 | I63: 99.89 | J63: 0.20796173 | K63: 120.6632972 | L63: 151380.5528 | M63: 0.003191741334 | N63: =SUM($M$9:M63) -> 0.8308714474 | O63: =_xlfn.XLOOKUP($F63,F64:F$717,K64:$K$717,,0)=K63 -> 
B64: 55 | C64: COMPOSIÇÃO SINAPI | D64: 92443 | E64: SINAPI | F64: MONTAGEM E DESMONTAGEM DE FÔRMA DE PILARES RETANGULARES E ESTRUTURAS SIMILARES, PÉ-DIREITO SIMPLES, EM CHAPA DE MADEIRA COMPENSADA PLASTIFICADA, 18 UTILIZAÇÕES. AF_09/2020 | G64: M2 | H64: =SUMIF(Orçamento!$F$9:$F$1730,F64,Orçamento!$H$9:$H$1730) -> 2438.8 | I64: 51.3 | J64: 0.20796173 | K64: 61.96843675 | L64: 151128.6235 | M64: 0.003186429601 | N64: =SUM($M$9:M64) -> 0.834057877 | O64: =_xlfn.XLOOKUP($F64,F65:F$717,K65:$K$717,,0)=K64 -> 
B65: 56 | C65: COMPOSIÇÃO SINAPI | D65: 95995 | E65: SINAPI | F65: EXECUÇÃO DE PAVIMENTO COM APLICAÇÃO DE CONCRETO ASFÁLTICO, CAMADA DE ROLAMENTO - EXCLUSIVE CARGA E TRANSPORTE. AF_11/2019 | G65: M3 | H65: =SUMIF(Orçamento!$F$9:$F$1730,F65,Orçamento!$H$9:$H$1730) -> 84.01 | I65: 1429.29 | J65: 0.20796173 | K65: 1726.527621 | L65: 145045.5855 | M65: 0.00305817347 | N65: =SUM($M$9:M65) -> 0.8371160505 | O65: =_xlfn.XLOOKUP($F65,F66:F$717,K66:$K$717,,0)=K65 -> 
B66: 57 | C66: COMPOSIÇÃO SINAPI | D66: 100983 | E66: SINAPI | F66: CARGA, MANOBRA E DESCARGA DE ENTULHO EM CAMINHÃO BASCULANTE 14 M³ - CARGA COM ESCAVADEIRA HIDRÁULICA (CAÇAMBA DE 0,80 M³ /111 HP) E DESCARGA LIVRE (UNIDADE: M3). AF_07/2020 | G66: M3 | H66: =SUMIF(Orçamento!$F$9:$F$1730,F66,Orçamento!$H$9:$H$1730) -> 13266.51475 | I66: 9.02 | J66: 0.20796173 | K66: 10.89581481 | L66: 144549.4878 | M66: 0.003047713636 | N66: =SUM($M$9:M66) -> 0.8401637642 | O66: =_xlfn.XLOOKUP($F66,F67:F$717,K67:$K$717,,0)=K66 -> 
B67: 58 | C67: COMPOSIÇÃO SINAPI | D67: 92538 | E67: SINAPI | F67: MONTAGEM E DESMONTAGEM DE FÔRMA DE LAJE MACIÇA, PÉ-DIREITO SIMPLES, EM CHAPA DE MADEIRA COMPENSADA PLASTIFICADA, . AF_09/2020 | G67: M2 | H67: =SUMIF(Orçamento!$F$9:$F$1730,F67,Orçamento!$H$9:$H$1730) -> 3362.15 | I67: 33.69 | J67: 0.20796173 | K67: 40.69623069 | L67: 136826.832 | M67: 0.002884887439 | N67: =SUM($M$9:M67) -> 0.8430486516 | O67: =_xlfn.XLOOKUP($F67,F68:F$717,K68:$K$717,,0)=K67 -> 
B68: 59 | C68: COMPOSIÇÃO SINAPI | D68: 99841 | E68: SINAPI | F68: GUARDA-CORPO PANORÂMICO COM PERFIS DE ALUMÍNIO E VIDRO LAMINADO 8 MM, FIXADO COM CHUMBADOR MECÂNICO. AF_04/2019_P | G68: M | H68: =SUMIF(Orçamento!$F$9:$F$1730,F68,Orçamento!$H$9:$H$1730) -> 61.44 | I68: 1788.22 | J68: 0.20796173 | K68: 2160.101325 | L68: 132716.6254 | M68: 0.002798226926 | N68: =SUM($M$9:M68) -> 0.8458468785 | O68: =_xlfn.XLOOKUP($F68,F69:F$717,K69:$K$717,,0)=K68 -> 
B69: 60 | C69: COMPOSIÇÃO SINAPI | D69: 92759 | E69: SINAPI | F69: ARMAÇÃO DE PILAR OU VIGA DE UMA ESTRUTURA CONVENCIONAL DE CONCRETO ARMADO EM UM EDIFÍCIO DE MÚLTIPLOS PAVIMENTOS UTILIZANDO AÇO CA-60 DE 5,0 MM - MONTAGEM. AF_12/2015 | G69: KG | H69: =SUMIF(Orçamento!$F$9:$F$1730,F69,Orçamento!$H$9:$H$1730) -> 7125.7 | I69: 15.25 | J69: 0.20796173 | K69: 18.42141638 | L69: 131265.4867 | M69: 0.002767630795 | N69: =SUM($M$9:M69) -> 0.8486145093 | O69: =_xlfn.XLOOKUP($F69,F70:F$717,K70:$K$717,,0)=K69 -> 
B70: 61 | C70: COMPOSIÇÃO SINAPI | D70: 92762 | E70: SINAPI | F70: ARMAÇÃO DE PILAR OU VIGA DE ESTRUTURA CONVENCIONAL DE CONCRETO ARMADO UTILIZANDO AÇO CA-50 DE 10,0 MM - MONTAGEM. AF_06/2022 | G70: KG | H70: =SUMIF(Orçamento!$F$9:$F$1730,F70,Orçamento!$H$9:$H$1730) -> 8429.44 | I70: 12.85 | J70: 0.20796173 | K70: 15.52230823 | L70: 130844.3659 | M70: 0.00275875179 | N70: =SUM($M$9:M70) -> 0.8513732611 | O70: =_xlfn.XLOOKUP($F70,F71:F$717,K71:$K$717,,0)=K70 -> 
B71: 68 | C71: COMPOSIÇÃO SINAPI | D71: 96536 | E71: SINAPI | F71: FABRICAÇÃO, MONTAGEM E DESMONTAGEM DE FÔRMA PARA VIGA BALDRAME, EM MADEIRA SERRADA, E=25 MM, 4 UTILIZAÇÕES. AF_06/2017 | G71: M2 | H71: =SUMIF(Orçamento!$F$9:$F$1730,F71,Orçamento!$H$9:$H$1730) -> 1607.9 | I71: 67.08 | J71: 0.20796173 | K71: 81.03007285 | L71: 130288.2541 | M71: 0.002747026605 | N71: =SUM($M$9:M71) -> 0.8541202877 | O71: =_xlfn.XLOOKUP($F71,F72:F$717,K72:$K$717,,0)=K71 -> 
B72: 62 | C72: COMPOSIÇÃO SINAPI | D72: 92760 | E72: SINAPI | F72: ARMAÇÃO DE PILAR OU VIGA DE UMA ESTRUTURA CONVENCIONAL DE CONCRETO ARMADO EM UM EDIFÍCIO DE MÚLTIPLOS PAVIMENTOS UTILIZANDO AÇO CA-50 DE 6,3 MM - MONTAGEM. AF_12/2015 | G72: KG | H72: =SUMIF(Orçamento!$F$9:$F$1730,F72,Orçamento!$H$9:$H$1730) -> 7245 | I72: 14.83 | J72: 0.20796173 | K72: 17.91407246 | L72: 129787.4549 | M72: 0.002736467643 | N72: =SUM($M$9:M72) -> 0.8568567554 | O72: =_xlfn.XLOOKUP($F72,F73:F$717,K73:$K$717,,0)=K72 -> 
B73: 64 | C73: COMPOSIÇÃO SINAPI | D73: 92761 | E73: SINAPI | F73: ARMAÇÃO DE PILAR OU VIGA DE UMA ESTRUTURA CONVENCIONAL DE CONCRETO ARMADO EM UM EDIFÍCIO DE MÚLTIPLOS PAVIMENTOS UTILIZANDO AÇO CA-50 DE 8,0 MM - MONTAGEM. AF_12/2015 | G73: KG | H73: =SUMIF(Orçamento!$F$9:$F$1730,F73,Orçamento!$H$9:$H$1730) -> 6988.5 | I73: 14.23 | J73: 0.20796173 | K73: =I73*(1+J73) -> 17.18929542 | L73: =K73*H73 -> 120127.391 | M73: =L73/$L$717 -> 0.002532792702 | N73: =SUM($M$9:M73) -> 0.8593895481 | O73: =_xlfn.XLOOKUP($F73,F74:F$717,K74:$K$717,,0)=K73 -> 
B74: 63 | C74: COMPOSIÇÃO SINAPI | D74: 99837 | E74: SINAPI | F74: GUARDA-CORPO DE AÇO GALVANIZADO DE 1,10M, MONTANTES TUBULARES DE 1.1/4" ESPAÇADOS DE 1,20M, TRAVESSA SUPERIOR DE 1.1/2", GRADIL FORMADO POR TUBOS HORIZONTAIS DE 1" E VERTICAIS DE 3/4", FIXADO COM CHUMBADOR MECÂNICO. AF_04/2019_PS | G74: M | H74: =SUMIF(Orçamento!$F$9:$F$1730,F74,Orçamento!$H$9:$H$1730) -> 169 | I74: 556.86 | J74: 0.20796173 | K74: 672.665569 | L74: 113680.4812 | M74: 0.002396864616 | N74: =SUM($M$9:M74) -> 0.8617864127 | O74: =_xlfn.XLOOKUP($F74,F75:F$717,K75:$K$717,,0)=K74 -> 
B75: 66 | C75: COMPOSIÇÃO SINAPI | D75: 92979 | E75: SINAPI | F75: CABO DE COBRE FLEXÍVEL ISOLADO, 10 MM², ANTI-CHAMA 450/750 V, PARA DISTRIBUIÇÃO - FORNECIMENTO E INSTALAÇÃO. AF_12/2015 | G75: M | H75: =SUMIF(Orçamento!$F$9:$F$1730,F75,Orçamento!$H$9:$H$1730) -> 7280 | I75: 11.77 | J75: 0.20796173 | K75: 14.21770956 | L75: 103504.9256 | M75: 0.002182320934 | N75: =SUM($M$9:M75) -> 0.8639687336 | O75: =_xlfn.XLOOKUP($F75,F76:F$717,K76:$K$717,,0)=K75 -> 
B76: 67 | C76: COMPOSIÇÃO SINAPI | D76: 100945 | E76: SINAPI | F76: TRANSPORTE COM CAMINHÃO CARROCERIA 9T, EM VIA URBANA EM LEITO NATURAL (UNIDADE: TXKM). AF_07/2020 | G76: TXKM | H76: =SUMIF(Orçamento!$F$9:$F$1730,F76,Orçamento!$H$9:$H$1730) -> 27360 | I76: 2.85 | J76: 0.20796173 | K76: 3.442690931 | L76: 94192.02386 | M76: 0.001985965636 | N76: =SUM($M$9:M76) -> 0.8659546992 | O76: =_xlfn.XLOOKUP($F76,F77:F$717,K77:$K$717,,0)=K76 -> 
B77: 69 | C77: COMPOSIÇÃO SINAPI | D77: 103685 | E77: SINAPI | F77: CONCRETAGEM DE MURETAS, FCK=25 MPA, COM USO DE BOMBA - LANÇAMENTO, ADENSAMENTO E ACABAMENTO. AF_02/2022 | G77: M3 | H77: =SUMIF(Orçamento!$F$9:$F$1730,F77,Orçamento!$H$9:$H$1730) -> 72.68 | I77: 1048.2 | J77: 0.20796173 | K77: 1266.185485 | L77: 92026.36108 | M77: 0.001940304319 | N77: =SUM($M$9:M77) -> 0.8678950036 | O77: =_xlfn.XLOOKUP($F77,F78:F$717,K78:$K$717,,0)=K77 -> 
B78: 70 | C78: COMPOSIÇÃO SICRO | D78: 2003713 | E78: SICRO | F78: CHAMINÉ DOS POÇOS DE VISITA - CPV 01 - AREIA EXTRAÍDA E BRITA PRODUZIDA | G78: UN | H78: =SUMIF(Orçamento!$F$9:$F$1730,F78,Orçamento!$H$9:$H$1730) -> 49 | I78: 1552.38 | J78: 0.20796173 | K78: 1875.21563 | L78: 91885.56589 | M78: 0.001937335762 | N78: =SUM($M$9:M78) -> 0.8698323393 | O78: =_xlfn.XLOOKUP($F78,F79:F$717,K79:$K$717,,0)=K78 -> 
B79: 71 | C79: COMPOSIÇÃO SINAPI | D79: 92580 | E79: SINAPI | F79: TRAMA DE AÇO COMPOSTA POR TERÇAS PARA TELHADOS DE ATÉ 2 ÁGUAS PARA TELHA ONDULADA DE FIBROCIMENTO, METÁLICA, PLÁSTICA OU TERMOACÚSTICA, INCLUSO TRANSPORTE VERTICAL. AF_07/2019 | G79: M2 | H79: =SUMIF(Orçamento!$F$9:$F$1730,F79,Orçamento!$H$9:$H$1730) -> 1628.28 | I79: 45.72 | J79: 0.20796173 | K79: 55.2280103 | L79: 89926.66461 | M79: 0.001896033851 | N79: =SUM($M$9:M79) -> 0.8717283732 | O79: =_xlfn.XLOOKUP($F79,F80:F$717,K80:$K$717,,0)=K79 -> 
B80: 72 | C80: COMPOSIÇÃO SINAPI | D80: 102716 | E80: SINAPI | F80: ENCHIMENTO DE AREIA PARA DRENO, LANÇAMENTO MECANIZADO. AF_07/2021 | G80: M3 | H80: =SUMIF(Orçamento!$F$9:$F$1730,F80,Orçamento!$H$9:$H$1730) -> 375.15 | I80: 189.38 | J80: 0.20796173 | K80: 228.7637924 | L80: 85820.73673 | M80: 0.001809463552 | N80: =SUM($M$9:M80) -> 0.8735378367 | O80: =_xlfn.XLOOKUP($F80,F81:F$717,K81:$K$717,,0)=K80 -> 
B81: 73 | C81: COMPOSIÇÃO SINAPI | D81: 96624 | E81: SINAPI | F81: LASTRO COM MATERIAL GRANULAR (PEDRA BRITADA N.2), APLICADO EM PISOS OU LAJES SOBRE SOLO, ESPESSURA DE *10 CM*. AF_08/2017 | G81: M3 | H81: =SUMIF(Orçamento!$F$9:$F$1730,F81,Orçamento!$H$9:$H$1730) -> 183.01 | I81: 383.6 | J81: 0.20796173 | K81: 463.3741196 | L81: 84802.09764 | M81: 0.001787986338 | N81: =SUM($M$9:M81) -> 0.8753258231 | O81: =_xlfn.XLOOKUP($F81,F82:F$717,K82:$K$717,,0)=K81 -> 
B82: 74 | C82: COMPOSIÇÃO SINAPI | D82: 100576 | E82: SINAPI | F82: REGULARIZAÇÃO E COMPACTAÇÃO DE SUBLEITO DE SOLO PREDOMINANTEMENTE ARGILOSO. AF_11/2019 | G82: M2 | H82: =SUMIF(Orçamento!$F$9:$F$1730,F82,Orçamento!$H$9:$H$1730) -> 27527 | I82: 2.51 | J82: 0.20796173 | K82: 3.031983942 | L82: 83461.42198 | M82: 0.001759719233 | N82: =SUM($M$9:M82) -> 0.8770855423 | O82: =_xlfn.XLOOKUP($F82,F83:F$717,K83:$K$717,,0)=K82 -> 
B83: 75 | C83: COMPOSIÇÃO SINAPI | D83: 87791 | E83: SINAPI | F83: EMBOÇO OU MASSA ÚNICA EM ARGAMASSA INDUSTRIALIZADA, PREPARO MECÂNICO E APLICAÇÃO COM EQUIPAMENTO DE MISTURA E PROJEÇÃO DE 1,5 M3/H DE ARGAMASSA EM PANOS DE FACHADA COM PRESENÇA DE VÃOS, ESPESSURA MAIOR OU IGUAL A 50 MM. AF_06/2014 | G83: M2 | H83: =SUMIF(Orçamento!$F$9:$F$1730,F83,Orçamento!$H$9:$H$1730) -> 411.96 | I83: 162.97 | J83: 0.20796173 | K83: 196.8615231 | L83: 81099.07308 | M83: 0.001709910942 | N83: =SUM($M$9:M83) -> 0.8787954532 | O83: =_xlfn.XLOOKUP($F83,F84:F$717,K84:$K$717,,0)=K83 -> 
B84: 76 | C84: INSUMO SINAPI | D84: 760 | E84: SINAPI | F84: BOMBA SUBMERSIVEL, ELETRICA, TRIFASICA, POTENCIA 13 HP, DIAMETRO DO ROTOR 170 MM, BOCAL DE SAIDA DIAMETRO DE 3 POLEGADAS, HM/Q = 11 M / 68,40 M3/H A 72 M / 3,6 M3/H | G84: UN | H84: =SUMIF(Orçamento!$F$9:$F$1730,F84,Orçamento!$H$9:$H$1730) -> 2 | I84: 34800 | J84: 0.146920122 | K84: 39912.82024 | L84: 79825.64049 | M84: 0.001683061606 | N84: =SUM($M$9:M84) -> 0.8804785148 | O84: =_xlfn.XLOOKUP($F84,F85:F$717,K85:$K$717,,0)=K84 -> 
B85: 77 | C85: COMPOSIÇÃO SINAPI | D85: 92446 | E85: SINAPI | F85: MONTAGEM E DESMONTAGEM DE FÔRMA DE VIGA, ESCORAMENTO COM PONTALETE DE MADEIRA, PÉ-DIREITO SIMPLES, EM MADEIRA SERRADA, 1 UTILIZAÇÃO. AF_09/2020 | G85: M2 | H85: =SUMIF(Orçamento!$F$9:$F$1730,F85,Orçamento!$H$9:$H$1730) -> 267.2 | I85: 239.04 | J85: 0.20796173 | K85: 288.751172 | L85: 77154.31315 | M85: 0.001626738744 | N85: =SUM($M$9:M85) -> 0.8821052536 | O85: =_xlfn.XLOOKUP($F85,F86:F$717,K86:$K$717,,0)=K85 -> 
B86: 78 | C86: COMPOSIÇÃO SINAPI | D86: 88496 | E86: SINAPI | F86: APLICAÇÃO E LIXAMENTO DE MASSA LÁTEX EM TETO, DUAS DEMÃOS. AF_06/2014 | G86: M2 | H86: =SUMIF(Orçamento!$F$9:$F$1730,F86,Orçamento!$H$9:$H$1730) -> 2264.777212 | I86: 27.47 | J86: 0.20796173 | K86: 33.18270872 | L86: 75151.44256 | M86: 0.001584509774 | N86: =SUM($M$9:M86) -> 0.8836897634 | O86: =_xlfn.XLOOKUP($F86,F87:F$717,K87:$K$717,,0)=K86 -> 
B87: 79 | C87: COMPOSIÇÃO SINAPI | D87: 101659 | E87: SINAPI | F87: LUMINÁRIA DE LED PARA ILUMINAÇÃO PÚBLICA, DE 181 W ATÉ 239 W - FORNECIMENTO E INSTALAÇÃO. AF_08/2020 | G87: UN | H87: =SUMIF(Orçamento!$F$9:$F$1730,F87,Orçamento!$H$9:$H$1730) -> 80 | I87: 776.86 | J87: 0.20796173 | K87: 938.4171496 | L87: 75073.37197 | M87: 0.001582863716 | N87: =SUM($M$9:M87) -> 0.8852726271 | O87: =_xlfn.XLOOKUP($F87,F88:F$717,K88:$K$717,,0)=K87 -> 
B88: 80 | C88: COMPOSIÇÃO SINAPI | D88: 100758 | E88: SINAPI | F88: PINTURA COM TINTA ALQUÍDICA DE ACABAMENTO (ESMALTE SINTÉTICO ACETINADO) APLICADA A ROLO OU PINCEL SOBRE SUPERFÍCIES METÁLICAS (EXCETO PERFIL) EXECUTADO EM OBRA (02 DEMÃOS). AF_01/2020 | G88: M2 | H88: =SUMIF(Orçamento!$F$9:$F$1730,F88,Orçamento!$H$9:$H$1730) -> 1414.38 | I88: 43.44 | J88: 0.20796173 | K88: 52.47385755 | L88: 74217.97465 | M88: 0.001564828328 | N88: =SUM($M$9:M88) -> 0.8868374554 | O88: =_xlfn.XLOOKUP($F88,F89:F$717,K89:$K$717,,0)=K88 -> 
B89: 81 | C89: COMPOSIÇÃO SINAPI | D89: 92409 | E89: SINAPI | F89: MONTAGEM E DESMONTAGEM DE FÔRMA DE PILARES RETANGULARES E ESTRUTURAS SIMILARES, PÉ-DIREITO SIMPLES, EM MADEIRA SERRADA, 1 UTILIZAÇÃO. AF_09/2020 | G89: M2 | H89: =SUMIF(Orçamento!$F$9:$F$1730,F89,Orçamento!$H$9:$H$1730) -> 250.7 | I89: 241.28 | J89: 0.20796173 | K89: 291.4570062 | L89: 73068.27146 | M89: 0.00154058773 | N89: =SUM($M$9:M89) -> 0.8883780431 | O89: =_xlfn.XLOOKUP($F89,F90:F$717,K90:$K$717,,0)=K89 -> 
B90: 82 | C90: COMPOSIÇÃO SINAPI | D90: 101965 | E90: SINAPI | F90: PEITORIL LINEAR EM GRANITO OU MÁRMORE, L = 15CM, COMPRIMENTO DE ATÉ 2M, ASSENTADO COM ARGAMASSA 1:6 COM ADITIVO. AF_11/2020 | G90: M | H90: =SUMIF(Orçamento!$F$9:$F$1730,F90,Orçamento!$H$9:$H$1730) -> 355.76 | I90: 166.92 | J90: 0.20796173 | K90: 201.632972 | L90: 71732.94611 | M90: 0.001512433433 | N90: =SUM($M$9:M90) -> 0.8898904766 | O90: =_xlfn.XLOOKUP($F90,F91:F$717,K91:$K$717,,0)=K90 -> 
B91: 83 | C91: COMPOSIÇÃO SINAPI | D91: 96485 | E91: SINAPI | F91: FORRO EM RÉGUAS DE PVC, LISO, PARA AMBIENTES RESIDENCIAIS, INCLUSIVE ESTRUTURA DE FIXAÇÃO. AF_05/2017_PS | G91: M2 | H91: =SUMIF(Orçamento!$F$9:$F$1730,F91,Orçamento!$H$9:$H$1730) -> 891 | I91: 66.54 | J91: 0.20796173 | K91: 80.37777352 | L91: 71616.5962 | M91: 0.001509980285 | N91: =SUM($M$9:M91) -> 0.8914004569 | O91: =_xlfn.XLOOKUP($F91,F92:F$717,K92:$K$717,,0)=K91 -> 
B92: 84 | C92: COMPOSIÇÃO SINAPI | D92: 101167 | E92: SINAPI | F92: EXECUÇÃO DE PAVIMENTO EM PARALELEPÍPEDOS, REJUNTAMENTO COM PÓ DE PEDRA. AF_05/2020 | G92: M2 | H92: =SUMIF(Orçamento!$F$9:$F$1730,F92,Orçamento!$H$9:$H$1730) -> 180.39 | I92: 326.13 | J92: 0.20796173 | K92: 393.952559 | L92: 71065.10212 | M92: 0.001498352461 | N92: =SUM($M$9:M92) -> 0.8928988093 | O92: =_xlfn.XLOOKUP($F92,F93:F$717,K93:$K$717,,0)=K92 -> 
B93: 85 | C93: COMPOSIÇÃO SINAPI | D93: 99841 | E93: SINAPI | F93: GUARDA-CORPO PANORÂMICO COM PERFIS DE ALUMÍNIO E VIDRO LAMINADO 8 MM, FIXADO COM CHUMBADOR MECÂNICO. AF_04/2019_PS | G93: M | H93: =SUMIF(Orçamento!$F$9:$F$1730,F93,Orçamento!$H$9:$H$1730) -> 32.5 | I93: 1788.22 | J93: 0.20796173 | K93: 2160.101325 | L93: 70203.29306 | M93: 0.001480181887 | N93: =SUM($M$9:M93) -> 0.8943789912 | O93: =_xlfn.XLOOKUP($F93,F94:F$717,K94:$K$717,,0)=K93 -> 
B94: 86 | C94: COMPOSIÇÃO SINAPI | D94: 94991 | E94: SINAPI | F94: EXECUÇÃO DE PASSEIO (CALÇADA) OU PISO DE CONCRETO COM CONCRETO MOLDADO IN LOCO, USINADO, ACABAMENTO CONVENCIONAL, NÃO ARMADO. AF_07/2016 | G94: M3 | H94: =SUMIF(Orçamento!$F$9:$F$1730,F94,Orçamento!$H$9:$H$1730) -> 51.58 | I94: 1116.34 | J94: 0.20796173 | K94: 1348.495998 | L94: 69555.42356 | M94: 0.001466522062 | N94: =SUM($M$9:M94) -> 0.8958455133 | O94: =_xlfn.XLOOKUP($F94,F95:F$717,K95:$K$717,,0)=K94 -> 
B95: 87 | C95: COMPOSIÇÃO SINAPI | D95: 93582 | E95: SINAPI | F95: EXECUÇÃO DE CENTRAL DE ARMADURA EM CANTEIRO DE OBRA, NÃO INCLUSO MOBILIÁRIO E EQUIPAMENTOS. AF_04/2016 | G95: M2 | H95: =SUMIF(Orçamento!$F$9:$F$1730,F95,Orçamento!$H$9:$H$1730) -> 213.8 | I95: 262.69 | J95: 0.20796173 | K95: 317.3194669 | L95: 67842.90202 | M95: 0.001430414875 | N95: =SUM($M$9:M95) -> 0.8972759281 | O95: =_xlfn.XLOOKUP($F95,F96:F$717,K96:$K$717,,0)=K95 -> 
B96: 88 | C96: COMPOSIÇÃO SINAPI | D96: 92763 | E96: SINAPI | F96: ARMAÇÃO DE PILAR OU VIGA DE UMA ESTRUTURA CONVENCIONAL DE CONCRETO ARMADO EM UM EDIFÍCIO DE MÚLTIPLOS PAVIMENTOS UTILIZANDO AÇO CA-50 DE 12,5 MM - MONTAGEM. AF_12/2015 | G96: KG | H96: =SUMIF(Orçamento!$F$9:$F$1730,F96,Orçamento!$H$9:$H$1730) -> 5119.7 | I96: 10.88 | J96: 0.20796173 | K96: 13.14262362 | L96: 67286.29016 | M96: 0.001418679147 | N96: =SUM($M$9:M96) -> 0.8986946073 | O96: =_xlfn.XLOOKUP($F96,F97:F$717,K97:$K$717,,0)=K96 -> 
B97: 89 | C97: COMPOSIÇÃO SICRO | D97: 2003679 | E97: SICRO | F97: POÇO DE VISITA - PVI 02 - AREIA EXTRAÍDA E BRITA PRODUZIDA | G97: UN | H97: =SUMIF(Orçamento!$F$9:$F$1730,F97,Orçamento!$H$9:$H$1730) -> 27 | I97: 2032.26 | J97: 0.20796173 | K97: 2454.892306 | L97: 66282.09225 | M97: 0.001397506414 | N97: =SUM($M$9:M97) -> 0.9000921137 | O97: =_xlfn.XLOOKUP($F97,F98:F$717,K98:$K$717,,0)=K97 -> 
B98: 90 | C98: COMPOSIÇÃO SINAPI | D98: 88650 | E98: SINAPI | F98: RODAPÉ CERÂMICO DE 7CM DE ALTURA COM PLACAS TIPO ESMALTADA EXTRA DE DIMENSÕES 60X60CM. AF_06/2014 | G98: M | H98: =SUMIF(Orçamento!$F$9:$F$1730,F98,Orçamento!$H$9:$H$1730) -> 2491.63 | I98: 21.31 | J98: 0.20796173 | K98: 25.74166447 | L98: 64138.70344 | M98: 0.001352314727 | N98: =SUM($M$9:M98) -> 0.9014444284 | O98: =_xlfn.XLOOKUP($F98,F99:F$717,K99:$K$717,,0)=K98 -> 
B99: 91 | C99: COMPOSIÇÃO SINAPI | D99: 103314 | E99: SINAPI | F99: INSTALAÇÃO DE PERGOLADO DE MADEIRA, EM MAÇARANDUBA, ANGELIM OU EQUIVALENTE DA REGIÃO, FIXADO COM CONCRETO SOBRE PISO DE CONCRETO EXISTENTE. AF_11/2021 | G99: M2 | H99: =SUMIF(Orçamento!$F$9:$F$1730,F99,Orçamento!$H$9:$H$1730) -> 280.4 | I99: 188.06 | J99: 0.20796173 | K99: 227.169283 | L99: 63698.26694 | M99: 0.001343028465 | N99: =SUM($M$9:M99) -> 0.9027874569 | O99: =_xlfn.XLOOKUP($F99,F100:F$717,K100:$K$717,,0)=K99 -> 
B100: 92 | C100: COMPOSIÇÃO SINAPI | D100: 92771 | E100: SINAPI | F100: ARMAÇÃO DE LAJE DE ESTRUTURA CONVENCIONAL DE CONCRETO ARMADO UTILIZANDO AÇO CA-50 DE 10,0 MM - MONTAGEM. AF_06/2022 | G100: KG | H100: =SUMIF(Orçamento!$F$9:$F$1730,F100,Orçamento!$H$9:$H$1730) -> 4173.6 | I100: 12.44 | J100: 0.20796173 | K100: 15.02704392 | L100: 62716.87051 | M100: 0.001322336484 | N100: =SUM($M$9:M100) -> 0.9041097934 | O100: =_xlfn.XLOOKUP($F100,F101:F$717,K101:$K$717,,0)=K100 -> 
B101: 93 | C101: COMPOSIÇÃO SINAPI | D101: 93212 | E101: SINAPI | F101: EXECUÇÃO DE SANITÁRIO E VESTIÁRIO EM CANTEIRO DE OBRA EM CHAPA DE MADEIRA COMPENSADA, NÃO INCLUSO MOBILIÁRIO. AF_02/2016 | G101: M2 | H101: =SUMIF(Orçamento!$F$9:$F$1730,F101,Orçamento!$H$9:$H$1730) -> 55.2 | I101: 910.26 | J101: 0.20796173 | K101: 1099.559244 | L101: 60695.67029 | M101: 0.001279721048 | N101: =SUM($M$9:M101) -> 0.9053895144 | O101: =_xlfn.XLOOKUP($F101,F102:F$717,K102:$K$717,,0)=K101 -> 
B102: 94 | C102: COMPOSIÇÃO SINAPI | D102: 96398 | E102: SINAPI | F102: EXECUÇÃO E COMPACTAÇÃO DE BASE E OU SUB BASE PARA PAVIMENTAÇÃO DE CONCRETO COMPACTADO COM ROLO - EXCLUSIVE CARGA E TRANSPORTE. AF_11/2019 | G102: M3 | H102: =SUMIF(Orçamento!$F$9:$F$1730,F102,Orçamento!$H$9:$H$1730) -> 76.93 | I102: 652.93 | J102: 0.20796173 | K102: 788.7144524 | L102: 60675.80282 | M102: 0.001279302158 | N102: =SUM($M$9:M102) -> 0.9066688166 | O102: =_xlfn.XLOOKUP($F102,F103:F$717,K103:$K$717,,0)=K102 -> 
B103: 95 | C103: ANP | E103: ANP | F103: ASFALTO DILUÍDO DE PETRÓLEO - CM-30 | G103: T | H103: =SUMIF(Orçamento!$F$9:$F$1730,F103,Orçamento!$H$9:$H$1730) -> 7.83 | I103: 6437.62 | J103: 0.146920122 | K103: 7383.435915 | L103: 57812.30322 | M103: 0.001218927494 | N103: =SUM($M$9:M103) -> 0.9078877441 | O103: =_xlfn.XLOOKUP($F103,F104:F$717,K104:$K$717,,0)=K103 -> 
B104: 96 | C104: INSUMO SINAPI | D104: 980 | E104: SINAPI | F104: CABO DE COBRE, FLEXIVEL, CLASSE 4 OU 5, ISOLACAO EM PVC/A, ANTICHAMA BWF-B, 1 CONDUTOR, 450/750 V, SECAO NOMINAL 10 MM2 | G104: M | H104: =SUMIF(Orçamento!$F$9:$F$1730,F104,Orçamento!$H$9:$H$1730) -> 4573.5 | I104: 10.96 | J104: 0.146920122 | K104: 12.57024454 | L104: 57490.01339 | M104: 0.001212132263 | N104: =SUM($M$9:M104) -> 0.9090998763 | O104: =_xlfn.XLOOKUP($F104,F105:F$717,K105:$K$717,,0)=K104 -> 
B105: 97 | C105: COMPOSIÇÃO SINAPI | D105: 92761 | E105: SINAPI | F105: ARMAÇÃO DE PILAR OU VIGA DE ESTRUTURA CONVENCIONAL DE CONCRETO ARMADO UTILIZANDO AÇO CA-50 DE 8,0 MM - MONTAGEM. AF_06/2022 | G105: KG | H105: =SUMIF(Orçamento!$F$9:$F$1730,F105,Orçamento!$H$9:$H$1730) -> 3333.47 | I105: 14.23 | J105: 0.20796173 | K105: 17.18929542 | L105: 57300.0006 | M105: 0.001208125991 | N105: =SUM($M$9:M105) -> 0.9103080023 | O105: =_xlfn.XLOOKUP($F105,F106:F$717,K106:$K$717,,0)=K105 -> 
B106: 214 | C106: INSUMO SINAPI | D106: 867 | E106: SINAPI | F106: CABO DE COBRE NU 50 MM2 MEIO-DURO | G106: M | H106: =SUMIF(Orçamento!$F$9:$F$1730,F106,Orçamento!$H$9:$H$1730) -> 870 | I106: 56.7 | J106: 0.146920122 | K106: 65.03037091 | L106: 56576.4227 | M106: 0.001192869913 | N106: =SUM($M$9:M106) -> 0.9115008722 | O106: =_xlfn.XLOOKUP($F106,F107:F$717,K107:$K$717,,0)=K106 -> 
B107: 98 | C107: COMPOSIÇÃO SINAPI | D107: 98689 | E107: SINAPI | F107: SOLEIRA EM GRANITO, LARGURA 15 CM, ESPESSURA 2,0 CM. AF_09/2020 | G107: M | H107: =SUMIF(Orçamento!$F$9:$F$1730,F107,Orçamento!$H$9:$H$1730) -> 311.46 | I107: 146.1 | J107: 0.20796173 | K107: 176.4832088 | L107: 54967.4602 | M107: 0.001158946189 | N107: =SUM($M$9:M107) -> 0.9126598184 | O107: =_xlfn.XLOOKUP($F107,F108:F$717,K108:$K$717,,0)=K107 -> 
B108: 99 | C108: COMPOSIÇÃO SICRO | D108: 4011219 | E108: SICRO | F108: BASE DE SOLO ESTABILIZADO GRANULOMETRICAMENTE SEM MISTURA COM MATERIAL DE JAZIDA | G108: M3 | H108: =SUMIF(Orçamento!$F$9:$F$1730,F108,Orçamento!$H$9:$H$1730) -> 3532 | I108: 12.85 | J108: 0.20796173 | K108: 15.52230823 | L108: 54824.79267 | M108: 0.001155938155 | N108: =SUM($M$9:M108) -> 0.9138157566 | O108: =_xlfn.XLOOKUP($F108,F109:F$717,K109:$K$717,,0)=K108 -> 
B109: 100 | C109: COMPOSIÇÃO ORSE | D109: 5425 | E109: ORSE | F109: FORNECIMENTO DE TUBO DE FERRO FUNDIDO, JUNTA ELÁSTICA, PONTA / BOLSA, CLASSE K 7, DIAM. = 600MM | G109: M | H109: =SUMIF(Orçamento!$F$9:$F$1730,F109,Orçamento!$H$9:$H$1730) -> 18 | I109: 2406.53 | J109: 0.20796173 | K109: 2906.996142 | L109: 52325.93056 | M109: 0.001103251589 | N109: =SUM($M$9:M109) -> 0.9149190082 | O109: =_xlfn.XLOOKUP($F109,F110:F$717,K110:$K$717,,0)=K109 -> 
B110: 101 | C110: COMPOSIÇÃO ORSE | D110: 2678 | E110: ORSE | F110: FORNECIMENTO E ASSENTAMENTO DE TUBO DE CONCRETO ARMADO CA2 D=1,00 M | G110: M | H110: =SUMIF(Orçamento!$F$9:$F$1730,F110,Orçamento!$H$9:$H$1730) -> 68 | I110: 620.4 | J110: 0.20796173 | K110: 749.4194573 | L110: 50960.5231 | M110: 0.001074463033 | N110: =SUM($M$9:M110) -> 0.9159934712 | O110: =_xlfn.XLOOKUP($F110,F111:F$717,K111:$K$717,,0)=K110 -> 
B111: 102 | C111: COMPOSIÇÃO SICRO | D111: 2003625 | E111: SICRO | F111: BOCA DE LOBO SIMPLES - GRELHA DE CONCRETO - BLSG 01 - AREIA EXTRAÍDA E BRITA PRODUZIDA | G111: UN | H111: =SUMIF(Orçamento!$F$9:$F$1730,F111,Orçamento!$H$9:$H$1730) -> 46 | I111: 901.91 | J111: 0.20796173 | K111: 1089.472764 | L111: 50115.74714 | M111: 0.001056651589 | N111: =SUM($M$9:M111) -> 0.9170501228 | O111: =_xlfn.XLOOKUP($F111,F112:F$717,K112:$K$717,,0)=K111 -> 
B112: 103 | C112: COMPOSIÇÃO SINAPI | D112: 96530 | E112: SINAPI | F112: FABRICAÇÃO, MONTAGEM E DESMONTAGEM DE FÔRMA PARA VIGA BALDRAME, EM MADEIRA SERRADA, E=25 MM, 1 UTILIZAÇÃO. AF_06/2017 | G112: M2 | H112: =SUMIF(Orçamento!$F$9:$F$1730,F112,Orçamento!$H$9:$H$1730) -> 263.3 | I112: 156.44 | J112: 0.20796173 | K112: 188.973533 | L112: 49756.73125 | M112: 0.001049082018 | N112: =SUM($M$9:M112) -> 0.9180992048 | O112: =_xlfn.XLOOKUP($F112,F113:F$717,K113:$K$717,,0)=K112 -> 
B113: 151 | C113: COMPOSIÇÃO SINAPI | D113: 98557 | E113: SINAPI | F113: IMPERMEABILIZAÇÃO DE SUPERFÍCIE COM EMULSÃO ASFÁLTICA, 2 DEMÃOS AF_06/2018 | G113: M2 | H113: =SUMIF(Orçamento!$F$9:$F$1730,F113,Orçamento!$H$9:$H$1730) -> 689.63 | I113: 59.07 | J113: 0.20796173 | K113: 71.35429939 | L113: 49208.06549 | M113: 0.001037513826 | N113: =SUM($M$9:M113) -> 0.9191367186 | O113: =_xlfn.XLOOKUP($F113,F114:F$717,K114:$K$717,,0)=K113 -> 
B114: 104 | C114: COMPOSIÇÃO AGESUL | D114: 401002018 | E114: AGESUL | F114: SINAPI - 93368 - REATERRO MECANIZADO DE VALA COM ESCAVADEIRA HIDRAULICA (CAPACIDADE DA CACAMBA: 0,8 M3/POTENCIA: 111 HP),LARGURA ATE 1,5 M, PROFUNDIDADE DE 1,5 A 3,0 M, COM SOLO (SEM SUBSTITUICAO) DE 1A CATEGORIA, COM COMPACTADOR DE SOLOS DE PERCUSSA | G114: M3 | H114: =SUMIF(Orçamento!$F$9:$F$1730,F114,Orçamento!$H$9:$H$1730) -> 2091.76 | I114: 19.21 | J114: 0.20796173 | K114: 23.20494483 | L114: 48539.17541 | M114: 0.001023410799 | N114: =SUM($M$9:M114) -> 0.9201601294 | O114: =_xlfn.XLOOKUP($F114,F115:F$717,K115:$K$717,,0)=K114 -> 
B115: 105 | C115: COMPOSIÇÃO SINAPI | D115: 95571 | E115: SINAPI | F115: TUBO DE CONCRETO (SIMPLES) PARA REDES COLETORAS DE ÁGUAS PLUVIAIS, DIÂMETRO DE 400 MM, JUNTA RÍGIDA, INSTALADO EM LOCAL COM ALTO NÍVEL DE INTERFERÊNCIAS - FORNECIMENTO E ASSENTAMENTO. AF_12/2015 | G115: M | H115: =SUMIF(Orçamento!$F$9:$F$1730,F115,Orçamento!$H$9:$H$1730) -> 361 | I115: 108.49 | J115: 0.20796173 | K115: 131.0517681 | L115: 47309.68828 | M115: 0.000997488018 | N115: =SUM($M$9:M115) -> 0.9211576175 | O115: =_xlfn.XLOOKUP($F115,F116:F$717,K116:$K$717,,0)=K115 -> 
B116: 106 | C116: COMPOSIÇÃO SINAPI | D116: 96523 | E116: SINAPI | F116: ESCAVAÇÃO MANUAL PARA BLOCO DE COROAMENTO OU SAPATA, COM PREVISÃO DE FÔRMA. AF_06/2017 | G116: M3 | H116: =SUMIF(Orçamento!$F$9:$F$1730,F116,Orçamento!$H$9:$H$1730) -> 480.66 | I116: 81.31 | J116: 0.20796173 | K116: 98.21936827 | L116: 47210.12155 | M116: 0.0009953887309 | N116: =SUM($M$9:M116) -> 0.9221530062 | O116: =_xlfn.XLOOKUP($F116,F117:F$717,K117:$K$717,,0)=K116 -> 
B117: 107 | C117: COMPOSIÇÃO SINAPI | D117: 102220 | E117: SINAPI | F117: PINTURA TINTA DE ACABAMENTO (PIGMENTADA) ESMALTE SINTÉTICO BRILHANTE EM MADEIRA, 2 DEMÃOS. AF_01/2021 | G117: M2 | H117: =SUMIF(Orçamento!$F$9:$F$1730,F117,Orçamento!$H$9:$H$1730) -> 2800.68 | I117: 13.84 | J117: 0.20796173 | K117: 16.71819034 | L117: 46822.30133 | M117: 0.0009872118429 | N117: =SUM($M$9:M117) -> 0.923140218 | O117: =_xlfn.XLOOKUP($F117,F118:F$717,K118:$K$717,,0)=K117 -> 
B118: 108 | C118: COMPOSIÇÃO SINAPI | D118: 98459 | E118: SINAPI | F118: TAPUME COM TELHA METÁLICA. AF_05/2018 | G118: M2 | H118: =SUMIF(Orçamento!$F$9:$F$1730,F118,Orçamento!$H$9:$H$1730) -> 425.6 | I118: 89.95 | J118: 0.20796173 | K118: 108.6561576 | L118: 46244.06068 | M118: 0.0009750200881 | N118: =SUM($M$9:M118) -> 0.9241152381 | O118: =_xlfn.XLOOKUP($F118,F119:F$717,K119:$K$717,,0)=K118 -> 
B119: 109 | C119: COMPOSIÇÃO SICRO | D119: 4208130 | E119: SICRO | F119: TUBO PEAD PARA ESTAIS - D = 160 MM - FORNECIMENTO E INSTALAÇÃO | G119: M | H119: =SUMIF(Orçamento!$F$9:$F$1730,F119,Orçamento!$H$9:$H$1730) -> 132 | I119: 288.44 | J119: 0.20796173 | K119: 348.4244814 | L119: 45992.03155 | M119: 0.0009697062496 | N119: =SUM($M$9:M119) -> 0.9250849444 | O119: =_xlfn.XLOOKUP($F119,F120:F$717,K120:$K$717,,0)=K119 -> 
B120: 110 | C120: COMPOSIÇÃO SINAPI | D120: 101144 | E120: SINAPI | F120: ESCAVAÇÃO HORIZONTAL, INCLUINDO CARGA, DESCARGA E TRANSPORTE EM SOLO DE 1A CATEGORIA COM TRATOR DE ESTEIRAS (100HP/LÂMINA: 2,19M3) E CAMINHÃO BASCULANTE DE 14M3, DMT ATÉ 200M. AF_07/2020 | G120: M3 | H120: =SUMIF(Orçamento!$F$9:$F$1730,F120,Orçamento!$H$9:$H$1730) -> 2385 | I120: 15.71 | J120: 0.20796173 | K120: 18.97707878 | L120: 45260.33289 | M120: 0.0009542789519 | N120: =SUM($M$9:M120) -> 0.9260392233 | O120: =_xlfn.XLOOKUP($F120,F121:F$717,K121:$K$717,,0)=K120 -> 
B121: 111 | C121: COMPOSIÇÃO ORSE | D121: 799 | E121: ORSE | F121: POSTE EM TUBO DE AÇO GALVANIZADO, PESADO, D=2" (50MM), ALTURA ÚTIL=2,50M, ALTURA TOTAL=3,20M | G121: UN | H121: =SUMIF(Orçamento!$F$9:$F$1730,F121,Orçamento!$H$9:$H$1730) -> 80 | I121: 465.18 | J121: 0.20796173 | K121: 561.9196376 | L121: 44953.57101 | M121: 0.000947811116 | N121: =SUM($M$9:M121) -> 0.9269870344 | O121: =_xlfn.XLOOKUP($F121,F122:F$717,K122:$K$717,,0)=K121 -> 
B122: 112 | C122: COMPOSIÇÃO SINAPI | D122: 98560 | E122: SINAPI | F122: IMPERMEABILIZAÇÃO DE PISO COM ARGAMASSA DE CIMENTO E AREIA, COM ADITIVO IMPERMEABILIZANTE, E = 2CM. AF_06/2018 | G122: M2 | H122: =SUMIF(Orçamento!$F$9:$F$1730,F122,Orçamento!$H$9:$H$1730) -> 719.99 | I122: 49.56 | J122: 0.20796173 | K122: 59.86658334 | L122: 43103.34134 | M122: 0.0009088004611 | N122: =SUM($M$9:M122) -> 0.9278958349 | O122: =_xlfn.XLOOKUP($F122,F123:F$717,K123:$K$717,,0)=K122 -> 
B123: 113 | C123: COMPOSIÇÃO SINAPI | D123: 102491 | E123: SINAPI | F123: PINTURA DE PISO COM TINTA ACRÍLICA, APLICAÇÃO MANUAL, 2 DEMÃOS, INCLUSO FUNDO PREPARADOR. AF_05/2021 | G123: M2 | H123: =SUMIF(Orçamento!$F$9:$F$1730,F123,Orçamento!$H$9:$H$1730) -> 1923.21 | I123: 18.26 | J123: 0.20796173 | K123: 22.05738119 | L123: 42420.97608 | M123: 0.0008944133198 | N123: =SUM($M$9:M123) -> 0.9287902482 | O123: =_xlfn.XLOOKUP($F123,F124:F$717,K124:$K$717,,0)=K123 -> 
B124: 114 | C124: COMPOSIÇÃO ORSE | D124: 3740 | E124: ORSE | F124: MESA DE CONCRETO COM 02 BANCOS INTEGRADOS | G124: UN | H124: =SUMIF(Orçamento!$F$9:$F$1730,F124,Orçamento!$H$9:$H$1730) -> 43 | I124: 812.76 | J124: 0.20796173 | K124: 981.7829757 | L124: 42216.66796 | M124: 0.0008901056417 | N124: =SUM($M$9:M124) -> 0.9296803539 | O124: =_xlfn.XLOOKUP($F124,F125:F$717,K125:$K$717,,0)=K124 -> 
B125: 115 | C125: COMPOSIÇÃO SINAPI | D125: 102107 | E125: SINAPI | F125: TRANSFORMADOR DE DISTRIBUIÇÃO, 225 KVA, TRIFÁSICO, 60 HZ, CLASSE 15 KV, IMERSO EM ÓLEO MINERAL, INSTALAÇÃO EM POSTE (NÃO INCLUSO SUPORTE) - FORNECIMENTO E INSTALAÇÃO. AF_12/2020 | G125: UN | H125: =SUMIF(Orçamento!$F$9:$F$1730,F125,Orçamento!$H$9:$H$1730) -> 1 | I125: 34735.01 | J125: 0.20796173 | K125: 41958.56277 | L125: 41958.56277 | M125: 0.0008846636945 | N125: =SUM($M$9:M125) -> 0.9305650176 | O125: =_xlfn.XLOOKUP($F125,F126:F$717,K126:$K$717,,0)=K125 -> 
B126: 116 | C126: COMPOSIÇÃO SINAPI | D126: 92986 | E126: SINAPI | F126: CABO DE COBRE FLEXÍVEL ISOLADO, 35 MM², ANTI-CHAMA 0,6/1,0 KV, PARA REDE ENTERRADA DE DISTRIBUIÇÃO DE ENERGIA ELÉTRICA - FORNECIMENTO E INSTALAÇÃO. AF_12/2021 | G126: M | H126: =SUMIF(Orçamento!$F$9:$F$1730,F126,Orçamento!$H$9:$H$1730) -> 849.7 | I126: 40.41 | J126: 0.20796173 | K126: 48.81373351 | L126: 41477.02936 | M126: 0.0008745109367 | N126: =SUM($M$9:M126) -> 0.9314395285 | O126: =_xlfn.XLOOKUP($F126,F127:F$717,K127:$K$717,,0)=K126 -> 
B127: 117 | C127: COMPOSIÇÃO PRÓPRIA | D127: 10000 | F127: PLAYGROUND E ACADEMIA | G127: UN | H127: =SUMIF(Orçamento!$F$9:$F$1730,F127,Orçamento!$H$9:$H$1730) -> 1 | I127: 36106.66667 | J127: 0.146920122 | K127: 41411.46254 | L127: 41411.46254 | M127: 0.0008731285111 | N127: =SUM($M$9:M127) -> 0.932312657 | O127: =_xlfn.XLOOKUP($F127,F128:F$717,K128:$K$717,,0)=K127 -> 
B128: 173 | C128: COMPOSIÇÃO SINAPI | D128: 100574 | E128: SINAPI | F128: ESPALHAMENTO DE MATERIAL COM TRATOR DE ESTEIRAS. AF_11/2019 | G128: M3 | H128: =SUMIF(Orçamento!$F$9:$F$1730,F128,Orçamento!$H$9:$H$1730) -> 23195.33 | I128: 1.47 | J128: 0.20796173 | K128: 1.775703743 | L128: 41188.03431 | M128: 0.0008684177004 | N128: =SUM($M$9:M128) -> 0.9331810747 | O128: =_xlfn.XLOOKUP($F128,F129:F$717,K129:$K$717,,0)=K128 -> 
B129: 118 | C129: COMPOSIÇÃO SINAPI | D129: 99837 | E129: SINAPI | F129: GUARDA-CORPO DE AÇO GALVANIZADO DE 1,10M, MONTANTES TUBULARES DE 1.1/4" ESPAÇADOS DE 1,20M, TRAVESSA SUPERIOR DE 1.1/2", GRADIL FORMADO POR TUBOS HORIZONTAIS DE 1" E VERTICAIS DE 3/4", FIXADO COM CHUMBADOR MECÂNICO. AF_04/2019_P | G129: M | H129: =SUMIF(Orçamento!$F$9:$F$1730,F129,Orçamento!$H$9:$H$1730) -> 60 | I129: 556.86 | J129: 0.20796173 | K129: 672.665569 | L129: 40359.93414 | M129: 0.0008509578519 | N129: =SUM($M$9:M129) -> 0.9340320326 | O129: =_xlfn.XLOOKUP($F129,F130:F$717,K130:$K$717,,0)=K129 -> 
B130: 119 | C130: COMPOSIÇÃO SINAPI | D130: 93203 | E130: SINAPI | F130: FIXAÇÃO (ENCUNHAMENTO) DE ALVENARIA DE VEDAÇÃO COM ESPUMA DE POLIURETANO EXPANSIVA. AF_03/2016 | G130: M | H130: =SUMIF(Orçamento!$F$9:$F$1730,F130,Orçamento!$H$9:$H$1730) -> 2153.69 | I130: 15.06 | J130: 0.20796173 | K130: 18.19190365 | L130: 39179.72098 | M130: 0.0008260739745 | N130: =SUM($M$9:M130) -> 0.9348581065 | O130: =_xlfn.XLOOKUP($F130,F131:F$717,K131:$K$717,,0)=K130 -> 
B131: 120 | C131: INSUMO SINAPI | D131: 1802 | E131: SINAPI | F131: CURVA 90 GRAUS DE FERRO GALVANIZADO, COM ROSCA BSP MACHO, DE 6" | G131: UN | H131: =SUMIF(Orçamento!$F$9:$F$1730,F131,Orçamento!$H$9:$H$1730) -> 17 | I131: 1983.88 | J131: 0.146920122 | K131: 2275.351892 | L131: 38680.98216 | M131: 0.0008155584538 | N131: =SUM($M$9:M131) -> 0.935673665 | O131: =_xlfn.XLOOKUP($F131,F132:F$717,K132:$K$717,,0)=K131 -> 
B132: 125 | C132: COMPOSIÇÃO SINAPI | D132: 87878 | E132: SINAPI | F132: CHAPISCO APLICADO EM ALVENARIAS E ESTRUTURAS DE CONCRETO INTERNAS, COM COLHER DE PEDREIRO. ARGAMASSA TRAÇO 1:3 COM PREPARO MANUAL. AF_10/2022 | G132: M2 | H132: =SUMIF(Orçamento!$F$9:$F$1730,F132,Orçamento!$H$9:$H$1730) -> 6289.35 | I132: 5.09 | J132: 0.20796173 | K132: 6.148525206 | L132: 38670.227 | M132: 0.0008153316898 | N132: =SUM($M$9:M132) -> 0.9364889967 | O132: =_xlfn.XLOOKUP($F132,F133:F$717,K133:$K$717,,0)=K132 -> 
B133: 121 | C133: COMPOSIÇÃO SINAPI | D133: 93584 | E133: SINAPI | F133: EXECUÇÃO DE DEPÓSITO EM CANTEIRO DE OBRA EM CHAPA DE MADEIRA COMPENSADA, NÃO INCLUSO MOBILIÁRIO. AF_04/2016 | G133: M2 | H133: =SUMIF(Orçamento!$F$9:$F$1730,F133,Orçamento!$H$9:$H$1730) -> 41.4 | I133: 762.2 | J133: 0.20796173 | K133: 920.7084306 | L133: 38117.32903 | M133: 0.0008036742656 | N133: =SUM($M$9:M133) -> 0.9372926709 | O133: =_xlfn.XLOOKUP($F133,F134:F$717,K134:$K$717,,0)=K133 -> 
B134: 122 | C134: COMPOSIÇÃO ORSE | D134: 8386 | E134: ORSE | F134: LUMINÁRIA C/02 PÉTALAS, C/ ALOJAM. P/ EQUIP., EM CH. DE ALUM., PINTADO C/ EPOXI PRETO, REFLETOR EM CH. ALUMÍNIO DE ALTO BRILHO, DIFUSOR EM VIDRO TEMP., INCL. SUPORTE P/FIXAÇÃO EM POSTE RETO C/02 BRAÇOS, REF. CW-580D/5-AL, TECNOLUX OU SIMILAR,COMPLETA | G134: UN | H134: =SUMIF(Orçamento!$F$9:$F$1730,F134,Orçamento!$H$9:$H$1730) -> 16 | I134: 1944.6 | J134: 0.20796173 | K134: 2349.00238 | L134: 37584.03808 | M134: 0.0007924302404 | N134: =SUM($M$9:M134) -> 0.9380851012 | O134: =_xlfn.XLOOKUP($F134,F135:F$717,K135:$K$717,,0)=K134 -> 
B135: 123 | C135: COMPOSIÇÃO SINAPI | D135: 88488 | E135: SINAPI | F135: APLICAÇÃO MANUAL DE PINTURA COM TINTA LÁTEX ACRÍLICA EM TETO, DUAS DEMÃOS. AF_06/2014 | G135: M2 | H135: =SUMIF(Orçamento!$F$9:$F$1730,F135,Orçamento!$H$9:$H$1730) -> 2264.777212 | I135: 13.73 | J135: 0.20796173 | K135: 16.58531455 | L135: 37562.04246 | M135: 0.0007919664797 | N135: =SUM($M$9:M135) -> 0.9388770677 | O135: =_xlfn.XLOOKUP($F135,F136:F$717,K136:$K$717,,0)=K135 -> 
B136: 124 | C136: COMPOSIÇÃO SINAPI | D136: 102509 | E136: SINAPI | F136: PINTURA DE FAIXA DE PEDESTRE OU ZEBRADA TINTA RETRORREFLETIVA A BASE DE RESINA ACRÍLICA COM MICROESFERAS DE VIDRO, E = 30 CM, APLICAÇÃO MANUAL. AF_05/2021 | G136: M2 | H136: =SUMIF(Orçamento!$F$9:$F$1730,F136,Orçamento!$H$9:$H$1730) -> 1187 | I136: 25.47 | J136: 0.20796173 | K136: 30.76678526 | L136: 36520.17411 | M136: 0.0007699994951 | N136: =SUM($M$9:M136) -> 0.9396470672 | O136: =_xlfn.XLOOKUP($F136,F137:F$717,K137:$K$717,,0)=K136 -> 
B137: 126 | C137: COMPOSIÇÃO SINAPI | D137: 91856 | E137: SINAPI | F137: ELETRODUTO FLEXÍVEL CORRUGADO, PVC, DN 32 MM (1"), PARA CIRCUITOS TERMINAIS, INSTALADO EM PAREDE - FORNECIMENTO E INSTALAÇÃO. AF_12/2015 | G137: M | H137: =SUMIF(Orçamento!$F$9:$F$1730,F137,Orçamento!$H$9:$H$1730) -> 2400 | I137: 12.35 | J137: 0.20796173 | K137: =I137*(1+J137) -> 14.91832737 | L137: =K137*H137 -> 35803.98568 | M137: =L137/$L$717 -> 0.0007548992185 | N137: =SUM($M$9:M137) -> 0.9404019664 | O137: =_xlfn.XLOOKUP($F137,F138:F$717,K138:$K$717,,0)=K137 -> 
B138: 127 | C138: INSUMO ORSE | D138: 4749 | E138: ORSE | F138: JUNTA DE DESMONTAGEM TRAVADA AXIALAMENTE JTDA PN 10, D = 500 | G138: UN | H138: =SUMIF(Orçamento!$F$9:$F$1730,F138,Orçamento!$H$9:$H$1730) -> 5 | I138: 6208.93 | J138: 0.146920122 | K138: 7121.146753 | L138: 35605.73376 | M138: 0.0007507192309 | N138: =SUM($M$9:M138) -> 0.9411526856 | O138: =_xlfn.XLOOKUP($F138,F139:F$717,K139:$K$717,,0)=K138 -> 
B139: 128 | C139: COMPOSIÇÃO SINAPI | D139: 92984 | E139: SINAPI | F139: CABO DE COBRE FLEXÍVEL ISOLADO, 25 MM², ANTI-CHAMA 0,6/1,0 KV, PARA REDE ENTERRADA DE DISTRIBUIÇÃO DE ENERGIA ELÉTRICA - FORNECIMENTO E INSTALAÇÃO. AF_12/2021 | G139: M | H139: =SUMIF(Orçamento!$F$9:$F$1730,F139,Orçamento!$H$9:$H$1730) -> 948 | I139: 29.16 | J139: 0.20796173 | K139: 35.22416405 | L139: 33392.50752 | M139: 0.0007040550752 | N139: =SUM($M$9:M139) -> 0.9418567407 | O139: =_xlfn.XLOOKUP($F139,F140:F$717,K140:$K$717,,0)=K139 -> 
B140: 129 | C140: COMPOSIÇÃO SINAPI | D140: 88485 | E140: SINAPI | F140: APLICAÇÃO DE FUNDO SELADOR ACRÍLICO EM PAREDES, UMA DEMÃO. AF_06/2014 | G140: M2 | H140: =SUMIF(Orçamento!$F$9:$F$1730,F140,Orçamento!$H$9:$H$1730) -> 9170.9256 | I140: 3 | J140: 0.20796173 | K140: 3.62388519 | L140: 33234.38146 | M140: 0.0007007211102 | N140: =SUM($M$9:M140) -> 0.9425574618 | O140: =_xlfn.XLOOKUP($F140,F141:F$717,K141:$K$717,,0)=K140 -> 
B141: 130 | C141: COMPOSIÇÃO PRÓPRIA | D141: 1.1 | F141: MOBILIZAÇÃO | G141: UN | H141: =SUMIF(Orçamento!$F$9:$F$1730,F141,Orçamento!$H$9:$H$1730) -> 13 | I141: 2082.125 | J141: 0.20796173 | K141: 2515.127317 | L141: 32696.65512 | M141: 0.0006893835681 | N141: =SUM($M$9:M141) -> 0.9432468454 | O141: =_xlfn.XLOOKUP($F141,F142:F$717,K142:$K$717,,0)=K141 -> 
B142: 131 | C142: COMPOSIÇÃO PRÓPRIA | D142: 1.1 | F142: DESMOBILIZAÇÃO | G142: UN | H142: =SUMIF(Orçamento!$F$9:$F$1730,F142,Orçamento!$H$9:$H$1730) -> 13 | I142: 2082.125 | J142: 0.20796173 | K142: 2515.127317 | L142: 32696.65512 | M142: 0.0006893835681 | N142: =SUM($M$9:M142) -> 0.9439362289 | O142: =_xlfn.XLOOKUP($F142,F143:F$717,K143:$K$717,,0)=K142 -> 
B143: 132 | C143: COMPOSIÇÃO ORSE | D143: 12474 | E143: ORSE | F143: MÓDULO PARA 36 MEDIDORES EM CHAPA GALVANIZADA 12,5MM, COM BARRAMENTO PARA 200A, PINTADO ELETROSTATICAMENTE NA COR BEGE | G143: UN | H143: =SUMIF(Orçamento!$F$9:$F$1730,F143,Orçamento!$H$9:$H$1730) -> 4 | I143: 6752.56 | J143: 0.20796173 | K143: 8156.83406 | L143: 32627.33624 | M143: 0.0006879220333 | N143: =SUM($M$9:M143) -> 0.944624151 | O143: =_xlfn.XLOOKUP($F143,F144:F$717,K144:$K$717,,0)=K143 -> 
B144: 133 | C144: COMPOSIÇÃO SINAPI | D144: 92768 | E144: SINAPI | F144: ARMAÇÃO DE LAJE DE ESTRUTURA CONVENCIONAL DE CONCRETO ARMADO UTILIZANDO AÇO CA-60 DE 5,0 MM - MONTAGEM. AF_06/2022 | G144: KG | H144: =SUMIF(Orçamento!$F$9:$F$1730,F144,Orçamento!$H$9:$H$1730) -> 1811.3 | I144: 14.81 | J144: 0.20796173 | K144: 17.88991322 | L144: 32403.99982 | M144: 0.0006832131584 | N144: =SUM($M$9:M144) -> 0.9453073641 | O144: =_xlfn.XLOOKUP($F144,F145:F$717,K145:$K$717,,0)=K144 -> 
B145: 134 | C145: COMPOSIÇÃO SICRO | D145: 2003677 | E145: SICRO | F145: POÇO DE VISITA - PVI 01 - AREIA EXTRAÍDA E BRITA PRODUZIDA | G145: UN | H145: =SUMIF(Orçamento!$F$9:$F$1730,F145,Orçamento!$H$9:$H$1730) -> 13 | I145: 2060.86 | J145: 0.20796173 | K145: 2489.440011 | L145: 32362.72014 | M145: 0.0006823428086 | N145: =SUM($M$9:M145) -> 0.9459897069 | O145: =_xlfn.XLOOKUP($F145,F146:F$717,K146:$K$717,,0)=K145 -> 
B146: 135 | C146: COMPOSIÇÃO SICRO | D146: 4011227 | E146: SICRO | F146: SUB-BASE DE SOLO ESTABILIZADO GRANULOMETRICAMENTE SEM MISTURA COM MATERIAL DE JAZIDA | G146: M3 | H146: =SUMIF(Orçamento!$F$9:$F$1730,F146,Orçamento!$H$9:$H$1730) -> 2185 | I146: 12.05 | J146: 0.20796173 | K146: 14.55593885 | L146: 31804.72638 | M146: 0.0006705779436 | N146: =SUM($M$9:M146) -> 0.9466602849 | O146: =_xlfn.XLOOKUP($F146,F147:F$717,K147:$K$717,,0)=K146 -> 
B147: 136 | C147: COMPOSIÇÃO SINAPI | D147: 90087 | E147: SINAPI | F147: ESCAVAÇÃO MECANIZADA DE VALA COM PROF. DE 3,0 M ATÉ 4,5 M(MÉDIA MONTANTE E JUSANTE/UMA COMPOSIÇÃO POR TRECHO), ESCAVADEIRA (1,2 M3), LARG. DE 1,5 M A 2,5 M, EM SOLO DE 1A CATEGORIA, EM LOCAIS COM ALTO NÍVEL DE INTERFERÊNCIA. AF_02/2021 | G147: M3 | H147: =SUMIF(Orçamento!$F$9:$F$1730,F147,Orçamento!$H$9:$H$1730) -> 2830.76 | I147: 9.1 | J147: 0.20796173 | K147: 10.99245174 | L147: 31116.9927 | M147: 0.0006560776133 | N147: =SUM($M$9:M147) -> 0.9473163625 | O147: =_xlfn.XLOOKUP($F147,F148:F$717,K148:$K$717,,0)=K147 -> 
B148: 137 | C148: COMPOSIÇÃO SINAPI | D148: 93367 | E148: SINAPI | F148: REATERRO MECANIZADO DE VALA COM ESCAVADEIRA HIDRÁULICA (CAPACIDADE DA CAÇAMBA: 0,8 M³ / POTÊNCIA: 111 HP), LARGURA DE 1,5 A 2,5 M, PROFUNDIDADE ATÉ 1,5 M, COM SOLO DE 1ª CATEGORIA EM LOCAIS COM BAIXO NÍVEL DE INTERFERÊNCIA. AF_04/2016 | G148: M3 | H148: =SUMIF(Orçamento!$F$9:$F$1730,F148,Orçamento!$H$9:$H$1730) -> 1110.34 | I148: 22.82 | J148: 0.20796173 | K148: 27.56568668 | L148: 30607.28455 | M148: 0.000645330813 | N148: =SUM($M$9:M148) -> 0.9479616933 | O148: =_xlfn.XLOOKUP($F148,F149:F$717,K149:$K$717,,0)=K148 -> 
B149: 138 | C149: COMPOSIÇÃO SINAPI | D149: 93212 | E149: SINAPI | F149: EXECUÇÃO DE SANITÁRIO E VESTIÁRIO EM CANTEIRO EM CHAPA DE MADEIRA COMPENSADA, NÃO INCLUSO MOBILIÁRIO. AF_02/2016 | G149: M2 | H149: =SUMIF(Orçamento!$F$9:$F$1730,F149,Orçamento!$H$9:$H$1730) -> 27.6 | I149: 910.26 | J149: 0.20796173 | K149: 1099.559244 | L149: 30347.83515 | M149: 0.0006398605239 | N149: =SUM($M$9:M149) -> 0.9486015538 | O149: =_xlfn.XLOOKUP($F149,F150:F$717,K150:$K$717,,0)=K149 -> 
B150: 139 | C150: COMPOSIÇÃO SICRO | D150: 5213472 | E150: SICRO | F150: PLACA DE MARCO QUILOMÉTRICO EM AÇO - 0,60 X 0,865 M - PELÍCULA RETRORREFLETIVA TIPO I + I - FORNECIMENTO E IMPLANTAÇÃO | G150: UN | H150: =SUMIF(Orçamento!$F$9:$F$1730,F150,Orçamento!$H$9:$H$1730) -> 83 | I150: 300.87 | J150: 0.20796173 | K150: 363.4394457 | L150: 30165.47399 | M150: 0.0006360155808 | N150: =SUM($M$9:M150) -> 0.9492375694 | O150: =_xlfn.XLOOKUP($F150,F151:F$717,K151:$K$717,,0)=K150 -> 
B151: 140 | C151: COMPOSIÇÃO SINAPI | D151: 96534 | E151: SINAPI | F151: FABRICAÇÃO, MONTAGEM E DESMONTAGEM DE FÔRMA PARA BLOCO DE COROAMENTO, EM MADEIRA SERRADA, E=25 MM, 4 UTILIZAÇÕES. AF_06/2017 | G151: M2 | H151: =SUMIF(Orçamento!$F$9:$F$1730,F151,Orçamento!$H$9:$H$1730) -> 325.1 | I151: 76.47 | J151: 0.20796173 | K151: 92.3728335 | L151: 30030.40817 | M151: 0.0006331678228 | N151: =SUM($M$9:M151) -> 0.9498707372 | O151: =_xlfn.XLOOKUP($F151,F152:F$717,K152:$K$717,,0)=K151 -> 
B152: 141 | C152: COMPOSIÇÃO SINAPI | D152: 103946 | E152: SINAPI | F152: PLANTIO DE GRAMA ESMERALDA OU SÃO CARLOS OU CURITIBANA, EM PLACAS. AF_05/2022 | G152: M2 | H152: =SUMIF(Orçamento!$F$9:$F$1730,F152,Orçamento!$H$9:$H$1730) -> 1196.75 | I152: 20.62 | J152: 0.20796173 | K152: 24.90817087 | L152: 29808.85349 | M152: 0.0006284965146 | N152: =SUM($M$9:M152) -> 0.9504992337 | O152: =_xlfn.XLOOKUP($F152,F153:F$717,K153:$K$717,,0)=K152 -> 
B153: 142 | C153: COMPOSIÇÃO SINAPI | D153: 91990 | E153: SINAPI | F153: TOMADA ALTA DE EMBUTIR (1 MÓDULO), 2P+T 10 A, SEM SUPORTE E SEM PLACA - FORNECIMENTO E INSTALAÇÃO. AF_12/2015 | G153: UN | H153: =SUMIF(Orçamento!$F$9:$F$1730,F153,Orçamento!$H$9:$H$1730) -> 717 | I153: 32.9 | J153: 0.20796173 | K153: 39.74194092 | L153: 28494.97164 | M153: 0.0006007943366 | N153: =SUM($M$9:M153) -> 0.9511000281 | O153: =_xlfn.XLOOKUP($F153,F154:F$717,K154:$K$717,,0)=K153 -> 
B154: 143 | C154: COMPOSIÇÃO SINAPI | D154: 94266 | E154: SINAPI | F154: GUIA (MEIO-FIO) CONCRETO, MOLDADA IN LOCO EM TRECHO CURVO COM EXTRUSORA, 15 CM BASE X 30 CM ALTURA. AF_06/2016 | G154: M | H154: =SUMIF(Orçamento!$F$9:$F$1730,F154,Orçamento!$H$9:$H$1730) -> 348.57 | I154: 66.82 | J154: 0.20796173 | K154: 80.7160028 | L154: 28135.1771 | M154: 0.0005932083482 | N154: =SUM($M$9:M154) -> 0.9516932364 | O154: =_xlfn.XLOOKUP($F154,F155:F$717,K155:$K$717,,0)=K154 -> 
B155: 144 | C155: COMPOSIÇÃO SINAPI | D155: 103310 | E155: SINAPI | F155: INSTALAÇÃO DE LIXEIRA METÁLICA DUPLA, CAPACIDADE DE 60 L, EM TUBO DE AÇO CARBONO E CESTOS EM CHAPA DE AÇO COM PINTURA ELETROSTÁTICA, SOBRE SOLO. AF_11/2021 | G155: UN | H155: =SUMIF(Orçamento!$F$9:$F$1730,F155,Orçamento!$H$9:$H$1730) -> 18 | I155: 1292.26 | J155: 0.20796173 | K155: 1561.000625 | L155: 28098.01125 | M155: 0.0005924247353 | N155: =SUM($M$9:M155) -> 0.9522856612 | O155: =_xlfn.XLOOKUP($F155,F156:F$717,K156:$K$717,,0)=K155 -> 
B156: 145 | C156: COMPOSIÇÃO SINAPI | D156: 101658 | E156: SINAPI | F156: LUMINÁRIA DE LED PARA ILUMINAÇÃO PÚBLICA, DE 138 W ATÉ 180 W - FORNECIMENTO E INSTALAÇÃO. AF_08/2020 | G156: UN | H156: =SUMIF(Orçamento!$F$9:$F$1730,F156,Orçamento!$H$9:$H$1730) -> 34 | I156: 679.88 | J156: 0.20796173 | K156: 821.269021 | L156: 27923.14671 | M156: 0.0005887378523 | N156: =SUM($M$9:M156) -> 0.952874399 | O156: =_xlfn.XLOOKUP($F156,F157:F$717,K157:$K$717,,0)=K156 -> 
B157: 146 | C157: COMPOSIÇÃO ORSE | D157: 7138 | E157: ORSE | F157: FORNECIMENTO E LANÇAMENTO DE CABO UTP 4 PARES CAT 6 | G157: M | H157: =SUMIF(Orçamento!$F$9:$F$1730,F157,Orçamento!$H$9:$H$1730) -> 1885 | I157: 12.26 | J157: 0.20796173 | K157: 14.80961081 | L157: 27916.11638 | M157: 0.0005885896231 | N157: =SUM($M$9:M157) -> 0.9534629886 | O157: =_xlfn.XLOOKUP($F157,F158:F$717,K158:$K$717,,0)=K157 -> 
B158: 147 | C158: COMPOSIÇÃO SINAPI | D158: 87269 | E158: SINAPI | F158: REVESTIMENTO CERÂMICO PARA PAREDES INTERNAS COM PLACAS TIPO ESMALTADA EXTRA DE DIMENSÕES 25X35 CM APLICADAS NA ALTURA INTEIRA DAS PAREDES. AF_02/2023_PE | G158: M2 | H158: =SUMIF(Orçamento!$F$9:$F$1730,F158,Orçamento!$H$9:$H$1730) -> 300 | I158: 76.66 | J158: 0.20796173 | K158: 92.60234623 | L158: 27780.70387 | M158: 0.0005857345556 | N158: =SUM($M$9:M158) -> 0.9540487232 | O158: =_xlfn.XLOOKUP($F158,F159:F$717,K159:$K$717,,0)=K158 -> 
B159: 148 | C159: COMPOSIÇÃO SINAPI | D159: 96545 | E159: SINAPI | F159: ARMAÇÃO DE BLOCO, VIGA BALDRAME OU SAPATA UTILIZANDO AÇO CA-50 DE 8 MM - MONTAGEM. AF_06/2017 | G159: KG | H159: =SUMIF(Orçamento!$F$9:$F$1730,F159,Orçamento!$H$9:$H$1730) -> 1313.35 | I159: 17.44 | J159: 0.20796173 | K159: 21.06685257 | L159: 27668.15083 | M159: 0.0005833614621 | N159: =SUM($M$9:M159) -> 0.9546320847 | O159: =_xlfn.XLOOKUP($F159,F160:F$717,K160:$K$717,,0)=K159 -> 
B160: 149 | C160: COMPOSIÇÃO SINAPI | D160: 93210 | E160: SINAPI | F160: EXECUÇÃO DE REFEITÓRIO EM CANTEIRO DE OBRA EM CHAPA DE MADEIRA COMPENSADA, NÃO INCLUSO MOBILIÁRIO E EQUIPAMENTOS. AF_02/2016 | G160: M2 | H160: =SUMIF(Orçamento!$F$9:$F$1730,F160,Orçamento!$H$9:$H$1730) -> 41.4 | I160: 550.5 | J160: 0.20796173 | K160: 664.9829324 | L160: 27530.2934 | M160: 0.0005804548455 | N160: =SUM($M$9:M160) -> 0.9552125395 | O160: =_xlfn.XLOOKUP($F160,F161:F$717,K161:$K$717,,0)=K160 -> 
B161: 150 | C161: INSUMO SINAPI | D161: 11062 | E161: SINAPI | F161: PLACA CIMENTICIA LISA E = 10 MM, DE 1,20 X 3,00 M (SEM AMIANTO) | G161: M2 | H161: =SUMIF(Orçamento!$F$9:$F$1730,F161,Orçamento!$H$9:$H$1730) -> 492.66 | I161: 48.47 | J161: 0.146920122 | K161: 55.59121831 | L161: 27387.56961 | M161: 0.0005774456253 | N161: =SUM($M$9:M161) -> 0.9557899851 | O161: =_xlfn.XLOOKUP($F161,F162:F$717,K162:$K$717,,0)=K161 -> 
B162: 152 | C162: COMPOSIÇÃO ORSE | D162: 12312 | E162: ORSE | F162: LUMINÁRIA DE EMERGÊNCIA, TIPO BALIZAMENTO, COM AUTONOMIA DE 3H, MODELO LED - 3000 LUMENS, SEGURIMAX OU SIMILARR | G162: UN | H162: =SUMIF(Orçamento!$F$9:$F$1730,F162,Orçamento!$H$9:$H$1730) -> 80 | I162: 279.51 | J162: 0.20796173 | K162: 337.6373832 | L162: 27010.99065 | M162: 0.0005695057505 | N162: =SUM($M$9:M162) -> 0.9563594909 | O162: =_xlfn.XLOOKUP($F162,F163:F$717,K163:$K$717,,0)=K162 -> 
B163: 153 | C163: COMPOSIÇÃO ORSE | D163: 2450 | E163: ORSE | F163: LIMPEZA GERAL | G163: M2 | H163: =SUMIF(Orçamento!$F$9:$F$1730,F163,Orçamento!$H$9:$H$1730) -> 9240.17 | I163: 2.39 | J163: 0.20796173 | K163: 2.887028535 | L163: 26676.63446 | M163: 0.0005624561099 | N163: =SUM($M$9:M163) -> 0.956921947 | O163: =_xlfn.XLOOKUP($F163,F164:F$717,K164:$K$717,,0)=K163 -> 
B164: 154 | C164: INSUMO SINAPI | D164: 1014 | E164: SINAPI | F164: CABO DE COBRE, FLEXIVEL, CLASSE 4 OU 5, ISOLACAO EM PVC/A, ANTICHAMA BWF-B, 1 CONDUTOR, 450/750 V, SECAO NOMINAL 2,5 MM2 | G164: M | H164: =SUMIF(Orçamento!$F$9:$F$1730,F164,Orçamento!$H$9:$H$1730) -> 9616.4 | I164: 2.41 | J164: 0.146920122 | K164: 2.764077494 | L164: 26580.47481 | M164: 0.0005604286585 | N164: =SUM($M$9:M164) -> 0.9574823756 | O164: =_xlfn.XLOOKUP($F164,F165:F$717,K165:$K$717,,0)=K164 -> 
B165: 155 | C165: COMPOSIÇÃO ORSE | D165: 9074 | E165: ORSE | F165: BRISE EM PERFIL "C" DE ALUMÍNIO DOBRADO ANODIZADO BRANCO | G165: M2 | H165: =SUMIF(Orçamento!$F$9:$F$1730,F165,Orçamento!$H$9:$H$1730) -> 32.96 | I165: 659.94 | J165: 0.20796173 | K165: 797.1822641 | L165: 26275.12743 | M165: 0.0005539906461 | N165: =SUM($M$9:M165) -> 0.9580363663 | O165: =_xlfn.XLOOKUP($F165,F166:F$717,K166:$K$717,,0)=K165 -> 
B166: 156 | C166: COMPOSIÇÃO SINAPI | D166: 86931 | E166: SINAPI | F166: VASO SANITÁRIO SIFONADO COM CAIXA ACOPLADA LOUÇA BRANCA, INCLUSO ENGATE FLEXÍVEL EM PLÁSTICO BRANCO, 1/2 X 40CM - FORNECIMENTO E INSTALAÇÃO. AF_01/2020 | G166: UN | H166: =SUMIF(Orçamento!$F$9:$F$1730,F166,Orçamento!$H$9:$H$1730) -> 46 | I166: 469.07 | J166: 0.20796173 | K166: 566.6186087 | L166: 26064.456 | M166: 0.0005495488028 | N166: =SUM($M$9:M166) -> 0.9585859151 | O166: =_xlfn.XLOOKUP($F166,F167:F$717,K167:$K$717,,0)=K166 -> 
B167: 157 | C167: COMPOSIÇÃO SINAPI | D167: 94227 | E167: SINAPI | F167: CALHA EM CHAPA DE AÇO GALVANIZADO NÚMERO 24, DESENVOLVIMENTO DE 33 CM, INCLUSO TRANSPORTE VERTICAL. AF_07/2019 | G167: M | H167: =SUMIF(Orçamento!$F$9:$F$1730,F167,Orçamento!$H$9:$H$1730) -> 330.42 | I167: 62.47 | J167: 0.20796173 | K167: 75.46136928 | L167: 24933.94564 | M167: 0.0005257128702 | N167: =SUM($M$9:M167) -> 0.959111628 | O167: =_xlfn.XLOOKUP($F167,F168:F$717,K168:$K$717,,0)=K167 -> 
B168: 158 | C168: COMPOSIÇÃO SINAPI | D168: 91926 | E168: SINAPI | F168: CABO DE COBRE FLEXÍVEL ISOLADO, 2,5 MM², ANTI-CHAMA 450/750 V, PARA CIRCUITOS TERMINAIS - FORNECIMENTO E INSTALAÇÃO. AF_12/2015 | G168: M | H168: =SUMIF(Orçamento!$F$9:$F$1730,F168,Orçamento!$H$9:$H$1730) -> 4590.8 | I168: 4.45 | J168: 0.20796173 | K168: 5.375429699 | L168: 24677.52266 | M168: 0.000520306391 | N168: =SUM($M$9:M168) -> 0.9596319344 | O168: =_xlfn.XLOOKUP($F168,F169:F$717,K169:$K$717,,0)=K168 -> 
B169: 159 | C169: COMPOSIÇÃO SINAPI | D169: 103307 | E169: SINAPI | F169: INSTALAÇÃO DE LIXEIRA METÁLICA DUPLA, CAPACIDADE DE 60 L, EM TUBO DE AÇO CARBONO E CESTOS EM CHAPA DE AÇO COM PINTURA ELETROSTÁTICA, SOBRE PISO DE CONCRETO EXISTENTE. AF_11/2021 | G169: UN | H169: =SUMIF(Orçamento!$F$9:$F$1730,F169,Orçamento!$H$9:$H$1730) -> 15 | I169: 1336.56 | J169: 0.20796173 | K169: 1614.51333 | L169: 24217.69995 | M169: 0.0005106113864 | N169: =SUM($M$9:M169) -> 0.9601425457 | O169: =_xlfn.XLOOKUP($F169,F170:F$717,K170:$K$717,,0)=K169 -> 
B170: 160 | C170: COMPOSIÇÃO SICRO | D170: 1600989 | E170: SICRO | F170: DEMOLIÇÃO DE CONCRETO SIMPLES COM MARTELETE | G170: M3 | H170: =SUMIF(Orçamento!$F$9:$F$1730,F170,Orçamento!$H$9:$H$1730) -> 49 | I170: 407.54 | J170: 0.20796173 | K170: 492.2927235 | L170: 24122.34345 | M170: 0.0005086008687 | N170: =SUM($M$9:M170) -> 0.9606511466 | O170: =_xlfn.XLOOKUP($F170,F171:F$717,K171:$K$717,,0)=K170 -> 
B171: 161 | C171: COMPOSIÇÃO SINAPI | D171: 100708 | E171: SINAPI | F171: PORTA DE CORRER DE ALUMÍNIO, COM DUAS FOLHAS PARA VIDRO, INCLUSO VIDRO LISO INCOLOR, FECHADURA E PUXADOR, SEM ALIZAR. AF_12/2019 | G171: M2 | H171: =SUMIF(Orçamento!$F$9:$F$1730,F171,Orçamento!$H$9:$H$1730) -> 108.51 | I171: 180.96 | J171: 0.20796173 | K171: 218.5927547 | L171: 23719.49981 | M171: 0.0005001072236 | N171: =SUM($M$9:M171) -> 0.9611512538 | O171: =_xlfn.XLOOKUP($F171,F172:F$717,K172:$K$717,,0)=K171 -> 
B172: 162 | C172: COMPOSIÇÃO SINAPI | D172: 98671 | E172: SINAPI | F172: PISO EM GRANITO APLICADO EM AMBIENTES INTERNOS. AF_09/2020 | G172: M2 | H172: =SUMIF(Orçamento!$F$9:$F$1730,F172,Orçamento!$H$9:$H$1730) -> 33.74 | I172: 580.28 | J172: 0.20796173 | K172: 700.9560327 | L172: 23650.25654 | M172: 0.0004986472831 | N172: =SUM($M$9:M172) -> 0.9616499011 | O172: =_xlfn.XLOOKUP($F172,F173:F$717,K173:$K$717,,0)=K172 -> 
B173: 163 | C173: COMPOSIÇÃO SICRO | D173: 5502768 | E173: SICRO | F173: ESCAVAÇÃO, CARGA E TRANSPORTE DE MATERIAL DE 3A CATEGORIA - DMT DE 50 A 200 M - CAMINHO DE SERVIÇO EM REVESTIMENTO PRIMÁRIO - COM CAMINHÃO BASCULANTE DE 12 M3 | G173: M3 | H173: =SUMIF(Orçamento!$F$9:$F$1730,F173,Orçamento!$H$9:$H$1730) -> 456 | I173: 42.9 | J173: 0.20796173 | K173: 51.82155822 | L173: 23630.63055 | M173: 0.0004982334842 | N173: =SUM($M$9:M173) -> 0.9621481346 | O173: =_xlfn.XLOOKUP($F173,F174:F$717,K174:$K$717,,0)=K173 -> 
B174: 164 | C174: COMPOSIÇÃO ORSE | D174: 12369 | E174: ORSE | F174: LUMINÁRIA DE SOBREPOR, (TECNOLUX REF.FLP-6478/4X20) TUBLED CORPO/ REFLETOR E ALETAS FABRICADAS EM CHAPA DE AÇO TRATADA E PINTADA EM EPOXI BRANCO, PARA USO DE 4 LAMPADAS TUBLED DE 20W - REV 02 | G174: UN | H174: =SUMIF(Orçamento!$F$9:$F$1730,F174,Orçamento!$H$9:$H$1730) -> 62 | I174: 310.83 | J174: 0.20796173 | K174: 375.4707446 | L174: 23279.18616 | M174: 0.0004908235524 | N174: =SUM($M$9:M174) -> 0.9626389581 | O174: =_xlfn.XLOOKUP($F174,F175:F$717,K175:$K$717,,0)=K174 -> 
B175: 165 | C175: COMPOSIÇÃO SINAPI | D175: 91934 | E175: SINAPI | F175: CABO DE COBRE FLEXÍVEL ISOLADO, 16 MM², ANTI-CHAMA 450/750 V, PARA CIRCUITOS TERMINAIS - FORNECIMENTO E INSTALAÇÃO. AF_12/2015 | G175: M | H175: =SUMIF(Orçamento!$F$9:$F$1730,F175,Orçamento!$H$9:$H$1730) -> 766 | I175: 24.96 | J175: 0.20796173 | K175: 30.15072478 | L175: 23095.45518 | M175: 0.0004869497275 | N175: =SUM($M$9:M175) -> 0.9631259079 | O175: =_xlfn.XLOOKUP($F175,F176:F$717,K176:$K$717,,0)=K175 -> 
B176: 166 | C176: COMPOSIÇÃO SINAPI | D176: 96765 | E176: SINAPI | F176: ABRIGO PARA HIDRANTE, 90X60X17CM, COM REGISTRO GLOBO ANGULAR 45 GRAUS 2 1/2", ADAPTADOR STORZ 2 1/2", MANGUEIRA DE INCÊNDIO 20M, REDUÇÃO 2 1/2" X 1 1/2" E ESGUICHO EM LATÃO 1 1/2" - FORNECIMENTO E INSTALAÇÃO. AF_10/2020 | G176: UN | H176: =SUMIF(Orçamento!$F$9:$F$1730,F176,Orçamento!$H$9:$H$1730) -> 11 | I176: 1730.44 | J176: 0.20796173 | K176: 2090.305296 | L176: 22993.35826 | M176: 0.0004847970931 | N176: =SUM($M$9:M176) -> 0.963610705 | O176: =_xlfn.XLOOKUP($F176,F177:F$717,K177:$K$717,,0)=K176 -> 
B177: 167 | C177: COMPOSIÇÃO SINAPI | D177: 93182 | E177: SINAPI | F177: VERGA PRÉ-MOLDADA PARA JANELAS COM ATÉ 1,5 M DE VÃO. AF_03/2016 | G177: M | H177: =SUMIF(Orçamento!$F$9:$F$1730,F177,Orçamento!$H$9:$H$1730) -> 381.64 | I177: 46.18 | J177: 0.20796173 | K177: 55.78367269 | L177: 21289.28085 | M177: 0.000448867945 | N177: =SUM($M$9:M177) -> 0.9640595729 | O177: =_xlfn.XLOOKUP($F177,F178:F$717,K178:$K$717,,0)=K177 -> 
B178: 168 | C178: COMPOSIÇÃO SINAPI | D178: 92769 | E178: SINAPI | F178: ARMAÇÃO DE LAJE DE ESTRUTURA CONVENCIONAL DE CONCRETO ARMADO UTILIZANDO AÇO CA-50 DE 6,3 MM - MONTAGEM. AF_06/2022 | G178: KG | H178: =SUMIF(Orçamento!$F$9:$F$1730,F178,Orçamento!$H$9:$H$1730) -> 1219.6 | I178: 14.38 | J178: 0.20796173 | K178: 17.37048968 | L178: 21185.04921 | M178: 0.000446670302 | N178: =SUM($M$9:M178) -> 0.9645062432 | O178: =_xlfn.XLOOKUP($F178,F179:F$717,K179:$K$717,,0)=K178 -> 
B179: 169 | C179: COMPOSIÇÃO COMPESA | D179: 01.08.12U | E179: COMPESA | F179: EXECUÇÃO DE ESCRITÓRIO (COM INSTALAÇÕES ELÉTRICAS E HIDROSSANITÁRIAS) EM CANTEIRO DE OBRA EM CHAPA DE MADEIRA COMPENSADA, NÃO INCLUSO MOBILIÁRIO E EQUIPAMENTOS. | G179: M2 | H179: =SUMIF(Orçamento!$F$9:$F$1730,F179,Orçamento!$H$9:$H$1730) -> 13.8 | I179: 1266.13 | J179: 0.20796173 | K179: 1529.436585 | L179: 21106.22488 | M179: 0.0004450083521 | N179: =SUM($M$9:M179) -> 0.9649512516 | O179: =_xlfn.XLOOKUP($F179,F180:F$717,K180:$K$717,,0)=K179 -> 
B180: 170 | C180: COMPOSIÇÃO SINAPI | D180: 101910 | E180: SINAPI | F180: EXTINTOR DE INCÊNDIO PORTÁTIL COM CARGA DE PQS DE 8 KG, CLASSE BC - FORNECIMENTO E INSTALAÇÃO. AF_10/2020_P | G180: UN | H180: =SUMIF(Orçamento!$F$9:$F$1730,F180,Orçamento!$H$9:$H$1730) -> 32 | I180: 527.79 | J180: 0.20796173 | K180: 637.5501215 | L180: 20401.60389 | M180: 0.000430151966 | N180: =SUM($M$9:M180) -> 0.9653814035 | O180: =_xlfn.XLOOKUP($F180,F181:F$717,K181:$K$717,,0)=K180 -> 
B181: 257 | C181: INSUMO ORSE | D181: 462 | E181: ORSE | F181: CAIXA D'AGUA FIBRA VIDRO 3.000 LITROS - FORTLEV-TORRES (OU SIMILAR) | G181: UN | H181: =SUMIF(Orçamento!$F$9:$F$1730,F181,Orçamento!$H$9:$H$1730) -> 15 | I181: 1175.9 | J181: 0.146920122 | K181: 1348.663371 | L181: 20229.95057 | M181: 0.0004265327892 | N181: =SUM($M$9:M181) -> 0.9658079363 | O181: =_xlfn.XLOOKUP($F181,F182:F$717,K182:$K$717,,0)=K181 -> 
B182: 171 | C182: COMPOSIÇÃO SICRO | D182: 2003683 | E182: SICRO | F182: POÇO DE VISITA - PVI 04 - AREIA EXTRAÍDA E BRITA PRODUZIDA | G182: UN | H182: =SUMIF(Orçamento!$F$9:$F$1730,F182,Orçamento!$H$9:$H$1730) -> 6 | I182: 2784.76 | J182: 0.20796173 | K182: 3363.883507 | L182: 20183.30104 | M182: 0.0004255492202 | N182: =SUM($M$9:M182) -> 0.9662334855 | O182: =_xlfn.XLOOKUP($F182,F183:F$717,K183:$K$717,,0)=K182 -> 
B183: 172 | C183: COMPOSIÇÃO ORSE | D183: 12825 | E183: ORSE | F183: EM ESTUDO - TAMPA EM CONCRETO ARMADO FCK=30,0MPA, PARA POÇO DE INSPEÇÃO/VISITA EM ALVENARIA/CONCRETO, DIM. 1,20X1,20X0,20M, APOIADA SOBRE O PI/PV, COM AÇO 3/8", EXCLUSIVE TAMPÃO DE FERRO FUNDIDO | G183: UN | H183: =SUMIF(Orçamento!$F$9:$F$1730,F183,Orçamento!$H$9:$H$1730) -> 12 | I183: 1366.79 | J183: 0.20796173 | K183: 1651.030013 | L183: 19812.36016 | M183: 0.0004177282198 | N183: =SUM($M$9:M183) -> 0.9666512138 | O183: =_xlfn.XLOOKUP($F183,F184:F$717,K184:$K$717,,0)=K183 -> 
B184: 174 | C184: COMPOSIÇÃO SINAPI | D184: 87623 | E184: SINAPI | F184: REVESTIMENTO CERÂMICO PARA PISO COM PLACAS TIPO PORCELANATO DE DIMENSÕES 60X60 CM APLICADA EM AMBIENTES DE ÁREA MAIOR QUE 10 M². AF_06/2014 | G184: M2 | H184: =SUMIF(Orçamento!$F$9:$F$1730,F184,Orçamento!$H$9:$H$1730) -> 185.1 | I184: 87.46 | J184: 0.20796173 | K184: 105.6483329 | L184: 19555.50642 | M184: 0.0004123126584 | N184: =SUM($M$9:M184) -> 0.9670635264 | O184: =_xlfn.XLOOKUP($F184,F185:F$717,K185:$K$717,,0)=K184 -> 
B185: 175 | C185: COMPOSIÇÃO SINAPI | D185: 92435 | E185: SINAPI | F185: MONTAGEM E DESMONTAGEM DE FÔRMA DE PILARES RETANGULARES E ESTRUTURAS SIMILARES, PÉ-DIREITO SIMPLES, EM CHAPA DE MADEIRA COMPENSADA PLASTIFICADA, 12 UTILIZAÇÕES. AF_09/2020 | G185: M2 | H185: =SUMIF(Orçamento!$F$9:$F$1730,F185,Orçamento!$H$9:$H$1730) -> 259.59 | I185: 58.98 | J185: 0.20796173 | K185: 71.24558284 | L185: 18494.64085 | M185: 0.0003899451321 | N185: =SUM($M$9:M185) -> 0.9674534716 | O185: =_xlfn.XLOOKUP($F185,F186:F$717,K186:$K$717,,0)=K185 -> 
B186: 176 | C186: INSUMO SINAPI | D186: 40552 | E186: SINAPI | F186: PARAFUSO, AUTO ATARRACHANTE, CABECA CHATA, FENDA SIMPLES, 1/4" (6,35 MM) X 25 MM | G186: CENTO | H186: =SUMIF(Orçamento!$F$9:$F$1730,F186,Orçamento!$H$9:$H$1730) -> 354 | I186: 45.23 | J186: 0.146920122 | K186: 51.87519712 | L186: 18363.81978 | M186: 0.0003871868715 | N186: =SUM($M$9:M186) -> 0.9678406584 | O186: =_xlfn.XLOOKUP($F186,F187:F$717,K187:$K$717,,0)=K186 -> 
B187: 177 | C187: COMPOSIÇÃO SINAPI | D187: 88423 | E187: SINAPI | F187: APLICAÇÃO MANUAL DE PINTURA COM TINTA TEXTURIZADA ACRÍLICA EM PAREDES EXTERNAS DE CASAS, UMA COR. AF_06/2014 | G187: M2 | H187: =SUMIF(Orçamento!$F$9:$F$1730,F187,Orçamento!$H$9:$H$1730) -> 767.17 | I187: 19.69 | J187: 0.20796173 | K187: 23.78476646 | L187: 18246.95929 | M187: 0.0003847229588 | N187: =SUM($M$9:M187) -> 0.9682253814 | O187: =_xlfn.XLOOKUP($F187,F188:F$717,K188:$K$717,,0)=K187 -> 
B188: 178 | C188: COMPOSIÇÃO ORSE | D188: 13358 | E188: ORSE | F188: FORNECIMENTO E INSTALAÇÃO DE CHAPAS DE POLICARBONATO ALVEOLAR, BRANCA, 6MM COM EMENDAS E ACABAMENTO EM POLICARBONATO, APLICADO EM TOLDO/COBERTURA/FECHAMENTO/ETC | G188: M2 | H188: =SUMIF(Orçamento!$F$9:$F$1730,F188,Orçamento!$H$9:$H$1730) -> 100 | I188: 147.85 | J188: 0.20796173 | K188: 178.5971418 | L188: 17859.71418 | M188: 0.0003765581966 | N188: =SUM($M$9:M188) -> 0.9686019396 | O188: =_xlfn.XLOOKUP($F188,F189:F$717,K189:$K$717,,0)=K188 -> 
B189: 179 | C189: COMPOSIÇÃO SINAPI | D189: 95805 | E189: SINAPI | F189: CONDULETE DE PVC, TIPO B, PARA ELETRODUTO DE PVC SOLDÁVEL DN 25 MM (3/4''), APARENTE - FORNECIMENTO E INSTALAÇÃO. AF_11/2016 | G189: UN | H189: =SUMIF(Orçamento!$F$9:$F$1730,F189,Orçamento!$H$9:$H$1730) -> 600 | I189: 23.86 | J189: 0.20796173 | K189: 28.82196688 | L189: 17293.18013 | M189: 0.0003646132663 | N189: =SUM($M$9:M189) -> 0.9689665528 | O189: =_xlfn.XLOOKUP($F189,F190:F$717,K190:$K$717,,0)=K189 -> 
B190: 180 | C190: INSUMO SINAPI | D190: 20065 | E190: SINAPI | F190: TUBO PVC SERIE NORMAL, DN 150 MM, PARA ESGOTO PREDIAL (NBR 5688) | G190: M | H190: =SUMIF(Orçamento!$F$9:$F$1730,F190,Orçamento!$H$9:$H$1730) -> 437 | I190: 34.42 | J190: 0.146920122 | K190: 39.4769906 | L190: 17251.44489 | M190: 0.0003637333112 | N190: =SUM($M$9:M190) -> 0.9693302862 | O190: =_xlfn.XLOOKUP($F190,F191:F$717,K191:$K$717,,0)=K190 -> 
B191: 181 | C191: COMPOSIÇÃO SINAPI | D191: 96558 | E191: SINAPI | F191: CONCRETAGEM DE SAPATAS, FCK 30 MPA, COM USO DE BOMBA - LANÇAMENTO, ADENSAMENTO E ACABAMENTO. AF_11/2016 | G191: M3 | H191: =SUMIF(Orçamento!$F$9:$F$1730,F191,Orçamento!$H$9:$H$1730) -> 11.7 | I191: 1217.06 | J191: 0.20796173 | K191: 1470.161903 | L191: 17200.89427 | M191: 0.0003626674906 | N191: =SUM($M$9:M191) -> 0.9696929536 | O191: =_xlfn.XLOOKUP($F191,F192:F$717,K192:$K$717,,0)=K191 -> 
B192: 182 | C192: COMPOSIÇÃO SINAPI | D192: 91341 | E192: SINAPI | F192: PORTA EM ALUMÍNIO DE ABRIR TIPO VENEZIANA COM GUARNIÇÃO, FIXAÇÃO COM PARAFUSOS - FORNECIMENTO E INSTALAÇÃO. AF_12/2019 | G192: M2 | H192: =SUMIF(Orçamento!$F$9:$F$1730,F192,Orçamento!$H$9:$H$1730) -> 21.39 | I192: 658.88 | J192: 0.20796173 | K192: 795.9018247 | L192: 17024.34003 | M192: 0.0003589449817 | N192: =SUM($M$9:M192) -> 0.9700518986 | O192: =_xlfn.XLOOKUP($F192,F193:F$717,K193:$K$717,,0)=K192 -> 
B193: 183 | C193: COMPOSIÇÃO SINAPI | D193: 96529 | E193: SINAPI | F193: FABRICAÇÃO, MONTAGEM E DESMONTAGEM DE FÔRMA PARA SAPATA, EM MADEIRA SERRADA, E=25 MM, 1 UTILIZAÇÃO. AF_06/2017 | G193: M2 | H193: =SUMIF(Orçamento!$F$9:$F$1730,F193,Orçamento!$H$9:$H$1730) -> 51.5 | I193: 271.6 | J193: 0.20796173 | K193: 328.0824059 | L193: 16896.2439 | M193: 0.0003562441744 | N193: =SUM($M$9:M193) -> 0.9704081428 | O193: =_xlfn.XLOOKUP($F193,F194:F$717,K194:$K$717,,0)=K193 -> 
B194: 184 | C194: COMPOSIÇÃO SICRO | D194: 2003681 | E194: SICRO | F194: POÇO DE VISITA - PVI 03 - AREIA EXTRAÍDA E BRITA PRODUZIDA | G194: UN | H194: =SUMIF(Orçamento!$F$9:$F$1730,F194,Orçamento!$H$9:$H$1730) -> 6 | I194: 2323.77 | J194: 0.20796173 | K194: 2807.025229 | L194: 16842.15138 | M194: 0.0003551036755 | N194: =SUM($M$9:M194) -> 0.9707632465 | O194: =_xlfn.XLOOKUP($F194,F195:F$717,K195:$K$717,,0)=K194 -> 
B195: 185 | C195: COMPOSIÇÃO SINAPI | D195: 97586 | E195: SINAPI | F195: LUMINÁRIA TIPO CALHA, DE SOBREPOR, COM 2 LÂMPADAS TUBULARES FLUORESCENTES DE 36 W, COM REATOR DE PARTIDA RÁPIDA - FORNECIMENTO E INSTALAÇÃO. AF_02/2020 | G195: UN | H195: =SUMIF(Orçamento!$F$9:$F$1730,F195,Orçamento!$H$9:$H$1730) -> 88 | I195: 156.83 | J195: 0.20796173 | K195: 189.4446381 | L195: 16671.12815 | M195: 0.0003514977838 | N195: =SUM($M$9:M195) -> 0.9711147443 | O195: =_xlfn.XLOOKUP($F195,F196:F$717,K196:$K$717,,0)=K195 -> 
B196: 186 | C196: COMPOSIÇÃO SINAPI | D196: 94231 | E196: SINAPI | F196: RUFO EM CHAPA DE AÇO GALVANIZADO NÚMERO 24, CORTE DE 25 CM, INCLUSO TRANSPORTE VERTICAL. AF_07/2019 | G196: M | H196: =SUMIF(Orçamento!$F$9:$F$1730,F196,Orçamento!$H$9:$H$1730) -> 259.55 | I196: 52.69 | J196: 0.20796173 | K196: 63.64750356 | L196: 16519.70955 | M196: 0.0003483052401 | N196: =SUM($M$9:M196) -> 0.9714630495 | O196: =_xlfn.XLOOKUP($F196,F197:F$717,K197:$K$717,,0)=K196 -> 
B197: 187 | C197: COMPOSIÇÃO SICRO | D197: 4915669 | E197: SICRO | F197: REMOÇÃO MECANIZADA DE CAMADA GRANULAR DO PAVIMENTO | G197: M3 | H197: =SUMIF(Orçamento!$F$9:$F$1730,F197,Orçamento!$H$9:$H$1730) -> 1751 | I197: 7.8 | J197: 0.20796173 | K197: 9.422101494 | L197: 16498.09972 | M197: 0.0003478496136 | N197: =SUM($M$9:M197) -> 0.9718108991 | O197: =_xlfn.XLOOKUP($F197,F198:F$717,K198:$K$717,,0)=K197 -> 
B198: 188 | C198: COMPOSIÇÃO SINAPI | D198: 92764 | E198: SINAPI | F198: ARMAÇÃO DE PILAR OU VIGA DE UMA ESTRUTURA CONVENCIONAL DE CONCRETO ARMADO EM UM EDIFÍCIO DE MÚLTIPLOS PAVIMENTOS UTILIZANDO AÇO CA-50 DE 16,0 MM - MONTAGEM. AF_12/2015 | G198: KG | H198: =SUMIF(Orçamento!$F$9:$F$1730,F198,Orçamento!$H$9:$H$1730) -> 1245.9 | I198: 10.61 | J198: 0.20796173 | K198: 12.81647396 | L198: 15968.0449 | M198: 0.0003366738197 | N198: =SUM($M$9:M198) -> 0.9721475729 | O198: =_xlfn.XLOOKUP($F198,F199:F$717,K199:$K$717,,0)=K198 -> 
B199: 189 | C199: COMPOSIÇÃO SINAPI | D199: 103672 | E199: SINAPI | F199: CONCRETAGEM DE PILARES, FCK = 25 MPA, COM USO DE BOMBA - LANÇAMENTO, ADENSAMENTO E ACABAMENTO. AF_02/2022 | G199: M3 | H199: =SUMIF(Orçamento!$F$9:$F$1730,F199,Orçamento!$H$9:$H$1730) -> 12.65 | I199: 1043.3 | J199: 0.20796173 | K199: 1260.266473 | L199: 15942.37088 | M199: 0.0003361325029 | N199: =SUM($M$9:M199) -> 0.9724837054 | O199: =_xlfn.XLOOKUP($F199,F200:F$717,K200:$K$717,,0)=K199 -> 
B200: 190 | C200: COMPOSIÇÃO SINAPI | D200: 90791 | E200: SINAPI | F200: KIT DE PORTA-PRONTA DE MADEIRA EM ACABAMENTO MELAMÍNICO BRANCO, FOLHA PESADA OU SUPERPESADA, 80X210CM, FIXAÇÃO COM PREENCHIMENTO PARCIAL DE ESPUMA EXPANSIVA - FORNECIMENTO E INSTALAÇÃO. AF_12/2019 | G200: UN | H200: =SUMIF(Orçamento!$F$9:$F$1730,F200,Orçamento!$H$9:$H$1730) -> 12 | I200: 1082.34 | J200: 0.20796173 | K200: 1307.425299 | L200: 15689.10359 | M200: 0.0003307925588 | N200: =SUM($M$9:M200) -> 0.972814498 | O200: =_xlfn.XLOOKUP($F200,F201:F$717,K201:$K$717,,0)=K200 -> 
B201: 191 | C201: INSUMO SINAPI | D201: 39996 | E201: SINAPI | F201: VERGALHAO ZINCADO ROSCA TOTAL, 1/4 " (6,3 MM) | G201: M | H201: =SUMIF(Orçamento!$F$9:$F$1730,F201,Orçamento!$H$9:$H$1730) -> 2973 | I201: 4.6 | J201: 0.146920122 | K201: =I201*(1+J201) -> 5.275832561 | L201: =K201*H201 -> 15685.0502 | M201: =L201/$L$717 -> 0.0003307070963 | N201: =SUM($M$9:M201) -> 0.9731452051 | O201: =_xlfn.XLOOKUP($F201,F202:F$717,K202:$K$717,,0)=K201 -> 
B202: 192 | C202: COMPOSIÇÃO SINAPI | D202: 92759 | E202: SINAPI | F202: ARMAÇÃO DE PILAR OU VIGA DE ESTRUTURA CONVENCIONAL DE CONCRETO ARMADO UTILIZANDO AÇO CA-60 DE 5,0 MM - MONTAGEM. AF_06/2022 | G202: KG | H202: =SUMIF(Orçamento!$F$9:$F$1730,F202,Orçamento!$H$9:$H$1730) -> 838.95 | I202: 15.25 | J202: 0.20796173 | K202: 18.42141638 | L202: 15454.64727 | M202: 0.0003258492296 | N202: =SUM($M$9:M202) -> 0.9734710543 | O202: =_xlfn.XLOOKUP($F202,F203:F$717,K203:$K$717,,0)=K202 -> 
... 514 more rows

Sheet Cronograma
B2: CRONOGRAMA FÍSICO-FINANCEIRO
B3: Obra: | D3: Realização das obras de revitalização do setor comercial e portuário do município de Santana, no estado do Amapá | K3: Base de Preço: | L3: =Orçamento!I3 -> SINAPI: MAR/2024-AP | N3: Sem Desoneração | P3: =D3 -> Realização das obras de revitalização do setor comercial e portuário do município de Santana, no estado do Amapá | W3: Base de Preço: | X3: =L3 -> SINAPI: MAR/2024-AP | Z3: Sem Desoneração | AB3: =P3 -> Realização das obras de revitalização do setor comercial e portuário do município de Santana, no estado do Amapá | AI3: Base de Preço: | AJ3: =X3 -> SINAPI: MAR/2024-AP | AL3: Sem Desoneração | AN3: =AB3 -> Realização das obras de revitalização do setor comercial e portuário do município de Santana, no estado do Amapá | AU3: Base de Preço: | AV3: =AJ3 -> SINAPI: MAR/2024-AP | AX3: Sem Desoneração
B4: Valor Referência: | D4: =Orçamento!D4 -> 47428828.64 | L4: =Orçamento!I4 -> SICRO: JAN/2024-AP | N4: BDI de Serviços: | O4: =Orçamento!L4 -> 0.20796173 | P4: =D4 -> 47428828.64 | X4: =L4 -> SICRO: JAN/2024-AP | Z4: BDI de Serviços: | AA4: =O4 -> 0.20796173 | AB4: =P4 -> 47428828.64 | AJ4: =X4 -> SICRO: JAN/2024-AP | AL4: BDI de Serviços: | AM4: =AA4 -> 0.20796173 | AN4: =AB4 -> 47428828.64 | AV4: =AJ4 -> SICRO: JAN/2024-AP | AX4: BDI de Serviços: | AY4: =AM4 -> 0.20796173
B5: Data base: | D5: =Orçamento!D5 -> ABRIL / 2024 | L5: =Orçamento!I5 -> ORSE: FEV/2024 | N5: BDI de Fornecimento: | O5: =Orçamento!L5 -> 0.146920122 | P5: =D5 -> ABRIL / 2024 | X5: ORSE: FEV/2024 | Z5: BDI de Fornecimento: | AA5: 0.146920122 | AB5: =P5 -> ABRIL / 2024 | AJ5: ORSE: FEV/2024 | AL5: BDI de Fornecimento: | AM5: 0.146920122 | AN5: =AB5 -> ABRIL / 2024 | AV5: ORSE: FEV/2024 | AX5: BDI de Fornecimento: | AY5: 0.146920122
D8: Mês 1 | E8: Mês 2 | F8: Mês 3 | G8: Mês 4 | H8: Mês 5 | I8: Mês 6 | J8: Mês 7 | K8: Mês 8 | L8: Mês 9 | M8: Mês 10 | N8: Mês 11 | O8: Mês 12 | P8: Mês 13 | Q8: Mês 14 | R8: Mês 15 | S8: Mês 16 | T8: Mês 17 | U8: Mês 18 | V8: Mês 19 | W8: Mês 20 | X8: Mês 21 | Y8: Mês 22 | Z8: Mês 23 | AA8: Mês 24 | AB8: Mês 25 | AC8: Mês 26 | AD8: Mês 27 | AE8: Mês 28 | AF8: Mês 29 | AG8: Mês 30 | AH8: Mês 31 | AI8: Mês 32 | AJ8: Mês 33 | AK8: Mês 34 | AL8: Mês 35 | AM8: Mês 36 | AN8: Mês 37 | AO8: Mês 38 | AP8: Mês 39 | AQ8: Mês 40 | AR8: Total
B9: Administração de Obras | C9: =Resumo!E9 -> 3480661.841 | D9: =D10*$C$9 -> 8079.815604 | E9: 18732.82089 | F9: 16924.24697 | G9: 22014.54788 | H9: 47582.62514 | I9: 53649.62652 | J9: 59716.6279 | K9: 83637.94764 | L9: 109032.682 | M9: 91178.36365 | N9: 17767.64691 | O9: 14647.47477 | P9: 60422.00403 | Q9: 91723.26075 | R9: 83689.39914 | S9: 49610.70719 | T9: 43233.80757 | U9: 163898.2577 | V9: 215600.3627 | W9: 229012.7092 | X9: 252582.5235 | Y9: 232598.4953 | Z9: 151858.2603 | AA9: 90271.49377 | AB9: 37303.73922 | AC9: 39969.10289 | AD9: 37269.19355 | AE9: 76246.29155 | AF9: 78661.16988 | AG9: 97930.97651 | AH9: 102390.1199 | AI9: 170422.6463 | AJ9: 141693.4298 | AK9: 91524.63917 | AL9: 74841.45146 | AM9: 96997.14933 | AN9: 119069.525 | AO9: 74224.37326 | AP9: 28979.23669 | AQ9: 5673.089204 | AR9: =SUM(D9:AQ9) -> 3480661.841
D10: 0.00232134461 | E10: 0.005381970943 | F10: 0.004862364613 | G10: 0.006324816625 | H10: 0.01367056822 | I10: 0.01541362792 | J10: 0.01715668762 | K10: 0.024029323 | L10: 0.03132527289 | M10: 0.0261956972 | N10: 0.005104674835 | O10: 0.004208244132 | P10: 0.01735934337 | Q10: 0.02635224706 | R10: 0.02404410511 | S10: 0.0142532396 | T10: 0.01242114562 | U10: 0.04708824506 | V10: 0.06194234676 | W10: 0.06579573646 | X10: 0.07256738375 | Y10: 0.06682593885 | Z10: 0.04362913355 | AA10: 0.02593515196 | AB10: 0.01071742701 | AC10: 0.01148319047 | AD10: 0.01070750198 | AE10: 0.02190568778 | AF10: 0.02259948638 | AG10: 0.02813573423 | AH10: 0.02941685362 | AI10: 0.04896271287 | AJ10: 0.04070876067 | AK10: 0.02629518274 | AL10: 0.02150207486 | AM10: 0.02786744411 | AN10: 0.03420887475 | AO10: 0.02132478725 | AP10: 0.008325783434 | AQ10: =1-SUM(D10:AP10) -> 0.001629888068 | AR10: 1
B11: Projeto Urbanístico | C11: =Resumo!E10 -> 4945324.985 | D11: =D12*$C$11 -> 0 | E11: 0 | F11: 83477.08574 | G11: 0 | H11: 0 | I11: 0 | J11: 0 | K11: 0 | L11: 0 | M11: 0 | N11: 0 | O11: 0 | P11: 190395.0119 | Q11: 785812.1401 | R11: 622121.8831 | S11: 192373.1419 | T11: 88521.31723 | U11: 0 | V11: 0 | W11: 0 | X11: 0 | Y11: 0 | Z11: 0 | AA11: 0 | AB11: 0 | AC11: 0 | AD11: 0 | AE11: 0 | AF11: 0 | AG11: 0 | AH11: 0 | AI11: 0 | AJ11: 0 | AK11: 0 | AL11: 17803.16995 | AM11: 736358.8902 | AN11: 1094894.952 | AO11: 721028.3828 | AP11: 345183.6839 | AQ11: 67355.32629 | AR11: 4945324.985
D12: 0 | E12: 0 | F12: 0.01688 | G12: 0 | H12: 0 | I12: 0 | J12: 0 | K12: 0 | L12: 0 | M12: 0 | N12: 0 | O12: 0 | P12: 0.0385 | Q12: 0.1589 | R12: 0.1258 | S12: 0.0389 | T12: =0.38-SUM(P12:S12) -> 0.0179 | U12: 0 | V12: 0 | W12: 0 | X12: 0 | Y12: 0 | Z12: 0 | AA12: 0 | AB12: 0 | AC12: 0 | AD12: 0 | AE12: 0 | AF12: 0 | AG12: 0 | AH12: 0 | AI12: 0 | AJ12: 0 | AK12: 0 | AL12: 0.0036 | AM12: 0.1489 | AN12: 0.2214 | AO12: 0.1458 | AP12: 0.0698 | AQ12: =1-SUM(D12:AP12) -> 0.01362 | AR12: 1
B13: Edificações Novas | C13: =Resumo!E11 -> 11742103.2 | D13: =D14*$C$13 -> 0 | E13: 0 | F13: 0 | G13: 298249.4214 | H13: 644641.4659 | I13: 726836.1883 | J13: 809030.9107 | K13: 1133112.959 | L13: 1477156.583 | M13: 1235269.257 | N13: 240713.1157 | O13: 198441.5441 | P13: 476729.3901 | Q13: 144427.8694 | R13: 146776.29 | S13: 135034.1868 | T13: 221925.7506 | U13: 228971.0125 | V13: 144427.8694 | W13: 130337.3456 | X13: 149124.7107 | Y13: 130337.3456 | Z13: 144427.8694 | AA13: 138556.8178 | AB13: 139731.0281 | AC13: 130337.3456 | AD13: 415670.4534 | AE13: 315862.5762 | AF13: 299423.6317 | AG13: 138556.8178 | AH13: 130337.3456 | AI13: 149124.7107 | AJ13: 130337.3456 | AK13: 144427.8694 | AL13: 138556.8178 | AM13: 247758.3776 | AN13: 221925.7506 | AO13: 185525.2306 | AP13: 0 | AQ13: 0 | AR13: 11742103.2
D14: 0 | E14: 0 | F14: 0 | G14: 0.0254 | H14: 0.0549 | I14: 0.0619 | J14: 0.0689 | K14: 0.0965 | L14: 0.1258 | M14: 0.1052 | N14: 0.0205 | O14: 0.0169 | P14: 0.0406 | Q14: 0.0123 | R14: 0.0125 | S14: 0.0115 | T14: 0.0189 | U14: 0.0195 | V14: 0.0123 | W14: 0.0111 | X14: 0.0127 | Y14: 0.0111 | Z14: 0.0123 | AA14: 0.0118 | AB14: 0.0119 | AC14: 0.0111 | AD14: 0.0354 | AE14: 0.0269 | AF14: 0.0255 | AG14: 0.0118 | AH14: 0.0111 | AI14: 0.0127 | AJ14: 0.0111 | AK14: 0.0123 | AL14: 0.0118 | AM14: 0.0211 | AN14: 0.0189 | AO14: =1-SUM(D14:AN14) -> 0.0158 | AP14: 0 | AQ14: 0 | AR14: 1
B15: Edificações a serem Reformadas | C15: =Resumo!E12 -> 448789.6395 | D15: =D16*$C$15 -> 98643.96277 | E15: 228703.2003 | F15: 121442.4765 | G15: 0 | H15: 0 | I15: 0 | J15: 0 | K15: 0 | L15: 0 | M15: 0 | N15: 0 | O15: 0 | P15: 0 | Q15: 0 | R15: 0 | S15: 0 | T15: 0 | U15: 0 | V15: 0 | W15: 0 | X15: 0 | Y15: 0 | Z15: 0 | AA15: 0 | AB15: 0 | AC15: 0 | AD15: 0 | AE15: 0 | AF15: 0 | AG15: 0 | AH15: 0 | AI15: 0 | AJ15: 0 | AK15: 0 | AL15: 0 | AM15: 0 | AN15: 0 | AO15: 0 | AP15: 0 | AQ15: 0 | AR15: 448789.6395
D16: 0.2198 | E16: 0.5096 | F16: =1-E16-D16 -> 0.2706 | G16: 0 | H16: 0 | I16: 0 | J16: 0 | K16: 0 | L16: 0 | M16: 0 | N16: 0 | O16: 0 | P16: 0 | Q16: 0 | R16: 0 | S16: 0 | T16: 0 | U16: 0 | V16: 0 | W16: 0 | X16: 0 | Y16: 0 | Z16: 0 | AA16: 0 | AB16: 0 | AC16: 0 | AD16: 0 | AE16: 0 | AF16: 0 | AG16: 0 | AH16: 0 | AI16: 0 | AJ16: 0 | AK16: 0 | AL16: 0 | AM16: 0 | AN16: 0 | AO16: 0 | AP16: 0 | AQ16: 0 | AR16: 1
B17: Projeto Viário | C17: =Resumo!E13 -> 5576665.45 | D17: =D18*$C$17 -> 0 | E17: 0 | F17: 0 | G17: 0 | H17: 0 | I17: 0 | J17: 0 | K17: 0 | L17: 0 | M17: 0 | N17: 0 | O17: 0 | P17: 0 | Q17: 0 | R17: 0 | S17: 0 | T17: 0 | U17: 0 | V17: 0 | W17: 0 | X17: 0 | Y17: 0 | Z17: 0 | AA17: 0 | AB17: 0 | AC17: 0 | AD17: 0 | AE17: 0 | AF17: 0 | AG17: 315081.5979 | AH17: 571608.2086 | AI17: 1499565.339 | AJ17: 1586561.32 | AK17: 924611.1316 | AL17: 571608.2086 | AM17: 107629.6432 | AN17: 0 | AO17: 0 | AP17: 0 | AQ17: 0 | AR17: 5576665.45
D18: 0 | E18: 0 | F18: 0 | G18: 0 | H18: 0 | I18: 0 | J18: 0 | K18: 0 | L18: 0 | M18: 0 | N18: 0 | O18: 0 | P18: 0 | Q18: 0 | R18: 0 | S18: 0 | T18: 0 | U18: 0 | V18: 0 | W18: 0 | X18: 0 | Y18: 0 | Z18: 0 | AA18: 0 | AB18: 0 | AC18: 0 | AD18: 0 | AE18: 0 | AF18: 0 | AG18: 0.0565 | AH18: 0.1025 | AI18: 0.2689 | AJ18: 0.2845 | AK18: 0.1658 | AL18: 0.1025 | AM18: =1-SUM(D18:AL18) -> 0.0193 | AN18: 0 | AO18: 0 | AP18: 0 | AQ18: 0 | AR18: 1
B19: Projeto de Drenagem | C19: =Resumo!E14 -> 1988510.362 | D19: =D20*$C$19 -> 0 | E19: 0 | F19: 0 | G19: 0 | H19: 0 | I19: 0 | J19: 0 | K19: 0 | L19: 0 | M19: 0 | N19: 0 | O19: 0 | P19: 91073.77459 | Q19: 150331.3834 | R19: 203822.3121 | S19: 230269.4999 | T19: 190101.5906 | U19: 196265.9728 | V19: 176380.8691 | W19: 164052.1049 | X19: 159279.68 | Y19: 156893.4676 | Z19: 139593.4274 | AA19: 130446.2798 | AB19: 0 | AC19: 0 | AD19: 0 | AE19: 0 | AF19: 0 | AG19: 0 | AH19: 0 | AI19: 0 | AJ19: 0 | AK19: 0 | AL19: 0 | AM19: 0 | AN19: 0 | AO19: 0 | AP19: 0 | AQ19: 0 | AR19: 1988510.362
D20: 0 | E20: 0 | F20: 0 | G20: 0 | H20: 0 | I20: 0 | J20: 0 | K20: 0 | L20: 0 | M20: 0 | N20: 0 | O20: 0 | P20: 0.0458 | Q20: 0.0756 | R20: 0.1025 | S20: 0.1158 | T20: 0.0956 | U20: 0.0987 | V20: 0.0887 | W20: 0.0825 | X20: 0.0801 | Y20: 0.0789 | Z20: 0.0702 | AA20: =1-SUM(B20:Z20) -> 0.0656 | AB20: 0 | AC20: 0 | AD20: 0 | AE20: 0 | AF20: 0 | AG20: 0 | AH20: 0 | AI20: 0 | AJ20: 0 | AK20: 0 | AL20: 0 | AM20: 0 | AN20: 0 | AO20: 0 | AP20: 0 | AQ20: 0 | AR20: 1
B21: Projeto de Iluminação e Eletrificação Pública | C21: =Resumo!E15 -> 371528.992 | D21: =D22*$C$21 -> 0 | E21: 0 | F21: 0 | G21: 0 | H21: 0 | I21: 0 | J21: 0 | K21: 0 | L21: 0 | M21: 0 | N21: 0 | O21: 0 | P21: 0 | Q21: 0 | R21: 0 | S21: 0 | T21: 0 | U21: 0 | V21: 0 | W21: 0 | X21: 0 | Y21: 0 | Z21: 0 | AA21: 0 | AB21: 0 | AC21: 0 | AD21: 0 | AE21: 0 | AF21: 0 | AG21: 0 | AH21: 0 | AI21: 0 | AJ21: 0 | AK21: 38081.72168 | AL21: 151918.2048 | AM21: 77612.40642 | AN21: 103916.6591 | AO21: 0 | AP21: 0 | AQ21: 0 | AR21: 371528.992
D22: 0 | E22: 0 | F22: 0 | G22: 0 | H22: 0 | I22: 0 | J22: 0 | K22: 0 | L22: 0 | M22: 0 | N22: 0 | O22: 0 | P22: 0 | Q22: 0 | R22: 0 | S22: 0 | T22: 0 | U22: 0 | V22: 0 | W22: 0 | X22: 0 | Y22: 0 | Z22: 0 | AA22: 0 | AB22: 0 | AC22: 0 | AD22: 0 | AE22: 0 | AF22: 0 | AG22: 0 | AH22: 0 | AI22: 0 | AJ22: 0 | AK22: 0.1025 | AL22: 0.4089 | AM22: 0.2089 | AN22: =1-SUM(E22:AM22) -> 0.2797 | AO22: 0 | AP22: 0 | AQ22: 0 | AR22: 1
B23: Projeto de Abastecimento de Água e Rede de Esgoto | C23: =Resumo!E16 -> 404271.0079 | D23: =D24*$C$23 -> 0 | E23: 0 | F23: 0 | G23: 0 | H23: 0 | I23: 0 | J23: 0 | K23: 0 | L23: 0 | M23: 0 | N23: 0 | O23: 0 | P23: 18515.61216 | Q23: 30562.8882 | R23: 41437.77831 | S23: 46814.58272 | T23: 38648.30836 | U23: 39901.54848 | V23: 35858.8384 | W23: 33352.35815 | X23: 32382.10774 | Y23: 31896.98253 | Z23: 28379.82476 | AA23: 26520.17812 | AB23: 0 | AC23: 0 | AD23: 0 | AE23: 0 | AF23: 0 | AG23: 0 | AH23: 0 | AI23: 0 | AJ23: 0 | AK23: 0 | AL23: 0 | AM23: 0 | AN23: 0 | AO23: 0 | AP23: 0 | AQ23: 0 | AR23: 404271.0079
D24: 0 | E24: 0 | F24: 0 | G24: 0 | H24: 0 | I24: 0 | J24: 0 | K24: 0 | L24: 0 | M24: 0 | N24: 0 | O24: 0 | P24: 0.0458 | Q24: 0.0756 | R24: 0.1025 | S24: 0.1158 | T24: 0.0956 | U24: 0.0987 | V24: 0.0887 | W24: 0.0825 | X24: 0.0801 | Y24: 0.0789 | Z24: 0.0702 | AA24: =1-SUM(B24:Z24) -> 0.0656 | AB24: 0 | AC24: 0 | AD24: 0 | AE24: 0 | AF24: 0 | AG24: 0 | AH24: 0 | AI24: 0 | AJ24: 0 | AK24: 0 | AL24: 0 | AM24: 0 | AN24: 0 | AO24: 0 | AP24: 0 | AQ24: 0 | AR24: 1
B25: Estruturas de Contenção | C25: =Resumo!E17 -> 15569840.89 | D25: =D26*$C$25 -> 0 | E25: 0 | F25: 0 | G25: 0 | H25: 0 | I25: 0 | J25: 0 | K25: 0 | L25: 0 | M25: 0 | N25: 0 | O25: 0 | P25: 0 | Q25: 0 | R25: 0 | S25: 0 | T25: 0 | U25: 1647289.166 | V25: 2425781.21 | W25: 2629746.126 | X25: 2924016.118 | Y25: 2685797.553 | Z25: 1647289.166 | AA25: 865683.1532 | AB25: 350321.4199 | AC25: 393916.9744 | AD25: 0 | AE25: 0 | AF25: 0 | AG25: 0 | AH25: 0 | AI25: 0 | AJ25: 0 | AK25: 0 | AL25: 0 | AM25: 0 | AN25: 0 | AO25: 0 | AP25: 0 | AQ25: 0 | AR25: 15569840.89
D26: 0 | E26: 0 | F26: 0 | G26: 0 | H26: 0 | I26: 0 | J26: 0 | K26: 0 | L26: 0 | M26: 0 | N26: 0 | O26: 0 | P26: 0 | Q26: 0 | R26: 0 | S26: 0 | T26: 0 | U26: 0.1058 | V26: 0.1558 | W26: 0.1689 | X26: 0.1878 | Y26: 0.1725 | Z26: 0.1058 | AA26: 0.0556 | AB26: 0.0225 | AC26: =1-SUM(D26:AB26) -> 0.0253 | AD26: 0 | AE26: 0 | AF26: 0 | AG26: 0 | AH26: 0 | AI26: 0 | AJ26: 0 | AK26: 0 | AL26: 0 | AM26: 0 | AN26: 0 | AO26: 0 | AP26: 0 | AQ26: 0 | AR26: 1
B27: Estruturas de Acesso e Embarcação | C27: =Resumo!E18 -> 2901132.277 | D27: =D28*$C$27 -> 0 | E27: 0 | F27: 0 | G27: 0 | H27: 0 | I27: 0 | J27: 0 | K27: 0 | L27: 0 | M27: 0 | N27: 0 | O27: 0 | P27: 0 | Q27: 0 | R27: 0 | S27: 0 | T27: 0 | U27: 0 | V27: 0 | W27: 0 | X27: 0 | Y27: 0 | Z27: 0 | AA27: 0 | AB27: 0 | AC27: 0 | AD27: 74268.98629 | AE27: 596762.9093 | AF27: 637668.8744 | AG27: 693080.5009 | AH27: 509438.8278 | AI27: 389912.178 | AJ27: 0 | AK27: 0 | AL27: 0 | AM27: 0 | AN27: 0 | AO27: 0 | AP27: 0 | AQ27: 0 | AR27: 2901132.277
D28: 0 | E28: 0 | F28: 0 | G28: 0 | H28: 0 | I28: 0 | J28: 0 | K28: 0 | L28: 0 | M28: 0 | N28: 0 | O28: 0 | P28: 0 | Q28: 0 | R28: 0 | S28: 0 | T28: 0 | U28: 0 | V28: 0 | W28: 0 | X28: 0 | Y28: 0 | Z28: 0 | AA28: 0 | AB28: 0 | AC28: 0 | AD28: 0.0256 | AE28: 0.2057 | AF28: 0.2198 | AG28: 0.2389 | AH28: 0.1756 | AI28: =1-SUM(AD28:AH28) -> 0.1344 | AJ28: 0 | AK28: 0 | AL28: 0 | AM28: 0 | AN28: 0 | AO28: 0 | AP28: 0 | AQ28: 0 | AR28: 1
B30: NO MÊS | D30: =D9+D11+D13+D15+D17+D19+D21+D23+D25+D27 -> 106723.7784 | E30: 247436.0212 | F30: 221843.8092 | G30: 320263.9693 | H30: 692224.091 | I30: 780485.8148 | J30: 868747.5386 | K30: 1216750.907 | L30: 1586189.265 | M30: 1326447.621 | N30: 258480.7626 | O30: 213089.0189 | P30: 837135.7928 | Q30: 1202857.542 | R30: 1097847.663 | S30: 654102.1186 | T30: 582430.7743 | U30: 2276325.957 | V30: 2998049.15 | W30: 3186500.643 | X30: 3517385.14 | Y30: 3237523.844 | Z30: 2111548.548 | AA30: 1251477.923 | AB30: 527356.1873 | AC30: 564223.4229 | AD30: 527208.6332 | AE30: 988871.7771 | AF30: 1015753.676 | AG30: 1244649.893 | AH30: 1313774.502 | AI30: 2209024.874 | AJ30: 1858592.096 | AK30: 1198645.362 | AL30: 954727.8526 | AM30: 1266356.467 | AN30: 1539806.886 | AO30: 980777.9867 | AP30: 374162.9206 | AQ30: 73028.4155 | AR30: =SUM(D30:AQ30) -> 47428828.64
D31: =D30/SUM($C$9:$C$28) -> 0.002250187943 | E31: =E30/SUM($C$9:$C$28) -> 0.00521699625 | F31: 0.004677404345 | G31: 0.006752516948 | H31: 0.0145950071 | I31: 0.01645593697 | J31: 0.01831686684 | K31: 0.02565424746 | L31: 0.03344356819 | M31: 0.02796711744 | N31: 0.005449866041 | O31: 0.004492816395 | P31: 0.01765035774 | Q31: 0.02536131666 | R31: 0.02314726495 | S31: 0.01379123494 | T31: 0.01228010033 | U31: 0.04799456411 | V31: 0.06321153685 | W31: 0.06718489017 | X31: 0.07416133269 | Y31: 0.06826067471 | Z31: 0.04452036046 | AA31: 0.02638643961 | AB31: 0.01111889546 | AC31: 0.01189621247 | AD31: 0.01111578439 | AE31: 0.02084959307 | AF31: 0.02141637702 | AG31: 0.02624247591 | AH31: 0.02769991458 | AI31: 0.04657557308 | AJ31: 0.03918697023 | AK31: 0.02527250611 | AL31: 0.02012969495 | AM31: 0.02670014215 | AN31: 0.03246563177 | AO31: 0.02067894179 | AP31: 0.007888934459 | AQ31: 0.001539747398 | AR31: =SUM(D31:AQ31) -> 1
B32: ACUMULADO | D32: =D30 -> 106723.7784 | E32: =D32+E30 -> 354159.7996 | F32: 576003.6087 | G32: 896267.578 | H32: 1588491.669 | I32: 2368977.484 | J32: 3237725.022 | K32: =J32+K30 -> 4454475.929 | L32: 6040665.194 | M32: 7367112.815 | N32: 7625593.578 | O32: 7838682.597 | P32: 8675818.389 | Q32: 9878675.931 | R32: 10976523.59 | S32: 11630625.71 | T32: 12213056.49 | U32: 14489382.44 | V32: 17487431.59 | W32: 20673932.24 | X32: 24191317.38 | Y32: 27428841.22 | Z32: 29540389.77 | AA32: 30791867.69 | AB32: 31319223.88 | AC32: 31883447.3 | AD32: 32410655.93 | AE32: 33399527.71 | AF32: 34415281.39 | AG32: 35659931.28 | AH32: 36973705.78 | AI32: 39182730.66 | AJ32: 41041322.75 | AK32: 42239968.12 | AL32: 43194695.97 | AM32: 44461052.43 | AN32: 46000859.32 | AO32: 46981637.31 | AP32: 47355800.23 | AQ32: 47428828.64
D33: =D31 -> 0.002250187943 | E33: =D33+E31 -> 0.007467184193 | F33: 0.01214458854 | G33: 0.01889710549 | H33: 0.03349211259 | I33: 0.04994804956 | J33: 0.0682649164 | K33: =J33+K31 -> 0.09391916387 | L33: 0.1273627321 | M33: 0.1553298495 | N33: 0.1607797155 | O33: 0.1652725319 | P33: 0.1829228897 | Q33: 0.2082842063 | R33: 0.2314314713 | S33: 0.2452227062 | T33: 0.2575028065 | U33: 0.3054973707 | V33: 0.3687089075 | W33: 0.4358937977 | X33: 0.5100551304 | Y33: 0.5783158051 | Z33: 0.6228361655 | AA33: 0.6492226052 | AB33: 0.6603415006 | AC33: 0.6722377131 | AD33: 0.6833534975 | AE33: 0.7042030906 | AF33: 0.7256194676 | AG33: 0.7518619435 | AH33: 0.7795618581 | AI33: 0.8261374311 | AJ33: 0.8653244014 | AK33: 0.8905969075 | AL33: 0.9107266024 | AM33: 0.9374267446 | AN33: 0.9698923764 | AO33: 0.9905713181 | AP33: 0.9984602526 | AQ33: 1

Sheet Curva ABC (hidden)
B2: QUADRO DEMONSTRATIVO DO ORÇAMENTO
B3: Obra: Realização das obras de revitalização do setor comercial e portuário do município de Santana, no estado do Amapá | H3: BDIs adotados: | K3: Com Desoneração
G4: Base de Preço: | H4: Serviços | K4: =BDI!C77 -> 0.3026049495
H5: Fornecimento | K5: =BDI!C103 -> 0.2031110915
B8: Item | C8: Código | E8: DESCRIÇÃO | F8: UND | G8: QUANT | H8: PREÇO | K8: TOTAL COM DESONERAÇÃO | L8: % | M8: ACUMULADO
H9: Custo Direto | I9: BDI | J9: Custo com BDI
I10: =$K$4 -> 0.3026049495 | J10: =H10*(1+I10) -> 0 | K10: =J10*G10 -> 0 | L10: =K10/$K$1467 ->  | M10: =L10 -> 
I11: 0.3026049495 | J11: 0 | K11: 0 | M11: =L11+M10 -> 
I12: 0.3026049495 | J12: 0 | K12: 0
J13: 0 | K13: 0
J14: 0 | K14: 0
J15: 0 | K15: 0
J16: 0 | K16: 0
J17: 0 | K17: 0
J18: 0 | K18: 0
J19: 0 | K19: 0
J20: =H20*(I20+1) -> 0 | K20: 0
J21: =H21*(1+I21) -> 0 | K21: 0
J22: 0 | K22: 0
J23: 0 | K23: 0
J24: 0 | K24: 0
J25: 0 | K25: 0
J26: 0 | K26: 0
J27: 0 | K27: 0
J28: 0 | K28: 0
J29: 0 | K29: 0
J30: 0 | K30: 0
J31: 0 | K31: 0
J32: 0 | K32: 0
J33: 0 | K33: 0
J34: 0 | K34: 0
J35: 0 | K35: 0
J36: 0 | K36: 0
J37: 0 | K37: 0
J38: 0 | K38: 0
J39: 0 | K39: 0
J40: 0 | K40: 0
J41: 0 | K41: 0
J42: 0 | K42: 0
J43: 0 | K43: 0
J44: 0 | K44: 0
J45: 0 | K45: 0
J46: 0 | K46: 0
J47: 0 | K47: 0
J48: 0 | K48: 0
J49: 0 | K49: 0
J50: 0 | K50: 0
J51: 0 | K51: 0
J52: 0 | K52: 0
J53: 0 | K53: 0
J54: 0 | K54: 0
J55: 0 | K55: 0
J56: 0 | K56: 0
J57: 0 | K57: 0
J58: 0 | K58: 0
J59: 0 | K59: 0
J60: 0 | K60: 0
J61: 0 | K61: 0
J62: 0 | K62: 0
J63: 0 | K63: 0
J64: 0 | K64: 0
J65: 0 | K65: 0
J66: 0 | K66: 0
J67: 0 | K67: 0
J68: 0 | K68: 0
J69: 0 | K69: 0
J70: 0 | K70: 0
J71: 0 | K71: 0
J72: 0 | K72: 0
J73: 0 | K73: 0
J74: 0 | K74: =J74*G74 -> 0 | L74: =K74/$K$1467 -> 
J75: 0 | K75: 0 | M75: =L75+M74 -> 
J76: 0 | K76: 0
J77: 0 | K77: 0
J78: 0 | K78: 0
J79: 0 | K79: 0
J80: 0 | K80: 0
J81: 0 | K81: 0
J82: 0 | K82: 0
J83: 0 | K83: 0
J84: 0 | K84: 0
J85: =H85*(1+I85) -> 0 | K85: 0
J86: 0 | K86: 0
J87: 0 | K87: 0
J88: 0 | K88: 0
J89: 0 | K89: 0
J90: 0 | K90: 0
J91: 0 | K91: 0
J92: 0 | K92: 0
J93: 0 | K93: 0
J94: 0 | K94: 0
J95: 0 | K95: 0
J96: 0 | K96: 0
J97: 0 | K97: 0
J98: 0 | K98: 0
J99: 0 | K99: 0
J100: 0 | K100: 0
J101: 0 | K101: 0
J102: 0 | K102: 0
J103: 0 | K103: 0
J104: 0 | K104: 0
J105: 0 | K105: 0
J106: 0 | K106: 0
J107: 0 | K107: 0
J108: 0 | K108: 0
J109: 0 | K109: 0
J110: 0 | K110: 0
J111: 0 | K111: 0
J112: 0 | K112: 0
J113: 0 | K113: 0
J114: 0 | K114: 0
J115: 0 | K115: 0
J116: 0 | K116: 0
J117: 0 | K117: 0
J118: 0 | K118: 0
J119: 0 | K119: 0
J120: 0 | K120: 0
J121: 0 | K121: 0
J122: 0 | K122: 0
J123: 0 | K123: 0
J124: 0 | K124: 0
J125: 0 | K125: 0
J126: 0 | K126: 0
J127: 0 | K127: 0
J128: 0 | K128: 0
J129: 0 | K129: 0
J130: 0 | K130: 0
J131: 0 | K131: 0
J132: 0 | K132: 0
J133: 0 | K133: 0
J134: 0 | K134: 0
J135: 0 | K135: 0
J136: 0 | K136: 0
J137: 0 | K137: 0
J138: 0 | K138: =J138*G138 -> 0 | L138: =K138/$K$1467 -> 
J139: 0 | K139: 0 | M139: =L139+M138 -> 
J140: 0 | K140: 0
J141: 0 | K141: 0
J142: 0 | K142: 0
J143: 0 | K143: 0
J144: 0 | K144: 0
J145: 0 | K145: 0
J146: 0 | K146: 0
J147: 0 | K147: 0
J148: 0 | K148: 0
J149: =H149*(1+I149) -> 0 | K149: 0
J150: 0 | K150: 0
J151: 0 | K151: 0
J152: 0 | K152: 0
J153: 0 | K153: 0
J154: 0 | K154: 0
J155: 0 | K155: 0
J156: 0 | K156: 0
J157: 0 | K157: 0
J158: 0 | K158: 0
J159: 0 | K159: 0
J160: 0 | K160: 0
J161: 0 | K161: 0
J162: 0 | K162: 0
J163: 0 | K163: 0
J164: 0 | K164: 0
J165: 0 | K165: 0
J166: 0 | K166: 0
J167: 0 | K167: 0
J168: 0 | K168: 0
J169: 0 | K169: 0
J170: 0 | K170: 0
J171: 0 | K171: 0
J172: 0 | K172: 0
J173: 0 | K173: 0
J174: 0 | K174: 0
J175: 0 | K175: 0
J176: 0 | K176: 0
J177: 0 | K177: 0
J178: 0 | K178: 0
J179: 0 | K179: 0
J180: 0 | K180: 0
J181: 0 | K181: 0
J182: 0 | K182: 0
J183: 0 | K183: 0
J184: 0 | K184: 0
J185: 0 | K185: 0
J186: 0 | K186: 0
J187: 0 | K187: 0
J188: 0 | K188: 0
J189: 0 | K189: 0
J190: 0 | K190: 0
J191: 0 | K191: 0
J192: 0 | K192: 0
J193: 0 | K193: 0
J194: 0 | K194: 0
J195: 0 | K195: 0
J196: 0 | K196: 0
J197: 0 | K197: 0
J198: 0 | K198: 0
J199: 0 | K199: 0
J200: 0 | K200: 0
J201: 0 | K201: 0
J202: 0 | K202: =J202*G202 -> 0 | L202: =K202/$K$1467 -> 
J203: 0 | K203: 0 | M203: =L203+M202 -> 
... 1264 more rows

Sheet Adm Local
B4: Referência | C4: Código | D4: Banco | E4: DESCRIÇÃO | F4: UND | G4: QUANT | H4: PREÇO SEM DESONERAÇÃO | I4: TOTAL SEM DESONERAÇÃO
H5: Custo Direto
B6: Composição Sinapi | C6: 93567 | D6: Sinapi | E6: ENGENHEIRO CIVIL DE OBRA PLENO COM ENCARGOS COMPLEMENTARES | F6: MES | G6: 20 | H6: =VLOOKUP(C6&D6,'TABELA SICRO-SINAPI-ORSE'!A:G,7,FALSE) -> 22062.55 | I6: =H6*G6 -> 441251
B7: Composição Sinapi | C7: 93565 | D7: Sinapi | E7: ENGENHEIRO CIVIL DE OBRA JUNIOR COM ENCARGOS COMPLEMENTARES | F7: MES | G7: 40 | H7: =VLOOKUP(C7&D7,'TABELA SICRO-SINAPI-ORSE'!A:G,7,FALSE) -> 21036.16 | I7: 841446.4
B8: Composição Sinapi | C8: 93569 | D8: Sinapi | E8: ARQUITETO JUNIOR COM ENCARGOS COMPLEMENTARES | F8: MES | G8: 15 | H8: =VLOOKUP(C8&D8,'TABELA SICRO-SINAPI-ORSE'!A:G,7,FALSE) -> 20543.62 | I8: 308154.3
B9: Composição Sinapi | C9: 88326 | D9: Sinapi | E9: VIGIA NOTURNO COM ENCARGOS COMPLEMENTARES | F9: H | G9: 17520 | H9: 22.25 | I9: 389820
B10: Composição Sinapi | C10: 93572 | D10: Sinapi | E10: ENCARREGADO GERAL DE OBRAS COM ENCARGOS COMPLEMENTARES | F10: MES | G10: 60 | H10: =VLOOKUP(C10&D10,'TABELA SICRO-SINAPI-ORSE'!A:G,7,FALSE) -> 4475.28 | I10: 268516.8
B11: Composição Sinapi | C11: 93563 | D11: Sinapi | E11: TÉCNICO DE SEGURANÇA DO TRABALHO | F11: MES | G11: 24 | H11: =VLOOKUP(C11&D11,'TABELA SICRO-SINAPI-ORSE'!A:G,7,FALSE) -> 3784.82 | I11: 90835.68
B12: Composição Sinapi | C12: 93566 | D12: Sinapi | E12: AUXILIAR DE ESCRITORIO COM ENCARGOS COMPLEMENTARES | F12: MES | G12: 60 | H12: =VLOOKUP(C12&D12,'TABELA SICRO-SINAPI-ORSE'!A:G,7,FALSE) -> 2800.22 | I12: 168013.2
B13: Composição Sinapi | C13: 94296 | D13: Sinapi | E13: TOPOGRAFO COM ENCARGOS COMPLEMENTARES | F13: MES | G13: 40 | H13: =VLOOKUP(C13&D13,'TABELA SICRO-SINAPI-ORSE'!A:G,7,FALSE) -> 4322.84 | I13: 172913.6
B14: Composição Sinapi | C14: 93564 | D14: Sinapi | E14: APONTADOR OU APROPRIADOR COM ENCARGOS COMPLEMENTARES | F14: MES | G14: 20 | H14: =VLOOKUP(C14&D14,'TABELA SICRO-SINAPI-ORSE'!A:G,7,FALSE) -> 3306.53 | I14: 66130.6
B15: Composição Própria | C15: 1.3 | D15: CODE | E15: VEÍCULO LEVE | F15: MES | G15: 40 | H15: ='CPU-VEICULO_Leve'!D7 -> 3358.807213 | I15: 134352.2885
E17: Total | I17: =SUM(I6:I15) -> 2881433.869

Sheet BDI
A1: SEM DESONERAÇÃO
A3: MEMÓRIA DE CALCULO DO BDI DE SERVIÇOS
A5: ITEM | B5: DISCRIMINAÇÃO | C5: PERC. (%)
A7: 1.00 | B7: Despesas Indiretas
A8: A1 | B8: Seguro e Garantia | C8: 0.008
A9: A2 | B9: Riscos e Imprevistos | C9: 0.01
A10: A3 | B10: Despesas Financeiras | C10: 0.0065
A11: A4 | B11: Administração Central | C11: 0.032
A12: Total do Grupo A = | C12: =SUM(C8:C11) -> 0.0565
A13: 2.00 | B13: Benefício
A14: B-1 | B14: LUCRO | C14: 0.067
A15: Total do Grupo B = | C15: =C14 -> 0.067
A16: 3.00 | B16: Impostos
A17: C-1 | B17: PIS / PASEP | C17: 0.0065
A18: C-2 | B18: COFINS | C18: 0.03
A19: C-3 | B19: ISS | C19: 0.03
A20: Total do Grupo C = | C20: =SUM(C17:C19) -> 0.0665
A21: Fórmula Para Cálculo do B.D.I
A22: BDI =(((1+A4+A1+A2)*(1+A3)*(1+B))/(1-C))-1
A24: Bonificação Sobre Despesas indiretas (B.D.I) = | C24: =(((1+C11+C8+C9)*(1+C10)*(1+C15))/(1-C20))-1 -> 0.20796173
A28: MEMÓRIA DE CALCULO DO BDI DE FORNECIMENTO
A30: ITEM | B30: DISCRIMINAÇÃO | C30: PERC. (%)
A33: 1.00 | B33: Despesas Indiretas
A34: A1 | B34: Seguro e Garantia | C34: 0.008
A35: A2 | B35: Riscos e Imprevistos | C35: 0.0115
A36: A3 | B36: Despesas Financeiras | C36: 0.0105
A37: A4 | B37: Administração Central | C37: 0.022
A38: Total do Grupo A = | C38: =SUM(C34:C37) -> 0.052
A39: 2.00 | B39: Benefício
A40: B1 | B40: LUCRO | C40: 0.05
A41: Total do Grupo B = | C41: =C40 -> 0.05
A42: 3.00 | B42: Impostos
A43: C1 | B43: PIS / PASEP | C43: 0.0065
A44: C2 | B44: COFINS | C44: 0.03
A45: C3 | B45: ISS | C45: 0
A46: Total do Grupo C = | C46: =SUM(C43:C45) -> 0.0365
A47: Fórmula Para Cálculo do B.D.I
A48: BDI =(((1+A4+A1+A2)*(1+A3)*(1+B))/(1-C))-1
A50: Bonificação Sobre Despesas indiretas (B.D.I) = | C50: =(((1+C37+C34+C35)*(1+C36)*(1+C41))/(1-C46))-1 -> 0.146920122
A53: COM DESONERAÇÃO
A55: MEMÓRIA DE CALCULO DO BDI DE SERVIÇOS
A57: ITEM | B57: DISCRIMINAÇÃO | C57: PERC. (%)
A59: 1.00 | B59: Despesas Indiretas
A60: A1 | B60: Seguro e Garantia | C60: 0.008
A61: A2 | B61: Riscos e Imprevistos | C61: 0.014
A62: A3 | B62: Despesas Financeiras | C62: 0.0105
A63: A4 | B63: Administração Central | C63: 0.0353
A64: Total do Grupo A = | C64: =SUM(C60:C63) -> 0.0678
A65: 2.00 | B65: Benefício
A66: B-1 | B66: LUCRO | C66: 0.079
A67: Total do Grupo B = | C67: =SUM(C66) -> 0.079
A68: 3.00 | B68: Impostos
A69: C-1 | B69: PIS / PASEP | C69: 0.0065
A70: C-2 | B70: COFINS | C70: 0.0135
A71: C-3 | B71: ISS | C71: 0.05
A72: C-4 | B72: CONTRIBUIÇÂO INSS (DESONERAÇÂO) | C72: 0.045
A73: Total do Grupo C = | C73: =SUM(C69:C72) -> 0.115
A74: Fórmula Para Cálculo do B.D.I
A75: BDI =(((1+A4+A1+A2)*(1+A3)*(1+B))/(1-C))-1
A77: Bonificação Sobre Despesas indiretas (B.D.I) = | C77: =(((1+C63+C60+C61)*(1+C62)*(1+C67))/(1-C73))-1 -> 0.3026049495
A80: MEMÓRIA DE CALCULO DO BDI DE FORNECIMENTO
A82: ITEM | B82: DISCRIMINAÇÃO | C82: PERC. (%)
A85: 1.00 | B85: Despesas Indiretas
A86: A1 | B86: Seguro e Garantia | C86: 0.008
A87: A2 | B87: Riscos e Imprevistos | C87: 0.0115
A88: A3 | B88: Despesas Financeiras | C88: 0.0105
A89: A4 | B89: Administração Central | C89: 0.022
A90: Total do Grupo A = | C90: =SUM(C86:C89) -> 0.052
A91: 2.00 | B91: Benefício
A92: B1 | B92: LUCRO | C92: 0.05
A93: Total do Grupo B = | C93: =SUM(C92) -> 0.05
A94: 3.00 | B94: Impostos
A95: C1 | B95: PIS / PASEP | C95: 0.0065
A96: C2 | B96: COFINS | C96: 0.03
A97: C3 | B97: ISS | C97: 0
A98: C-4 | B98: CONTRIBUIÇÂO INSS (DESONERAÇÂO) | C98: 0.045
A99: Total do Grupo C = | C99: =SUM(C95:C98) -> 0.0815
A100: Fórmula Para Cálculo do B.D.I
A101: BDI =(((1+A4+A1+A2)*(1+A3)*(1+B))/(1-C))-1
A103: Bonificação Sobre Despesas indiretas (B.D.I) = | C103: =(((1+C89+C86+C87)*(1+C88)*(1+C93))/(1-C99))-1 -> 0.2031110915

Sheet TABELA SICRO-SINAPI-ORSE
B1: MES DE COLETA: 03/2024
B2: LOCALIDADE: 0320 - MACAPA
B3: ENCARGOS SOCIAIS (%) HORISTA 115,81 MENSALISTA 69,84
A5: AUXILIAR | B5: CODIGO | C5: Banco | D5: DESCRICAO DO INSUMO/SERVIÇO | E5: UNIDADE | F5: ORIGEM DO PRECO | G5: Custo Unitário (R$)
A6: =B6&C6 -> 38605SINAPI | B6: 38605 | C6: SINAPI | D6: ABERTURA PARA ENCAIXE DE CUBA OU LAVATORIO EM BANCADA DE MARMORE/ GRANITO OU OUTRO TIPO DE PEDRA NATURAL | E6: UN | F6: CR | G6: 195.46
A7: =B7&C7 -> 11270SINAPI | B7: 11270 | C7: SINAPI | D7: ABRACADEIRA DE LATAO PARA FIXACAO DE CABO PARA-RAIO, DIMENSOES 32 X 24 X 24 MM | E7: UN | F7: CR | G7: 2.5
A8: 412SINAPI | B8: 412 | C8: SINAPI | D8: ABRACADEIRA DE NYLON PARA AMARRACAO DE CABOS, COMPRIMENTO DE *230* X *7,6* MM | E8: UN | F8: CR | G8: 1.08
A9: 414SINAPI | B9: 414 | C9: SINAPI | D9: ABRACADEIRA DE NYLON PARA AMARRACAO DE CABOS, COMPRIMENTO DE 100 X 2,5 MM | E9: UN | F9: CR | G9: 0.06
A10: 410SINAPI | B10: 410 | C10: SINAPI | D10: ABRACADEIRA DE NYLON PARA AMARRACAO DE CABOS, COMPRIMENTO DE 150 X *3,6* MM | E10: UN | F10: CR | G10: 0.16
A11: 411SINAPI | B11: 411 | C11: SINAPI | D11: ABRACADEIRA DE NYLON PARA AMARRACAO DE CABOS, COMPRIMENTO DE 200 X *4,6* MM | E11: UN | F11: C | G11: 0.21
A12: 408SINAPI | B12: 408 | C12: SINAPI | D12: ABRACADEIRA DE NYLON PARA AMARRACAO DE CABOS, COMPRIMENTO DE 390 X *4,6* MM | E12: UN | F12: CR | G12: 1.04
A13: 39131SINAPI | B13: 39131 | C13: SINAPI | D13: ABRACADEIRA EM ACO PARA AMARRACAO DE ELETRODUTOS, TIPO D, COM 1 1/2" E CUNHA DE FIXACAO | E13: UN | F13: CR | G13: 5.65
A14: 394SINAPI | B14: 394 | C14: SINAPI | D14: ABRACADEIRA EM ACO PARA AMARRACAO DE ELETRODUTOS, TIPO D, COM 1 1/2" E PARAFUSO DE FIXACAO | E14: UN | F14: CR | G14: 5.72
A15: 39130SINAPI | B15: 39130 | C15: SINAPI | D15: ABRACADEIRA EM ACO PARA AMARRACAO DE ELETRODUTOS, TIPO D, COM 1 1/4" E CUNHA DE FIXACAO | E15: UN | F15: CR | G15: 5.15
A16: 395SINAPI | B16: 395 | C16: SINAPI | D16: ABRACADEIRA EM ACO PARA AMARRACAO DE ELETRODUTOS, TIPO D, COM 1 1/4" E PARAFUSO DE FIXACAO | E16: UN | F16: CR | G16: 5.5
A17: 39127SINAPI | B17: 39127 | C17: SINAPI | D17: ABRACADEIRA EM ACO PARA AMARRACAO DE ELETRODUTOS, TIPO D, COM 1/2" E CUNHA DE FIXACAO | E17: UN | F17: CR | G17: 2.71
A18: 392SINAPI | B18: 392 | C18: SINAPI | D18: ABRACADEIRA EM ACO PARA AMARRACAO DE ELETRODUTOS, TIPO D, COM 1/2" E PARAFUSO DE FIXACAO | E18: UN | F18: CR | G18: 2.79
A19: 39129SINAPI | B19: 39129 | C19: SINAPI | D19: ABRACADEIRA EM ACO PARA AMARRACAO DE ELETRODUTOS, TIPO D, COM 1" E CUNHA DE FIXACAO | E19: UN | F19: CR | G19: 3.17
A20: 393SINAPI | B20: 393 | C20: SINAPI | D20: ABRACADEIRA EM ACO PARA AMARRACAO DE ELETRODUTOS, TIPO D, COM 1" E PARAFUSO DE FIXACAO | E20: UN | F20: C | G20: 3.32
A21: 39133SINAPI | B21: 39133 | C21: SINAPI | D21: ABRACADEIRA EM ACO PARA AMARRACAO DE ELETRODUTOS, TIPO D, COM 2 1/2" E CUNHA DE FIXACAO | E21: UN | F21: CR | G21: 7.41
A22: 397SINAPI | B22: 397 | C22: SINAPI | D22: ABRACADEIRA EM ACO PARA AMARRACAO DE ELETRODUTOS, TIPO D, COM 2 1/2" E PARAFUSO DE FIXACAO | E22: UN | F22: CR | G22: 8.19
A23: 39132SINAPI | B23: 39132 | C23: SINAPI | D23: ABRACADEIRA EM ACO PARA AMARRACAO DE ELETRODUTOS, TIPO D, COM 2" E CUNHA DE FIXACAO | E23: UN | F23: CR | G23: 5.93
A24: 396SINAPI | B24: 396 | C24: SINAPI | D24: ABRACADEIRA EM ACO PARA AMARRACAO DE ELETRODUTOS, TIPO D, COM 2" E PARAFUSO DE FIXACAO | E24: UN | F24: CR | G24: 6.35
A25: 39135SINAPI | B25: 39135 | C25: SINAPI | D25: ABRACADEIRA EM ACO PARA AMARRACAO DE ELETRODUTOS, TIPO D, COM 3 1/2" E CUNHA DE FIXACAO | E25: UN | F25: CR | G25: 11.86
A26: 39128SINAPI | B26: 39128 | C26: SINAPI | D26: ABRACADEIRA EM ACO PARA AMARRACAO DE ELETRODUTOS, TIPO D, COM 3/4" E CUNHA DE FIXACAO | E26: UN | F26: CR | G26: 2.96
A27: 400SINAPI | B27: 400 | C27: SINAPI | D27: ABRACADEIRA EM ACO PARA AMARRACAO DE ELETRODUTOS, TIPO D, COM 3/4" E PARAFUSO DE FIXACAO | E27: UN | F27: CR | G27: 2.89
A28: 39125SINAPI | B28: 39125 | C28: SINAPI | D28: ABRACADEIRA EM ACO PARA AMARRACAO DE ELETRODUTOS, TIPO D, COM 3/8" E PARAFUSO DE FIXACAO | E28: UN | F28: CR | G28: 2.96
A29: 39134SINAPI | B29: 39134 | C29: SINAPI | D29: ABRACADEIRA EM ACO PARA AMARRACAO DE ELETRODUTOS, TIPO D, COM 3" E CUNHA DE FIXACAO | E29: UN | F29: CR | G29: 9.88
A30: 398SINAPI | B30: 398 | C30: SINAPI | D30: ABRACADEIRA EM ACO PARA AMARRACAO DE ELETRODUTOS, TIPO D, COM 3" E PARAFUSO DE FIXACAO | E30: UN | F30: CR | G30: 9.11
A31: 39126SINAPI | B31: 39126 | C31: SINAPI | D31: ABRACADEIRA EM ACO PARA AMARRACAO DE ELETRODUTOS, TIPO D, COM 4" E CUNHA DE FIXACAO | E31: UN | F31: CR | G31: 13.35
A32: 399SINAPI | B32: 399 | C32: SINAPI | D32: ABRACADEIRA EM ACO PARA AMARRACAO DE ELETRODUTOS, TIPO D, COM 4" E PARAFUSO DE FIXACAO | E32: UN | F32: CR | G32: 11.76
A33: 39158SINAPI | B33: 39158 | C33: SINAPI | D33: ABRACADEIRA EM ACO PARA AMARRACAO DE ELETRODUTOS, TIPO ECONOMICA (GOTA), COM 8" | E33: UN | F33: CR | G33: 31.57
A34: 39141SINAPI | B34: 39141 | C34: SINAPI | D34: ABRACADEIRA EM ACO PARA AMARRACAO DE ELETRODUTOS, TIPO U SIMPLES, COM 1 1/2" | E34: UN | F34: CR | G34: 2.29
A35: 39140SINAPI | B35: 39140 | C35: SINAPI | D35: ABRACADEIRA EM ACO PARA AMARRACAO DE ELETRODUTOS, TIPO U SIMPLES, COM 1 1/4" | E35: UN | F35: CR | G35: 2.08
A36: 39137SINAPI | B36: 39137 | C36: SINAPI | D36: ABRACADEIRA EM ACO PARA AMARRACAO DE ELETRODUTOS, TIPO U SIMPLES, COM 1/2" | E36: UN | F36: CR | G36: 1.2
A37: 39139SINAPI | B37: 39139 | C37: SINAPI | D37: ABRACADEIRA EM ACO PARA AMARRACAO DE ELETRODUTOS, TIPO U SIMPLES, COM 1" | E37: UN | F37: CR | G37: 1.73
A38: 39143SINAPI | B38: 39143 | C38: SINAPI | D38: ABRACADEIRA EM ACO PARA AMARRACAO DE ELETRODUTOS, TIPO U SIMPLES, COM 2 1/2" | E38: UN | F38: CR | G38: 4.73
A39: 39142SINAPI | B39: 39142 | C39: SINAPI | D39: ABRACADEIRA EM ACO PARA AMARRACAO DE ELETRODUTOS, TIPO U SIMPLES, COM 2" | E39: UN | F39: CR | G39: 3.39
A40: 39138SINAPI | B40: 39138 | C40: SINAPI | D40: ABRACADEIRA EM ACO PARA AMARRACAO DE ELETRODUTOS, TIPO U SIMPLES, COM 3/4" | E40: UN | F40: CR | G40: 1.27
A41: 39136SINAPI | B41: 39136 | C41: SINAPI | D41: ABRACADEIRA EM ACO PARA AMARRACAO DE ELETRODUTOS, TIPO U SIMPLES, COM 3/8" | E41: UN | F41: CR | G41: 0.84
A42: 39144SINAPI | B42: 39144 | C42: SINAPI | D42: ABRACADEIRA EM ACO PARA AMARRACAO DE ELETRODUTOS, TIPO U SIMPLES, COM 3" | E42: UN | F42: CR | G42: 5.5
A43: 39145SINAPI | B43: 39145 | C43: SINAPI | D43: ABRACADEIRA EM ACO PARA AMARRACAO DE ELETRODUTOS, TIPO U SIMPLES, COM 4" | E43: UN | F43: CR | G43: 9.07
A44: 12615SINAPI | B44: 12615 | C44: SINAPI | D44: ABRACADEIRA PVC, PARA CALHA PLUVIAL, DIAMETRO ENTRE *80 E 100* MM, PARA DRENAGEM PLUVIAL PREDIAL | E44: UN | F44: CR | G44: 11.06
A45: 11927SINAPI | B45: 11927 | C45: SINAPI | D45: ABRACADEIRA, GALVANIZADA/ZINCADA, ROSCA SEM FIM, PARAFUSO INOX, LARGURA FITA *12,6 A *14 MM, D = 2" A 2 1/2" | E45: UN | F45: CR | G45: 7.48
A46: 11928SINAPI | B46: 11928 | C46: SINAPI | D46: ABRACADEIRA, GALVANIZADA/ZINCADA, ROSCA SEM FIM, PARAFUSO INOX, LARGURA FITA *12,6 A *14 MM, D = 3" A 3 3/4" | E46: UN | F46: CR | G46: 8.57
A47: 11929SINAPI | B47: 11929 | C47: SINAPI | D47: ABRACADEIRA, GALVANIZADA/ZINCADA, ROSCA SEM FIM, PARAFUSO INOX, LARGURA FITA *12,6 A *14 MM, D = 4" A 4 3/4" | E47: UN | F47: CR | G47: 13.26
A48: 36801SINAPI | B48: 36801 | C48: SINAPI | D48: ACABAMENTO DE METAL CROMADO PARA REGISTRO PEQUENO, DE PAREDE, 1/2 " OU 3/4 " | E48: UN | F48: CR | G48: 55.53
A49: 36246SINAPI | B49: 36246 | C49: SINAPI | D49: ACABAMENTO SIMPLES/CONVENCIONAL PARA FORRO PVC, TIPO "U" OU "C", COR BRANCA, COMPRIMENTO 6 M | E49: M | F49: CR | G49: 2.99
A50: 37600SINAPI | B50: 37600 | C50: SINAPI | D50: ACESSORIO DE LIGACAO NAO ELETRICO PARA CARGAS EXPLOSIVAS, TUBO DE 6 M | E50: UN | F50: AS | G50: 115.69
A51: 37599SINAPI | B51: 37599 | C51: SINAPI | D51: ACESSORIO INICIADOR NAO ELETRICO, TUBO DE 6 M, TEMPO DE RETARDO DE *160* MS | E51: UN | F51: AS | G51: 107.68
A52: 1SINAPI | B52: 1 | C52: SINAPI | D52: ACETILENO (RECARGA DE GAS ACETILENO PARA CILINDRO DE CONJUNTO OXICORTE GRANDE) NAO INCLUI TROCA/MANUTENCAO DO CILINDRO | E52: KG | F52: AS | G52: 87
A53: 3SINAPI | B53: 3 | C53: SINAPI | D53: ACIDO CLORIDRICO / ACIDO MURIATICO, DILUICAO 10% A 12% PARA USO EM LIMPEZA | E53: L | F53: CR | G53: 18.65
A54: 43054SINAPI | B54: 43054 | C54: SINAPI | D54: ACO CA-25, 10,0 MM, OU 12,5 MM, OU 16,0 MM, OU 20,0 MM, OU 25,0 MM, VERGALHAO | E54: KG | F54: CR | G54: 10.47
A55: 42402SINAPI | B55: 42402 | C55: SINAPI | D55: ACO CA-25, 16,0 MM, BARRA DE TRANSFERENCIA | E55: KG | F55: CR | G55: 10
A56: 42403SINAPI | B56: 42403 | C56: SINAPI | D56: ACO CA-25, 20,0 MM, BARRA DE TRANSFERENCIA | E56: KG | F56: CR | G56: 12.83
A57: 42404SINAPI | B57: 42404 | C57: SINAPI | D57: ACO CA-25, 25,0 MM, BARRA DE TRANSFERENCIA | E57: KG | F57: CR | G57: 12.76
A58: 42405SINAPI | B58: 42405 | C58: SINAPI | D58: ACO CA-25, 32,0 MM, BARRA DE TRANSFERENCIA | E58: KG | F58: CR | G58: 13.59
A59: 34341SINAPI | B59: 34341 | C59: SINAPI | D59: ACO CA-25, 32,0 MM, VERGALHAO | E59: KG | F59: CR | G59: 11.8
A60: 43053SINAPI | B60: 43053 | C60: SINAPI | D60: ACO CA-25, 6,3 MM OU 8,0 MM, VERGALHAO | E60: KG | F60: CR | G60: 9.35
A61: 43058SINAPI | B61: 43058 | C61: SINAPI | D61: ACO CA-50, 10,0 MM, OU 12,5 MM, OU 16,0 MM, OU 20,0 MM, DOBRADO E CORTADO | E61: KG | F61: CR | G61: 9.7
A62: 34SINAPI | B62: 34 | C62: SINAPI | D62: ACO CA-50, 10,0 MM, VERGALHAO | E62: KG | F62: CR | G62: 9.74
A63: 43055SINAPI | B63: 43055 | C63: SINAPI | D63: ACO CA-50, 12,5 MM OU 16,0 MM, VERGALHAO | E63: KG | F63: C | G63: 8.44
A64: 43056SINAPI | B64: 43056 | C64: SINAPI | D64: ACO CA-50, 20,0 MM OU 25,0 MM, VERGALHAO | E64: KG | F64: CR | G64: 9.73
A65: 43057SINAPI | B65: 43057 | C65: SINAPI | D65: ACO CA-50, 32,0 MM, VERGALHAO | E65: KG | F65: CR | G65: 10.69
A66: 34449SINAPI | B66: 34449 | C66: SINAPI | D66: ACO CA-50, 6,3 MM, DOBRADO E CORTADO | E66: KG | F66: CR | G66: 11.43
A67: 32SINAPI | B67: 32 | C67: SINAPI | D67: ACO CA-50, 6,3 MM, VERGALHAO | E67: KG | F67: CR | G67: 10.28
A68: 33SINAPI | B68: 33 | C68: SINAPI | D68: ACO CA-50, 8,0 MM, VERGALHAO | E68: KG | F68: CR | G68: 10.34
A69: 43061SINAPI | B69: 43061 | C69: SINAPI | D69: ACO CA-60, 4,2 MM OU 5,0 MM, DOBRADO E CORTADO | E69: KG | F69: CR | G69: 9.66
A70: 43059SINAPI | B70: 43059 | C70: SINAPI | D70: ACO CA-60, 4,2 MM, OU 5,0 MM, OU 6,0 MM, OU 7,0 MM, VERGALHAO | E70: KG | F70: CR | G70: 9.22
A71: =B71&C71 -> 43062SINAPI | B71: 43062 | C71: SINAPI | D71: ACO CA-60, 6,0 MM OU 7,0 MM, DOBRADO E CORTADO | E71: KG | F71: CR | G71: 10.22
A72: 43060SINAPI | B72: 43060 | C72: SINAPI | D72: ACO CA-60, 8,0 MM OU 9,5 MM, VERGALHAO | E72: KG | F72: CR | G72: 8.03
A73: 40410SINAPI | B73: 40410 | C73: SINAPI | D73: ACOPLAMENTO RIGIDO EM FERRO FUNDIDO PARA SISTEMA DE TUBULACAO RANHURADA, DN 50 MM (2") | E73: UN | F73: AS | G73: 21.55
A74: 40411SINAPI | B74: 40411 | C74: SINAPI | D74: ACOPLAMENTO RIGIDO EM FERRO FUNDIDO PARA SISTEMA DE TUBULACAO RANHURADA, DN 65 MM (2 1/2") | E74: UN | F74: AS | G74: 23.38
A75: 40412SINAPI | B75: 40412 | C75: SINAPI | D75: ACOPLAMENTO RIGIDO EM FERRO FUNDIDO PARA SISTEMA DE TUBULACAO RANHURADA, DN 80 MM (3") | E75: UN | F75: AS | G75: 26.25
A76: 44254SINAPI | B76: 44254 | C76: SINAPI | D76: ADAPTADOR CPVC, ROSCAVEL, COM FLANGES E ANEL DE VEDACAO, 15 MM, CAIXA D'AGUA PARA AGUA QUENTE | E76: UN | F76: AS | G76: 23.27
A77: 44255SINAPI | B77: 44255 | C77: SINAPI | D77: ADAPTADOR CPVC, ROSCAVEL, COM FLANGES E ANEL DE VEDACAO, 22 MM, CAIXA D'AGUA PARA AGUA QUENTE | E77: UN | F77: AS | G77: 25.79
A78: 44256SINAPI | B78: 44256 | C78: SINAPI | D78: ADAPTADOR CPVC, ROSCAVEL, COM FLANGES E ANEL DE VEDACAO, 28 MM, CAIXA D'AGUA PARA AGUA QUENTE | E78: UN | F78: AS | G78: 29.13
A79: 44257SINAPI | B79: 44257 | C79: SINAPI | D79: ADAPTADOR CPVC, ROSCAVEL, COM FLANGES E ANEL DE VEDACAO, 35 MM, CAIXA D'AGUA PARA AGUA QUENTE | E79: UN | F79: AS | G79: 46.09
A80: 44258SINAPI | B80: 44258 | C80: SINAPI | D80: ADAPTADOR CPVC, ROSCAVEL, COM FLANGES E ANEL DE VEDACAO, 42 MM, CAIXA D'AGUA PARA AGUA QUENTE | E80: UN | F80: AS | G80: 52.67
A81: 44259SINAPI | B81: 44259 | C81: SINAPI | D81: ADAPTADOR CPVC, ROSCAVEL, COM FLANGES E ANEL DE VEDACAO, 54 MM, CAIXA D'AGUA PARA AGUA QUENTE | E81: UN | F81: AS | G81: 72.3
A82: 37997SINAPI | B82: 37997 | C82: SINAPI | D82: ADAPTADOR CPVC, SOLDAVEL, 15 MM, PARA AGUA QUENTE | E82: UN | F82: AS | G82: 13.87
A83: 37998SINAPI | B83: 37998 | C83: SINAPI | D83: ADAPTADOR CPVC, SOLDAVEL, 22 MM, PARA AGUA QUENTE | E83: UN | F83: AS | G83: 18.56
A84: 55SINAPI | B84: 55 | C84: SINAPI | D84: ADAPTADOR DE COMPRESSAO EM POLIPROPILENO (PP), PARA TUBO EM PEAD, 20 MM X 1/2", PARA LIGACAO PREDIAL DE AGUA (NTS 179) | E84: UN | F84: AS | G84: 4.2
A85: 61SINAPI | B85: 61 | C85: SINAPI | D85: ADAPTADOR DE COMPRESSAO EM POLIPROPILENO (PP), PARA TUBO EM PEAD, 20 MM X 3/4", PARA LIGACAO PREDIAL DE AGUA (NTS 179) | E85: UN | F85: AS | G85: 3.97
A86: 62SINAPI | B86: 62 | C86: SINAPI | D86: ADAPTADOR DE COMPRESSAO EM POLIPROPILENO (PP), PARA TUBO EM PEAD, 32 MM X 1", PARA LIGACAO PREDIAL DE AGUA (NTS 179) | E86: UN | F86: AS | G86: 8.23
A87: 10899SINAPI | B87: 10899 | C87: SINAPI | D87: ADAPTADOR EM LATAO, ENGATE RAPIDO 2 1/2" X ROSCA INTERNA 5 FIOS 2 1/2", PARA INSTALACAO PREDIAL DE COMBATE A INCENDIO | E87: UN | F87: AS | G87: 133.61
A88: 10900SINAPI | B88: 10900 | C88: SINAPI | D88: ADAPTADOR EM LATAO, ENGATE RAPIDO1 1/2" X ROSCA INTERNA 5 FIOS 2 1/2", PARA INSTALACAO PREDIAL DE COMBATE A INCENDIO | E88: UN | F88: AS | G88: 104.57
A89: 46SINAPI | B89: 46 | C89: SINAPI | D89: ADAPTADOR PVC PBA, BOLSA/ROSCA, JE, DN 75 / DE 85 MM | E89: UN | F89: AS | G89: 42.05
A90: 47SINAPI | B90: 47 | C90: SINAPI | D90: ADAPTADOR PVC PBA, BOLSA/ROSCA, JE, DN 100 / DE 110 MM | E90: UN | F90: AS | G90: 71.9
A91: 48SINAPI | B91: 48 | C91: SINAPI | D91: ADAPTADOR PVC PBA, BOLSA/ROSCA, JE, DN 50 / DE 60 MM | E91: UN | F91: AS | G91: 18.75
A92: 52SINAPI | B92: 52 | C92: SINAPI | D92: ADAPTADOR PVC PBA, PONTA/ROSCA, JE, DN 50 / DE 60 MM | E92: UN | F92: AS | G92: 14.25
A93: 43SINAPI | B93: 43 | C93: SINAPI | D93: ADAPTADOR PVC PBA, PONTA/ROSCA, JE, DN 75 / DE 85 MM | E93: UN | F93: AS | G93: 48.09
A94: 103SINAPI | B94: 103 | C94: SINAPI | D94: ADAPTADOR PVC SOLDAVEL CURTO COM BOLSA E ROSCA, 110 MM X 4", PARA AGUA FRIA | E94: UN | F94: CR | G94: 39.89
A95: 107SINAPI | B95: 107 | C95: SINAPI | D95: ADAPTADOR PVC SOLDAVEL CURTO COM BOLSA E ROSCA, 20 MM X 1/2", PARA AGUA FRIA | E95: UN | F95: CR | G95: 0.75
A96: 65SINAPI | B96: 65 | C96: SINAPI | D96: ADAPTADOR PVC SOLDAVEL CURTO COM BOLSA E ROSCA, 25 MM X 3/4", PARA AGUA FRIA | E96: UN | F96: CR | G96: 0.82
A97: 108SINAPI | B97: 108 | C97: SINAPI | D97: ADAPTADOR PVC SOLDAVEL CURTO COM BOLSA E ROSCA, 32 MM X 1", PARA AGUA FRIA | E97: UN | F97: CR | G97: 1.65
A98: 110SINAPI | B98: 110 | C98: SINAPI | D98: ADAPTADOR PVC SOLDAVEL CURTO COM BOLSA E ROSCA, 40 MM X 1 1/2", PARA AGUA FRIA | E98: UN | F98: CR | G98: 5.74
A99: 109SINAPI | B99: 109 | C99: SINAPI | D99: ADAPTADOR PVC SOLDAVEL CURTO COM BOLSA E ROSCA, 40 MM X 1 1/4", PARA AGUA FRIA | E99: UN | F99: CR | G99: 3.42
A100: 111SINAPI | B100: 111 | C100: SINAPI | D100: ADAPTADOR PVC SOLDAVEL CURTO COM BOLSA E ROSCA, 50 MM X 1 1/4", PARA AGUA FRIA | E100: UN | F100: CR | G100: 7.76
A101: 112SINAPI | B101: 112 | C101: SINAPI | D101: ADAPTADOR PVC SOLDAVEL CURTO COM BOLSA E ROSCA, 50 MM X1 1/2", PARA AGUA FRIA | E101: UN | F101: CR | G101: 4.11
A102: 113SINAPI | B102: 113 | C102: SINAPI | D102: ADAPTADOR PVC SOLDAVEL CURTO COM BOLSA E ROSCA, 60 MM X 2", PARA AGUA FRIA | E102: UN | F102: CR | G102: 10.3
A103: 104SINAPI | B103: 104 | C103: SINAPI | D103: ADAPTADOR PVC SOLDAVEL CURTO COM BOLSA E ROSCA, 75 MM X 2 1/2", PARA AGUA FRIA | E103: UN | F103: CR | G103: 17.93
A104: 102SINAPI | B104: 102 | C104: SINAPI | D104: ADAPTADOR PVC SOLDAVEL CURTO COM BOLSA E ROSCA, 85 MM X 3", PARA AGUA FRIA | E104: UN | F104: CR | G104: 24.72
A105: 95SINAPI | B105: 95 | C105: SINAPI | D105: ADAPTADOR PVC SOLDAVEL, COM FLANGE E ANEL DE VEDACAO, 20 MM X 1/2", PARA CAIXA D'AGUA | E105: UN | F105: CR | G105: 10.44
A106: 96SINAPI | B106: 96 | C106: SINAPI | D106: ADAPTADOR PVC SOLDAVEL, COM FLANGE E ANEL DE VEDACAO, 25 MM X 3/4", PARA CAIXA D'AGUA | E106: UN | F106: CR | G106: 11.36
A107: 97SINAPI | B107: 97 | C107: SINAPI | D107: ADAPTADOR PVC SOLDAVEL, COM FLANGE E ANEL DE VEDACAO, 32 MM X 1", PARA CAIXA D'AGUA | E107: UN | F107: CR | G107: 17.09
A108: 98SINAPI | B108: 98 | C108: SINAPI | D108: ADAPTADOR PVC SOLDAVEL, COM FLANGE E ANEL DE VEDACAO, 40 MM X 1 1/4", PARA CAIXA D'AGUA | E108: UN | F108: CR | G108: 25.59
A109: 99SINAPI | B109: 99 | C109: SINAPI | D109: ADAPTADOR PVC SOLDAVEL, COM FLANGE E ANEL DE VEDACAO, 50 MM X 1 1/2", PARA CAIXA D'AGUA | E109: UN | F109: CR | G109: 24.18
A110: 100SINAPI | B110: 100 | C110: SINAPI | D110: ADAPTADOR PVC SOLDAVEL, COM FLANGES E ANEL DE VEDACAO, 60 MM X 2", PARA CAIXA D' AGUA | E110: UN | F110: CR | G110: 42.25
A111: 75SINAPI | B111: 75 | C111: SINAPI | D111: ADAPTADOR PVC SOLDAVEL, COM FLANGES LIVRES, 110 MM X 4", PARA CAIXA D' AGUA | E111: UN | F111: CR | G111: 246.35
A112: 83SINAPI | B112: 83 | C112: SINAPI | D112: ADAPTADOR PVC SOLDAVEL, COM FLANGES LIVRES, 75 MM X 2 1/2", PARA CAIXA D' AGUA | E112: UN | F112: CR | G112: 196.95
A113: 74SINAPI | B113: 74 | C113: SINAPI | D113: ADAPTADOR PVC SOLDAVEL, COM FLANGES LIVRES, 85 MM X 3", PARA CAIXA D' AGUA | E113: UN | F113: CR | G113: 281.58
A114: 106SINAPI | B114: 106 | C114: SINAPI | D114: ADAPTADOR PVC SOLDAVEL, LONGO, COM FLANGE LIVRE, 110 MM X 4", PARA CAIXA D' AGUA | E114: UN | F114: CR | G114: 356.07
A115: 88SINAPI | B115: 88 | C115: SINAPI | D115: ADAPTADOR PVC SOLDAVEL, LONGO, COM FLANGE LIVRE, 32 MM X 1", PARA CAIXA D' AGUA | E115: UN | F115: CR | G115: 10.01
A116: 82SINAPI | B116: 82 | C116: SINAPI | D116: ADAPTADOR PVC SOLDAVEL, LONGO, COM FLANGE LIVRE, 75 MM X 2 1/2", PARA CAIXA D' AGUA | E116: UN | F116: CR | G116: 187.38
A117: 105SINAPI | B117: 105 | C117: SINAPI | D117: ADAPTADOR PVC SOLDAVEL, LONGO, COM FLANGE LIVRE, 85 MM X 3", PARA CAIXA D' AGUA | E117: UN | F117: CR | G117: 265.51
A118: 60SINAPI | B118: 60 | C118: SINAPI | D118: ADAPTADOR PVC, COM REGISTRO, PARA PEAD, 20 MM X 3/4", PARA LIGACAO PREDIAL DE AGUA | E118: UN | F118: AS | G118: 5.45
A119: 72SINAPI | B119: 72 | C119: SINAPI | D119: ADAPTADOR PVC, ROSCAVEL, COM FLANGES E ANEL DE VEDACAO, 1 1/2", PARA CAIXA D'AGUA | E119: UN | F119: CR | G119: 46.38
A120: 67SINAPI | B120: 67 | C120: SINAPI | D120: ADAPTADOR PVC, ROSCAVEL, COM FLANGES E ANEL DE VEDACAO, 1/2", PARA CAIXA D' AGUA | E120: UN | F120: CR | G120: 14.99
A121: 71SINAPI | B121: 71 | C121: SINAPI | D121: ADAPTADOR PVC, ROSCAVEL, COM FLANGES E ANEL DE VEDACAO, 1", PARA CAIXA D' AGUA | E121: UN | F121: CR | G121: 28.64
A122: 73SINAPI | B122: 73 | C122: SINAPI | D122: ADAPTADOR PVC, ROSCAVEL, COM FLANGES E ANEL DE VEDACAO, 3/4", PARA CAIXA D' AGUA | E122: UN | F122: CR | G122: 14.35
A123: 39719SINAPI | B123: 39719 | C123: SINAPI | D123: ADESIVO / COLA DE CONTATO LIQUIDO, A BASE DE RESINAS, PARA COLAGEM DE ESPUMA PARA ISOLAMENTO TERMICO FLEXIVEL | E123: L | F123: CR | G123: 152.52
A124: 3410SINAPI | B124: 3410 | C124: SINAPI | D124: ADESIVO / COLA PARA EPS (ISOPOR) E OUTROS MATERIAIS | E124: KG | F124: CR | G124: 34.31
A125: 4791SINAPI | B125: 4791 | C125: SINAPI | D125: ADESIVO ACRILICO DE BASE AQUOSA / COLA DE CONTATO | E125: KG | F125: CR | G125: 22.96
A126: 157SINAPI | B126: 157 | C126: SINAPI | D126: ADESIVO ESTRUTURAL A BASE DE RESINA EPOXI PARA INJECAO EM TRINCAS, BICOMPONENTE, BAIXA VISCOSIDADE | E126: KG | F126: CR | G126: 205.03
A127: 156SINAPI | B127: 156 | C127: SINAPI | D127: ADESIVO ESTRUTURAL A BASE DE RESINA EPOXI, BICOMPONENTE, FLUIDO | E127: KG | F127: CR | G127: 73
A128: 131SINAPI | B128: 131 | C128: SINAPI | D128: ADESIVO ESTRUTURAL A BASE DE RESINA EPOXI, BICOMPONENTE, PASTOSO (TIXOTROPICO) | E128: KG | F128: CR | G128: 62.43
A129: 21114SINAPI | B129: 21114 | C129: SINAPI | D129: ADESIVO PARA TUBOS CPVC, *75* G | E129: UN | F129: CR | G129: 30.06
A130: 119SINAPI | B130: 119 | C130: SINAPI | D130: ADESIVO PLASTICO PARA PVC, BISNAGA COM 75 GR | E130: UN | F130: C | G130: 7.62
A131: 122SINAPI | B131: 122 | C131: SINAPI | D131: ADESIVO PLASTICO PARA PVC, FRASCO COM *850* GR | E131: UN | F131: CR | G131: 58.63
A132: 20080SINAPI | B132: 20080 | C132: SINAPI | D132: ADESIVO PLASTICO PARA PVC, FRASCO COM 175 GR | E132: UN | F132: CR | G132: 19.13
A133: 124SINAPI | B133: 124 | C133: SINAPI | D133: ADITIVO ACELERADOR DE PEGA E ENDURECIMENTO PARA ARGAMASSAS E CONCRETOS, LIQUIDO E ISENTO DE CLORETOS | E133: L | F133: CR | G133: 24.08
A134: 7334SINAPI | B134: 7334 | C134: SINAPI | D134: ADITIVO ADESIVO LIQUIDO PARA ARGAMASSAS DE REVESTIMENTOS CIMENTICIOS | E134: L | F134: CR | G134: 25.2
A135: =B135&C135 -> 45146SINAPI | B135: 45146 | C135: SINAPI | D135: ADITIVO IMPERMEABILIZANTE CRISTALIZANTE PARA CONCRETO | E135: KG | F135: CR | G135: 46.16
A136: 123SINAPI | B136: 123 | C136: SINAPI | D136: ADITIVO IMPERMEABILIZANTE DE PEGA NORMAL PARA ARGAMASSAS E CONCRETOS SEM ARMACAO, LIQUIDO E ISENTO DE CLORETOS | E136: L | F136: C | G136: 9.85
A137: 127SINAPI | B137: 127 | C137: SINAPI | D137: ADITIVO IMPERMEABILIZANTE DE PEGA ULTRARRAPIDA, LIQUIDO E ISENTO DE CLORETOS | E137: L | F137: CR | G137: 23.51
A138: 133SINAPI | B138: 133 | C138: SINAPI | D138: ADITIVO LIQUIDO INCORPORADOR DE AR PARA CONCRETO E ARGAMASSA, LIQUIDO E ISENTO DE CLORETOS | E138: L | F138: CR | G138: 9.77
A139: 43617SINAPI | B139: 43617 | C139: SINAPI | D139: ADITIVO PLASTIFICANTE E ESTABILIZADOR PARA ARGAMASSAS DE ASSENTAMENTO E REBOCO, LIQUIDO E ISENTO DE CLORETOS | E139: L | F139: CR | G139: 10.91
A140: 132SINAPI | B140: 132 | C140: SINAPI | D140: ADITIVO PLASTIFICANTE RETARDADOR DE PEGA E REDUTOR DE AGUA PARA CONCRETO, LIQUIDO E ISENTO DE CLORETOS | E140: L | F140: CR | G140: 10.12
A141: 43618SINAPI | B141: 43618 | C141: SINAPI | D141: ADITIVO SUPERPLASTIFICANTE DE PEGA NORMAL PARA CONCRETO, LIQUIDO E ISENTO DE CLORETOS | E141: KG | F141: CR | G141: 25.49
A142: 37476SINAPI | B142: 37476 | C142: SINAPI | D142: ADUELA/ GALERIA PRE-MOLDADA DE CONCRETO ARMADO, SECAO QUADRADA INTERNA DE 1,50 X 1,50 M (L X A), MISULA DE 20 X 20 CM, C = 1,00 M, ESPESSURA MIN = 15 CM, TB-45 E FCK DO CONCRETO = 30 MPA | E142: UN | F142: AS | G142: 4070.97
A143: 37478SINAPI | B143: 37478 | C143: SINAPI | D143: ADUELA/ GALERIA PRE-MOLDADA DE CONCRETO ARMADO, SECAO RETANGULAR INTERNA DE 2,00 X 2,00 M (L X A), MISULA DE 20 X 20 CM, C = 1,00 M, ESPESSURA MIN = 15 CM, TB-45 E FCK DO CONCRETO = 30 MPA | E143: UN | F143: AS | G143: 5099
A144: 37477SINAPI | B144: 37477 | C144: SINAPI | D144: ADUELA/ GALERIA PRE-MOLDADA DE CONCRETO ARMADO, SECAO RETANGULAR INTERNA DE 2,50 X 2,50 M (L X A), MISULA DE 20 X 20 CM, C = 1,00 M, ESPESSURA MIN = 15 CM, TB-45 E FCK DO CONCRETO = 30 MPA | E144: UN | F144: AS | G144: 6908.32
A145: 37479SINAPI | B145: 37479 | C145: SINAPI | D145: ADUELA/ GALERIA PRE-MOLDADA DE CONCRETO ARMADO, SECAO RETANGULAR INTERNA DE 3,00 X 3,00 M (L X A), MISULA DE 20 X 20 CM, C = 1.00 M, ESPESSURA MIN = 20 CM, TB-45 E FCK DO CONCRETO = 30 MPA | E145: UN | F145: AS | G145: 8193.36
A146: 4319SINAPI | B146: 4319 | C146: SINAPI | D146: AFASTADOR PARA TELHA DE FIBROCIMENTO CANALETE 90 OU KALHETAO | E146: UN | F146: AS | G146: 2.05
A147: 42409SINAPI | B147: 42409 | C147: SINAPI | D147: AGENTE DE CURA, PROTETOR DA EVAPORACAO DA AGUA DE HIDRATACAO DO CONCRETO | E147: KG | F147: CR | G147: 16.05
A148: 40553SINAPI | B148: 40553 | C148: SINAPI | D148: AGREGADO RECICLADO, TIPO RACHAO RECICLADO CINZA, CLASSE A | E148: M3 | F148: AS | G148: 54
A149: 6114SINAPI | B149: 6114 | C149: SINAPI | D149: AJUDANTE DE ARMADOR (HORISTA) | E149: H | F149: CR | G149: 15.77
A150: 40912SINAPI | B150: 40912 | C150: SINAPI | D150: AJUDANTE DE ARMADOR (MENSALISTA) | E150: MES | F150: CR | G150: 2732.25
A151: 247SINAPI | B151: 247 | C151: SINAPI | D151: AJUDANTE DE ELETRICISTA (HORISTA) | E151: H | F151: CR | G151: 15.77
A152: 40919SINAPI | B152: 40919 | C152: SINAPI | D152: AJUDANTE DE ELETRICISTA (MENSALISTA) | E152: MES | F152: CR | G152: 2732.25
A153: 44499SINAPI | B153: 44499 | C153: SINAPI | D153: AJUDANTE DE ESTRUTURAS METALICAS (HORISTA) | E153: H | F153: CR | G153: 15.77
A154: 40984SINAPI | B154: 40984 | C154: SINAPI | D154: AJUDANTE DE ESTRUTURAS METALICAS (MENSALISTA) | E154: MES | F154: CR | G154: 2732.25
A155: 248SINAPI | B155: 248 | C155: SINAPI | D155: AJUDANTE DE OPERACAO EM GERAL (HORISTA) | E155: H | F155: CR | G155: 14.82
A156: 41086SINAPI | B156: 41086 | C156: SINAPI | D156: AJUDANTE DE OPERACAO EM GERAL (MENSALISTA) | E156: MES | F156: CR | G156: 2568.4
A157: 34466SINAPI | B157: 34466 | C157: SINAPI | D157: AJUDANTE DE PINTOR (HORISTA) | E157: H | F157: CR | G157: 15.77
A158: 41083SINAPI | B158: 41083 | C158: SINAPI | D158: AJUDANTE DE PINTOR (MENSALISTA) | E158: MES | F158: CR | G158: 2732.25
A159: 252SINAPI | B159: 252 | C159: SINAPI | D159: AJUDANTE DE SERRALHEIRO (HORISTA) | E159: H | F159: CR | G159: 15.77
A160: 40909SINAPI | B160: 40909 | C160: SINAPI | D160: AJUDANTE DE SERRALHEIRO (MENSALISTA) | E160: MES | F160: CR | G160: 2732.25
A161: 242SINAPI | B161: 242 | C161: SINAPI | D161: AJUDANTE ESPECIALIZADO (HORISTA) | E161: H | F161: CR | G161: 14.82
A162: 41085SINAPI | B162: 41085 | C162: SINAPI | D162: AJUDANTE ESPECIALIZADO (MENSALISTA) | E162: MES | F162: CR | G162: 2568.4
A163: 427SINAPI | B163: 427 | C163: SINAPI | D163: ALCA PREFORMADA DE CONTRA POSTE, EM ACO GALVANIZADO, PARA CABO 3/16", COMPRIMENTO *860* MM | E163: UN | F163: AS | G163: 6.31
A164: 417SINAPI | B164: 417 | C164: SINAPI | D164: ALCA PREFORMADA DE DISTRIBUICAO, EM ACO GALVANIZADO, PARA CABO DE ALUMINIO DIAMETRO 16 A 25 MM | E164: UN | F164: AS | G164: 2.97
A165: 11273SINAPI | B165: 11273 | C165: SINAPI | D165: ALCA PREFORMADA DE DISTRIBUICAO, EM ACO GALVANIZADO, PARA CONDUTORES DE ALUMINIO AWG 1/0 (CAA 6/1 OU CA 7 FIOS) | E165: UN | F165: AS | G165: 9.22
A166: 11272SINAPI | B166: 11272 | C166: SINAPI | D166: ALCA PREFORMADA DE DISTRIBUICAO, EM ACO GALVANIZADO, PARA CONDUTORES DE ALUMINIO AWG 2 (CAA 6/1 OU CA 7 FIOS) | E166: UN | F166: AS | G166: 5.57
A167: 11275SINAPI | B167: 11275 | C167: SINAPI | D167: ALCA PREFORMADA DE SERVICO, EM ACO GALVANIZADO, PARA CONDUTORES DE ALUMINIO AWG 4 (CAA 6/1) | E167: UN | F167: AS | G167: 2.23
A168: 11274SINAPI | B168: 11274 | C168: SINAPI | D168: ALCA PREFORMADA DE SERVICO, EM ACO GALVANIZADO, PARA CONDUTORES DE ALUMINIO AWG 6 (CAA 6/1) | E168: UN | F168: AS | G168: 1.7
A169: 38470SINAPI | B169: 38470 | C169: SINAPI | D169: ALICATE DE CORTE DIAGONAL 6 " COM ISOLAMENTO | E169: UN | F169: C | G169: 36.25
A170: 38547SINAPI | B170: 38547 | C170: SINAPI | D170: ALICATE DE CRIMPAR RJ11, RJ12 E RJ45 | E170: UN | F170: CR | G170: 98.92
A171: 38469SINAPI | B171: 38469 | C171: SINAPI | D171: ALICATE DE PRESSAO PARA SOLDA DE CHAPA 18 " | E171: UN | F171: CR | G171: 106.36
A172: 38467SINAPI | B172: 38467 | C172: SINAPI | D172: ALICATE DE PRESSAO 11 " PARA SOLDA, TIPO C | E172: UN | F172: CR | G172: 59.85
A173: 38468SINAPI | B173: 38468 | C173: SINAPI | D173: ALICATE DE PRESSAO 11 " PARA SOLDA, TIPO U | E173: UN | F173: CR | G173: 65.86
A174: 38471SINAPI | B174: 38471 | C174: SINAPI | D174: ALICATE PARA ANEIS DE PISTAO, CAPACIDADE 50 A 100 MM | E174: UN | F174: CR | G174: 85.52
A175: 37370SINAPI | B175: 37370 | C175: SINAPI | D175: ALIMENTACAO - HORISTA (COLETADO CAIXA - ENCARGOS COMPLEMENTARES) | E175: H | F175: C | G175: 0.53
A176: 40862SINAPI | B176: 40862 | C176: SINAPI | D176: ALIMENTACAO - MENSALISTA (COLETADO CAIXA - ENCARGOS COMPLEMENTARES) | E176: MES | F176: C | G176: 100
A177: 10658SINAPI | B177: 10658 | C177: SINAPI | D177: ALISADORA DE CONCRETO COM MOTOR A GASOLINA DE 5,5 HP, PESO COM MOTOR DE 78 KG, 4 PAS | E177: UN | F177: AS | G177: 7359
A178: 253SINAPI | B178: 253 | C178: SINAPI | D178: ALMOXARIFE (HORISTA) | E178: H | F178: C | G178: 19.4
A179: 40809SINAPI | B179: 40809 | C179: SINAPI | D179: ALMOXARIFE (MENSALISTA) | E179: MES | F179: CR | G179: 3359.09
A180: 42428SINAPI | B180: 42428 | C180: SINAPI | D180: ALONGADOR COM TRES ALTURAS, EM TUBO DE ACO CARBONO, PINTURA NO PROCESSO ELETROSTATICO - EQUIPAMENTO DE GINASTICA PARA ACADEMIA AO AR LIVRE / ACADEMIA DA TERCEIRA IDADE - ATI | E180: UN | F180: AS | G180: 2271
A181: 301SINAPI | B181: 301 | C181: SINAPI | D181: ANEL BORRACHA PARA TUBO ESGOTO PREDIAL, DN 100 MM (NBR 5688) | E181: UN | F181: C | G181: 3.64
A182: 296SINAPI | B182: 296 | C182: SINAPI | D182: ANEL BORRACHA PARA TUBO ESGOTO PREDIAL, DN 50 MM (NBR 5688) | E182: UN | F182: CR | G182: 2.05
A183: 297SINAPI | B183: 297 | C183: SINAPI | D183: ANEL BORRACHA PARA TUBO ESGOTO PREDIAL, DN 75 MM (NBR 5688) | E183: UN | F183: CR | G183: 3.02
A184: 299SINAPI | B184: 299 | C184: SINAPI | D184: ANEL BORRACHA, DN 100 MM, PARA TUBO SERIE REFORCADA ESGOTO PREDIAL | E184: UN | F184: CR | G184: 4.27
A185: 300SINAPI | B185: 300 | C185: SINAPI | D185: ANEL BORRACHA, DN 150 MM, PARA TUBO SERIE REFORCADA ESGOTO PREDIAL | E185: UN | F185: CR | G185: 14.77
A186: 20085SINAPI | B186: 20085 | C186: SINAPI | D186: ANEL BORRACHA, DN 50 MM, PARA TUBO SERIE REFORCADA ESGOTO PREDIAL | E186: UN | F186: CR | G186: 2.7
A187: 298SINAPI | B187: 298 | C187: SINAPI | D187: ANEL BORRACHA, DN 75 MM, PARA TUBO SERIE REFORCADA ESGOTO PREDIAL | E187: UN | F187: CR | G187: 3.28
A188: 311SINAPI | B188: 311 | C188: SINAPI | D188: ANEL BORRACHA, PARA TUBO PVC DEFOFO, DN 100 MM (NBR 7665) | E188: UN | F188: CR | G188: 12.18
A189: 318SINAPI | B189: 318 | C189: SINAPI | D189: ANEL BORRACHA, PARA TUBO PVC DEFOFO, DN 150 MM (NBR 7665) | E189: UN | F189: CR | G189: 24.54
A190: 319SINAPI | B190: 319 | C190: SINAPI | D190: ANEL BORRACHA, PARA TUBO PVC DEFOFO, DN 200 MM (NBR 7665) | E190: UN | F190: CR | G190: 38.48
A191: 303SINAPI | B191: 303 | C191: SINAPI | D191: ANEL BORRACHA, PARA TUBO PVC, REDE COLETOR ESGOTO, DN 100 MM (NBR 7362) | E191: UN | F191: CR | G191: 4.03
A192: 305SINAPI | B192: 305 | C192: SINAPI | D192: ANEL BORRACHA, PARA TUBO PVC, REDE COLETOR ESGOTO, DN 150 MM (NBR 7362) | E192: UN | F192: CR | G192: 12.68
A193: 306SINAPI | B193: 306 | C193: SINAPI | D193: ANEL BORRACHA, PARA TUBO PVC, REDE COLETOR ESGOTO, DN 200 MM (NBR 7362) | E193: UN | F193: CR | G193: 19.24
A194: 307SINAPI | B194: 307 | C194: SINAPI | D194: ANEL BORRACHA, PARA TUBO PVC, REDE COLETOR ESGOTO, DN 250 MM (NBR 7362) | E194: UN | F194: CR | G194: 48.6
A195: 309SINAPI | B195: 309 | C195: SINAPI | D195: ANEL BORRACHA, PARA TUBO PVC, REDE COLETOR ESGOTO, DN 350 MM (NBR 7362) | E195: UN | F195: CR | G195: 79.62
A196: 310SINAPI | B196: 310 | C196: SINAPI | D196: ANEL BORRACHA, PARA TUBO PVC, REDE COLETOR ESGOTO, DN 400 MM (NBR 7362) | E196: UN | F196: CR | G196: 110.35
A197: 328SINAPI | B197: 328 | C197: SINAPI | D197: ANEL BORRACHA, PARA TUBO/CONEXAO PVC PBA, DN 100 MM, PARA REDE AGUA | E197: UN | F197: CR | G197: 9.65
A198: 325SINAPI | B198: 325 | C198: SINAPI | D198: ANEL BORRACHA, PARA TUBO/CONEXAO PVC PBA, DN 50 MM, PARA REDE AGUA | E198: UN | F198: CR | G198: 2.84
A199: =B199&C199 -> 20326SINAPI | B199: 20326 | C199: SINAPI | D199: ANEL BORRACHA, PARA TUBO/CONEXAO PVC PBA, DN 60 MM, PARA REDE AGUA | E199: UN | F199: CR | G199: 5.21
A200: 329SINAPI | B200: 329 | C200: SINAPI | D200: ANEL BORRACHA, PARA TUBO/CONEXAO PVC PBA, DN 75 MM, PARA REDE AGUA | E200: UN | F200: CR | G200: 8.07
A201: 308SINAPI | B201: 308 | C201: SINAPI | D201: ANEL BORRACHA, PARA TUBO, PVC REDE COLETOR ESGOTO, DN 300 MM (NBR 7362) | E201: UN | F201: CR | G201: 108.48
... 4295 more rows

Sheet Encargos Sociais
A1: SEM DESONERAÇÃO
A3: DETALHAMENTO DOS ENCARGOS SOCIAIS
A5: Encargos Sociais - Amapá | E5: Vigência a partir de 12/2023 - SINAPI
A6: ENCARGOS SOCIAIS SOBRE MÃO DE OBRA
A8: DISCRIMINAÇÃO | E8: SEM DESONERAÇÃO
E9: HORISTA % | F9: MENSALISTA %
A10: A | B10: ENCARGOS SOCIAIS BÁSICOS | E10: =SUM(E11:E19) -> 0.368 | F10: =SUM(F11:F19) -> 0.368
A11: A1 | B11: INSS | E11: 0.2 | F11: 0.2
A12: A2 | B12: SESI | E12: 0.015 | F12: 0.015
A13: A3 | B13: SENAI | E13: 0.01 | F13: 0.01
A14: A4 | B14: INCRA | E14: 0.002 | F14: 0.002
A15: A5 | B15: SEBRAE | E15: 0.006 | F15: 0.006
A16: A6 | B16: Saário Educação | E16: 0.025 | F16: 0.025
A17: A7 | B17: Seguro Contra Acidentes de Trabalho | E17: 0.03 | F17: 0.03
A18: A8 | B18: FGTS | E18: 0.08 | F18: 0.08
A19: A9 | B19: SECONCI | E19: 0 | F19: 0
A20: B | B20: ENCARGOS SOCIAIS QUE RECEBEM INCIDÊNCIA DE "A" | E20: =SUM(E21:E30) -> 0.5213 | F20: =SUM(F21:F30) -> 0.2
A21: B1 | B21: Repouso Semanal Remunerado | E21: 0.1813 | F21: Não incide
A22: B2 | B22: Feriados | E22: 0.0483 | F22: Não incide
A23: B3 | B23: Axílio - Enfermidade | E23: 0.0087 | F23: 0.0064
A24: B4 | B24: 13º Salário | E24: 0.1128 | F24: 0.0833
A25: B5 | B25: Licença Paternidade | E25: 0.0006 | F25: 0.0004
A26: B6 | B26: Faltas Justificadas | E26: 0.0075 | F26: 0.0056
A27: B7 | B27: Dias de chuva | E27: 0.021 | F27: Não incide
A28: B8 | B28: Auxílio Acidente de Trabalho | E28: 0.001 | F28: 0.0008
A29: B9 | B29: Férias Gozadas | E29: 0.1397 | F29: 0.1032
A30: B10 | B30: Salário Maternidade | E30: 0.0004 | F30: 0.0003
A31: C | B31: ENCARGOS SOCIAIS QUE NÃO RECEBEM INCIDÊNCIA DE "A" | E31: =SUM(E32:E36) -> 0.0734 | F31: =SUM(F32:F36) -> 0.0541
A32: C1 | B32: Aviso Prévio Indenizado | E32: 0.0409 | F32: 0.0302
A33: C2 | B33: Aviso Prévio Trabalhado | E33: 0.001 | F33: 0.0007
A34: C3 | B34: Férias Indenizadas | E34: 0.0089 | F34: 0.0065
A35: C4 | B35: Depósito Rescisão Sem Justa Causa | E35: 0.0192 | F35: 0.0142
A36: C5 | B36: Indenização Adicional | E36: 0.0034 | F36: 0.0025
A37: D | B37: REINCIDÊNCIAS | E37: =SUM(E38:E39) -> 0.1954 | F37: =SUM(F38:F39) -> 0.0763
A38: D1 | B38: Reincidência de "A" sobre "B" | E38: 0.1918 | F38: 0.0736
A39: D2 | B39: Reincidência de "A" sobre Aviso Prévio Trabalhado e reincidência do FGTS sobre Aviso Prévio Indenizado | E39: 0.0036 | F39: 0.0027
B40: ENCARGOS SOCIAIS | E40: =SUM(E37,E31,E20,E10) -> 1.1581 | F40: =SUM(F37,F31,F20,F10) -> 0.6984
A42: COM DESONERAÇÃO
A44: DETALHAMENTO DOS ENCARGOS SOCIAIS
A46: Encargos Sociais - Amapá | E46: Vigência a partir de 12/2022 - SINAPI
A47: ENCARGOS SOCIAIS SOBRE MÃO DE OBRA
A49: DISCRIMINAÇÃO | E49: COM DESONERAÇÃO
E50: HORISTA % | F50: MENSALISTA %
A51: A | B51: ENCARGOS SOCIAIS BÁSICOS | E51: =SUM(E52:E60) -> 0.168 | F51: =SUM(F52:F60) -> 0.168
A52: A1 | B52: INSS | E52: 0 | F52: 0
A53: A2 | B53: SESI | E53: 0.015 | F53: 0.015
A54: A3 | B54: SENAI | E54: 0.01 | F54: 0.01
A55: A4 | B55: INCRA | E55: 0.002 | F55: 0.002
A56: A5 | B56: SEBRAE | E56: 0.006 | F56: 0.006
A57: A6 | B57: Saário Educação | E57: 0.025 | F57: 0.025
A58: A7 | B58: Seguro Contra Acidentes de Trabalho | E58: 0.03 | F58: 0.03
A59: A8 | B59: FGTS | E59: 0.08 | F59: 0.08
A60: A9 | B60: SECONCI | E60: 0 | F60: 0
A61: B | B61: ENCARGOS SOCIAIS QUE RECEBEM INCIDÊNCIA DE "A" | E61: =SUM(E62:E71) -> 0.5213 | F61: =SUM(F62:F71) -> 0.2
A62: B1 | B62: Repouso Semanal Remunerado | E62: 0.1813 | F62: Não incide
A63: B2 | B63: Feriados | E63: 0.0483 | F63: Não incide
A64: B3 | B64: Axílio - Enfermidade | E64: 0.0087 | F64: 0.0064
A65: B4 | B65: 13º Salário | E65: 0.1128 | F65: 0.0833
A66: B5 | B66: Licença Paternidade | E66: 0.0006 | F66: 0.0004
A67: B6 | B67: Faltas Justificadas | E67: 0.0075 | F67: 0.0056
A68: B7 | B68: Dias de chuva | E68: 0.021 | F68: Não incide
A69: B8 | B69: Auxílio Acidente de Trabalho | E69: 0.001 | F69: 0.0008
A70: B9 | B70: Férias Gozadas | E70: 0.1397 | F70: 0.1032
A71: B10 | B71: Salário Maternidade | E71: 0.0004 | F71: 0.0003
A72: C | B72: ENCARGOS SOCIAIS QUE NÃO RECEBEM INCIDÊNCIA DE "A" | E72: =SUM(E73:E77) -> 0.0734 | F72: =SUM(F73:F77) -> 0.0541
A73: C1 | B73: Aviso Prévio Indenizado | E73: 0.0409 | F73: 0.0302
A74: C2 | B74: Aviso Prévio Trabalhado | E74: 0.001 | F74: 0.0007
A75: C3 | B75: Férias Indenizadas | E75: 0.0089 | F75: 0.0065
A76: C4 | B76: Depósito Rescisão Sem Justa Causa | E76: 0.0192 | F76: 0.0142
A77: C5 | B77: Indenização Adicional | E77: 0.0034 | F77: 0.0025
A78: D | B78: REINCIDÊNCIAS | E78: =SUM(E79:E80) -> 0.091 | F78: =SUM(F79:F80) -> 0.0361
A79: D1 | B79: Reincidência de "A" sobre "B" | E79: 0.0876 | F79: 0.0336
A80: D2 | B80: Reincidência de "A" sobre Aviso Prévio Trabalhado e reincidência do FGTS sobre Aviso Prévio Indenizado | E80: 0.0034 | F80: 0.0025
B81: ENCARGOS SOCIAIS | E81: =SUM(E78,E72,E61,E51) -> 0.8537 | F81: =SUM(F78,F72,F61,F51) -> 0.4582

Sheet Insumo SINAPI (sem des.)
A1: PRECOS DE INSUMOS - BANCO NACIONAL
A3: MES DE COLETA: 03/2024
A4: LOCALIDADE: 0320 - MACAPA
A5: ENCARGOS SOCIAIS (%) HORISTA 115,81 MENSALISTA 69,84
A7: CODIGO | B7: DESCRICAO DO INSUMO | C7: UNIDADE DE MEDIDA | D7: ORIGEM DO PRECO | E7: PRECO MEDIANO R$
A8: 38605 | B8: ABERTURA PARA ENCAIXE DE CUBA OU LAVATORIO EM BANCADA DE MARMORE/ GRANITO OU OUTRO TIPO DE PEDRA NATURAL | C8: UN | D8: CR | E8: 195.46
A9: 11270 | B9: ABRACADEIRA DE LATAO PARA FIXACAO DE CABO PARA-RAIO, DIMENSOES 32 X 24 X 24 MM | C9: UN | D9: CR | E9: 2.5
A10: 412 | B10: ABRACADEIRA DE NYLON PARA AMARRACAO DE CABOS, COMPRIMENTO DE *230* X *7,6* MM | C10: UN | D10: CR | E10: 1.08
A11: 414 | B11: ABRACADEIRA DE NYLON PARA AMARRACAO DE CABOS, COMPRIMENTO DE 100 X 2,5 MM | C11: UN | D11: CR | E11: 0.06
A12: 410 | B12: ABRACADEIRA DE NYLON PARA AMARRACAO DE CABOS, COMPRIMENTO DE 150 X *3,6* MM | C12: UN | D12: CR | E12: 0.16
A13: 411 | B13: ABRACADEIRA DE NYLON PARA AMARRACAO DE CABOS, COMPRIMENTO DE 200 X *4,6* MM | C13: UN | D13: C | E13: 0.21
A14: 408 | B14: ABRACADEIRA DE NYLON PARA AMARRACAO DE CABOS, COMPRIMENTO DE 390 X *4,6* MM | C14: UN | D14: CR | E14: 1.04
A15: 39131 | B15: ABRACADEIRA EM ACO PARA AMARRACAO DE ELETRODUTOS, TIPO D, COM 1 1/2" E CUNHA DE FIXACAO | C15: UN | D15: CR | E15: 5.65
A16: 394 | B16: ABRACADEIRA EM ACO PARA AMARRACAO DE ELETRODUTOS, TIPO D, COM 1 1/2" E PARAFUSO DE FIXACAO | C16: UN | D16: CR | E16: 5.72
A17: 39130 | B17: ABRACADEIRA EM ACO PARA AMARRACAO DE ELETRODUTOS, TIPO D, COM 1 1/4" E CUNHA DE FIXACAO | C17: UN | D17: CR | E17: 5.15
A18: 395 | B18: ABRACADEIRA EM ACO PARA AMARRACAO DE ELETRODUTOS, TIPO D, COM 1 1/4" E PARAFUSO DE FIXACAO | C18: UN | D18: CR | E18: 5.5
A19: 39127 | B19: ABRACADEIRA EM ACO PARA AMARRACAO DE ELETRODUTOS, TIPO D, COM 1/2" E CUNHA DE FIXACAO | C19: UN | D19: CR | E19: 2.71
A20: 392 | B20: ABRACADEIRA EM ACO PARA AMARRACAO DE ELETRODUTOS, TIPO D, COM 1/2" E PARAFUSO DE FIXACAO | C20: UN | D20: CR | E20: 2.79
A21: 39129 | B21: ABRACADEIRA EM ACO PARA AMARRACAO DE ELETRODUTOS, TIPO D, COM 1" E CUNHA DE FIXACAO | C21: UN | D21: CR | E21: 3.17
A22: 393 | B22: ABRACADEIRA EM ACO PARA AMARRACAO DE ELETRODUTOS, TIPO D, COM 1" E PARAFUSO DE FIXACAO | C22: UN | D22: C | E22: 3.32
A23: 39133 | B23: ABRACADEIRA EM ACO PARA AMARRACAO DE ELETRODUTOS, TIPO D, COM 2 1/2" E CUNHA DE FIXACAO | C23: UN | D23: CR | E23: 7.41
A24: 397 | B24: ABRACADEIRA EM ACO PARA AMARRACAO DE ELETRODUTOS, TIPO D, COM 2 1/2" E PARAFUSO DE FIXACAO | C24: UN | D24: CR | E24: 8.19
A25: 39132 | B25: ABRACADEIRA EM ACO PARA AMARRACAO DE ELETRODUTOS, TIPO D, COM 2" E CUNHA DE FIXACAO | C25: UN | D25: CR | E25: 5.93
A26: 396 | B26: ABRACADEIRA EM ACO PARA AMARRACAO DE ELETRODUTOS, TIPO D, COM 2" E PARAFUSO DE FIXACAO | C26: UN | D26: CR | E26: 6.35
A27: 39135 | B27: ABRACADEIRA EM ACO PARA AMARRACAO DE ELETRODUTOS, TIPO D, COM 3 1/2" E CUNHA DE FIXACAO | C27: UN | D27: CR | E27: 11.86
A28: 39128 | B28: ABRACADEIRA EM ACO PARA AMARRACAO DE ELETRODUTOS, TIPO D, COM 3/4" E CUNHA DE FIXACAO | C28: UN | D28: CR | E28: 2.96
A29: 400 | B29: ABRACADEIRA EM ACO PARA AMARRACAO DE ELETRODUTOS, TIPO D, COM 3/4" E PARAFUSO DE FIXACAO | C29: UN | D29: CR | E29: 2.89
A30: 39125 | B30: ABRACADEIRA EM ACO PARA AMARRACAO DE ELETRODUTOS, TIPO D, COM 3/8" E PARAFUSO DE FIXACAO | C30: UN | D30: CR | E30: 2.96
A31: 39134 | B31: ABRACADEIRA EM ACO PARA AMARRACAO DE ELETRODUTOS, TIPO D, COM 3" E CUNHA DE FIXACAO | C31: UN | D31: CR | E31: 9.88
A32: 398 | B32: ABRACADEIRA EM ACO PARA AMARRACAO DE ELETRODUTOS, TIPO D, COM 3" E PARAFUSO DE FIXACAO | C32: UN | D32: CR | E32: 9.11
A33: 39126 | B33: ABRACADEIRA EM ACO PARA AMARRACAO DE ELETRODUTOS, TIPO D, COM 4" E CUNHA DE FIXACAO | C33: UN | D33: CR | E33: 13.35
A34: 399 | B34: ABRACADEIRA EM ACO PARA AMARRACAO DE ELETRODUTOS, TIPO D, COM 4" E PARAFUSO DE FIXACAO | C34: UN | D34: CR | E34: 11.76
A35: 39158 | B35: ABRACADEIRA EM ACO PARA AMARRACAO DE ELETRODUTOS, TIPO ECONOMICA (GOTA), COM 8" | C35: UN | D35: CR | E35: 31.57
A36: 39141 | B36: ABRACADEIRA EM ACO PARA AMARRACAO DE ELETRODUTOS, TIPO U SIMPLES, COM 1 1/2" | C36: UN | D36: CR | E36: 2.29
A37: 39140 | B37: ABRACADEIRA EM ACO PARA AMARRACAO DE ELETRODUTOS, TIPO U SIMPLES, COM 1 1/4" | C37: UN | D37: CR | E37: 2.08
A38: 39137 | B38: ABRACADEIRA EM ACO PARA AMARRACAO DE ELETRODUTOS, TIPO U SIMPLES, COM 1/2" | C38: UN | D38: CR | E38: 1.2
A39: 39139 | B39: ABRACADEIRA EM ACO PARA AMARRACAO DE ELETRODUTOS, TIPO U SIMPLES, COM 1" | C39: UN | D39: CR | E39: 1.73
A40: 39143 | B40: ABRACADEIRA EM ACO PARA AMARRACAO DE ELETRODUTOS, TIPO U SIMPLES, COM 2 1/2" | C40: UN | D40: CR | E40: 4.73
A41: 39142 | B41: ABRACADEIRA EM ACO PARA AMARRACAO DE ELETRODUTOS, TIPO U SIMPLES, COM 2" | C41: UN | D41: CR | E41: 3.39
A42: 39138 | B42: ABRACADEIRA EM ACO PARA AMARRACAO DE ELETRODUTOS, TIPO U SIMPLES, COM 3/4" | C42: UN | D42: CR | E42: 1.27
A43: 39136 | B43: ABRACADEIRA EM ACO PARA AMARRACAO DE ELETRODUTOS, TIPO U SIMPLES, COM 3/8" | C43: UN | D43: CR | E43: 0.84
A44: 39144 | B44: ABRACADEIRA EM ACO PARA AMARRACAO DE ELETRODUTOS, TIPO U SIMPLES, COM 3" | C44: UN | D44: CR | E44: 5.5
A45: 39145 | B45: ABRACADEIRA EM ACO PARA AMARRACAO DE ELETRODUTOS, TIPO U SIMPLES, COM 4" | C45: UN | D45: CR | E45: 9.07
A46: 12615 | B46: ABRACADEIRA PVC, PARA CALHA PLUVIAL, DIAMETRO ENTRE *80 E 100* MM, PARA DRENAGEM PLUVIAL PREDIAL | C46: UN | D46: CR | E46: 11.06
A47: 11927 | B47: ABRACADEIRA, GALVANIZADA/ZINCADA, ROSCA SEM FIM, PARAFUSO INOX, LARGURA FITA *12,6 A *14 MM, D = 2" A 2 1/2" | C47: UN | D47: CR | E47: 7.48
A48: 11928 | B48: ABRACADEIRA, GALVANIZADA/ZINCADA, ROSCA SEM FIM, PARAFUSO INOX, LARGURA FITA *12,6 A *14 MM, D = 3" A 3 3/4" | C48: UN | D48: CR | E48: 8.57
A49: 11929 | B49: ABRACADEIRA, GALVANIZADA/ZINCADA, ROSCA SEM FIM, PARAFUSO INOX, LARGURA FITA *12,6 A *14 MM, D = 4" A 4 3/4" | C49: UN | D49: CR | E49: 13.26
A50: 36801 | B50: ACABAMENTO DE METAL CROMADO PARA REGISTRO PEQUENO, DE PAREDE, 1/2 " OU 3/4 " | C50: UN | D50: CR | E50: 55.53
A51: 36246 | B51: ACABAMENTO SIMPLES/CONVENCIONAL PARA FORRO PVC, TIPO "U" OU "C", COR BRANCA, COMPRIMENTO 6 M | C51: M | D51: CR | E51: 2.99
A52: 37600 | B52: ACESSORIO DE LIGACAO NAO ELETRICO PARA CARGAS EXPLOSIVAS, TUBO DE 6 M | C52: UN | D52: AS | E52: 115.69
A53: 37599 | B53: ACESSORIO INICIADOR NAO ELETRICO, TUBO DE 6 M, TEMPO DE RETARDO DE *160* MS | C53: UN | D53: AS | E53: 107.68
A54: 1 | B54: ACETILENO (RECARGA DE GAS ACETILENO PARA CILINDRO DE CONJUNTO OXICORTE GRANDE) NAO INCLUI TROCA/MANUTENCAO DO CILINDRO | C54: KG | D54: AS | E54: 87
A55: 3 | B55: ACIDO CLORIDRICO / ACIDO MURIATICO, DILUICAO 10% A 12% PARA USO EM LIMPEZA | C55: L | D55: CR | E55: 18.65
A56: 43054 | B56: ACO CA-25, 10,0 MM, OU 12,5 MM, OU 16,0 MM, OU 20,0 MM, OU 25,0 MM, VERGALHAO | C56: KG | D56: CR | E56: 10.47
A57: 42402 | B57: ACO CA-25, 16,0 MM, BARRA DE TRANSFERENCIA | C57: KG | D57: CR | E57: 10
A58: 42403 | B58: ACO CA-25, 20,0 MM, BARRA DE TRANSFERENCIA | C58: KG | D58: CR | E58: 12.83
A59: 42404 | B59: ACO CA-25, 25,0 MM, BARRA DE TRANSFERENCIA | C59: KG | D59: CR | E59: 12.76
A60: 42405 | B60: ACO CA-25, 32,0 MM, BARRA DE TRANSFERENCIA | C60: KG | D60: CR | E60: 13.59
A61: 34341 | B61: ACO CA-25, 32,0 MM, VERGALHAO | C61: KG | D61: CR | E61: 11.8
A62: 43053 | B62: ACO CA-25, 6,3 MM OU 8,0 MM, VERGALHAO | C62: KG | D62: CR | E62: 9.35
A63: 43058 | B63: ACO CA-50, 10,0 MM, OU 12,5 MM, OU 16,0 MM, OU 20,0 MM, DOBRADO E CORTADO | C63: KG | D63: CR | E63: 9.7
A64: 34 | B64: ACO CA-50, 10,0 MM, VERGALHAO | C64: KG | D64: CR | E64: 9.74
A65: 43055 | B65: ACO CA-50, 12,5 MM OU 16,0 MM, VERGALHAO | C65: KG | D65: C | E65: 8.44
A66: 43056 | B66: ACO CA-50, 20,0 MM OU 25,0 MM, VERGALHAO | C66: KG | D66: CR | E66: 9.73
A67: 43057 | B67: ACO CA-50, 32,0 MM, VERGALHAO | C67: KG | D67: CR | E67: 10.69
A68: 34449 | B68: ACO CA-50, 6,3 MM, DOBRADO E CORTADO | C68: KG | D68: CR | E68: 11.43
A69: 32 | B69: ACO CA-50, 6,3 MM, VERGALHAO | C69: KG | D69: CR | E69: 10.28
A70: 33 | B70: ACO CA-50, 8,0 MM, VERGALHAO | C70: KG | D70: CR | E70: 10.34
A71: 43061 | B71: ACO CA-60, 4,2 MM OU 5,0 MM, DOBRADO E CORTADO | C71: KG | D71: CR | E71: 9.66
A72: 43059 | B72: ACO CA-60, 4,2 MM, OU 5,0 MM, OU 6,0 MM, OU 7,0 MM, VERGALHAO | C72: KG | D72: CR | E72: 9.22
A73: 43062 | B73: ACO CA-60, 6,0 MM OU 7,0 MM, DOBRADO E CORTADO | C73: KG | D73: CR | E73: 10.22
A74: 43060 | B74: ACO CA-60, 8,0 MM OU 9,5 MM, VERGALHAO | C74: KG | D74: CR | E74: 8.03
A75: 40410 | B75: ACOPLAMENTO RIGIDO EM FERRO FUNDIDO PARA SISTEMA DE TUBULACAO RANHURADA, DN 50 MM (2") | C75: UN | D75: AS | E75: 21.55
A76: 40411 | B76: ACOPLAMENTO RIGIDO EM FERRO FUNDIDO PARA SISTEMA DE TUBULACAO RANHURADA, DN 65 MM (2 1/2") | C76: UN | D76: AS | E76: 23.38
A77: 40412 | B77: ACOPLAMENTO RIGIDO EM FERRO FUNDIDO PARA SISTEMA DE TUBULACAO RANHURADA, DN 80 MM (3") | C77: UN | D77: AS | E77: 26.25
A78: 44254 | B78: ADAPTADOR CPVC, ROSCAVEL, COM FLANGES E ANEL DE VEDACAO, 15 MM, CAIXA D'AGUA PARA AGUA QUENTE | C78: UN | D78: AS | E78: 23.27
A79: 44255 | B79: ADAPTADOR CPVC, ROSCAVEL, COM FLANGES E ANEL DE VEDACAO, 22 MM, CAIXA D'AGUA PARA AGUA QUENTE | C79: UN | D79: AS | E79: 25.79
A80: 44256 | B80: ADAPTADOR CPVC, ROSCAVEL, COM FLANGES E ANEL DE VEDACAO, 28 MM, CAIXA D'AGUA PARA AGUA QUENTE | C80: UN | D80: AS | E80: 29.13
A81: 44257 | B81: ADAPTADOR CPVC, ROSCAVEL, COM FLANGES E ANEL DE VEDACAO, 35 MM, CAIXA D'AGUA PARA AGUA QUENTE | C81: UN | D81: AS | E81: 46.09
A82: 44258 | B82: ADAPTADOR CPVC, ROSCAVEL, COM FLANGES E ANEL DE VEDACAO, 42 MM, CAIXA D'AGUA PARA AGUA QUENTE | C82: UN | D82: AS | E82: 52.67
A83: 44259 | B83: ADAPTADOR CPVC, ROSCAVEL, COM FLANGES E ANEL DE VEDACAO, 54 MM, CAIXA D'AGUA PARA AGUA QUENTE | C83: UN | D83: AS | E83: 72.3
A84: 37997 | B84: ADAPTADOR CPVC, SOLDAVEL, 15 MM, PARA AGUA QUENTE | C84: UN | D84: AS | E84: 13.87
A85: 37998 | B85: ADAPTADOR CPVC, SOLDAVEL, 22 MM, PARA AGUA QUENTE | C85: UN | D85: AS | E85: 18.56
A86: 55 | B86: ADAPTADOR DE COMPRESSAO EM POLIPROPILENO (PP), PARA TUBO EM PEAD, 20 MM X 1/2", PARA LIGACAO PREDIAL DE AGUA (NTS 179) | C86: UN | D86: AS | E86: 4.2
A87: 61 | B87: ADAPTADOR DE COMPRESSAO EM POLIPROPILENO (PP), PARA TUBO EM PEAD, 20 MM X 3/4", PARA LIGACAO PREDIAL DE AGUA (NTS 179) | C87: UN | D87: AS | E87: 3.97
A88: 62 | B88: ADAPTADOR DE COMPRESSAO EM POLIPROPILENO (PP), PARA TUBO EM PEAD, 32 MM X 1", PARA LIGACAO PREDIAL DE AGUA (NTS 179) | C88: UN | D88: AS | E88: 8.23
A89: 10899 | B89: ADAPTADOR EM LATAO, ENGATE RAPIDO 2 1/2" X ROSCA INTERNA 5 FIOS 2 1/2", PARA INSTALACAO PREDIAL DE COMBATE A INCENDIO | C89: UN | D89: AS | E89: 133.61
A90: 10900 | B90: ADAPTADOR EM LATAO, ENGATE RAPIDO1 1/2" X ROSCA INTERNA 5 FIOS 2 1/2", PARA INSTALACAO PREDIAL DE COMBATE A INCENDIO | C90: UN | D90: AS | E90: 104.57
A91: 46 | B91: ADAPTADOR PVC PBA, BOLSA/ROSCA, JE, DN 75 / DE 85 MM | C91: UN | D91: AS | E91: 42.05
A92: 47 | B92: ADAPTADOR PVC PBA, BOLSA/ROSCA, JE, DN 100 / DE 110 MM | C92: UN | D92: AS | E92: 71.9
A93: 48 | B93: ADAPTADOR PVC PBA, BOLSA/ROSCA, JE, DN 50 / DE 60 MM | C93: UN | D93: AS | E93: 18.75
A94: 52 | B94: ADAPTADOR PVC PBA, PONTA/ROSCA, JE, DN 50 / DE 60 MM | C94: UN | D94: AS | E94: 14.25
A95: 43 | B95: ADAPTADOR PVC PBA, PONTA/ROSCA, JE, DN 75 / DE 85 MM | C95: UN | D95: AS | E95: 48.09
A96: 103 | B96: ADAPTADOR PVC SOLDAVEL CURTO COM BOLSA E ROSCA, 110 MM X 4", PARA AGUA FRIA | C96: UN | D96: CR | E96: 39.89
A97: 107 | B97: ADAPTADOR PVC SOLDAVEL CURTO COM BOLSA E ROSCA, 20 MM X 1/2", PARA AGUA FRIA | C97: UN | D97: CR | E97: 0.75
A98: 65 | B98: ADAPTADOR PVC SOLDAVEL CURTO COM BOLSA E ROSCA, 25 MM X 3/4", PARA AGUA FRIA | C98: UN | D98: CR | E98: 0.82
A99: 108 | B99: ADAPTADOR PVC SOLDAVEL CURTO COM BOLSA E ROSCA, 32 MM X 1", PARA AGUA FRIA | C99: UN | D99: CR | E99: 1.65
A100: 110 | B100: ADAPTADOR PVC SOLDAVEL CURTO COM BOLSA E ROSCA, 40 MM X 1 1/2", PARA AGUA FRIA | C100: UN | D100: CR | E100: 5.74
A101: 109 | B101: ADAPTADOR PVC SOLDAVEL CURTO COM BOLSA E ROSCA, 40 MM X 1 1/4", PARA AGUA FRIA | C101: UN | D101: CR | E101: 3.42
A102: 111 | B102: ADAPTADOR PVC SOLDAVEL CURTO COM BOLSA E ROSCA, 50 MM X 1 1/4", PARA AGUA FRIA | C102: UN | D102: CR | E102: 7.76
A103: 112 | B103: ADAPTADOR PVC SOLDAVEL CURTO COM BOLSA E ROSCA, 50 MM X1 1/2", PARA AGUA FRIA | C103: UN | D103: CR | E103: 4.11
A104: 113 | B104: ADAPTADOR PVC SOLDAVEL CURTO COM BOLSA E ROSCA, 60 MM X 2", PARA AGUA FRIA | C104: UN | D104: CR | E104: 10.3
A105: 104 | B105: ADAPTADOR PVC SOLDAVEL CURTO COM BOLSA E ROSCA, 75 MM X 2 1/2", PARA AGUA FRIA | C105: UN | D105: CR | E105: 17.93
A106: 102 | B106: ADAPTADOR PVC SOLDAVEL CURTO COM BOLSA E ROSCA, 85 MM X 3", PARA AGUA FRIA | C106: UN | D106: CR | E106: 24.72
A107: 95 | B107: ADAPTADOR PVC SOLDAVEL, COM FLANGE E ANEL DE VEDACAO, 20 MM X 1/2", PARA CAIXA D'AGUA | C107: UN | D107: CR | E107: 10.44
A108: 96 | B108: ADAPTADOR PVC SOLDAVEL, COM FLANGE E ANEL DE VEDACAO, 25 MM X 3/4", PARA CAIXA D'AGUA | C108: UN | D108: CR | E108: 11.36
A109: 97 | B109: ADAPTADOR PVC SOLDAVEL, COM FLANGE E ANEL DE VEDACAO, 32 MM X 1", PARA CAIXA D'AGUA | C109: UN | D109: CR | E109: 17.09
A110: 98 | B110: ADAPTADOR PVC SOLDAVEL, COM FLANGE E ANEL DE VEDACAO, 40 MM X 1 1/4", PARA CAIXA D'AGUA | C110: UN | D110: CR | E110: 25.59
A111: 99 | B111: ADAPTADOR PVC SOLDAVEL, COM FLANGE E ANEL DE VEDACAO, 50 MM X 1 1/2", PARA CAIXA D'AGUA | C111: UN | D111: CR | E111: 24.18
A112: 100 | B112: ADAPTADOR PVC SOLDAVEL, COM FLANGES E ANEL DE VEDACAO, 60 MM X 2", PARA CAIXA D' AGUA | C112: UN | D112: CR | E112: 42.25
A113: 75 | B113: ADAPTADOR PVC SOLDAVEL, COM FLANGES LIVRES, 110 MM X 4", PARA CAIXA D' AGUA | C113: UN | D113: CR | E113: 246.35
A114: 83 | B114: ADAPTADOR PVC SOLDAVEL, COM FLANGES LIVRES, 75 MM X 2 1/2", PARA CAIXA D' AGUA | C114: UN | D114: CR | E114: 196.95
A115: 74 | B115: ADAPTADOR PVC SOLDAVEL, COM FLANGES LIVRES, 85 MM X 3", PARA CAIXA D' AGUA | C115: UN | D115: CR | E115: 281.58
A116: 106 | B116: ADAPTADOR PVC SOLDAVEL, LONGO, COM FLANGE LIVRE, 110 MM X 4", PARA CAIXA D' AGUA | C116: UN | D116: CR | E116: 356.07
A117: 88 | B117: ADAPTADOR PVC SOLDAVEL, LONGO, COM FLANGE LIVRE, 32 MM X 1", PARA CAIXA D' AGUA | C117: UN | D117: CR | E117: 10.01
A118: 82 | B118: ADAPTADOR PVC SOLDAVEL, LONGO, COM FLANGE LIVRE, 75 MM X 2 1/2", PARA CAIXA D' AGUA | C118: UN | D118: CR | E118: 187.38
A119: 105 | B119: ADAPTADOR PVC SOLDAVEL, LONGO, COM FLANGE LIVRE, 85 MM X 3", PARA CAIXA D' AGUA | C119: UN | D119: CR | E119: 265.51
A120: 60 | B120: ADAPTADOR PVC, COM REGISTRO, PARA PEAD, 20 MM X 3/4", PARA LIGACAO PREDIAL DE AGUA | C120: UN | D120: AS | E120: 5.45
A121: 72 | B121: ADAPTADOR PVC, ROSCAVEL, COM FLANGES E ANEL DE VEDACAO, 1 1/2", PARA CAIXA D'AGUA | C121: UN | D121: CR | E121: 46.38
A122: 67 | B122: ADAPTADOR PVC, ROSCAVEL, COM FLANGES E ANEL DE VEDACAO, 1/2", PARA CAIXA D' AGUA | C122: UN | D122: CR | E122: 14.99
A123: 71 | B123: ADAPTADOR PVC, ROSCAVEL, COM FLANGES E ANEL DE VEDACAO, 1", PARA CAIXA D' AGUA | C123: UN | D123: CR | E123: 28.64
A124: 73 | B124: ADAPTADOR PVC, ROSCAVEL, COM FLANGES E ANEL DE VEDACAO, 3/4", PARA CAIXA D' AGUA | C124: UN | D124: CR | E124: 14.35
A125: 39719 | B125: ADESIVO / COLA DE CONTATO LIQUIDO, A BASE DE RESINAS, PARA COLAGEM DE ESPUMA PARA ISOLAMENTO TERMICO FLEXIVEL | C125: L | D125: CR | E125: 152.52
A126: 3410 | B126: ADESIVO / COLA PARA EPS (ISOPOR) E OUTROS MATERIAIS | C126: KG | D126: CR | E126: 34.31
A127: 4791 | B127: ADESIVO ACRILICO DE BASE AQUOSA / COLA DE CONTATO | C127: KG | D127: CR | E127: 22.96
A128: 157 | B128: ADESIVO ESTRUTURAL A BASE DE RESINA EPOXI PARA INJECAO EM TRINCAS, BICOMPONENTE, BAIXA VISCOSIDADE | C128: KG | D128: CR | E128: 205.03
A129: 156 | B129: ADESIVO ESTRUTURAL A BASE DE RESINA EPOXI, BICOMPONENTE, FLUIDO | C129: KG | D129: CR | E129: 73
A130: 131 | B130: ADESIVO ESTRUTURAL A BASE DE RESINA EPOXI, BICOMPONENTE, PASTOSO (TIXOTROPICO) | C130: KG | D130: CR | E130: 62.43
A131: 21114 | B131: ADESIVO PARA TUBOS CPVC, *75* G | C131: UN | D131: CR | E131: 30.06
A132: 119 | B132: ADESIVO PLASTICO PARA PVC, BISNAGA COM 75 GR | C132: UN | D132: C | E132: 7.62
A133: 122 | B133: ADESIVO PLASTICO PARA PVC, FRASCO COM *850* GR | C133: UN | D133: CR | E133: 58.63
A134: 20080 | B134: ADESIVO PLASTICO PARA PVC, FRASCO COM 175 GR | C134: UN | D134: CR | E134: 19.13
A135: 124 | B135: ADITIVO ACELERADOR DE PEGA E ENDURECIMENTO PARA ARGAMASSAS E CONCRETOS, LIQUIDO E ISENTO DE CLORETOS | C135: L | D135: CR | E135: 24.08
A136: 7334 | B136: ADITIVO ADESIVO LIQUIDO PARA ARGAMASSAS DE REVESTIMENTOS CIMENTICIOS | C136: L | D136: CR | E136: 25.2
A137: 45146 | B137: ADITIVO IMPERMEABILIZANTE CRISTALIZANTE PARA CONCRETO | C137: KG | D137: CR | E137: 46.16
A138: 123 | B138: ADITIVO IMPERMEABILIZANTE DE PEGA NORMAL PARA ARGAMASSAS E CONCRETOS SEM ARMACAO, LIQUIDO E ISENTO DE CLORETOS | C138: L | D138: C | E138: 9.85
A139: 127 | B139: ADITIVO IMPERMEABILIZANTE DE PEGA ULTRARRAPIDA, LIQUIDO E ISENTO DE CLORETOS | C139: L | D139: CR | E139: 23.51
A140: 133 | B140: ADITIVO LIQUIDO INCORPORADOR DE AR PARA CONCRETO E ARGAMASSA, LIQUIDO E ISENTO DE CLORETOS | C140: L | D140: CR | E140: 9.77
A141: 43617 | B141: ADITIVO PLASTIFICANTE E ESTABILIZADOR PARA ARGAMASSAS DE ASSENTAMENTO E REBOCO, LIQUIDO E ISENTO DE CLORETOS | C141: L | D141: CR | E141: 10.91
A142: 132 | B142: ADITIVO PLASTIFICANTE RETARDADOR DE PEGA E REDUTOR DE AGUA PARA CONCRETO, LIQUIDO E ISENTO DE CLORETOS | C142: L | D142: CR | E142: 10.12
A143: 43618 | B143: ADITIVO SUPERPLASTIFICANTE DE PEGA NORMAL PARA CONCRETO, LIQUIDO E ISENTO DE CLORETOS | C143: KG | D143: CR | E143: 25.49
A144: 37476 | B144: ADUELA/ GALERIA PRE-MOLDADA DE CONCRETO ARMADO, SECAO QUADRADA INTERNA DE 1,50 X 1,50 M (L X A), MISULA DE 20 X 20 CM, C = 1,00 M, ESPESSURA MIN = 15 CM, TB-45 E FCK DO CONCRETO = 30 MPA | C144: UN | D144: AS | E144: 4070.97
A145: 37478 | B145: ADUELA/ GALERIA PRE-MOLDADA DE CONCRETO ARMADO, SECAO RETANGULAR INTERNA DE 2,00 X 2,00 M (L X A), MISULA DE 20 X 20 CM, C = 1,00 M, ESPESSURA MIN = 15 CM, TB-45 E FCK DO CONCRETO = 30 MPA | C145: UN | D145: AS | E145: 5099
A146: 37477 | B146: ADUELA/ GALERIA PRE-MOLDADA DE CONCRETO ARMADO, SECAO RETANGULAR INTERNA DE 2,50 X 2,50 M (L X A), MISULA DE 20 X 20 CM, C = 1,00 M, ESPESSURA MIN = 15 CM, TB-45 E FCK DO CONCRETO = 30 MPA | C146: UN | D146: AS | E146: 6908.32
A147: 37479 | B147: ADUELA/ GALERIA PRE-MOLDADA DE CONCRETO ARMADO, SECAO RETANGULAR INTERNA DE 3,00 X 3,00 M (L X A), MISULA DE 20 X 20 CM, C = 1.00 M, ESPESSURA MIN = 20 CM, TB-45 E FCK DO CONCRETO = 30 MPA | C147: UN | D147: AS | E147: 8193.36
A148: 4319 | B148: AFASTADOR PARA TELHA DE FIBROCIMENTO CANALETE 90 OU KALHETAO | C148: UN | D148: AS | E148: 2.05
A149: 42409 | B149: AGENTE DE CURA, PROTETOR DA EVAPORACAO DA AGUA DE HIDRATACAO DO CONCRETO | C149: KG | D149: CR | E149: 16.05
A150: 40553 | B150: AGREGADO RECICLADO, TIPO RACHAO RECICLADO CINZA, CLASSE A | C150: M3 | D150: AS | E150: 54
A151: 6114 | B151: AJUDANTE DE ARMADOR (HORISTA) | C151: H | D151: CR | E151: 15.77
A152: 40912 | B152: AJUDANTE DE ARMADOR (MENSALISTA) | C152: MES | D152: CR | E152: 2732.25
A153: 247 | B153: AJUDANTE DE ELETRICISTA (HORISTA) | C153: H | D153: CR | E153: 15.77
A154: 40919 | B154: AJUDANTE DE ELETRICISTA (MENSALISTA) | C154: MES | D154: CR | E154: 2732.25
A155: 44499 | B155: AJUDANTE DE ESTRUTURAS METALICAS (HORISTA) | C155: H | D155: CR | E155: 15.77
A156: 40984 | B156: AJUDANTE DE ESTRUTURAS METALICAS (MENSALISTA) | C156: MES | D156: CR | E156: 2732.25
A157: 248 | B157: AJUDANTE DE OPERACAO EM GERAL (HORISTA) | C157: H | D157: CR | E157: 14.82
A158: 41086 | B158: AJUDANTE DE OPERACAO EM GERAL (MENSALISTA) | C158: MES | D158: CR | E158: 2568.4
A159: 34466 | B159: AJUDANTE DE PINTOR (HORISTA) | C159: H | D159: CR | E159: 15.77
A160: 41083 | B160: AJUDANTE DE PINTOR (MENSALISTA) | C160: MES | D160: CR | E160: 2732.25
A161: 252 | B161: AJUDANTE DE SERRALHEIRO (HORISTA) | C161: H | D161: CR | E161: 15.77
A162: 40909 | B162: AJUDANTE DE SERRALHEIRO (MENSALISTA) | C162: MES | D162: CR | E162: 2732.25
A163: 242 | B163: AJUDANTE ESPECIALIZADO (HORISTA) | C163: H | D163: CR | E163: 14.82
A164: 41085 | B164: AJUDANTE ESPECIALIZADO (MENSALISTA) | C164: MES | D164: CR | E164: 2568.4
A165: 427 | B165: ALCA PREFORMADA DE CONTRA POSTE, EM ACO GALVANIZADO, PARA CABO 3/16", COMPRIMENTO *860* MM | C165: UN | D165: AS | E165: 6.31
A166: 417 | B166: ALCA PREFORMADA DE DISTRIBUICAO, EM ACO GALVANIZADO, PARA CABO DE ALUMINIO DIAMETRO 16 A 25 MM | C166: UN | D166: AS | E166: 2.97
A167: 11273 | B167: ALCA PREFORMADA DE DISTRIBUICAO, EM ACO GALVANIZADO, PARA CONDUTORES DE ALUMINIO AWG 1/0 (CAA 6/1 OU CA 7 FIOS) | C167: UN | D167: AS | E167: 9.22
A168: 11272 | B168: ALCA PREFORMADA DE DISTRIBUICAO, EM ACO GALVANIZADO, PARA CONDUTORES DE ALUMINIO AWG 2 (CAA 6/1 OU CA 7 FIOS) | C168: UN | D168: AS | E168: 5.57
A169: 11275 | B169: ALCA PREFORMADA DE SERVICO, EM ACO GALVANIZADO, PARA CONDUTORES DE ALUMINIO AWG 4 (CAA 6/1) | C169: UN | D169: AS | E169: 2.23
A170: 11274 | B170: ALCA PREFORMADA DE SERVICO, EM ACO GALVANIZADO, PARA CONDUTORES DE ALUMINIO AWG 6 (CAA 6/1) | C170: UN | D170: AS | E170: 1.7
A171: 38470 | B171: ALICATE DE CORTE DIAGONAL 6 " COM ISOLAMENTO | C171: UN | D171: C | E171: 36.25
A172: 38547 | B172: ALICATE DE CRIMPAR RJ11, RJ12 E RJ45 | C172: UN | D172: CR | E172: 98.92
A173: 38469 | B173: ALICATE DE PRESSAO PARA SOLDA DE CHAPA 18 " | C173: UN | D173: CR | E173: 106.36
A174: 38467 | B174: ALICATE DE PRESSAO 11 " PARA SOLDA, TIPO C | C174: UN | D174: CR | E174: 59.85
A175: 38468 | B175: ALICATE DE PRESSAO 11 " PARA SOLDA, TIPO U | C175: UN | D175: CR | E175: 65.86
A176: 38471 | B176: ALICATE PARA ANEIS DE PISTAO, CAPACIDADE 50 A 100 MM | C176: UN | D176: CR | E176: 85.52
A177: 37370 | B177: ALIMENTACAO - HORISTA (COLETADO CAIXA - ENCARGOS COMPLEMENTARES) | C177: H | D177: C | E177: 0.53
A178: 40862 | B178: ALIMENTACAO - MENSALISTA (COLETADO CAIXA - ENCARGOS COMPLEMENTARES) | C178: MES | D178: C | E178: 100
A179: 10658 | B179: ALISADORA DE CONCRETO COM MOTOR A GASOLINA DE 5,5 HP, PESO COM MOTOR DE 78 KG, 4 PAS | C179: UN | D179: AS | E179: 7359
A180: 253 | B180: ALMOXARIFE (HORISTA) | C180: H | D180: C | E180: 19.4
A181: 40809 | B181: ALMOXARIFE (MENSALISTA) | C181: MES | D181: CR | E181: 3359.09
A182: 42428 | B182: ALONGADOR COM TRES ALTURAS, EM TUBO DE ACO CARBONO, PINTURA NO PROCESSO ELETROSTATICO - EQUIPAMENTO DE GINASTICA PARA ACADEMIA AO AR LIVRE / ACADEMIA DA TERCEIRA IDADE - ATI | C182: UN | D182: AS | E182: 2271
A183: 301 | B183: ANEL BORRACHA PARA TUBO ESGOTO PREDIAL, DN 100 MM (NBR 5688) | C183: UN | D183: C | E183: 3.64
A184: 296 | B184: ANEL BORRACHA PARA TUBO ESGOTO PREDIAL, DN 50 MM (NBR 5688) | C184: UN | D184: CR | E184: 2.05
A185: 297 | B185: ANEL BORRACHA PARA TUBO ESGOTO PREDIAL, DN 75 MM (NBR 5688) | C185: UN | D185: CR | E185: 3.02
A186: 299 | B186: ANEL BORRACHA, DN 100 MM, PARA TUBO SERIE REFORCADA ESGOTO PREDIAL | C186: UN | D186: CR | E186: 4.27
A187: 300 | B187: ANEL BORRACHA, DN 150 MM, PARA TUBO SERIE REFORCADA ESGOTO PREDIAL | C187: UN | D187: CR | E187: 14.77
A188: 20085 | B188: ANEL BORRACHA, DN 50 MM, PARA TUBO SERIE REFORCADA ESGOTO PREDIAL | C188: UN | D188: CR | E188: 2.7
A189: 298 | B189: ANEL BORRACHA, DN 75 MM, PARA TUBO SERIE REFORCADA ESGOTO PREDIAL | C189: UN | D189: CR | E189: 3.28
A190: 311 | B190: ANEL BORRACHA, PARA TUBO PVC DEFOFO, DN 100 MM (NBR 7665) | C190: UN | D190: CR | E190: 12.18
A191: 318 | B191: ANEL BORRACHA, PARA TUBO PVC DEFOFO, DN 150 MM (NBR 7665) | C191: UN | D191: CR | E191: 24.54
A192: 319 | B192: ANEL BORRACHA, PARA TUBO PVC DEFOFO, DN 200 MM (NBR 7665) | C192: UN | D192: CR | E192: 38.48
A193: 303 | B193: ANEL BORRACHA, PARA TUBO PVC, REDE COLETOR ESGOTO, DN 100 MM (NBR 7362) | C193: UN | D193: CR | E193: 4.03
A194: 305 | B194: ANEL BORRACHA, PARA TUBO PVC, REDE COLETOR ESGOTO, DN 150 MM (NBR 7362) | C194: UN | D194: CR | E194: 12.68
A195: 306 | B195: ANEL BORRACHA, PARA TUBO PVC, REDE COLETOR ESGOTO, DN 200 MM (NBR 7362) | C195: UN | D195: CR | E195: 19.24
A196: 307 | B196: ANEL BORRACHA, PARA TUBO PVC, REDE COLETOR ESGOTO, DN 250 MM (NBR 7362) | C196: UN | D196: CR | E196: 48.6
A197: 309 | B197: ANEL BORRACHA, PARA TUBO PVC, REDE COLETOR ESGOTO, DN 350 MM (NBR 7362) | C197: UN | D197: CR | E197: 79.62
A198: 310 | B198: ANEL BORRACHA, PARA TUBO PVC, REDE COLETOR ESGOTO, DN 400 MM (NBR 7362) | C198: UN | D198: CR | E198: 110.35
A199: 328 | B199: ANEL BORRACHA, PARA TUBO/CONEXAO PVC PBA, DN 100 MM, PARA REDE AGUA | C199: UN | D199: CR | E199: 9.65
A200: 325 | B200: ANEL BORRACHA, PARA TUBO/CONEXAO PVC PBA, DN 50 MM, PARA REDE AGUA | C200: UN | D200: CR | E200: 2.84
A201: 20326 | B201: ANEL BORRACHA, PARA TUBO/CONEXAO PVC PBA, DN 60 MM, PARA REDE AGUA | C201: UN | D201: CR | E201: 5.21
A202: 329 | B202: ANEL BORRACHA, PARA TUBO/CONEXAO PVC PBA, DN 75 MM, PARA REDE AGUA | C202: UN | D202: CR | E202: 8.07
... 4692 more rows

Sheet CPU Própria (sem des)
A1: 1.2 | B1: COMPOSIÇÕES PRÓPRIAS - OBRA "A" - MOBILIZAÇÃO E DESMOBILIZAÇÃO
B2: ITEM | C2: EQUIPAMENTO TRANSPORTADO | D2: Referência | E2: Código | F2: UNIDADE | G2: ORIGEM | H2: DESTINO | I2: QUANT. | J2: PESO TONELA DA | K2: PREÇO | L2: (R$) | M2: PREÇO TOTAL R$
B3: 1 | C3: EQUIPAMENTOS DE GRANDE PORTE
B4: 1.6 | C4: CAMINHÃO CARROCERIA COM GUINDAUTO 45 T | D4: SICRO | E4: E9041 | F4: CHP | G4: Raio 50 km | H4: Canteiro | I4: 8 | J4: - | K4: R$ | L4: 415.4884 | M4: =L4*I4 -> 3323.9072
B5: SUB TOTAL 1 | M5: =SUM(M4) -> 3323.9072
B6: 3 | C6: VEÍCULOS DE PRODUÇÃO
B7: 3.2 | C7: CAMINHÃO CARROCERIA 15 T | D7: SICRO | E7: E9592 | F7: CHP | G7: Raio 50 km | H7: Canteiro | I7: 8 | J7: - | K7: R$ | L7: 279.3241 | M7: 274.27
B8: SUB TOTAL 3 | M8: =SUM(M7) -> 274.27
B9: 4 | C9: TRABALHO MANUAL CARGA DESCARA
B10: 4.1 | C10: SERVENTE | D10: SINAPI | E10: 6111 | F10: H | G10: - | H10: Canteiro | I10: 50 | K10: R$ | L10: 13.85 | M10: =I10*L10 -> 692.5
B11: SUB TOTAL 4 | M11: =SUM(M10) -> 692.5
B13: TOTAL MOBILIZAÇÃO, DESMOBLIZAÇÃO | M13: =M11+M8+M5 -> 4290.6772
A16: 1.1 | B16: Item 1.1 - COMPOSIÇÕES PRÓPRIAS - OBRA "B" - MOBILIZAÇÃO E DESMOBILIZAÇÃO
B17: ITEM | C17: EQUIPAMENTO TRANSPORTADO | D17: Referência | E17: Código | F17: UNIDADE | G17: ORIGEM | H17: DESTINO | I17: QUANT. | J17: PESO TONELA DA | K17: PREÇO | L17: (R$) | M17: PREÇO TOTAL R$
B18: 1 | C18: EQUIPAMENTOS DE GRANDE PORTE
B19: 1.6 | C19: CAMINHÃO CARROCERIA COM GUINDAUTO 45 T | D19: SICRO | E19: E9041 | F19: CHP | G19: Raio 50 km | H19: Canteiro | I19: 2 | J19: - | K19: R$ | L19: =L4 -> 415.4884 | M19: =L19*I19 -> 830.9768
B20: SUB TOTAL 1 | M20: =SUM(M19) -> 830.9768
B21: 3 | C21: VEÍCULOS DE PRODUÇÃO
B22: 3.2 | C22: CAMINHÃO CARROCERIA 15 T | D22: SICRO | E22: E9592 | F22: CHP | G22: Raio 50 km | H22: Canteiro | I22: 2 | J22: - | K22: R$ | L22: =L7 -> 279.3241 | M22: =L22*I22 -> 558.6482
B23: SUB TOTAL 3 | M23: =SUM(M22) -> 558.6482
B24: 4 | C24: TRABALHO MANUAL CARGA DESCARA
B25: 4.1 | C25: SERVENTE | D25: SINAPI | E25: 6111 | F25: H | G25: - | H25: Canteiro | I25: 50 | K25: R$ | L25: =L10 -> 13.85 | M25: =I25*L25 -> 692.5
B26: SUB TOTAL 4 | M26: =SUM(M25) -> 692.5
B28: TOTAL MOBILIZAÇÃO, DESMOBLIZAÇÃO | M28: =M26+M23+M20 -> 2082.125
B30: Item 2.1 - COMPOSIÇÕES PRÓPRIAS - OBRA "B" - MOBILIZAÇÃO E DESMOBILIZAÇÃO
A31: 2.1 | B31: ITEM | C31: EQUIPAMENTO TRANSPORTADO | D31: Referência | E31: Código | F31: UNIDADE | G31: ORIGEM | H31: DESTINO | I31: QUANT. | J31: PESO TONELA DA | K31: PREÇO | L31: (R$) | M31: PREÇO TOTAL R$
B32: 1 | C32: ESCAVADEIRA HIDRÁULICA SOBRE ESTEIRAS, CAÇAMBA 0,80 M3, PESO OPERACIONAL 17 T, POTENCIA BRUTA 111 HP - CHP DIURNO. AF_06/2014 | D32: SINAPI | E32: 5631 | F32: CHP | G32: - | H32: - | I32: 0.36 | J32: - | K32: R$ | L32: 208.29 | M32: =L32*I32 -> 74.9844
B33: 2 | C33: ESCAVADEIRA HIDRÁULICA SOBRE ESTEIRAS, CAÇAMBA 0,80 M3, PESO OPERACIONAL 17 T, POTENCIA BRUTA 111 HP - CHP DIURNO. AF_06/2014 | D33: SINAPI | E33: 5632 | F33: CHI | G33: - | H33: - | I33: 0.1394 | J33: - | K33: R$ | L33: 81.64 | M33: =L33*I33 -> 11.380616
M34: =SUM(M32:M33) -> 86.365016

Sheet Insumos ORSE (sem des) (hidden)
A1: 1 | D1: Obra | E1: Bancos | G1: B.D.I. | I1: Encargos Sociais
D2: Orla Santana (2) | E2: ORSE - 06/2023 - Sergipe | G2: 0,0% | I2: Não Desonerado: Horista: 112,56% Mensalista: 68,47%
A3: Orçamento Sintético
A4: Item | B4: Código | C4: Banco | D4: Descrição | E4: Und | F4: Quant. | G4: Valor Unit
A5: 1 | B5: 13008 | C5: ORSE | D5: Guarda-corpo tubo ferro galvanizado, alt=0,70m, com barras verticais de 1.1/2" a cada 2,0m e barras horizontais inferior, intermediária e superior de 1.1/2" m | E5: m | F5: 1 | G5: 171.94
A6: 2 | B6: 3705 | C6: ORSE | D6: Disjuntor tripolar 175 A, padrão DIN ( linha branca ), corrente de interrupção 22KA, ref.: Siemens QLH3 ou similar. un | E6: un | F6: 1 | G6: 380
A7: 3 | B7: 4105 | C7: ORSE | D7: Flange 100 x 100mm para eletrocalha metálica (ref. Mopa ou similar) un | E7: un | F7: 1 | G7: 12.5
A8: 4 | B8: 4419 | C8: ORSE | D8: Arruela lisa de 5/16" un | E8: un | F8: 1 | G8: 0.1
A9: 4 | B9: 8347 | C9: ORSE | D9: Arruela lisa zincada ø 1/4" un | E9: un | F9: 1 | G9: 0.05
A10: 5 | B10: 11348 | C10: ORSE | D10: Abraçadeira tipo U, d=1", p/ eletrodutos un | E10: un | F10: 1 | G10: 0.7
A11: 5 | B11: 295 | C11: ORSE | D11: Abraçadeira tipo U, d=26mm (3/4") c/ fixações, p/ tubo galvanizado un | E11: un | F11: 1 | G11: 0.55
A12: 6 | B12: 857 | C12: ORSE | D12: Eletrocalha metálica perfurada 50 x 50 x 3000 mm (ref. valemam ou similar) Eletrocalha metálica perfurada 50 x 50 x 300 mm (ref. valemam ou similar) un | E12: un | F12: 1 | G12: 48
A13: 7 | B13: 12668 | C13: ORSE | D13: Cruzeta 100 x 100 mm para eletrocalha perfurada metálica (ref.: mopa ou similar) un | E13: un | F13: 1 | G13: 82.17
A14: 8 | B14: 3633 | C14: ORSE | D14: Eletrocalha metálica perfurada 100 x 100 x 3000mm, peso, 2,20Kg/m, (ref.: mopa ou similar) un | E14: un | F14: 1 | G14: 89.9
A15: 9 | B15: 4105 | C15: ORSE | D15: Flange 100 x 100mm para eletrocalha metálica (ref. Mopa ou similar) un | E15: un | F15: 1 | G15: 12.5
A16: 10 | B16: 462 | C16: ORSE | D16: Caixa d'agua fibra vidro 3.000 litros - Fortlev-Torres (ou similar) un | E16: un | F16: 1 | G16: 1175.9
A17: 11 | B17: 13369 | C17: ORSE | D17: Caixa metálica com tomada 10A 250V para perfilado e fixação un | E17: un | F17: 1 | G17: 5.9
A18: 12 | B18: 13318 | C18: ORSE | D18: Suporte vertical 150 x 150 mm para fixação de eletrocalha metálica (ref.: mopa ou similar) un | E18: un | F18: 1 | G18: 16.13
A19: 13 | B19: 13318 | C19: ORSE | D19: Suporte vertical 150 x 150 mm para fixação de eletrocalha metálica (ref.: mopa ou similar) un | E19: un | F19: 1 | G19: 16.13
A20: 14 | B20: 13389 | C20: ORSE | D20: Tampa de encaixe 75mm para Tê de descida lateral, zincada, para eletrocalha metálica (ref.: mopa ou similar) un | E20: un | F20: 1 | G20: 11.27
A21: 15 | B21: 13435 | C21: ORSE | D21: Bloco de concreto, estrutural dim. 14 x 19 x 39 cm, fck 10 mpa un | E21: un | F21: 1 | G21: 4.25
A22: 16 | B22: 9221 | C22: ORSE | D22: Motobomba centrífuga, marca schneider ou similar, modelo BC-21 R2, motor 5 cv, trifásico 220V, sucção 2 1/2", recalque 2", hm = 8 a 20m, q = 27,6 a 78,9m3/h un | E22: un | F22: 1 | G22: 5003.68
A23: 17 | B23: 5466 | C23: ORSE | D23: Flange cego, em fofo, pn 10 / 16 / 25, d= 80mm un | E23: un | F23: 1 | G23: 173.37
A24: 18 | B24: 994 | C24: ORSE | D24: Flange ferro galvanizado d=6" un | E24: un | F24: 1 | G24: 361.24
A25: 19 | B25: 4749 | C25: ORSE | D25: Junta de desmontagem travada axialamente JTDA pn 10, d = 500 un | E25: un | F25: 1 | G25: 6208.93
A26: 20 | B26: 6468 | C26: ORSE | D26: Redução Excêntrica em PVC para coletor Esgotos, DN 150 x 100mm un | E26: un | F26: 1 | G26: 385.03
A27: 21 | B27: 2495 | C27: ORSE | D27: Talha manual 5,0 t, elev.= 5,0 m ("koch" ou equivalente) h | E27: dia | F27: 1 | G27: 31.04
A28: 22 | B28: 2069 | C28: ORSE | D28: Tampa de ferro fundido quadrada (600x600mm), carga max. 2000kg p/cx.inspeção un | E28: un | F28: 1 | G28: 1448.93
A29: 23 | B29: 6462 | C29: ORSE | D29: Tê 90º Vinilfort para coletor Esgotos, Junta Elástica Integrada, DN 150 x 150mm un | E29: un | F29: 1 | G29: 391.97
A30: 24 | B30: 5759 | C30: ORSE | D30: Toco em fofo c/ flanges pn 10 / 16 / 25, comp. = 0,25m, d= 80mm un | E30: un | F30: 1 | G30: 438.63
A31: 25 | B31: 4691 | C31: ORSE | D31: Tubo pead flexivel corrugado perfurado d=2 1/2" (Kananet ou similar) m | E31: m | F31: 1 | G31: 7.44
A32: 26 | B32: 2321 | C32: ORSE | D32: Tubo pead flexivel corrugado perfurado d = 4" (Kanadreno ou similar) m | E32: m | F32: 1 | G32: 11.93
A33: 27 | B33: 11638 | C33: ORSE | D33: Válvula de bóia em ferro fundido, Ø=80mm un | E33: un | F33: 1 | G33: 1256.79
A34: 28 | B34: 13435 | C34: ORSE | D34: Bloco de concreto, estrutural dim. 14 x 19 x 39 cm, fck 10 mpa un | E34: un | F34: 1 | G34: 4.25
A35: 29 | B35: 4749 | C35: ORSE | D35: Junta de desmontagem travada axialamente JTDA pn 10, d = 500 un | E35: un | F35: 1 | G35: 6208.93
A36: 30 | B36: 2495 | C36: ORSE | D36: Talha manual 5,0 t, elev.= 5,0 m ("koch" ou equivalente) h | E36: dia | F36: 1 | G36: 31.04
A37: 31 | B37: 5666 | C37: ORSE | D37: Tê 90º pvc, je, bbb, PBA, d= 75mm un | E37: un | F37: 1 | G37: 52.81

Sheet CPU-VEICULO_Leve
A2: Composição de Preços de Locação de Veículos
B3: 2023-08-23 | C3: Data de atualização: | D3: 2024-01-22 | F3: CV | G3: Média | H3: Mediana | L3: CV | M3: Média | N3: Mediana | X3: CV | Y3: Média | Z3: Mediana
A4: CODEVASF | F4: =_xlfn.STDEV.S(F7:I7)/AVERAGE(F7:I7) -> 0.1377199342 | G4: =AVERAGE(F7:I7) -> 71853.75 | H4: =MEDIAN(F7:I7) -> 71738 | L4: =_xlfn.STDEV.S(M6:U6)/AVERAGE(M6:U6) -> 0.1324027208 | M4: =AVERAGE(M6:U6) -> 29.67888889 | N4: =MEDIAN(M6:U6) -> 28.9 | X4: =_xlfn.STDEV.S(Y6:AG6)/AVERAGE(Y6:AG6) -> 0.159968681 | Y4: =AVERAGE(Y6:AG6) -> 293.4627778 | Z4: =MEDIAN(Y6:AG6) -> 289.99
A5: OBS: Preço sem BDI e sem motorista BDI= | F5: Preço FIPE | K5: PRODUTO | L5: MENOR | M5: COT. 1 | N5: COT. 2 | O5: COT. 3 | P5: COT. 4 | Q5: COT. 5 | R5: COT. 6 | S5: COT. 7 | T5: COT. 8 | U5: COT. 9 | W5: PRODUTO | X5: MENOR | Y5: COT. 1 | Z5: COT. 2 | AA5: COT. 3 | AB5: COT. 4 | AC5: COT. 5 | AD5: COT. 6 | AE5: COT. 7 | AF5: COT. 8 | AG5: COT. 9
A6: Veículo Leve 1.0 T. Flex 12V 5p | F6: Renault Kwid Zen 1.0 | G6: Hyndai HB20 Sense 1.0 | H6: ONIX HATCH LT 1.0 12V Flex 5p Mec. | I6: MOBI TREKKING 1.0 Flex 5p. | K6: LUBRIFICANTE 15W40 | L6: =SMALL(M4:N4,1) -> 28.9 | M6: 26.12 | N6: 34.5 | O6: 23.28 | P6: 28 | Q6: 34.9 | R6: 33.45 | S6: 28.35 | T6: 28.9 | U6: 29.61 | W6: Pneu 185/65 R14 | X6: =SMALL(Y4:Z4,1) -> 289.99 | Y6: 369.9 | Z6: =1440.2/4 -> 360.05 | AA6: 229 | AB6: 254.15 | AC6: =1238.72/4 -> 309.68 | AD6: 263.2 | AE6: 289.99 | AF6: 293.23 | AG6: =1087.86/4 -> 271.965
C7: Custo Mensal (R$): | D7: =D48 -> 3358.807213 | F7: 60247 | G7: 74811 | H7: 83692 | I7: 68665
C8: Custo Diário (R$): | D8: =D7/30 -> 111.9602404
C9: Custo Horário (R$): | D9: =D7/176 -> 19.08413189
A10: A | C10: Depreciação mensal do equipamento
A11: A1 | C11: Preço de Aquisição | D11: =SMALL(G4:H4,1) -> 71738
A12: A2 | C12: Tempo previsto de vida útil (meses) | D12: 36
A13: A3 | C13: Previsão de recup. Na venda do bem usado | D13: 0.4
A14: A4 | C14: Custo mensal [A1-(A3xA1)]/A2 | D14: =(D11-(D13*D11))/D12 -> 1195.633333
A15: B | C15: Juros pelo Capital empregado
A16: B1 | C16: Taxa mensal de Juros * | D16: =POWER(1+D53,1/12)-1 -> 0.009300823619
A17: B2 | C17: Juros s/depreciação/aluguel (B1xA4) | D17: =D16*D14 -> 11.12037475
A18: C | C18: Conservação e manutenção ** | D18: 0.75
A19: C1 | C19: Taxa de gastos s/a deprec. Inc. seguros (%) | D19: =D18 -> 0.75
A20: C2 | C20: Incidência mensal (C1xA4) | D20: =D19*D14 -> 896.725
A21: D | C21: Combustível
A22: D1 | C22: Média mensal de quilômetro por veículo | D22: =130*22 -> 2860
A23: D2 | C23: Preço do litro de combustível | D23: =G83 -> 5.58
A24: D3 | C24: Quilômetros rodados com um litro combustivel | D24: =(12.8+13.3+15.3+15)/4 -> 14.1
A25: D4 | C25: Combustivel (D1/D3)*D2 | D25: =(D22/D24)*D23 -> 1131.829787
A26: E | C26: Lubrificantes
A27: E1 | C27: Quilometragem do Contrato (D1*12) | D27: =D22*36 -> 102960
A28: E2 | C28: Franquia por troca de óleo (km) | D28: 10000
A29: E3 | C29: Preço do litro de óleo | D29: =L6 -> 28.9
A30: E4 | C30: Quantidade de litros de óleo por troca | D30: 4
A31: E5 | C31: Quantidade de dias do Contrato | D31: =365*3 -> 1095
A32: E6 | C32: Lubrificantes E = (E1*E3*E4*30)/E2*E5 | D32: =(D27*D29*D30*30)/(D28*D31) -> 32.60870137
A33: F | C33: Pneus
A34: F1 | C34: Quilometragem do Contrato | D34: =D27 -> 102960
A35: F2 | C35: Vida do Pneu em quilômetros | D35: 45000
A36: F3 | C36: Quantidade de pneus | D36: 5
A37: F4 | C37: Preço do Pneu | D37: =X6 -> 289.99
A38: F5 | C38: Quantidade de dias do contrato | D38: =D31 -> 1095 | K38: https://www.google.com/search?q=lubrificante+15w40+1l&sa=X&biw=1600&bih=757&tbm=shop&sxsrf=AJOqlzUezMM_9i0M4NKjKqAMycLuOygp_g%3A1677158931166&ei=E2r3Y5e2CcH31sQPsK67CA&ved=0ahUKEwjXi8vy36v9AhXBu5UCHTDXDgEQ4dUDCAg&uact=5&oq=lubrificante+15w40+1l&gs_lcp=Cgtwcm9kdWN0cy1jYxADMgsIABAWEB4Q8QQQGDoICAAQgAQQsAM6CQgAEAcQHhCwAzoJCAAQCBAeELADOgkIABAeELADEBg6DggAEAUQHhDxBBCwAxAYOgUIABCABDoGCAAQFhAeOggIABAWEB4QGEoECEEYAVDeBFi3DWD0D2gBcAB4AIABpQWIAZAIkgEHMy0xLjAuMZgBAKABAcgBCsABAQ&sclient=products-cc
A39: F6 | C39: Pneus = (F1*F3*F4*30)/(F2*F5) | D39: =(D34*D36*D37*30)/(D35*D38) -> 90.89001644
A40: G | C40: Motorista
A41: G1 | C41: Salário com encargos sociais | D41: 0
A42: H | C42: Custo Mensal | V42: https://www.google.com/search?q=Pneu+185%2F65+R14&sa=X&hl=pt-BR&biw=1600&bih=757&tbm=shop&sxsrf=AJOqlzVJW-LYM1ZPHImwhsD-4UwyAvTluQ%3A1677158863331&ei=z2n3Y-uxE-zT1sQP0r-OmAs&ved=0ahUKEwir1Z7S36v9AhXsqZUCHdKfA7MQ4dUDCAg&uact=5&oq=Pneu+185%2F65+R14&gs_lcp=Cgtwcm9kdWN0cy1jYxADMgsIABCABBCxAxCDATIFCAAQgAQyBQgAEIAEMgUIABCABDIFCAAQgAQyBQgAEIAEMgUIABCABDIFCAAQgAQyBQgAEIAEMgUIABCABEoECEEYAFD5A1jGCWC1EGgAcAB4AIABrQmIAdcbkgEHNS0yLjAuMpgBAKABAcABAQ&sclient=products-cc
C43: Sem Motorista (A4+B2+C2+D4+E6+F6) | D43: =D14+D17+D20+D25+D32+D39 -> 3358.807213
C44: Com Motorista (A4+B2+C2+D4+E6+F6+G1) | D44: =D14+D17+D20+D25+D32+D39+D41 -> 3358.807213
A45: I | C45: Custo Direto p/ km Rodado
C46: Sem Motorista | D46: =D43/D22 -> 1.174408116
C47: Com Motorista | D47: =D44/D22 -> 1.174408116
A48: J | C48: Preço cobrado sem BDI | D48: =D43*(1+D5) -> 3358.807213
A49: J1 | C49: Sem Motorista | D49: =D48 -> 3358.807213
A50: J2 | C50: Com Motorista | D50: =D44 -> 3358.807213
A53: * | C53: Calculado com base na taxa SELIC JANEIRO/2024: | D53: 0.1175
C54: SELIC AGOSTO / 2022 - Taxa de Juros Selic — Português (Brasil) (www.gov.br)
A56: ** | C56: Conservação e manutenção - é calculado com o uso de um coeficiente multiplicador "k", conforme tabela abaixo, sobre a
C57: depreciação mensal do equipamento (Item A da planilha de composição de preços). Os valores de K são fornecidos por
C58: fabricantes.
C59: Metodologia conforme a bibliografia "Como Preparar Orçamentos de Obras", 3 edição, Aldo Dórea Mattos, 2019.
F83: PREÇO DA GASOLINA | G83: 5.58
F85: https://precos.petrobras.com.br/sele%C3%A7%C3%A3o-de-estados-gasolina

Sheet CPU - Estaca Trilho TR68
A1: Estaca duplo trilho TR 68 - com emenda - fornecimento e cravação
I2: DNIT | K2: CPU - ESTACA TRILHO TR 68, FORNECIMENTO E CRAVAÇÃO - CRAVADA COM AUXÍLIO DE BALSA, INCLUSIVE MOBILIZAÇÃO E DESMOBILIZAÇÃO E EQUIPE DE APOIO
A3: SISTEMA DE CUSTOS REFERENCIAIS DE OBRAS - SICRO | D3: Amapá | K3: Código | L3: Banco | M3: Descrição | N3: Quant. | O3: Unidade | P3: Custo Direto | Q3: TOTAL | S3: Sistema de Referência
A4: Custo Unitário de Referência | D4: Outubro/2023 | G4: Produção da equipe | H4: 7.47 | I4: m | K4: 2306122 | L4: SICRO | M4: Estaca duplo trilho TR 68 - com emenda - fornecimento e cravação | N4: 80 | O4: m | P4: 810.66 | Q4: =N4*P4 -> 64852.8 | S4: SICRO | T4: 2024-01-01
A5: 2306122 | B5: Estaca duplo trilho TR 68 - com emenda - fornecimento e cravação | H5: Valores em reais (R$) | K5: ED-49759 | L5: SETOP | M5: MOBILIZAÇÃO E DESMOBILIZAÇÃO DE EQUIPAMENTO PARA ESTACA TRILHO DMT ATÉ 50 KM | N5: 2 | O5: un | P5: 6795.42 | Q5: =N5*P5 -> 13590.84 | S5: ORSE | T5: 2024-02-01
A6: A - EQUIPAMENTOS | C6: Quantidade | D6: Utilização | F6: Custo Horário | I6: Custo | K6: 10573 | L6: ORSE | M6: Elaboração de PCMSO (NR-7) | N6: 1 | O6: un | P6: 800 | Q6: 800 | S6: AGETOP CIVIL | T6: 2023-12-01
D7: Operativa | E7: Improdutiva | F7: Produtivo | G7: Improdutivo | I7: Horário Total | K7: 21602 | L7: AGETOP CIVIL | M7: Elaboração EPI/PGR/PCMSO/EXAMES/TREINAMENTOS/VISITAS - ÁREAS EDIFICADAS/COBERTAS/FECHADAS | N7: 50 | O7: m² | P7: 48.31 | Q7: 2415.5 | S7: EMBASA | T7: 2024-01-01
A8: E9502 | B8: Bate-estaca de gravidade para 6 t - 119 kW | C8: 1 | D8: 1 | E8: 0 | F8: 228.1041 | G8: 102.6333 | I8: 228.1041 | K8: 2306728 | L8: SICRO | M8: Apoio náutico para a escavação com perfuratriz tipo Wirth em rocha com média dureza e média abrasão - resistência à compressão menor que 80 MPa - D = 600 a 1.800 mm | N8: =0.4*N4 -> 32 | O8: m | P8: 1617.56 | Q8: 51761.92
G9: Custo horário total de equipamentos | I9: 228.1041 | K9: 2306727 | L9: SICRO | M9: Apoio náutico para a escavação com perfuratriz tipo Wirth em solo D = 600 a 1.800 mm | N9: =0.6*N4 -> 48 | O9: m | P9: 378.51 | Q9: 18168.48
A10: B - MÃO DE OBRA | C10: Quantidade | D10: Unidade | F10: Custo Horário | G10: Custo Horário Total | K10: 70.06.39 | L10: EMBASA | M10: LOCAÇÃO DE BALSA COM REBOCADOR A DIESEL, INCLUSIVE 1 MARINHEIRO, 1 AJUDANTE E COMBUSTIVEL | N10: 1 | O10: Mês | P10: 43924.44 | Q10: 43924.44
A11: P9824 | B11: Servente | C11: 2 | D11: h | F11: 20.8478 | I11: 41.6956 | K11: F039703086 | L11: EMBASA | M11: BARCO MOTORIZADO E EQUIPADO COM COLETES SALVA-VIDAS E ITENS DE SEGURANCA | N11: =N10 -> 1 | O11: Mês | P11: 11289.6 | Q11: 11289.6
C12: Custo horário total de mão de obra | I12: 41.6956
C13: Custo horário total de execução | I13: 269.7997 | Q13: =SUM(Q4:Q12) -> 206803.58
C14: Custo unitário de execução | I14: 36.1178
G15: Custo do FIC | I15: -
G16: Custo do FIT | I16: -
A17: C - MATERIAL | C17: Quantidade | D17: Unidade | F17: Preço Unitário | G17: Custo Unitário
A18: M1606 | B18: Trilho TR68 em aço-carbono usado | C18: 135.2 | D18: kg | F18: 5.4567 | I18: 737.7458
C19: Custo unitário total de material | I19: 737.7458
A20: D - ATIVIDADES AUXILIARES | C20: Quantidade | D20: Unidade | F20: Custo Unitário | G20: Custo Unitário
A21: 2408058 | B21: Solda elétrica de perfis metálicos e chapas de aço com eletrodo E70XX | C21: 0.15883 | D21: kg | F21: 62.17 | I21: 9.8745
C22: Custo total de atividades auxiliares | I22: 9.8745
G23: Subtotal | I23: 783.7381
A24: E - TEMPO FIXO | C24: Código | D24: Quantidade | E24: Unidade | G24: Custo Unitário | H24: Custo Unitário
A25: M1606 | B25: Trilho TR68 em aço-carbono usado - Guindauto 45 t.m | C25: 5915015 | D25: 0.1352 | E25: t | G25: 21.83 | I25: 2.9514
C26: Custo unitário total de tempo fixo | I26: 2.9514
A27: F - MOMENTO DE TRANSPORTE | C27: Quantidade | D27: Unidade | E27: DMT | I27: Custo Unitário
E28: LN | F28: RP | G28: P
A29: M1606 | B29: Trilho TR68 em aço-carbono usado - Guindauto 45 t.m | C29: 0.1352 | D29: tkm | E29: 5915012 | F29: 5915013 | G29: 5915014
C30: Custo unitário total de transporte
E31: Custo unitário direto total | I31: 786.69
A35: 2306728 | B35: Apoio náutico para a escavação com perfuratriz tipo Wirth em rocha com média dureza e média abrasão - resistência à compressão menor que 80 MPa - D = 600 a 1.800 mm | H35: Valores em reais (R$)
A36: A - EQUIPAMENTOS | C36: Quantidade | D36: Utilização | F36: Custo Horário | I36: Custo
D37: Operativa | E37: Improdutiva | F37: Produtivo | G37: Improdutivo | I37: Horário Total
A38: E9671 | B38: Compressor de ar portátil de 363,87 l/s (771 PCM) - 158,13 kW | C38: 1 | D38: 1 | E38: 0 | F38: 233.9507 | G38: 47.8832 | I38: 233.9507
A39: E9601 | B39: Embarcação de transporte de pessoal e apoio logístico - 130 kW | C39: 1 | D39: 0.5 | E39: 0.5 | F39: 320.212 | G39: 48.2342 | I39: 184.2231
A40: E9603 | B40: Embarcação empurradora multipropósito com guindaste hidráulico de 74 kN.m - 165 kW | C40: 1 | D40: 0.5 | E40: 0.5 | F40: 408.9752 | G40: 173.7995 | I40: 291.3874
A41: E9055 | B41: Guincho pneumático com capacidade de 2,5 t | C41: 4 | D41: 1 | E41: 0 | F41: 83.4149 | G41: 57.1027 | I41: 333.6596
A42: E9058 | B42: Plataforma flutuante de 12 x 24 x 1,8 m com capacidade de 150 t | C42: 1 | D42: 1 | E42: 0 | F42: 44.0342 | G42: 34.7866 | I42: 44.0342
G43: Custo horário total de equipamentos | I43: 1087.255
A44: B - MÃO DE OBRA | C44: Quantidade | D44: Unidade | F44: Custo Horário | G44: Custo Horário Total
A45: P9807 | B45: Bombeiro hidráulico | C45: 1 | D45: h | F45: 34.2927 | I45: 34.2927
C46: Custo horário total de mão de obra | I46: 34.2927
C47: Custo horário total de execução | I47: 1121.5477
C48: Custo unitário de execução | I48: 1601.5018
G49: Custo do FIC | I49: -
G50: Custo do FIT | I50: -
A51: C - MATERIAL | C51: Quantidade | D51: Unidade | F51: Preço Unitário | G51: Custo Unitário
C52: Custo unitário total de material
A53: D - ATIVIDADES AUXILIARES | C53: Quantidade | D53: Unidade | F53: Custo Unitário | G53: Custo Unitário
C54: Custo total de atividades auxiliares
G55: Subtotal | I55: 1601.5018
A56: E - TEMPO FIXO | C56: Código | D56: Quantidade | E56: Unidade | G56: Custo Unitário | H56: Custo Unitário
C57: Custo unitário total de tempo fixo
A58: F - MOMENTO DE TRANSPORTE | C58: Quantidade | D58: Unidade | E58: DMT | I58: Custo Unitário
E59: LN | F59: RP | G59: P
C60: Custo unitário total de transporte
E61: Custo unitário direto total | I61: 1601.5
A65: 2306727 | B65: Apoio náutico para a escavação com perfuratriz tipo Wirth em solo D = 600 a 1.800 mm | H65: Valores em reais (R$)
A66: A - EQUIPAMENTOS | C66: Quantidade | D66: Utilização | F66: Custo Horário | I66: Custo
D67: Operativa | E67: Improdutiva | F67: Produtivo | G67: Improdutivo | I67: Horário Total
A68: E9671 | B68: Compressor de ar portátil de 363,87 l/s (771 PCM) - 158,13 kW | C68: 1 | D68: 1 | E68: 0 | F68: 233.9507 | G68: 47.8832 | I68: 233.9507
A69: E9601 | B69: Embarcação de transporte de pessoal e apoio logístico - 130 kW | C69: 1 | D69: 0.5 | E69: 0.5 | F69: 320.212 | G69: 48.2342 | I69: 184.2231
A70: E9603 | B70: Embarcação empurradora multipropósito com guindaste hidráulico de 74 kN.m - 165 kW | C70: 1 | D70: 0.5 | E70: 0.5 | F70: 408.9752 | G70: 173.7995 | I70: 291.3874
A71: E9055 | B71: Guincho pneumático com capacidade de 2,5 t | C71: 4 | D71: 1 | E71: 0 | F71: 83.4149 | G71: 57.1027 | I71: 333.6596
A72: E9058 | B72: Plataforma flutuante de 12 x 24 x 1,8 m com capacidade de 150 t | C72: 1 | D72: 1 | E72: 0 | F72: 44.0342 | G72: 34.7866 | I72: 44.0342
G73: Custo horário total de equipamentos | I73: 1087.255
A74: B - MÃO DE OBRA | C74: Quantidade | D74: Unidade | F74: Custo Horário | G74: Custo Horário Total
A75: P9807 | B75: Bombeiro hidráulico | C75: 1 | D75: h | F75: 34.2927 | I75: 34.2927
C76: Custo horário total de mão de obra | I76: 34.2927
C77: Custo horário total de execução | I77: 1121.5477
C78: Custo unitário de execução | I78: 374.7499
G79: Custo do FIC | I79: -
G80: Custo do FIT | I80: -
A81: C - MATERIAL | C81: Quantidade | D81: Unidade | F81: Preço Unitário | G81: Custo Unitário
C82: Custo unitário total de material
A83: D - ATIVIDADES AUXILIARES | C83: Quantidade | D83: Unidade | F83: Custo Unitário | G83: Custo Unitário
C84: Custo total de atividades auxiliares
G85: Subtotal | I85: 374.7499
A86: E - TEMPO FIXO | C86: Código | D86: Quantidade | E86: Unidade | G86: Custo Unitário | H86: Custo Unitário
C87: Custo unitário total de tempo fixo
A88: F - MOMENTO DE TRANSPORTE | C88: Quantidade | D88: Unidade | E88: DMT | I88: Custo Unitário
E89: LN | F89: RP | G89: P
C90: Custo unitário total de transporte
E91: Custo unitário direto total | I91: 374.75

Sheet CPU (sem des) (hidden)
A1: 1 | D1: Composições Analíticas com Preço Unitário | E1: Bancos | G1: B.D.I. | I1: Encargos Sociais
D2: Orla de Santana | E2: SINAPI - 08/2023 - Amapá SICRO3 - 04/2023 - Amapá ORSE - 06/2023 - Sergipe | G2: 0,0% | I2: Não Desonerado: Horista: 112,56% Mensalista: 68,47%
D3: Composições Analíticas com Preço Unitário
D4: Composições Principais
A5: 1 | B5: Código | C5: Banco | D5: Descrição | E5: Tipo | G5: Und | H5: Quant. | I5: Valor Unit | J5: Total
A6: Composição | B6: 100575 | C6: SINAPI | D6: REGULARIZAÇÃO DE SUPERFÍCIES COM MOTONIVELADORA. AF_11/2019 | E6: PAVI - PAVIMENTAÇÃO | G6: m² | H6: 1 | I6: 0.12 | J6: 0.12
A7: Composição Auxiliar | B7: 5932 | C7: SINAPI | D7: MOTONIVELADORA POTÊNCIA BÁSICA LÍQUIDA (PRIMEIRA MARCHA) 125 HP, PESO BRUTO 13032 KG, LARGURA DA LÂMINA DE 3,7 M - CHP DIURNO. AF_06/2014 | E7: CHOR - CUSTOS HORÁRIOS DE MÁQUINAS E EQUIPAMENTOS | G7: CHP | H7: 0.0001 | I7: 264.73 | J7: 0.02
A8: Composição Auxiliar | B8: 5934 | C8: SINAPI | D8: MOTONIVELADORA POTÊNCIA BÁSICA LÍQUIDA (PRIMEIRA MARCHA) 125 HP, PESO BRUTO 13032 KG, LARGURA DA LÂMINA DE 3,7 M - CHI DIURNO. AF_06/2014 | E8: CHOR - CUSTOS HORÁRIOS DE MÁQUINAS E EQUIPAMENTOS | G8: CHI | H8: 0.001 | I8: 99.54 | J8: 0.09
A9: Composição Auxiliar | B9: 88316 | C9: SINAPI | D9: SERVENTE COM ENCARGOS COMPLEMENTARES | E9: SEDI - SERVIÇOS DIVERSOS | G9: H | H9: 0.001 | I9: 17.28 | J9: 0.01
B10: 0 | E10: MO sem LS => | F10: 0.01411366202 | G10: LS => | H10: 0.02 | I10: MO com LS => | J10: 0.03
B11: 0 | E11: Valor do BDI => | F11: 0 | H11: Valor com BDI => | J11: 0.12
B12: 0
A13: 2 | B13: Código | C13: Banco | D13: Descrição | E13: Tipo | G13: Und | H13: Quant. | I13: Valor Unit | J13: Total
A14: Composição | B14: 3212 | C14: ORSE | D14: Colchão de areia | E14: Conversão InfoWOrca | G14: m³ | H14: 1 | I14: 134.79 | J14: 134.79
A15: Composição Auxiliar | B15: 10549 | C15: ORSE | D15: Encargos Complementares - Servente | E15: Provisórios | G15: h | H15: 1 | I15: 3.74 | J15: 3.74
A16: Insumo | B16: 366 | C16: SINAPI | D16: AREIA FINA - POSTO JAZIDA/FORNECEDOR (RETIRADO NA JAZIDA, SEM TRANSPORTE) | E16: Material | G16: m³ | H16: 1.12 | I16: 105 | J16: 117.6
A17: Insumo | B17: 6111 | C17: SINAPI | D17: SERVENTE DE OBRAS | E17: Mão de Obra | G17: H | H17: 1 | I17: 13.45 | J17: 13.45
B18: 0 | E18: MO sem LS => | F18: 6.3276251 | G18: LS => | H18: 7.12 | I18: MO com LS => | J18: 13.45
B19: 0 | E19: Valor do BDI => | F19: 0 | H19: Valor com BDI => | J19: 134.79
B20: 0
A21: 3 | B21: Código | C21: Banco | D21: Descrição | E21: Tipo | G21: Und | H21: Quant. | I21: Valor Unit | J21: Total
A22: Composição | B22: 92397 | C22: SINAPI | D22: EXECUÇÃO DE PAVIMENTO EM PISO INTERTRAVADO, COM BLOCO RETANGULAR COR NATURAL DE 20 X 10 CM, ESPESSURA 6 CM. AF_10/2022 | E22: PAVI - PAVIMENTAÇÃO | G22: m² | H22: 1 | I22: 76.05 | J22: 76.05
A23: Composição Auxiliar | B23: 88260 | C23: SINAPI | D23: CALCETEIRO COM ENCARGOS COMPLEMENTARES | E23: SEDI - SERVIÇOS DIVERSOS | G23: H | H23: 0.2015 | I23: 21.4 | J23: 4.31
A24: Composição Auxiliar | B24: 88316 | C24: SINAPI | D24: SERVENTE COM ENCARGOS COMPLEMENTARES | E24: SEDI - SERVIÇOS DIVERSOS | G24: H | H24: 0.2015 | I24: 17.28 | J24: 3.48
A25: Composição Auxiliar | B25: 91277 | C25: SINAPI | D25: PLACA VIBRATÓRIA REVERSÍVEL COM MOTOR 4 TEMPOS A GASOLINA, FORÇA CENTRÍFUGA DE 25 KN (2500 KGF), POTÊNCIA 5,5 CV - CHP DIURNO. AF_08/2015 | E25: CHOR - CUSTOS HORÁRIOS DE MÁQUINAS E EQUIPAMENTOS | G25: CHP | H25: 0.0041 | I25: 8.99 | J25: 0.03
A26: Composição Auxiliar | B26: 91278 | C26: SINAPI | D26: PLACA VIBRATÓRIA REVERSÍVEL COM MOTOR 4 TEMPOS A GASOLINA, FORÇA CENTRÍFUGA DE 25 KN (2500 KGF), POTÊNCIA 5,5 CV - CHI DIURNO. AF_08/2015 | E26: CHOR - CUSTOS HORÁRIOS DE MÁQUINAS E EQUIPAMENTOS | G26: CHI | H26: 0.0967 | I26: 0.59 | J26: 0.05
A27: Composição Auxiliar | B27: 91283 | C27: SINAPI | D27: CORTADORA DE PISO COM MOTOR 4 TEMPOS A GASOLINA, POTÊNCIA DE 13 HP, COM DISCO DE CORTE DIAMANTADO SEGMENTADO PARA CONCRETO, DIÂMETRO DE 350 MM, FURO DE 1" (14 X 1") - CHP DIURNO. AF_08/2015 | E27: CHOR - CUSTOS HORÁRIOS DE MÁQUINAS E EQUIPAMENTOS | G27: CHP | H27: 0.0038 | I27: 9.96 | J27: 0.03
A28: Composição Auxiliar | B28: 91285 | C28: SINAPI | D28: CORTADORA DE PISO COM MOTOR 4 TEMPOS A GASOLINA, POTÊNCIA DE 13 HP, COM DISCO DE CORTE DIAMANTADO SEGMENTADO PARA CONCRETO, DIÂMETRO DE 350 MM, FURO DE 1" (14 X 1") - CHI DIURNO. AF_08/2015 | E28: CHOR - CUSTOS HORÁRIOS DE MÁQUINAS E EQUIPAMENTOS | G28: CHI | H28: 0.097 | I28: 1.04 | J28: 0.1
A29: Insumo | B29: 370 | C29: SINAPI | D29: AREIA MEDIA - POSTO JAZIDA/FORNECEDOR (RETIRADO NA JAZIDA, SEM TRANSPORTE) | E29: Material | G29: m³ | H29: 0.0568 | I29: 105 | J29: 5.96
A30: Insumo | B30: 4741 | C30: SINAPI | D30: PO DE PEDRA (POSTO PEDREIRA/FORNECEDOR, SEM FRETE) | E30: Material | G30: m³ | H30: 0.0098 | I30: 253.71 | J30: 2.48
A31: Insumo | B31: 36155 | C31: SINAPI | D31: BLOQUETE/PISO INTERTRAVADO DE CONCRETO - MODELO ONDA/16 FACES/RETANGULAR/TIJOLINHO/PAVER/HOLANDES/PARALELEPIPEDO, 20 CM X 10 CM, E = 6 CM, RESISTENCIA DE 35 MPA (NBR 9781), COR NATURAL | E31: Material | G31: m² | H31: 1.0041 | I31: 59.37 | J31: 59.61
B32: 0 | E32: MO sem LS => | F32: 2.973278133 | G32: LS => | H32: 3.35 | I32: MO com LS => | J32: 6.32
B33: 0 | E33: Valor do BDI => | F33: 0 | H33: Valor com BDI => | J33: 76.05
B34: 0
A35: 4 | B35: Código | C35: Banco | D35: Descrição | E35: Tipo | G35: Und | H35: Quant. | I35: Valor Unit | J35: Total
A36: Composição | B36: 96398 | C36: SINAPI | D36: EXECUÇÃO E COMPACTAÇÃO DE BASE E OU SUB BASE PARA PAVIMENTAÇÃO DE CONCRETO COMPACTADO COM ROLO - EXCLUSIVE CARGA E TRANSPORTE. AF_11/2019 | E36: PAVI - PAVIMENTAÇÃO | G36: m³ | H36: 1 | I36: 620.01 | J36: 620.01
A37: Composição Auxiliar | B37: 5684 | C37: SINAPI | D37: ROLO COMPACTADOR VIBRATÓRIO DE UM CILINDRO AÇO LISO, POTÊNCIA 80 HP, PESO OPERACIONAL MÁXIMO 8,1 T, IMPACTO DINÂMICO 16,15 / 9,5 T, LARGURA DE TRABALHO 1,68 M - CHP DIURNO. AF_06/2014 | E37: CHOR - CUSTOS HORÁRIOS DE MÁQUINAS E EQUIPAMENTOS | G37: CHP | H37: 0.009 | I37: 148.45 | J37: 1.33
A38: Composição Auxiliar | B38: 5685 | C38: SINAPI | D38: ROLO COMPACTADOR VIBRATÓRIO DE UM CILINDRO AÇO LISO, POTÊNCIA 80 HP, PESO OPERACIONAL MÁXIMO 8,1 T, IMPACTO DINÂMICO 16,15 / 9,5 T, LARGURA DE TRABALHO 1,68 M - CHI DIURNO. AF_06/2014 | E38: CHOR - CUSTOS HORÁRIOS DE MÁQUINAS E EQUIPAMENTOS | G38: CHI | H38: 0.021 | I38: 57.05 | J38: 1.19
A39: Composição Auxiliar | B39: 5901 | C39: SINAPI | D39: CAMINHÃO PIPA 10.000 L TRUCADO, PESO BRUTO TOTAL 23.000 KG, CARGA ÚTIL MÁXIMA 15.935 KG, DISTÂNCIA ENTRE EIXOS 4,8 M, POTÊNCIA 230 CV, INCLUSIVE TANQUE DE AÇO PARA TRANSPORTE DE ÁGUA - CHP DIURNO. AF_06/2014 | E39: CHOR - CUSTOS HORÁRIOS DE MÁQUINAS E EQUIPAMENTOS | G39: CHP | H39: 0.002 | I39: 297.04 | J39: 0.59
A40: Composição Auxiliar | B40: 5903 | C40: SINAPI | D40: CAMINHÃO PIPA 10.000 L TRUCADO, PESO BRUTO TOTAL 23.000 KG, CARGA ÚTIL MÁXIMA 15.935 KG, DISTÂNCIA ENTRE EIXOS 4,8 M, POTÊNCIA 230 CV, INCLUSIVE TANQUE DE AÇO PARA TRANSPORTE DE ÁGUA - CHI DIURNO. AF_06/2014 | E40: CHOR - CUSTOS HORÁRIOS DE MÁQUINAS E EQUIPAMENTOS | G40: CHI | H40: 0.028 | I40: 68.33 | J40: 1.91
A41: Composição Auxiliar | B41: 5932 | C41: SINAPI | D41: MOTONIVELADORA POTÊNCIA BÁSICA LÍQUIDA (PRIMEIRA MARCHA) 125 HP, PESO BRUTO 13032 KG, LARGURA DA LÂMINA DE 3,7 M - CHP DIURNO. AF_06/2014 | E41: CHOR - CUSTOS HORÁRIOS DE MÁQUINAS E EQUIPAMENTOS | G41: CHP | H41: 0.008 | I41: 264.73 | J41: 2.11
A42: Composição Auxiliar | B42: 5934 | C42: SINAPI | D42: MOTONIVELADORA POTÊNCIA BÁSICA LÍQUIDA (PRIMEIRA MARCHA) 125 HP, PESO BRUTO 13032 KG, LARGURA DA LÂMINA DE 3,7 M - CHI DIURNO. AF_06/2014 | E42: CHOR - CUSTOS HORÁRIOS DE MÁQUINAS E EQUIPAMENTOS | G42: CHI | H42: 0.022 | I42: 99.54 | J42: 2.18
A43: Composição Auxiliar | B43: 88316 | C43: SINAPI | D43: SERVENTE COM ENCARGOS COMPLEMENTARES | E43: SEDI - SERVIÇOS DIVERSOS | G43: H | H43: 0.03 | I43: 17.28 | J43: 0.51
A44: Composição Auxiliar | B44: 96395 | C44: SINAPI | D44: USINAGEM DE CONCRETO PARA COMPACTAÇÃO COM ROLO. AF_03/2020 | E44: PAVI - PAVIMENTAÇÃO | G44: m³ | H44: 1 | I44: 607.21 | J44: 607.21
A45: Composição Auxiliar | B45: 96463 | C45: SINAPI | D45: ROLO COMPACTADOR DE PNEUS, ESTATICO, PRESSAO VARIAVEL, POTENCIA 110 HP, PESO SEM/COM LASTRO 10,8/27 T, LARGURA DE ROLAGEM 2,30 M - CHP DIURNO. AF_06/2017 | E45: CHOR - CUSTOS HORÁRIOS DE MÁQUINAS E EQUIPAMENTOS | G45: CHP | H45: 0.004 | I45: 206.8 | J45: 0.82
A46: Composição Auxiliar | B46: 96464 | C46: SINAPI | D46: ROLO COMPACTADOR DE PNEUS, ESTATICO, PRESSAO VARIAVEL, POTENCIA 110 HP, PESO SEM/COM LASTRO 10,8/27 T, LARGURA DE ROLAGEM 2,30 M - CHI DIURNO. AF_06/2017 | E46: CHOR - CUSTOS HORÁRIOS DE MÁQUINAS E EQUIPAMENTOS | G46: CHI | H46: 0.026 | I46: 83.35 | J46: 2.16
B47: 0 | E47: MO sem LS => | F47: 2.149981182 | G47: LS => | H47: 2.42 | I47: MO com LS => | J47: 4.57
B48: 0 | E48: Valor do BDI => | F48: 0 | H48: Valor com BDI => | J48: 620.01
B49: 0
A50: 5 | B50: Código | C50: Banco | D50: Descrição | E50: Tipo | G50: Und | H50: Quant. | I50: Valor Unit | J50: Total
A51: Composição | B51: 95995 | C51: SINAPI | D51: EXECUÇÃO DE PAVIMENTO COM APLICAÇÃO DE CONCRETO ASFÁLTICO, CAMADA DE ROLAMENTO - EXCLUSIVE CARGA E TRANSPORTE. AF_11/2019 | E51: PAVI - PAVIMENTAÇÃO | G51: m³ | H51: 1 | I51: 1417.5 | J51: 1417.5
A52: Composição Auxiliar | B52: 5835 | C52: SINAPI | D52: VIBROACABADORA DE ASFALTO SOBRE ESTEIRAS, LARGURA DE PAVIMENTAÇÃO 1,90 M A 5,30 M, POTÊNCIA 105 HP CAPACIDADE 450 T/H - CHP DIURNO. AF_11/2014 | E52: CHOR - CUSTOS HORÁRIOS DE MÁQUINAS E EQUIPAMENTOS | G52: CHP | H52: 0.0464 | I52: 382.2 | J52: 17.73
A53: Composição Auxiliar | B53: 5837 | C53: SINAPI | D53: VIBROACABADORA DE ASFALTO SOBRE ESTEIRAS, LARGURA DE PAVIMENTAÇÃO 1,90 M A 5,30 M, POTÊNCIA 105 HP CAPACIDADE 450 T/H - CHI DIURNO. AF_11/2014 | E53: CHOR - CUSTOS HORÁRIOS DE MÁQUINAS E EQUIPAMENTOS | G53: CHI | H53: 0.0949 | I53: 149.08 | J53: 14.14
A54: Composição Auxiliar | B54: 88314 | C54: SINAPI | D54: RASTELEIRO COM ENCARGOS COMPLEMENTARES | E54: SEDI - SERVIÇOS DIVERSOS | G54: H | H54: 1.1301 | I54: 15.09 | J54: 17.05
A55: Composição Auxiliar | B55: 91386 | C55: SINAPI | D55: CAMINHÃO BASCULANTE 10 M3, TRUCADO CABINE SIMPLES, PESO BRUTO TOTAL 23.000 KG, CARGA ÚTIL MÁXIMA 15.935 KG, DISTÂNCIA ENTRE EIXOS 4,80 M, POTÊNCIA 230 CV INCLUSIVE CAÇAMBA METÁLICA - CHP DIURNO. AF_06/2014 | E55: CHOR - CUSTOS HORÁRIOS DE MÁQUINAS E EQUIPAMENTOS | G55: CHP | H55: 0.0464 | I55: 251.82 | J55: 11.68
A56: Composição Auxiliar | B56: 95631 | C56: SINAPI | D56: ROLO COMPACTADOR VIBRATORIO TANDEM, ACO LISO, POTENCIA 125 HP, PESO SEM/COM LASTRO 10,20/11,65 T, LARGURA DE TRABALHO 1,73 M - CHP DIURNO. AF_11/2016 | E56: CHOR - CUSTOS HORÁRIOS DE MÁQUINAS E EQUIPAMENTOS | G56: CHP | H56: 0.0805 | I56: 217.03 | J56: 17.47
A57: Composição Auxiliar | B57: 95632 | C57: SINAPI | D57: ROLO COMPACTADOR VIBRATORIO TANDEM, ACO LISO, POTENCIA 125 HP, PESO SEM/COM LASTRO 10,20/11,65 T, LARGURA DE TRABALHO 1,73 M - CHI DIURNO. AF_11/2016 | E57: CHOR - CUSTOS HORÁRIOS DE MÁQUINAS E EQUIPAMENTOS | G57: CHI | H57: 0.0607 | I57: 76.84 | J57: 4.66
A58: Composição Auxiliar | B58: 96155 | C58: SINAPI | D58: TRATOR DE PNEUS COM POTÊNCIA DE 85 CV, TRAÇÃO 4X4, COM VASSOURA MECÂNICA ACOPLADA - CHI DIURNO. AF_02/2017 | E58: CHOR - CUSTOS HORÁRIOS DE MÁQUINAS E EQUIPAMENTOS | G58: CHI | H58: 0.1071 | I58: 40.94 | J58: 4.38
A59: Composição Auxiliar | B59: 96157 | C59: SINAPI | D59: TRATOR DE PNEUS COM POTÊNCIA DE 85 CV, TRAÇÃO 4X4, COM VASSOURA MECÂNICA ACOPLADA - CHP DIURNO. AF_03/2017 | E59: CHOR - CUSTOS HORÁRIOS DE MÁQUINAS E EQUIPAMENTOS | G59: CHP | H59: 0.0341 | I59: 121.8 | J59: 4.15
A60: Composição Auxiliar | B60: 96463 | C60: SINAPI | D60: ROLO COMPACTADOR DE PNEUS, ESTATICO, PRESSAO VARIAVEL, POTENCIA 110 HP, PESO SEM/COM LASTRO 10,8/27 T, LARGURA DE ROLAGEM 2,30 M - CHP DIURNO. AF_06/2017 | E60: CHOR - CUSTOS HORÁRIOS DE MÁQUINAS E EQUIPAMENTOS | G60: CHP | H60: 0.0419 | I60: 206.8 | J60: 8.66
A61: Composição Auxiliar | B61: 96464 | C61: SINAPI | D61: ROLO COMPACTADOR DE PNEUS, ESTATICO, PRESSAO VARIAVEL, POTENCIA 110 HP, PESO SEM/COM LASTRO 10,8/27 T, LARGURA DE ROLAGEM 2,30 M - CHI DIURNO. AF_06/2017 | E61: CHOR - CUSTOS HORÁRIOS DE MÁQUINAS E EQUIPAMENTOS | G61: CHI | H61: 0.099 | I61: 83.35 | J61: 8.25
A62: Insumo | B62: 1518 | C62: SINAPI | D62: CONCRETO BETUMINOSO USINADO A QUENTE (CBUQ) PARA PAVIMENTACAO ASFALTICA, PADRAO DNIT, FAIXA C, COM CAP 50/70 - AQUISICAO POSTO USINA | E62: Material | G62: T | H62: 2.5548 | I62: 512.5 | J62: 1309.33
B63: 0 | E63: MO sem LS => | F63: 11.31915694 | G63: LS => | H63: 12.74 | I63: MO com LS => | J63: 24.06
B64: 0 | E64: Valor do BDI => | F64: 0 | H64: Valor com BDI => | J64: 1417.5
B65: 0
A66: 6 | B66: Código | C66: Banco | D66: Descrição | E66: Tipo | G66: Und | H66: Quant. | I66: Valor Unit | J66: Total
A67: Composição | B67: 94266 | C67: SINAPI | D67: GUIA (MEIO-FIO) CONCRETO, MOLDADA IN LOCO EM TRECHO CURVO COM EXTRUSORA, 15 CM BASE X 30 CM ALTURA. AF_06/2016 | E67: DROP - DRENAGEM/OBRAS DE CONTENÇÃO / POÇOS DE VISITA E CAIXAS | G67: M | H67: 1 | I67: 54.8 | J67: 54.8
A68: Composição Auxiliar | B68: 88243 | C68: SINAPI | D68: AJUDANTE ESPECIALIZADO COM ENCARGOS COMPLEMENTARES | E68: SEDI - SERVIÇOS DIVERSOS | G68: H | H68: 0.142 | I68: 17.34 | J68: 2.46
A69: Composição Auxiliar | B69: 88309 | C69: SINAPI | D69: PEDREIRO COM ENCARGOS COMPLEMENTARES | E69: SEDI - SERVIÇOS DIVERSOS | G69: H | H69: 0.276 | I69: 23.44 | J69: 6.46
A70: Composição Auxiliar | B70: 88316 | C70: SINAPI | D70: SERVENTE COM ENCARGOS COMPLEMENTARES | E70: SEDI - SERVIÇOS DIVERSOS | G70: H | H70: 0.552 | I70: 17.28 | J70: 9.53
A71: Composição Auxiliar | B71: 88631 | C71: SINAPI | D71: ARGAMASSA TRAÇO 1:4 (EM VOLUME DE CIMENTO E AREIA MÉDIA ÚMIDA), PREPARO MANUAL. AF_08/2019 | E71: SEDI - SERVIÇOS DIVERSOS | G71: m³ | H71: 0.002 | I71: 653.54 | J71: 1.3
A72: Composição Auxiliar | B72: 92960 | C72: SINAPI | D72: MÁQUINA EXTRUSORA DE CONCRETO PARA GUIAS E SARJETAS, MOTOR A DIESEL, POTÊNCIA 14 CV - CHP DIURNO. AF_12/2015 | E72: CHOR - CUSTOS HORÁRIOS DE MÁQUINAS E EQUIPAMENTOS | G72: CHP | H72: 0.024 | I72: 18.61 | J72: 0.44
A73: Composição Auxiliar | B73: 92961 | C73: SINAPI | D73: MÁQUINA EXTRUSORA DE CONCRETO PARA GUIAS E SARJETAS, MOTOR A DIESEL, POTÊNCIA 14 CV - CHI DIURNO. AF_12/2015 | E73: CHOR - CUSTOS HORÁRIOS DE MÁQUINAS E EQUIPAMENTOS | G73: CHI | H73: 0.118 | I73: 5.38 | J73: 0.63
A74: Insumo | B74: 370 | C74: SINAPI | D74: AREIA MEDIA - POSTO JAZIDA/FORNECEDOR (RETIRADO NA JAZIDA, SEM TRANSPORTE) | E74: Material | G74: m³ | H74: 0.007 | I74: 105 | J74: 0.73
A75: Insumo | B75: 34492 | C75: SINAPI | D75: CONCRETO USINADO BOMBEAVEL, CLASSE DE RESISTENCIA C20, COM BRITA 0 E 1, SLUMP = 100 +/- 20 MM, EXCLUI SERVICO DE BOMBEAMENTO (NBR 8953) | E75: Material | G75: m³ | H75: 0.05 | I75: 665 | J75: 33.25
B76: 0 | E76: MO sem LS => | F76: 7.146217539 | G76: LS => | H76: 8.04 | I76: MO com LS => | J76: 15.19
B77: 0 | E77: Valor do BDI => | F77: 0 | H77: Valor com BDI => | J77: 54.8
B78: 0
A79: 7 | B79: Código | C79: Banco | D79: Descrição | E79: Tipo | G79: Und | H79: Quant. | I79: Valor Unit | J79: Total
A80: Composição | B80: 102498 | C80: SINAPI | D80: PINTURA DE MEIO-FIO COM TINTA BRANCA A BASE DE CAL (CAIAÇÃO). AF_05/2021 | E80: PINT - PINTURAS | G80: M | H80: 1 | I80: 1.36 | J80: 1.36
A81: Composição Auxiliar | B81: 88310 | C81: SINAPI | D81: PINTOR COM ENCARGOS COMPLEMENTARES | E81: SEDI - SERVIÇOS DIVERSOS | G81: H | H81: 0.037 | I81: 24.66 | J81: 0.91
A82: Composição Auxiliar | B82: 88316 | C82: SINAPI | D82: SERVENTE COM ENCARGOS COMPLEMENTARES | E82: SEDI - SERVIÇOS DIVERSOS | G82: H | H82: 0.016 | I82: 17.28 | J82: 0.27
A83: Insumo | B83: 11161 | C83: SINAPI | D83: CAL HIDRATADA PARA PINTURA | E83: Material | G83: KG | H83: 0.106 | I83: 1.78 | J83: 0.18
B84: 0 | E84: MO sem LS => | F84: 0.4375235228 | G84: LS => | H84: 0.49 | I84: MO com LS => | J84: 0.93
B85: 0 | E85: Valor do BDI => | F85: 0 | H85: Valor com BDI => | J85: 1.36
B86: 0
A87: 8 | B87: Código | C87: Banco | D87: Descrição | E87: Tipo | G87: Und | H87: Quant. | I87: Valor Unit | J87: Total
A88: Composição | B88: 102500 | C88: SINAPI | D88: PINTURA DE DEMARCAÇÃO DE VAGA COM TINTA ACRÍLICA, E = 10 CM, APLICAÇÃO MANUAL. AF_05/2021 | E88: PINT - PINTURAS | G88: M | H88: 1 | I88: 3.51 | J88: 3.51
A89: Composição Auxiliar | B89: 88310 | C89: SINAPI | D89: PINTOR COM ENCARGOS COMPLEMENTARES | E89: SEDI - SERVIÇOS DIVERSOS | G89: H | H89: 0.083 | I89: 24.66 | J89: 2.04
A90: Composição Auxiliar | B90: 88316 | C90: SINAPI | D90: SERVENTE COM ENCARGOS COMPLEMENTARES | E90: SEDI - SERVIÇOS DIVERSOS | G90: H | H90: 0.035 | I90: 17.28 | J90: 0.6
A91: Insumo | B91: 7348 | C91: SINAPI | D91: TINTA ACRILICA PREMIUM PARA PISO | E91: Material | G91: L | H91: 0.043 | I91: 11.79 | J91: 0.5
A92: Insumo | B92: 12815 | C92: SINAPI | D92: FITA CREPE ROLO DE 25 MM X 50 M | E92: Material | G92: UN | H92: 0.04 | I92: 9.36 | J92: 0.37
B93: 0 | E93: MO sem LS => | F93: 0.9879563417 | G93: LS => | H93: 1.11 | I93: MO com LS => | J93: 2.1
B94: 0 | E94: Valor do BDI => | F94: 0 | H94: Valor com BDI => | J94: 3.51
B95: 0
A96: 9 | B96: Código | C96: Banco | D96: Descrição | E96: Tipo | G96: Und | H96: Quant. | I96: Valor Unit | J96: Total
A97: Composição | B97: 101094 | C97: SINAPI | D97: PISO PODOTÁTIL DE ALERTA OU DIRECIONAL, DE BORRACHA, ASSENTADO SOBRE ARGAMASSA. AF_05/2020 | E97: PISO - PISOS | G97: M | H97: 1 | I97: 190.73 | J97: 190.73
A98: Composição Auxiliar | B98: 88309 | C98: SINAPI | D98: PEDREIRO COM ENCARGOS COMPLEMENTARES | E98: SEDI - SERVIÇOS DIVERSOS | G98: H | H98: 0.437 | I98: 23.44 | J98: 10.24
A99: Composição Auxiliar | B99: 88316 | C99: SINAPI | D99: SERVENTE COM ENCARGOS COMPLEMENTARES | E99: SEDI - SERVIÇOS DIVERSOS | G99: H | H99: 0.218 | I99: 17.28 | J99: 3.76
A100: Insumo | B100: 1379 | C100: SINAPI | D100: CIMENTO PORTLAND COMPOSTO CP II-32 | E100: Material | G100: KG | H100: 0.24 | I100: 1 | J100: 0.24
A101: Insumo | B101: 37595 | C101: SINAPI | D101: ARGAMASSA COLANTE TIPO AC III | E101: Material | G101: KG | H101: 1.215 | I101: 3.07 | J101: 3.73
A102: Insumo | B102: 38186 | C102: SINAPI | D102: PISO TATIL DE ALERTA OU DIRECIONAL, DE BORRACHA, COLORIDO, 25 X 25 CM, E = 12 MM, PARA ARGAMASSA | E102: Material | G102: m² | H102: 0.25 | I102: 691.05 | J102: 172.76
B103: 0 | E103: MO sem LS => | F103: 5.461987204 | G103: LS => | H103: 6.15 | I103: MO com LS => | J103: 11.61
B104: 0 | E104: Valor do BDI => | F104: 0 | H104: Valor com BDI => | J104: 190.73
B105: 0
A106: 10 | B106: Código | C106: Banco | D106: Descrição | E106: Tipo | G106: Und | H106: Quant. | I106: Valor Unit | J106: Total
A107: Composição | B107: 92398 | C107: SINAPI | D107: EXECUÇÃO DE PAVIMENTO EM PISO INTERTRAVADO, COM BLOCO RETANGULAR COR NATURAL DE 20 X 10 CM, ESPESSURA 8 CM. AF_10/2022 | E107: PAVI - PAVIMENTAÇÃO | G107: m² | H107: 1 | I107: 94.18 | J107: 94.18
A108: Composição Auxiliar | B108: 88260 | C108: SINAPI | D108: CALCETEIRO COM ENCARGOS COMPLEMENTARES | E108: SEDI - SERVIÇOS DIVERSOS | G108: H | H108: 0.2632 | I108: 21.4 | J108: 5.63
A109: Composição Auxiliar | B109: 88316 | C109: SINAPI | D109: SERVENTE COM ENCARGOS COMPLEMENTARES | E109: SEDI - SERVIÇOS DIVERSOS | G109: H | H109: 0.2632 | I109: 17.28 | J109: 4.54
A110: Composição Auxiliar | B110: 91277 | C110: SINAPI | D110: PLACA VIBRATÓRIA REVERSÍVEL COM MOTOR 4 TEMPOS A GASOLINA, FORÇA CENTRÍFUGA DE 25 KN (2500 KGF), POTÊNCIA 5,5 CV - CHP DIURNO. AF_08/2015 | E110: CHOR - CUSTOS HORÁRIOS DE MÁQUINAS E EQUIPAMENTOS | G110: CHP | H110: 0.0055 | I110: 8.99 | J110: 0.04
A111: Composição Auxiliar | B111: 91278 | C111: SINAPI | D111: PLACA VIBRATÓRIA REVERSÍVEL COM MOTOR 4 TEMPOS A GASOLINA, FORÇA CENTRÍFUGA DE 25 KN (2500 KGF), POTÊNCIA 5,5 CV - CHI DIURNO. AF_08/2015 | E111: CHOR - CUSTOS HORÁRIOS DE MÁQUINAS E EQUIPAMENTOS | G111: CHI | H111: 0.1261 | I111: 0.59 | J111: 0.07
A112: Composição Auxiliar | B112: 91283 | C112: SINAPI | D112: CORTADORA DE PISO COM MOTOR 4 TEMPOS A GASOLINA, POTÊNCIA DE 13 HP, COM DISCO DE CORTE DIAMANTADO SEGMENTADO PARA CONCRETO, DIÂMETRO DE 350 MM, FURO DE 1" (14 X 1") - CHP DIURNO. AF_08/2015 | E112: CHOR - CUSTOS HORÁRIOS DE MÁQUINAS E EQUIPAMENTOS | G112: CHP | H112: 0.0038 | I112: 9.96 | J112: 0.03
A113: Composição Auxiliar | B113: 91285 | C113: SINAPI | D113: CORTADORA DE PISO COM MOTOR 4 TEMPOS A GASOLINA, POTÊNCIA DE 13 HP, COM DISCO DE CORTE DIAMANTADO SEGMENTADO PARA CONCRETO, DIÂMETRO DE 350 MM, FURO DE 1" (14 X 1") - CHI DIURNO. AF_08/2015 | E113: CHOR - CUSTOS HORÁRIOS DE MÁQUINAS E EQUIPAMENTOS | G113: CHI | H113: 0.1278 | I113: 1.04 | J113: 0.13
A114: Insumo | B114: 370 | C114: SINAPI | D114: AREIA MEDIA - POSTO JAZIDA/FORNECEDOR (RETIRADO NA JAZIDA, SEM TRANSPORTE) | E114: Material | G114: m³ | H114: 0.0568 | I114: 105 | J114: 5.96
A115: Insumo | B115: 4741 | C115: SINAPI | D115: PO DE PEDRA (POSTO PEDREIRA/FORNECEDOR, SEM FRETE) | E115: Material | G115: m³ | H115: 0.0098 | I115: 253.71 | J115: 2.48
A116: Insumo | B116: 36170 | C116: SINAPI | D116: BLOQUETE/PISO INTERTRAVADO DE CONCRETO - MODELO ONDA/16 FACES/RETANGULAR/TIJOLINHO/PAVER/HOLANDES/PARALELEPIPEDO, *22 CM X 11* CM, E = 8 CM, RESISTENCIA DE 35 MPA (NBR 9781), COR NATURAL | E116: Material | G116: m² | H116: 1.0041 | I116: 75 | J116: 75.3
B117: 0 | E117: MO sem LS => | F117: 3.885961611 | G117: LS => | H117: 4.37 | I117: MO com LS => | J117: 8.26
B118: 0 | E118: Valor do BDI => | F118: 0 | H118: Valor com BDI => | J118: 94.18
B119: 0
A120: 11 | B120: Código | C120: Banco | D120: Descrição | E120: Tipo | G120: Und | H120: Quant. | I120: Valor Unit | J120: Total
A121: Composição | B121: 103310 | C121: SINAPI | D121: INSTALAÇÃO DE LIXEIRA METÁLICA DUPLA, CAPACIDADE DE 60 L, EM TUBO DE AÇO CARBONO E CESTOS EM CHAPA DE AÇO COM PINTURA ELETROSTÁTICA, SOBRE SOLO. AF_11/2021 | E121: URBA - URBANIZAÇÃO | G121: UN | H121: 1 | I121: 1288.84 | J121: 1288.84
A122: Composição Auxiliar | B122: 102486 | C122: SINAPI | D122: CONCRETO FCK = 15MPA, TRAÇO 1:3,4:3,4 (EM MASSA SECA DE CIMENTO/ AREIA MÉDIA/ SEIXO ROLADO) - PREPARO MANUAL. AF_05/2021 | E122: FUES - FUNDAÇÕES E ESTRUTURAS | G122: m³ | H122: 0.0222 | I122: 1003.71 | J122: 22.28
A123: Composição Auxiliar | B123: 88309 | C123: SINAPI | D123: PEDREIRO COM ENCARGOS COMPLEMENTARES | E123: SEDI - SERVIÇOS DIVERSOS | G123: H | H123: 0.8681 | I123: 23.44 | J123: 20.34
A124: Composição Auxiliar | B124: 88316 | C124: SINAPI | D124: SERVENTE COM ENCARGOS COMPLEMENTARES | E124: SEDI - SERVIÇOS DIVERSOS | G124: H | H124: 0.5787 | I124: 17.28 | J124: 9.99
A125: Insumo | B125: 4721 | C125: SINAPI | D125: PEDRA BRITADA N. 1 (9,5 a 19 MM) POSTO PEDREIRA/FORNECEDOR, SEM FRETE | E125: Material | G125: m³ | H125: 0.0012 | I125: 268.59 | J125: 0.32
A126: Insumo | B126: 42440 | C126: SINAPI | D126: LIXEIRA DUPLA, COM CAPACIDADE VOLUMETRICA DE 60L*, FABRICADA EM TUBO DE ACO CARBONO, CESTOS EM CHAPA DE ACO E PINTURA NO PROCESSO ELETROSTATICO - PARA ACADEMIA AO AR LIVRE / ACADEMIA DA TERCEIRA IDADE - ATI | E126: Material | G126: UN | H126: 1 | I126: 1235.91 | J126: 1235.91
B127: 0 | E127: MO sem LS => | F127: 12.68818216 | G127: LS => | H127: 14.28 | I127: MO com LS => | J127: 26.97
B128: 0 | E128: Valor do BDI => | F128: 0 | H128: Valor com BDI => | J128: 1288.84
B129: 0
A130: 12 | B130: Código | C130: Banco | D130: Descrição | E130: Tipo | G130: Und | H130: Quant. | I130: Valor Unit | J130: Total
A131: Composição | B131: 92435 | C131: SINAPI | D131: MONTAGEM E DESMONTAGEM DE FÔRMA DE PILARES RETANGULARES E ESTRUTURAS SIMILARES, PÉ-DIREITO SIMPLES, EM CHAPA DE MADEIRA COMPENSADA PLASTIFICADA, 12 UTILIZAÇÕES. AF_09/2020 | E131: FUES - FUNDAÇÕES E ESTRUTURAS | G131: m² | H131: 1 | I131: 57.64 | J131: 57.64
A132: Composição Auxiliar | B132: 88239 | C132: SINAPI | D132: AJUDANTE DE CARPINTEIRO COM ENCARGOS COMPLEMENTARES | E132: SEDI - SERVIÇOS DIVERSOS | G132: H | H132: 0.117 | I132: 19.1 | J132: 2.23
A133: Composição Auxiliar | B133: 88262 | C133: SINAPI | D133: CARPINTEIRO DE FORMAS COM ENCARGOS COMPLEMENTARES | E133: SEDI - SERVIÇOS DIVERSOS | G133: H | H133: 0.638 | I133: 23.07 | J133: 14.71
A134: Composição Auxiliar | B134: 92264 | C134: SINAPI | D134: FABRICAÇÃO DE FÔRMA PARA PILARES E ESTRUTURAS SIMILARES, EM CHAPA DE MADEIRA COMPENSADA PLASTIFICADA, E = 18 MM. AF_09/2020 | E134: FUES - FUNDAÇÕES E ESTRUTURAS | G134: m² | H134: 0.094 | I134: 233.04 | J134: 21.9
A135: Insumo | B135: 2692 | C135: SINAPI | D135: DESMOLDANTE PROTETOR PARA FORMAS DE MADEIRA, DE BASE OLEOSA EMULSIONADA EM AGUA | E135: Material | G135: L | H135: 0.004 | I135: 12.86 | J135: 0.05
A136: Insumo | B136: 40271 | C136: SINAPI | D136: LOCACAO DE APRUMADOR METALICO DE PILAR, COM ALTURA E ANGULO REGULAVEIS, EXTENSAO DE *1,50* A *2,80* M | E136: Equipamento | G136: UNXMES | H136: 0.196 | I136: 20.13 | J136: 3.94
A137: Insumo | B137: 40275 | C137: SINAPI | D137: LOCACAO DE VIGA SANDUICHE METALICA VAZADA PARA TRAVAMENTO DE PILARES, ALTURA DE *8* CM, LARGURA DE *6* CM E EXTENSAO DE 2 M | E137: Equipamento | G137: UNXMES | H137: 0.393 | I137: 21.04 | J137: 8.26
A138: Insumo | B138: 40287 | C138: SINAPI | D138: LOCACAO DE BARRA DE ANCORAGEM DE 0,80 A 1,20 M DE EXTENSAO, COM ROSCA DE 5/8", INCLUINDO PORCA E FLANGE | E138: Equipamento | G138: MES | H138: 0.785 | I138: 7.75 | J138: 6.08
A139: Insumo | B139: 40304 | C139: SINAPI | D139: PREGO DE ACO POLIDO COM CABECA DUPLA 17 X 27 (2 1/2 X 11) | E139: Material | G139: KG | H139: 0.019 | I139: 24.83 | J139: 0.47
B140: 0 | E140: MO sem LS => | F140: 8.148287542 | G140: LS => | H140: 9.17 | I140: MO com LS => | J140: 17.32
B141: 0 | E141: Valor do BDI => | F141: 0 | H141: Valor com BDI => | J141: 57.64
B142: 0
A143: 13 | B143: Código | C143: Banco | D143: Descrição | E143: Tipo | G143: Und | H143: Quant. | I143: Valor Unit | J143: Total
A144: Composição | B144: 92761 | C144: SINAPI | D144: ARMAÇÃO DE PILAR OU VIGA DE ESTRUTURA CONVENCIONAL DE CONCRETO ARMADO UTILIZANDO AÇO CA-50 DE 8,0 MM - MONTAGEM. AF_06/2022 | E144: FUES - FUNDAÇÕES E ESTRUTURAS | G144: KG | H144: 1 | I144: 15.29 | J144: 15.29
A145: Composição Auxiliar | B145: 88238 | C145: SINAPI | D145: AJUDANTE DE ARMADOR COM ENCARGOS COMPLEMENTARES | E145: SEDI - SERVIÇOS DIVERSOS | G145: H | H145: 0.0092 | I145: 17.32 | J145: 0.15
A146: Composição Auxiliar | B146: 88245 | C146: SINAPI | D146: ARMADOR COM ENCARGOS COMPLEMENTARES | E146: SEDI - SERVIÇOS DIVERSOS | G146: H | H146: 0.0561 | I146: 23.25 | J146: 1.3
A147: Composição Auxiliar | B147: 92802 | C147: SINAPI | D147: CORTE E DOBRA DE AÇO CA-50, DIÂMETRO DE 8,0 MM. AF_06/2022 | E147: FUES - FUNDAÇÕES E ESTRUTURAS | G147: KG | H147: 1 | I147: 13.06 | J147: 13.06
A148: Insumo | B148: 39017 | C148: SINAPI | D148: ESPACADOR / DISTANCIADOR CIRCULAR COM ENTRADA LATERAL, EM PLASTICO, PARA VERGALHAO *4,2 A 12,5* MM, COBRIMENTO 20 MM | E148: Material | G148: UN | H148: 0.743 | I148: 0.22 | J148: 0.16
A149: Insumo | B149: 43132 | C149: SINAPI | D149: ARAME RECOZIDO 16 BWG, D = 1,65 MM (0,016 KG/M) OU 18 BWG, D = 1,25 MM (0,01 KG/M) | E149: Material | G149: KG | H149: 0.025 | I149: 25 | J149: 0.62
B150: 0 | E150: MO sem LS => | F150: 0.7292058713 | G150: LS => | H150: 0.82 | I150: MO com LS => | J150: 1.55
B151: 0 | E151: Valor do BDI => | F151: 0 | H151: Valor com BDI => | J151: 15.29
B152: 0
A153: 14 | B153: Código | C153: Banco | D153: Descrição | E153: Tipo | G153: Und | H153: Quant. | I153: Valor Unit | J153: Total
A154: Composição | B154: 103685 | C154: SINAPI | D154: CONCRETAGEM DE MURETAS, FCK=25 MPA, COM USO DE BOMBA - LANÇAMENTO, ADENSAMENTO E ACABAMENTO. AF_02/2022_PS | E154: FUES - FUNDAÇÕES E ESTRUTURAS | G154: m³ | H154: 1 | I154: 855.82 | J154: 855.82
A155: Composição Auxiliar | B155: 88262 | C155: SINAPI | D155: CARPINTEIRO DE FORMAS COM ENCARGOS COMPLEMENTARES | E155: SEDI - SERVIÇOS DIVERSOS | G155: H | H155: 0.199 | I155: 23.07 | J155: 4.59
A156: Composição Auxiliar | B156: 88309 | C156: SINAPI | D156: PEDREIRO COM ENCARGOS COMPLEMENTARES | E156: SEDI - SERVIÇOS DIVERSOS | G156: H | H156: 0.795 | I156: 23.44 | J156: 18.63
A157: Composição Auxiliar | B157: 88316 | C157: SINAPI | D157: SERVENTE COM ENCARGOS COMPLEMENTARES | E157: SEDI - SERVIÇOS DIVERSOS | G157: H | H157: 0.894 | I157: 17.28 | J157: 15.44
A158: Composição Auxiliar | B158: 90586 | C158: SINAPI | D158: VIBRADOR DE IMERSÃO, DIÂMETRO DE PONTEIRA 45MM, MOTOR ELÉTRICO TRIFÁSICO POTÊNCIA DE 2 CV - CHP DIURNO. AF_06/2015 | E158: CHOR - CUSTOS HORÁRIOS DE MÁQUINAS E EQUIPAMENTOS | G158: CHP | H158: 0.079 | I158: 1.29 | J158: 0.1
A159: Composição Auxiliar | B159: 90587 | C159: SINAPI | D159: VIBRADOR DE IMERSÃO, DIÂMETRO DE PONTEIRA 45MM, MOTOR ELÉTRICO TRIFÁSICO POTÊNCIA DE 2 CV - CHI DIURNO. AF_06/2015 | E159: CHOR - CUSTOS HORÁRIOS DE MÁQUINAS E EQUIPAMENTOS | G159: CHI | H159: 0.12 | I159: 0.49 | J159: 0.05
A160: Insumo | B160: 1527 | C160: SINAPI | D160: CONCRETO USINADO BOMBEAVEL, CLASSE DE RESISTENCIA C25, BRITA 0 E 1, SLUMP = 100 +/- 20 MM, COM BOMBEAMENTO (DISPONIBILIZACAO DE BOMBA), SEM O LANCAMENTO (NBR 8953) | E160: Material | G160: m³ | H160: 1.103 | I160: 740.72 | J160: 817.01
B161: 0 | E161: MO sem LS => | F161: 14.97929996 | G161: LS => | H161: 16.86 | I161: MO com LS => | J161: 31.84
B162: 0 | E162: Valor do BDI => | F162: 0 | H162: Valor com BDI => | J162: 855.82
B163: 0
A164: 15 | B164: Código | C164: Banco | D164: Descrição | E164: Tipo | G164: Und | H164: Quant. | I164: Valor Unit | J164: Total
A165: Composição | B165: 103314 | C165: SINAPI | D165: INSTALAÇÃO DE PERGOLADO DE MADEIRA, EM MAÇARANDUBA, ANGELIM OU EQUIVALENTE DA REGIÃO, FIXADO COM CONCRETO SOBRE PISO DE CONCRETO EXISTENTE. AF_11/2021 | E165: URBA - URBANIZAÇÃO | G165: m² | H165: 1 | I165: 173.39 | J165: 173.39
A166: Composição Auxiliar | B166: 102486 | C166: SINAPI | D166: CONCRETO FCK = 15MPA, TRAÇO 1:3,4:3,4 (EM MASSA SECA DE CIMENTO/ AREIA MÉDIA/ SEIXO ROLADO) - PREPARO MANUAL. AF_05/2021 | E166: FUES - FUNDAÇÕES E ESTRUTURAS | G166: m³ | H166: 0.0208 | I166: 1003.71 | J166: 20.87
A167: Composição Auxiliar | B167: 5795 | C167: SINAPI | D167: MARTELETE OU ROMPEDOR PNEUMÁTICO MANUAL, 28 KG, COM SILENCIADOR - CHP DIURNO. AF_07/2016 | E167: CHOR - CUSTOS HORÁRIOS DE MÁQUINAS E EQUIPAMENTOS | G167: CHP | H167: 0.0177 | I167: 20.13 | J167: 0.35
A168: Composição Auxiliar | B168: 5952 | C168: SINAPI | D168: MARTELETE OU ROMPEDOR PNEUMÁTICO MANUAL, 28 KG, COM SILENCIADOR - CHI DIURNO. AF_07/2016 | E168: CHOR - CUSTOS HORÁRIOS DE MÁQUINAS E EQUIPAMENTOS | G168: CHI | H168: 0.0597 | I168: 18.43 | J168: 1.1
A169: Composição Auxiliar | B169: 87298 | C169: SINAPI | D169: ARGAMASSA TRAÇO 1:3 (EM VOLUME DE CIMENTO E AREIA MÉDIA ÚMIDA) PARA CONTRAPISO, PREPARO MECÂNICO COM BETONEIRA 400 L. AF_08/2019 | E169: SEDI - SERVIÇOS DIVERSOS | G169: m³ | H169: 0.0012 | I169: 783.05 | J169: 0.93
A170: Composição Auxiliar | B170: 88239 | C170: SINAPI | D170: AJUDANTE DE CARPINTEIRO COM ENCARGOS COMPLEMENTARES | E170: SEDI - SERVIÇOS DIVERSOS | G170: H | H170: 0.5342 | I170: 19.1 | J170: 10.2
A171: Composição Auxiliar | B171: 88262 | C171: SINAPI | D171: CARPINTEIRO DE FORMAS COM ENCARGOS COMPLEMENTARES | E171: SEDI - SERVIÇOS DIVERSOS | G171: H | H171: 0.5342 | I171: 23.07 | J171: 12.32
A172: Insumo | B172: 4721 | C172: SINAPI | D172: PEDRA BRITADA N. 1 (9,5 a 19 MM) POSTO PEDREIRA/FORNECEDOR, SEM FRETE | E172: Material | G172: m³ | H172: 0.0023 | I172: 268.59 | J172: 0.61
A173: Insumo | B173: 20204 | C173: SINAPI | D173: PRANCHAO APARELHADO *7,5 X 23* CM, EM MACARANDUBA/MASSARANDUBA, ANGELIM OU EQUIVALENTE DA REGIAO | E173: Material | G173: M | H173: 0.6465 | I173: 46.75 | J173: 30.22
A174: Insumo | B174: 20211 | C174: SINAPI | D174: VIGA APARELHADA *6 X 16* CM, EM MACARANDUBA/MASSARANDUBA, ANGELIM OU EQUIVALENTE DA REGIAO | E174: Material | G174: M | H174: 2.7273 | I174: 19.57 | J174: 53.37
A175: Insumo | B175: 35275 | C175: SINAPI | D175: PILAR QUADRADO NAO APARELHADO *15 X 15* CM, EM MACARANDUBA/MASSARANDUBA, ANGELIM OU EQUIVALENTE DA REGIAO - BRUTA | E175: Material | G175: M | H175: 0.6926 | I175: 61.8 | J175: 42.8
A176: Insumo | B176: 39027 | C176: SINAPI | D176: PREGO DE ACO POLIDO COM CABECA 19 X 36 (3 1/4 X 9) | E176: Material | G176: KG | H176: 0.0312 | I176: 20.1 | J176: 0.62
B177: 0 | E177: MO sem LS => | F177: 10.19947309 | G177: LS => | H177: 11.48 | I177: MO com LS => | J177: 21.68
B178: 0 | E178: Valor do BDI => | F178: 0 | H178: Valor com BDI => | J178: 173.39
B179: 0
A180: 16 | B180: Código | C180: Banco | D180: Descrição | E180: Tipo | G180: Und | H180: Quant. | I180: Valor Unit | J180: Total
A181: Composição | B181: 103946 | C181: SINAPI | D181: PLANTIO DE GRAMA ESMERALDA OU SÃO CARLOS OU CURITIBANA, EM PLACAS. AF_05/2022 | E181: URBA - URBANIZAÇÃO | G181: m² | H181: 1 | I181: 18.87 | J181: 18.87
A182: Composição Auxiliar | B182: 88316 | C182: SINAPI | D182: SERVENTE COM ENCARGOS COMPLEMENTARES | E182: SEDI - SERVIÇOS DIVERSOS | G182: H | H182: 0.1564 | I182: 17.28 | J182: 2.7
A183: Composição Auxiliar | B183: 88441 | C183: SINAPI | D183: JARDINEIRO COM ENCARGOS COMPLEMENTARES | E183: SEDI - SERVIÇOS DIVERSOS | G183: H | H183: 0.0391 | I183: 17.14 | J183: 0.67
A184: Insumo | B184: 3322 | C184: SINAPI | D184: GRAMA ESMERALDA OU SAO CARLOS OU CURITIBANA, EM PLACAS, SEM PLANTIO | E184: Material | G184: m² | H184: 1 | I184: 15.5 | J184: 15.5
B185: 0 | E185: MO sem LS => | F185: 1.251411366 | G185: LS => | H185: 1.41 | I185: MO com LS => | J185: 2.66
B186: 0 | E186: Valor do BDI => | F186: 0 | H186: Valor com BDI => | J186: 18.87
B187: 0
A188: 16 | B188: Código | C188: Banco | D188: Descrição | E188: Tipo | G188: Und | H188: Quant. | I188: Valor Unit | J188: Total
A189: Composição | B189: 98511 | C189: SINAPI | D189: PLANTIO DE ÁRVORE ORNAMENTAL COM ALTURA DE MUDA MAIOR QUE 2,00 M E MENOR OU IGUAL A 4,00 M. AF_05/2018 | E189: URBA - URBANIZAÇÃO | G189: UN | H189: 1 | I189: 127.24 | J189: 127.24
A190: Composição Auxiliar | B190: 88316 | C190: SINAPI | D190: SERVENTE COM ENCARGOS COMPLEMENTARES | E190: SEDI - SERVIÇOS DIVERSOS | G190: H | H190: 1.0401 | I190: 17.28 | J190: 17.97
A191: Composição Auxiliar | B191: 88441 | C191: SINAPI | D191: JARDINEIRO COM ENCARGOS COMPLEMENTARES | E191: SEDI - SERVIÇOS DIVERSOS | G191: H | H191: 0.26 | I191: 17.14 | J191: 4.45
A192: Insumo | B192: 359 | C192: SINAPI | D192: MUDA DE ARVORE ORNAMENTAL, OITI/AROEIRA SALSA/ANGICO/IPE/JACARANDA OU EQUIVALENTE DA REGIAO, H= *2* M | E192: Material | G192: UN | H192: 1 | I192: 104.82 | J192: 104.82
B193: 0 | E193: MO sem LS => | F193: 8.364697027 | G193: LS => | H193: 9.42 | I193: MO com LS => | J193: 17.78
B194: 0 | E194: Valor do BDI => | F194: 0 | H194: Valor com BDI => | J194: 127.24
B195: 0
A196: 17 | B196: Código | C196: Banco | D196: Descrição | E196: Tipo | G196: Und | H196: Quant. | I196: Valor Unit | J196: Total
A197: Composição | B197: 98510 | C197: SINAPI | D197: PLANTIO DE ÁRVORE ORNAMENTAL COM ALTURA DE MUDA MENOR OU IGUAL A 2,00 M. AF_05/2018 | E197: URBA - URBANIZAÇÃO | G197: UN | H197: 1 | I197: 66.7 | J197: 66.7
A198: Composição Auxiliar | B198: 88316 | C198: SINAPI | D198: SERVENTE COM ENCARGOS COMPLEMENTARES | E198: SEDI - SERVIÇOS DIVERSOS | G198: H | H198: 0.7272 | I198: 17.28 | J198: 12.56
A199: Composição Auxiliar | B199: 88441 | C199: SINAPI | D199: JARDINEIRO COM ENCARGOS COMPLEMENTARES | E199: SEDI - SERVIÇOS DIVERSOS | G199: H | H199: 0.1818 | I199: 17.14 | J199: 3.11
